Workbook

Sheet Revisions (hidden)
B2: Worksheet Tab | C2: Revision Requested | D2: Priority | E2: Hours | F2: Notes
B3: Landing Page | C3: Landing page text revise (default text is in attached Word doc) | D3: A | E3: <1
B4: Landing Page | C4: Brazil LED street light photo | D4: A | E4: 1
B5: Basic Info | C5: Change nation to country | D5: A | E5: <1
B6: Basic Info | C6: Currency symbols for all nations | D6: C | E6: Stage 2
B7: Inventory | C7: 10 rows per lamp technology | D7: A | E7: 1
B8: Inventory | C8: Hide weighted average columns | D8: A | E8: <1
B9: Inventory | C9: Remove options 2 and 4 from inventory options | D9: A | E9: 1
B10: Inventory | C10: Revise titles for inventory options | D10: A | E10: <1
B11: Inventory | C11: Lock 'default share button' | D11: A | E11: <1 | F11: Decided not to add third option. Keeps dashboard simple.
B12: Inventory | C12: Use national average distribution instead of Rio | D12: A | E12: 1
B13: Parameters | C13: For key parameters… add asterisk and popups | D13: B | E13: 1
B14: Parameters | C14: Change depreciation input to years not % | D14: A | E14: 1 | F14: Note that the original tool calculates depreciation.
A15: park | B15: Parameters | C15: Move technical parameters to top of page | D15: A | E15: <1 | F15: Need more time to do this as connected to many macros in page and in scenario module.
B16: Parameters | C16: Change button name when default is a calculation to "Use Calculated Value" | D16: A | E16: <1
B17: Parameters | C17: Edit parameter titles to remove 'existing case' and add 'net of inflation' | D17: A | E17: <1
B18: Project Design | C18: Typo in warranty | D18: A | E18: <1
B19: Project Design | C19: For key parameters… add asterisk and popups | D19: B | E19: 1
B20: Project Design | C20: Change 'Cash Flow Trends' to 'Cash Flow' | D20: A | E20: <1
B21: Project Design | C21: Add chart buttons to switch or show all | D21: B | E21: 1
B22: Project Design | C22: Need 2nd axis on DSCR chart to cross at 1.0 | D22: A | E22: 1 | F22: Need to refine this macro as it: A) creates negatives and B) max doe not always show high DSCRs
B23: Save/Modify | C23: Add message box that tell user the scenario saved. | D23: A | E23: <1
B24: Sensitivity Analysis | C24: Add blue, green, and red conditional formatting to adjustable parameters | D24: A | E24: 1
B25: Global | C25: Scrolling and locked cells issue | D25: B | E25: 1

Sheet 1.1_HomePage
A2: =ref_language -> 1
C7: =Language_Refs!D34 -> Tool Purpose
C8: =Language_Refs!D35 -> The LED Streetlight Financing Tool allows cities to evaluate the financial and economic benefits, including energy, lamp replacement (equipment & labor) and emission reduction benefits, of switching from conventional lighting technology to LED lamps. While city staff (mayor’s office/executive team, finance department, public works department, etc.) are the primary target users, the tool can also help potential financiers (e.g., local financial institutions, national, multilateral, bilateral development agencies), and others to identify opportunities. The tool performs the following functions: • Allow easy entry of city-specific data; • Provide proxy data for users when city-specific data is not available; • Estimates financial, economic, energy, and emission reduction benefits; • Provide comparisons of financial performance (NPV, IRR, simple payback) of different implementation scenarios defined by the user (different assumptions of penetration rates, interest rate, or other financial terms); and, • Allow users to adjust key assumptions and parameters to identify optimal solutions for their specific project.
C10: =Language_Refs!D38 -> Contacts:
C11: =Language_Refs!D39 -> Megan Meyer, Energy Specialist, Energy & Extractives,World Bank +1 (202) 458 8178
C12: mmeyer1@worldbank.org
C14: =Language_Refs!D40 -> Luiz T. A. Maurer, Lead Industry Specialist, IFC +1 (202) 473-3928
C15: lmaurer@ifc.org
C17: Javier Freire, Especialista de Financiamento de Carbono
C18: +1 (202) 458-8156
C19: jfreirecoloma@worldbank.org

Sheet 1.2_Steps&Workflow
D6: =Language_Refs!D58 -> How to use the tool:
D7: =Language_Refs!D59 -> To evaluate the performance of proposed streetlight retrofit projects, the user will need to complete the following steps. Further details on how to use the tooll are provided within the tool's user guide, which is available in PDF format here: LED Streetlight Financing Tool User Guide
E11: =Language_Refs!D48 -> Introduction:
E12: =Language_Refs!D49 -> · Select language (on any page) · Choose tool mode (on 1.3 Toolkit Configurations)
F15: =Language_Refs!D50 -> Set Up:
F16: =Language_Refs!D51 -> · Provide City's name, nation, and currency rate (on 2.1 Basic Information) · Define the number and type of existing streetlights (on 2.2 Streelight Inventory) · Define technical and financial parameters of existing streetlights (on 2.3 Parameters and Assumptions)
G18: =Language_Refs!D52 -> Project Design:
G19: =Language_Refs!D53 -> · Design a streetlight retrofit project including level of implementation, timing, and technical and financial assumptions (on 3.1 Project Design) · Review the project's financial, energy, and emission reduction performance (on 3.1 Project Design) · Save the current project into the alternative scenario database (on 3.2 Save/Modify Scenario) · Revive a saved scenario and modify it on project design page (on 3.2 Save/Modify Scenario)
H22: =Language_Refs!D54 -> Scenarios/Reports:
H23: =Language_Refs!D55 -> · Select saved projects to analyze and set order of appearance (on 4.1 Scenario Selection) · Compare financial, energy, and emissions performance of alternative projects (4.2 Scenario Comparision) · Conduct sensitivity analysis on a single or multiple project variables to determine likely range of project performance (on 4.2 Sensitivity Analysis Page) · Review and print summary of project performance of selected scenarios.
I25: =Language_Refs!D56 -> Data Base
I26: =Language_Refs!D57 -> · Review and modify, if necessary, all default parameters and assumptions (on 5.1 Default Data)

Sheet 1.3_Toolkit_Configuration
G9: =Language_Refs!D43 -> Option 1 = shows user interfaces only
G10: =Language_Refs!D44 -> Option 2 = allows access to open calculation sheets
G11: =Language_Refs!D45 -> Option 3 = administration mode - password required
E17: Note: Pushing the 'Clear' button will delete all user inputs within the tool. Your project information will be erased from this file.

Sheet TABLE TEMPLATE (hidden)
D9: % of luminaires replaced in project | E9: 0.9 | F9: %
D11: Starting year of project | E11: 2018 | F11: YYYY
D13: Years to implement project | E13: 3 | F13: years
D19: LED replacement wattage (weighted average) - base case | F19: watt
D21: Include smart system? | F21: Y/N
D23: Dimming hours per day | F23: hours
D29: % finance by debt | F29: %
D31: % finance by equity | F31: %
D33: Cost of Debt (net of inflation) | F33: $
D35: Cost of Equity (net of inflation) | F35: $
D37: Period of analysis | F37: years
D39: Loan term | F39: years
D41: Loan fees (% of loan value) | F41: $
D43: Grace period for principal | F43: years
D45: Grace period for interest | F45: years
D47: Include manufacture warranty | F47: Y/N
D49: Manufacture warranty duration | F49: years
D51: Estimated % failures not covered by warranty while active | F51: %

Sheet WB Color Pallete (hidden)

Sheet Tool Structure (hidden)
B2: Tool Structure
B4: Ref # | C4: Main Module | D4: Sub Module | E4: Sub Module Button Name | F4: Descriptions | G4: Addn'l Functions
B5: 1.1 | C5: Home | D5: Introduction | E5: =B5&" " &D5 -> 1.1 Introduction | F5: Overview of tool purpose, functionality, developers, and contact info, etc.
B6: 1.2 | C6: Home | D6: Steps & Workflow | E6: =B6&" " &D6 -> 1.2 Steps & Workflow | F6: Detailed directions on how user progresses through the tool. Links to user guide and other resources.
B7: 1.3 | C7: Home | D7: Toolkit Configurations | E7: 1.3 Toolkit Configurations | F7: change display setting, switch language, swtich b/w basic/advanced user mode | G7: reset configurations; reset configurations and project inputs
B8: 2.1 | C8: Set Up | D8: Basic Information | E8: 2.1 Basic Information | F8: City name, language, currency, exchange rate | G8: reset to wipe all projects
B9: 2.2 | C9: Set Up | D9: Street Light Inventory | E9: 2.2 Street Light Inventory | F9: Contains total inventory inputs as well as multiple options for user to select a proxy of inventory breakdown by technology (i.e. by example case or by technology) | I9: 2 pages or scroll?
B10: 2.3 | C10: Set Up | D10: Parameters & Assumptions | E10: 2.3 Parameters & Assumptions | F10: A) User can adjust technical parameters or use defaults B) User can adjust financial assumptions or use defaults | I10: 2 pages or scroll?
B11: 3.1 | C11: Project Design | D11: Gameboard | E11: 3.1 Gameboard | F11: Contains adjustable key technical and financial variables relevant to design. User can adjust project design and see financial, energy, and emissions KPIs and charts change dynamically | G11: Print project alternative report, save/load alternative
B12: 3.2 | C12: Project Design | D12: Alternatives Comparison | E12: 3.2 Alternatives Comparison | F12: Comparison of saved alternative in terms of financial and energy KPIs. Provides charts and tables. | G12: print alts comparison; select preferred alt
B13: 4 | C13: Scenarios | D13: Sensitivity Dashboard | E13: 4 Sensitivity Dashboard | F13: Contains relevant variables for sensitivity analysis. (i.e., Cost electricity, Cost LED, Electricity savings, etc.). Allow user to adjust 1 variable and view result in live
B14: 5.1 | C14: Database | D14: Default Data | E14: 5.1 Default Data | F14: User can see default data and source and choose to change with their own data.
B15: 5.2 | C15: Database | D15: Multi-nation Database | E15: 5.2 Multi-nation Database | F15: Placeholder database and functionality that will allow model to switch datasets when user adjust the country/region they are using the tool in.
L16: 1

Sheet 1.4_Definitions
A2: =0+ref_language -> 1
C7: =Language_Refs!D61 -> Definitions of Terms Used in the Tool

Sheet Intro (hidden)
B2: LED Public Street Lighting Tool: Financial and Economic Analysis Instructions
B3: Welcome to the WBG's tool for financial and enonomic analysis of investments of LED street lighting. This tool is designed with the goal helping city officials and other stakeholders to understand the potential project's returns and other key metrics (FIRR, DSCR, EIRR, etc.) Please follow these steps to use the tool: Step 1: Complete Tables 1 & 2 in the 'Assumptions' tab. Review data in Table 3 of 'Assumptions' tab and make adjustments as needed by inputing a new value in the data override column (J). Step 2: Click on the "Update Model Output" button in the 'Assumptions' tab. This updates the estimated loan size and scenario tables in the 'Summary and Scenarios' tab. Step 3: Review the key finanial and economic output in Table 5 of the 'Summary & Scenarios' Tab. Step 3: If desired, conduct a scenario analysis using the options presented in Table 4 of the 'Summary & Scenarios' Tab tab. Once changes are complete, click on the "Update Model Output" button in this tab. Step 4: Review any other data / statements as desired Notes to User: -- See the color key to the right for tabs, cells and text. -- All values are shown in REAL terms (net of inflation). -- The data and assumptions for this model are structured at 3 levels, as follows: Level 1 -- User input required (Tables 1 and 2 in the Assumptions Tab). Missing information likely to result in incomplete financial / economic output. Level 2 -- User review recommended (Table 3 in the Assumptions tab). Provides default data in order to reduce the amount of data that must be input by the user (primarily variables that are considered more standard across projects). However, you can and "override" default information by inputing your preferred value in the 'data override' column (column J). Level 3 -- User review optional (the Default Data tab - at end of model). Includes other underlying data regarding (i) conversion of assumptions in USD to the local currency, (ii) data for the sensitivity anaysis, (iii) other data that was deemed to be of lesser importance for user input to ensure accurancy of the model. | J3: Color key
J4: Tabs:
J5: Dark blue tab = Key user input / assumptions
J6: Orange tab = Financial Statements
J7: Green tab = Financial Calculations
J8: Tan tab = Technical Calculations
J9: Cells in Assumptions Tab:
J10: White cells = User input
J11: Grey cells = Calculated values or default values
J12: Font throughout:
J13: Dark blue text = references from other sheets
J14: Black text = data / calculations within sheet
J15: Red text = data override
J16: Orange text = conversion from USD to project currency

Sheet 2.1_BasicInformation
C6: =Language_Refs!D62 -> Directions:
C7: =Language_Refs!D63 -> Enter your city's name and country and enter the current exchange rate of your national currency per U.S. dollar.
C8: =Language_Refs!D64 -> The country that is selected changes the default data used within model.
D12: =Language_Refs!D66 -> Name of City | E12: Average FinBRAZEEC City
D14: =Language_Refs!D67 -> Country | E14: Brazil
D16: =Language_Refs!D68 -> Currency | E16: =IF(E14="",Language_Refs!$D$345,INDEX(Lookups!$D$3:$D$206,MATCH(E14,Lookups!$B$3:$B$206,0),1)) -> R$
D18: =Language_Refs!D69 -> Currency Exchange Rate (R$ per 1 $US) | E18: 3.31 | F18: =E16 -> R$

Sheet 2.2_StreetlightInventory
S2: 3 | T2: 3
C6: =Language_Refs!D72 -> Directions:
C7: =Language_Refs!D73 -> Select an appropriate option based on data availability and complete streetlight inventory table below.
C9: =Language_Refs!D74 -> Select one option
C10: =" "&Language_Refs!D75&" - " &Language_Refs!D76 -> Option 1 - Enter a detailed streetlight inventory if you have data on the number, type, and wattage of lamps
C12: =" "&Language_Refs!D78&" - " &Language_Refs!D79 -> Option 2 - Use the tool to estimate the number, type, and wattage of lamps
C16: =Language_Refs!D75&" - "&Language_Refs!D77 -> Option 1 - Detailed Streetlight Inventory
D19: =Language_Refs!D82 -> Technology | E19: =Language_Refs!D83 -> Lamp / Rated Power (W) | F19: =Language_Refs!D84 -> No. of lamps | G19: =Language_Refs!D85 -> % share | H19: =Language_Refs!D86 -> Equivalent LED rated Power (W) | I19: =Language_Refs!D87 -> Average existing tech (W) | J19: =Language_Refs!D88 -> Average LED (W)
D20: =Language_Refs!D89 -> High Pressure Sodium | F20: =SUM(F21:F30) -> 285000 | G20: =IFERROR(F20/$F$108,0) -> 0.6973330071 | I20: =SUM(I21:I30) -> 192.2807018 | J20: =SUM(J21:J30) -> 106.3550343
E21: 70 | F21: 40000 | G21: 0.09787129924 | H21: =E21*(1-'Inventory - Replacement Plan'!$C$8) -> 38.71866667 | I21: =IFERROR(E21*F21/$F$20, 0) -> 9.824561404 | J21: =IFERROR(H21*F21/$F$20,0) -> 5.43419883
E22: 100 | F22: 40000 | G22: 0.09787129924 | H22: =E22*(1-'Inventory - Replacement Plan'!$C$8) -> 55.31238095 | I22: =IFERROR(E22*F22/$F$20, 0) -> 14.03508772 | J22: =IFERROR(H22*F22/$F$20,0) -> 7.763141186
E23: 150 | F23: 85000 | G23: 0.2079765109 | H23: =E23*(1-'Inventory - Replacement Plan'!$C$8) -> 82.96857143 | I23: 44.73684211 | J23: 24.74501253
E24: 250 | F24: 85000 | G24: 0.2079765109 | H24: =E24*(1-'Inventory - Replacement Plan'!$C$8) -> 138.2809524 | I24: 74.56140351 | J24: 41.24168755
E25: 400 | F25: 35000 | G25: 0.08563738684 | H25: =E25*(1-'Inventory - Replacement Plan'!$C$8) -> 221.2495238 | I25: 49.12280702 | J25: 27.17099415
G26: =IFERROR(F26/$F$108,0) -> 0 | H26: =E26*(1-'Inventory - Replacement Plan'!$C$8) -> 0 | I26: =IFERROR(E26*F26/$F$20, 0) -> 0 | J26: =IFERROR(H26*F26/$F$20,0) -> 0
G27: 0 | H27: =E27*(1-'Inventory - Replacement Plan'!$C$8) -> 0 | I27: =IFERROR(E27*F27/$F$20, 0) -> 0 | J27: =IFERROR(H27*F27/$F$20,0) -> 0
G28: 0 | H28: =E28*(1-'Inventory - Replacement Plan'!$C$8) -> 0 | I28: =IFERROR(E28*F28/$F$20, 0) -> 0 | J28: =IFERROR(H28*F28/$F$20,0) -> 0
G29: 0 | H29: =E29*(1-'Inventory - Replacement Plan'!$C$8) -> 0 | I29: =IFERROR(E29*F29/$F$20, 0) -> 0 | J29: =IFERROR(H29*F29/$F$20,0) -> 0
G30: 0 | H30: =E30*(1-'Inventory - Replacement Plan'!$C$8) -> 0 | I30: 0 | J30: 0
D31: =Language_Refs!D90 -> Mercury Vapor | F31: =SUM(F32:F41) -> 96000 | G31: 0.2348911182 | I31: =SUM(I32:I41) -> 256.0416667 | J31: =SUM(J32:J41) -> 115.7271756
E32: 80 | F32: 1000 | G32: 0.002446782481 | H32: =E32*(1-'Inventory - Replacement Plan'!$C$7) -> 36.15885714 | I32: =IFERROR(E32*F32/$F$31, 0) -> 0.8333333333 | J32: =IFERROR(H32*F32/$F$31,0) -> 0.3766547619
E33: 125 | F33: 30000 | G33: 0.07340347443 | H33: =E33*(1-'Inventory - Replacement Plan'!$C$7) -> 56.49821429 | I33: =IFERROR(E33*F33/$F$31, 0) -> 39.0625 | J33: =IFERROR(H33*F33/$F$31,0) -> 17.65569196
E34: 250 | F34: 35000 | G34: 0.08563738684 | H34: =E34*(1-'Inventory - Replacement Plan'!$C$7) -> 112.9964286 | I34: =IFERROR(E34*F34/$F$31, 0) -> 91.14583333 | J34: =IFERROR(H34*F34/$F$31,0) -> 41.19661458
E35: 400 | F35: 30000 | G35: =IFERROR(F35/$F$108,0) -> 0.07340347443 | H35: =E35*(1-'Inventory - Replacement Plan'!$C$7) -> 180.7942857 | I35: =IFERROR(E35*F35/$F$31, 0) -> 125 | J35: =IFERROR(H35*F35/$F$31,0) -> 56.49821429
G36: 0 | H36: =E36*(1-'Inventory - Replacement Plan'!$C$7) -> 0 | I36: 0 | J36: 0
G37: 0 | H37: =E37*(1-'Inventory - Replacement Plan'!$C$7) -> 0 | I37: 0 | J37: 0
G38: 0 | H38: =E38*(1-'Inventory - Replacement Plan'!$C$7) -> 0 | I38: 0 | J38: 0
G39: 0 | H39: =E39*(1-'Inventory - Replacement Plan'!$C$7) -> 0 | I39: 0 | J39: 0
G40: 0 | H40: =E40*(1-'Inventory - Replacement Plan'!$C$7) -> 0 | I40: 0 | J40: 0
G41: =IFERROR(F41/$F$108,0) -> 0 | H41: =E41*(1-'Inventory - Replacement Plan'!$C$7) -> 0 | I41: =IFERROR(E41*F41/$F$31, 0) -> 0 | J41: =IFERROR(H41*F41/$F$31,0) -> 0
D42: =Language_Refs!D91 -> Metal Halide | F42: =SUM(F43:F52) -> 27700 | G42: 0.06777587472 | I42: =SUM(I43:I52) -> 269.6209386 | J42: =SUM(J43:J52) -> 161.95873
E43: 35 | F43: 100 | G43: 0.0002446782481 | H43: =E43*(1-'Inventory - Replacement Plan'!$C$9) -> 21.02416667 | I43: =IFERROR(E43*F43/$F$42, 0) -> 0.1263537906 | J43: =IFERROR(H43*F43/$F$42,0) -> 0.07589951865
E44: 70 | F44: 5000 | G44: 0.01223391241 | H44: =E44*(1-'Inventory - Replacement Plan'!$C$9) -> 42.04833333 | I44: =IFERROR(E44*F44/$F$42, 0) -> 12.63537906 | J44: =IFERROR(H44*F44/$F$42,0) -> 7.589951865
E45: 100 | F45: 4000 | G45: 0.009787129924 | H45: =E45*(1-'Inventory - Replacement Plan'!$C$9) -> 60.06904762 | I45: 14.44043321 | J45: 8.674230703
E46: 150 | F46: 1500 | G46: 0.003670173722 | H46: =E46*(1-'Inventory - Replacement Plan'!$C$9) -> 90.10357143 | I46: 8.122743682 | J46: 4.879254771
E47: 175 | F47: 200 | G47: 0.0004893564962 | H47: =E47*(1-'Inventory - Replacement Plan'!$C$9) -> 105.1208333 | I47: 1.263537906 | J47: 0.7589951865
E48: 200 | F48: 400 | G48: 0.0009787129924 | H48: =E48*(1-'Inventory - Replacement Plan'!$C$9) -> 120.1380952 | I48: 2.888086643 | J48: 1.734846141
E49: 250 | F49: 1500 | G49: =IFERROR(F49/$F$108,0) -> 0.003670173722 | H49: =E49*(1-'Inventory - Replacement Plan'!$C$9) -> 150.172619 | I49: =IFERROR(E49*F49/$F$42, 0) -> 13.53790614 | J49: =IFERROR(H49*F49/$F$42,0) -> 8.132091284
E50: 400 | F50: 15000 | G50: =IFERROR(F50/$F$108,0) -> 0.03670173722 | H50: =E50*(1-'Inventory - Replacement Plan'!$C$9) -> 240.2761905 | I50: =IFERROR(E50*F50/$F$42, 0) -> 216.6064982 | J50: =IFERROR(H50*F50/$F$42,0) -> 130.1134605
G51: =IFERROR(F51/$F$108,0) -> 0 | H51: =E51*(1-'Inventory - Replacement Plan'!$C$9) -> 0 | I51: 0 | J51: 0
G52: 0 | H52: =E52*(1-'Inventory - Replacement Plan'!$C$9) -> 0 | I52: 0 | J52: 0
D53: =Language_Refs!D92 -> Fluorescent | F53: =SUM(F54:F63) -> 0 | G53: 0 | I53: =SUM(I54:I63) -> 0 | J53: =SUM(J54:J63) -> 0
G54: 0 | H54: =E54*(1-'Inventory - Replacement Plan'!$C$3) -> 0 | I54: =IFERROR(E54*F54/$F$53, 0) -> 0 | J54: =IFERROR(H54*F54/$F$53,0) -> 0
G55: 0 | H55: =E55*(1-'Inventory - Replacement Plan'!$C$3) -> 0 | I55: =IFERROR(E55*F55/$F$53, 0) -> 0 | J55: =IFERROR(H55*F55/$F$53,0) -> 0
G56: 0 | H56: =E56*(1-'Inventory - Replacement Plan'!$C$3) -> 0 | I56: 0 | J56: 0
G57: 0 | H57: =E57*(1-'Inventory - Replacement Plan'!$C$3) -> 0 | I57: 0 | J57: 0
G58: =IFERROR(F58/$F$108,0) -> 0 | H58: =E58*(1-'Inventory - Replacement Plan'!$C$3) -> 0 | I58: =IFERROR(E58*F58/$F$53, 0) -> 0 | J58: =IFERROR(H58*F58/$F$53,0) -> 0
G59: 0 | H59: =E59*(1-'Inventory - Replacement Plan'!$C$3) -> 0 | I59: =IFERROR(E59*F59/$F$53, 0) -> 0 | J59: =IFERROR(H59*F59/$F$53,0) -> 0
G60: 0 | H60: =E60*(1-'Inventory - Replacement Plan'!$C$3) -> 0 | I60: =IFERROR(E60*F60/$F$53, 0) -> 0 | J60: =IFERROR(H60*F60/$F$53,0) -> 0
G61: 0 | H61: =E61*(1-'Inventory - Replacement Plan'!$C$3) -> 0 | I61: =IFERROR(E61*F61/$F$53, 0) -> 0 | J61: =IFERROR(H61*F61/$F$53,0) -> 0
G62: 0 | H62: =E62*(1-'Inventory - Replacement Plan'!$C$3) -> 0 | I62: 0 | J62: 0
G63: 0 | H63: =E63*(1-'Inventory - Replacement Plan'!$C$3) -> 0 | I63: 0 | J63: 0
D64: =Language_Refs!D93 -> Incandescent | F64: =SUM(F65:F74) -> 0 | G64: 0 | I64: =SUM(I65:I74) -> 0 | J64: =SUM(J65:J74) -> 0
G65: 0 | H65: =E65*(1-'Inventory - Replacement Plan'!$C$5) -> 0 | I65: =IFERROR(E65*F65/$F$64, 0) -> 0 | J65: =IFERROR(H65*F65/$F$64,0) -> 0
G66: 0 | H66: =E66*(1-'Inventory - Replacement Plan'!$C$5) -> 0 | I66: =IFERROR(E66*F66/$F$64, 0) -> 0 | J66: =IFERROR(H66*F66/$F$64,0) -> 0
G67: =IFERROR(F67/$F$108,0) -> 0 | H67: =E67*(1-'Inventory - Replacement Plan'!$C$5) -> 0 | I67: =IFERROR(E67*F67/$F$64, 0) -> 0 | J67: =IFERROR(H67*F67/$F$64,0) -> 0
G68: 0 | H68: =E68*(1-'Inventory - Replacement Plan'!$C$5) -> 0 | I68: 0 | J68: 0
G69: 0 | H69: =E69*(1-'Inventory - Replacement Plan'!$C$5) -> 0 | I69: 0 | J69: 0
G70: 0 | H70: =E70*(1-'Inventory - Replacement Plan'!$C$5) -> 0 | I70: 0 | J70: 0
G71: 0 | H71: =E71*(1-'Inventory - Replacement Plan'!$C$5) -> 0 | I71: 0 | J71: 0
G72: 0 | H72: =E72*(1-'Inventory - Replacement Plan'!$C$5) -> 0 | I72: 0 | J72: 0
G73: =IFERROR(F73/$F$108,0) -> 0 | H73: =E73*(1-'Inventory - Replacement Plan'!$C$5) -> 0 | I73: =IFERROR(E73*F73/$F$64, 0) -> 0 | J73: =IFERROR(H73*F73/$F$64,0) -> 0
G74: 0 | H74: =E74*(1-'Inventory - Replacement Plan'!$C$5) -> 0 | I74: =IFERROR(E74*F74/$F$64, 0) -> 0 | J74: =IFERROR(H74*F74/$F$64,0) -> 0
D75: =Language_Refs!D94 -> Halogen | F75: =SUM(F76:F85) -> 0 | G75: 0 | I75: =SUM(I76:I85) -> 0 | J75: =SUM(J76:J85) -> 0
G76: 0 | H76: =E76*(1-'Inventory - Replacement Plan'!$C$4) -> 0 | I76: =IFERROR(E76*F76/$F$75, 0) -> 0 | J76: =IFERROR(H76*F76/$F$75,0) -> 0
G77: 0 | H77: =E77*(1-'Inventory - Replacement Plan'!$C$4) -> 0 | I77: =IFERROR(E77*F77/$F$75, 0) -> 0 | J77: =IFERROR(H77*F77/$F$75,0) -> 0
G78: 0 | H78: =E78*(1-'Inventory - Replacement Plan'!$C$4) -> 0 | I78: 0 | J78: 0
G79: 0 | H79: =E79*(1-'Inventory - Replacement Plan'!$C$4) -> 0 | I79: 0 | J79: 0
G80: =IFERROR(F80/$F$108,0) -> 0 | H80: =E80*(1-'Inventory - Replacement Plan'!$C$4) -> 0 | I80: =IFERROR(E80*F80/$F$75, 0) -> 0 | J80: =IFERROR(H80*F80/$F$75,0) -> 0
G81: =IFERROR(F81/$F$108,0) -> 0 | H81: =E81*(1-'Inventory - Replacement Plan'!$C$4) -> 0 | I81: =IFERROR(E81*F81/$F$75, 0) -> 0 | J81: =IFERROR(H81*F81/$F$75,0) -> 0
G82: =IFERROR(F82/$F$108,0) -> 0 | H82: =E82*(1-'Inventory - Replacement Plan'!$C$4) -> 0 | I82: =IFERROR(E82*F82/$F$75, 0) -> 0 | J82: =IFERROR(H82*F82/$F$75,0) -> 0
G83: =IFERROR(F83/$F$108,0) -> 0 | H83: =E83*(1-'Inventory - Replacement Plan'!$C$4) -> 0 | I83: =IFERROR(E83*F83/$F$75, 0) -> 0 | J83: =IFERROR(H83*F83/$F$75,0) -> 0
G84: =IFERROR(F84/$F$108,0) -> 0 | H84: =E84*(1-'Inventory - Replacement Plan'!$C$4) -> 0 | I84: =IFERROR(E84*F84/$F$75, 0) -> 0 | J84: =IFERROR(H84*F84/$F$75,0) -> 0
G85: =IFERROR(F85/$F$108,0) -> 0 | H85: =E85*(1-'Inventory - Replacement Plan'!$C$4) -> 0 | I85: 0 | J85: 0
D86: =Language_Refs!D95 -> Mixed Lights | F86: =SUM(F87:F96) -> 0 | G86: 0 | I86: =SUM(I87:I96) -> 0 | J86: =SUM(J87:J96) -> 0
G87: 0 | H87: =E87*(1-'Inventory - Replacement Plan'!$C$6) -> 0 | I87: =IFERROR(E87*F87/$F$86, 0) -> 0 | J87: =IFERROR(H87*F87/$F$86,0) -> 0
G88: 0 | H88: =E88*(1-'Inventory - Replacement Plan'!$C$6) -> 0 | I88: =IFERROR(E88*F88/$F$86, 0) -> 0 | J88: =IFERROR(H88*F88/$F$86,0) -> 0
G89: 0 | H89: =E89*(1-'Inventory - Replacement Plan'!$C$6) -> 0 | I89: 0 | J89: 0
G90: 0 | H90: =E90*(1-'Inventory - Replacement Plan'!$C$6) -> 0 | I90: 0 | J90: 0
G91: =IFERROR(F91/$F$108,0) -> 0 | H91: =E91*(1-'Inventory - Replacement Plan'!$C$6) -> 0 | I91: =IFERROR(E91*F91/$F$86, 0) -> 0 | J91: =IFERROR(H91*F91/$F$86,0) -> 0
G92: =IFERROR(F92/$F$108,0) -> 0 | H92: =E92*(1-'Inventory - Replacement Plan'!$C$6) -> 0 | I92: =IFERROR(E92*F92/$F$86, 0) -> 0 | J92: =IFERROR(H92*F92/$F$86,0) -> 0
G93: =IFERROR(F93/$F$108,0) -> 0 | H93: =E93*(1-'Inventory - Replacement Plan'!$C$6) -> 0 | I93: =IFERROR(E93*F93/$F$86, 0) -> 0 | J93: =IFERROR(H93*F93/$F$86,0) -> 0
G94: =IFERROR(F94/$F$108,0) -> 0 | H94: =E94*(1-'Inventory - Replacement Plan'!$C$6) -> 0 | I94: =IFERROR(E94*F94/$F$86, 0) -> 0 | J94: =IFERROR(H94*F94/$F$86,0) -> 0
G95: =IFERROR(F95/$F$108,0) -> 0 | H95: =E95*(1-'Inventory - Replacement Plan'!$C$6) -> 0 | I95: =IFERROR(E95*F95/$F$86, 0) -> 0 | J95: =IFERROR(H95*F95/$F$86,0) -> 0
G96: =IFERROR(F96/$F$108,0) -> 0 | H96: =E96*(1-'Inventory - Replacement Plan'!$C$6) -> 0 | I96: 0 | J96: 0
D97: =Language_Refs!D96 -> Other | F97: =SUM(F98:F107) -> 0 | G97: 0 | I97: =SUM(I98:I107) -> 0 | J97: =SUM(J98:J107) -> 0
G98: 0 | I98: =IFERROR(E98*F98/$F$97, 0) -> 0 | J98: =IFERROR(H98*F98/$F$97,0) -> 0
G99: 0 | I99: =IFERROR(E99*F99/$F$97, 0) -> 0 | J99: =IFERROR(H99*F99/$F$97,0) -> 0
G100: 0 | I100: 0 | J100: 0
G101: 0 | I101: 0 | J101: 0
G102: 0 | I102: 0 | J102: 0
G103: =IFERROR(F103/$F$108,0) -> 0 | I103: =IFERROR(E103*F103/$F$97, 0) -> 0 | J103: =IFERROR(H103*F103/$F$97,0) -> 0
G104: 0 | I104: =IFERROR(E104*F104/$F$97, 0) -> 0 | J104: =IFERROR(H104*F104/$F$97,0) -> 0
G105: 0 | I105: =IFERROR(E105*F105/$F$97, 0) -> 0 | J105: =IFERROR(H105*F105/$F$97,0) -> 0
G106: 0 | I106: 0 | J106: 0
G107: 0 | I107: 0 | J107: =IFERROR(H107*F107/$F$97,0) -> 0
D108: =Language_Refs!D97 -> Total | F108: =SUM(F20,F31,F42,F53,F64,F75,F86,F97,) -> 408700 | G108: 1 | I108: =I20*G20+I31*G31+I42*G42+I53*G53+I64*G64+I75*G75+I97*G97+G86*I86 -> 212.4993883 | J108: =J20*G20+J31*G31+J42*G42+J53*G53+J64*G64+J75*G75+J97*G97+G86*J86 -> 112.3250561
E110: =Language_Refs!D357 -> Average Wattage of Baseline Existing Technology | F110: =I108 -> 212.4993883
E111: =Language_Refs!D358 -> Average Wattage of New LED Technology | F111: =J108 -> 112.3250561
D114: Step 1 - Enter Total Streetlights
D116: Number of Streetlights in City
D118: Step 2 - Estimate Distribution of Streetlights by Technology and Wattage
D120: Technology | E120: Lamp / Rated Power (W) | F120: % share | G120: No. of lamps | H120: Equivalent LED rated Power (W) | I120: Weighted average existing tech (W) | J120: Weighted avg LED (W)
D121: High Pressure Sodium | F121: =IFERROR(G121/$G$174,0) -> 0 | G121: =SUM(G122:G127) -> 0 | I121: =SUM(I122:I127) -> 0 | J121: =SUM(J122:J127) -> 0
G122: =F122*$E$116 -> 0 | H122: =E122*(1-'Inventory - Replacement Plan'!$C$8) -> 0 | I122: =IFERROR(E122*G122/$G$121, 0) -> 0 | J122: =IFERROR(H122*G122/$G$121,0) -> 0
G123: =F123*$E$116 -> 0 | H123: =E123*(1-'Inventory - Replacement Plan'!$C$8) -> 0 | I123: 0 | J123: 0
G124: 0 | H124: =E124*(1-'Inventory - Replacement Plan'!$C$8) -> 0 | I124: 0 | J124: 0
G125: 0 | H125: =E125*(1-'Inventory - Replacement Plan'!$C$8) -> 0 | I125: 0 | J125: 0
G126: 0 | H126: =E126*(1-'Inventory - Replacement Plan'!$C$8) -> 0 | I126: 0 | J126: 0
G127: 0 | H127: =E127*(1-'Inventory - Replacement Plan'!$C$8) -> 0 | I127: 0 | J127: 0
D128: Mercury Vapor | F128: =IFERROR(G128/$G$174,0) -> 0 | G128: =SUM(G129:G132) -> 0 | I128: =SUM(I129:I132) -> 0 | J128: =SUM(J129:J132) -> 0
G129: 0 | H129: =E129*(1-'Inventory - Replacement Plan'!$C$7) -> 0 | I129: =IFERROR(E129*G129/$G$128, 0) -> 0 | J129: =IFERROR(H129*G129/$G$128,0) -> 0
G130: 0 | H130: =E130*(1-'Inventory - Replacement Plan'!$C$7) -> 0 | I130: =IFERROR(E130*G130/$G$128, 0) -> 0 | J130: =IFERROR(H130*G130/$G$128,0) -> 0
G131: 0 | H131: =E131*(1-'Inventory - Replacement Plan'!$C$7) -> 0 | I131: =IFERROR(E131*G131/$G$128, 0) -> 0 | J131: =IFERROR(H131*G131/$G$128,0) -> 0
G132: 0 | H132: =E132*(1-'Inventory - Replacement Plan'!$C$7) -> 0 | I132: =IFERROR(E132*G132/$G$128, 0) -> 0 | J132: =IFERROR(H132*G132/$G$128,0) -> 0
D133: Metal Halide | F133: =IFERROR(G133/$G$174,0) -> 0 | G133: =SUM(G134:G141) -> 0 | I133: =SUM(I134:I141) -> 0 | J133: =SUM(J134:J141) -> 0
G134: 0 | H134: =E134*(1-'Inventory - Replacement Plan'!$C$9) -> 0 | I134: =IFERROR(E134*G134/$G$133, 0) -> 0 | J134: =IFERROR(H134*G134/$G$133,0) -> 0
G135: 0 | H135: =E135*(1-'Inventory - Replacement Plan'!$C$9) -> 0 | I135: =IFERROR(E135*G135/$G$133, 0) -> 0 | J135: =IFERROR(H135*G135/$G$133,0) -> 0
G136: 0 | H136: =E136*(1-'Inventory - Replacement Plan'!$C$9) -> 0 | I136: 0 | J136: 0
G137: 0 | H137: =E137*(1-'Inventory - Replacement Plan'!$C$9) -> 0 | I137: 0 | J137: 0
G138: 0 | H138: =E138*(1-'Inventory - Replacement Plan'!$C$9) -> 0 | I138: 0 | J138: 0
G139: 0 | H139: =E139*(1-'Inventory - Replacement Plan'!$C$9) -> 0 | I139: 0 | J139: 0
G140: 0 | H140: =E140*(1-'Inventory - Replacement Plan'!$C$9) -> 0 | I140: 0 | J140: 0
G141: 0 | H141: =E141*(1-'Inventory - Replacement Plan'!$C$9) -> 0 | I141: =IFERROR(E141*G141/$G$133, 0) -> 0 | J141: =IFERROR(H141*G141/$G$133,0) -> 0
D142: Fluorescent | F142: =IFERROR(G142/$G$174,0) -> 0 | G142: =SUM(G143:G148) -> 0 | I142: =SUM(I143:I148) -> 0 | J142: =SUM(J143:J148) -> 0
G143: 0 | H143: =E143*(1-'Inventory - Replacement Plan'!$C$3) -> 0 | I143: =IFERROR(E143*G143/$G$142, 0) -> 0 | J143: =IFERROR(H143*G143/$G$142,0) -> 0
G144: 0 | H144: =E144*(1-'Inventory - Replacement Plan'!$C$3) -> 0 | I144: 0 | J144: 0
G145: 0 | H145: =E145*(1-'Inventory - Replacement Plan'!$C$3) -> 0 | I145: 0 | J145: 0
G146: 0 | H146: =E146*(1-'Inventory - Replacement Plan'!$C$3) -> 0 | I146: 0 | J146: 0
G147: 0 | H147: =E147*(1-'Inventory - Replacement Plan'!$C$3) -> 0 | I147: 0 | J147: 0
G148: 0 | H148: =E148*(1-'Inventory - Replacement Plan'!$C$3) -> 0 | I148: 0 | J148: 0
D149: Incandescent | F149: =IFERROR(G149/$G$174,0) -> 0 | G149: =SUM(G150:G153) -> 0 | I149: =SUM(I150:I153) -> 0 | J149: =SUM(J150:J153) -> 0
G150: 0 | H150: =E150*(1-'Inventory - Replacement Plan'!$C$5) -> 0 | I150: =IFERROR(E150*G150/$G$149, 0) -> 0 | J150: =IFERROR(H150*G150/$G$149,0) -> 0
G151: 0 | H151: =E151*(1-'Inventory - Replacement Plan'!$C$5) -> 0 | I151: =IFERROR(E151*G151/$G$149, 0) -> 0 | J151: =IFERROR(H151*G151/$G$149,0) -> 0
G152: 0 | H152: =E152*(1-'Inventory - Replacement Plan'!$C$5) -> 0 | I152: =IFERROR(E152*G152/$G$149, 0) -> 0 | J152: =IFERROR(H152*G152/$G$149,0) -> 0
G153: 0 | H153: =E153*(1-'Inventory - Replacement Plan'!$C$5) -> 0 | I153: =IFERROR(E153*G153/$G$149, 0) -> 0 | J153: =IFERROR(H153*G153/$G$149,0) -> 0
D154: Halogen | F154: =IFERROR(G154/$G$174,0) -> 0 | G154: =SUM(G155:G159) -> 0 | I154: =SUM(I155:I159) -> 0 | J154: =SUM(J155:J159) -> 0
G155: 0 | H155: =E155*(1-'Inventory - Replacement Plan'!$C$4) -> 0 | I155: =IFERROR(E155*G155/$G$154, 0) -> 0 | J155: =IFERROR(H155*G155/$G$154,0) -> 0
G156: 0 | H156: =E156*(1-'Inventory - Replacement Plan'!$C$4) -> 0 | I156: =IFERROR(E156*G156/$G$154, 0) -> 0 | J156: =IFERROR(H156*G156/$G$154,0) -> 0
G157: 0 | H157: =E157*(1-'Inventory - Replacement Plan'!$C$4) -> 0 | I157: =IFERROR(E157*G157/$G$154, 0) -> 0 | J157: =IFERROR(H157*G157/$G$154,0) -> 0
G158: 0 | H158: =E158*(1-'Inventory - Replacement Plan'!$C$4) -> 0 | I158: =IFERROR(E158*G158/$G$154, 0) -> 0 | J158: =IFERROR(H158*G158/$G$154,0) -> 0
G159: 0 | H159: =E159*(1-'Inventory - Replacement Plan'!$C$4) -> 0 | I159: =IFERROR(E159*G159/$G$154, 0) -> 0 | J159: =IFERROR(H159*G159/$G$154,0) -> 0
D160: Mixed Lights | F160: =IFERROR(G160/$G$174,0) -> 0 | G160: =SUM(G161:G165) -> 0 | I160: =SUM(I161:I165) -> 0 | J160: =SUM(J161:J165) -> 0
G161: 0 | H161: =E161*(1-'Inventory - Replacement Plan'!$C$6) -> 0 | I161: =IFERROR(E161*G161/$G$160, 0) -> 0 | J161: =IFERROR(H161*G161/$G$160,0) -> 0
G162: 0 | H162: =E162*(1-'Inventory - Replacement Plan'!$C$6) -> 0 | I162: =IFERROR(E162*G162/$G$160, 0) -> 0 | J162: =IFERROR(H162*G162/$G$160,0) -> 0
G163: 0 | H163: =E163*(1-'Inventory - Replacement Plan'!$C$6) -> 0 | I163: =IFERROR(E163*G163/$G$160, 0) -> 0 | J163: =IFERROR(H163*G163/$G$160,0) -> 0
G164: 0 | H164: =E164*(1-'Inventory - Replacement Plan'!$C$6) -> 0 | I164: =IFERROR(E164*G164/$G$160, 0) -> 0 | J164: =IFERROR(H164*G164/$G$160,0) -> 0
G165: 0 | H165: =E165*(1-'Inventory - Replacement Plan'!$C$6) -> 0 | I165: =IFERROR(E165*G165/$G$160, 0) -> 0 | J165: =IFERROR(H165*G165/$G$160,0) -> 0
D166: Other | F166: =IFERROR(G166/$G$174,0) -> 0 | G166: =SUM(G167:G173) -> 0 | I166: =SUM(I167:I173) -> 0 | J166: =SUM(J167:J173) -> 0
G167: 0 | H167: 21 | I167: =IFERROR(E167*G167/$G$166, 0) -> 0 | J167: =IFERROR(H167*G167/$G$166,0) -> 0
G168: 0 | H168: 0 | I168: 0 | J168: 0
G169: 0 | H169: 0 | I169: 0 | J169: 0
G170: 0 | H170: 0 | I170: 0 | J170: 0
G171: 0 | H171: 0 | I171: 0 | J171: 0
G172: 0 | H172: 0 | I172: 0 | J172: 0
G173: 0 | H173: 0 | I173: 0 | J173: 0
D174: Total | F174: =SUM(F121,F128,F133,F142,F149,F154,F160,F166,) -> 0 | G174: =SUM(G121,G128,G133,G142,G149,G154,G160,G166,) -> 0 | I174: =I121*F121+I128*F128+I133*F133+I142*F142+I149*F149+I154*F154+I166*F166+F160*I160 -> 0 | J174: =J121*F121+J128*F128+J133*F133+J142*F142+J149*F149+J154*F154+J166*F166+F160*J160 -> 0
C177: =Language_Refs!D78& " - "&Language_Refs!D80 -> Option 2 - Estimated Inventory Using Total Number of Streetlights and Estimated Distribution of Lamp Technologies
D180: =Language_Refs!D98 -> Step 1 - Enter Total Streetlights
D182: =Language_Refs!D99 -> Number of Streetlights in City | F182: 42500
D184: =Language_Refs!D100 -> Step 2 - Estimate Distribution of Streetlights by Technology and Wattage
D186: =D19 -> Technology | E186: Lamp / Rated Power (W) | F186: No. of lamps | G186: % share | I186: Average existing tech (W) | J186: Average LED (W)
D187: =Language_Refs!D89 -> High Pressure Sodium | F187: =G187*$F$182 -> 27625 | G187: 0.65 | I187: ='2.2_Option2Calcs'!G4 -> 170.1 | J187: ='2.2_Option2Calcs'!H4 -> 94.08636
E188: ='2.2_Option2Calcs'!C5 -> 70 | F188: ='2.2_Option2Calcs'!D5 -> 2210 | G188: NA | H188: ='2.2_Option2Calcs'!F5 -> 38.71866667 | I188: =IFERROR(E188*F188/$F$187, 0) -> 5.6 | J188: =IFERROR(H188*F188/$F$187,0) -> 3.097493333
E189: ='2.2_Option2Calcs'!C6 -> 100 | F189: ='2.2_Option2Calcs'!D6 -> 8563.75 | G189: NA | H189: ='2.2_Option2Calcs'!F6 -> 55.31238095 | I189: 31 | J189: 17.1468381
E190: ='2.2_Option2Calcs'!C7 -> 150 | F190: ='2.2_Option2Calcs'!D7 -> 8011.25 | G190: NA | H190: ='2.2_Option2Calcs'!F7 -> 82.96857143 | I190: 43.5 | J190: 24.06088571
E191: ='2.2_Option2Calcs'!C8 -> 250 | F191: ='2.2_Option2Calcs'!D8 -> 6630 | G191: NA | H191: ='2.2_Option2Calcs'!F8 -> 138.2809524 | I191: 60 | J191: 33.18742857
E192: ='2.2_Option2Calcs'!C9 -> 350 | F192: ='2.2_Option2Calcs'!D9 -> 1105 | G192: NA | H192: ='2.2_Option2Calcs'!F9 -> 193.5933333 | I192: 14 | J192: 7.743733333
E193: ='2.2_Option2Calcs'!C10 -> 400 | F193: ='2.2_Option2Calcs'!D10 -> 1105 | G193: NA | H193: ='2.2_Option2Calcs'!F10 -> 221.2495238 | I193: 16 | J193: 8.849980952
D194: =Language_Refs!D90 -> Mercury Vapor | F194: =G194*$F$182 -> 10625 | G194: 0.25 | I194: ='2.2_Option2Calcs'!G11 -> 214 | J194: ='2.2_Option2Calcs'!H11 -> 96.72494286
E195: ='2.2_Option2Calcs'!C12 -> 125 | F195: ='2.2_Option2Calcs'!D12 -> 2337.5 | G195: NA | H195: ='2.2_Option2Calcs'!F12 -> 56.49821429 | I195: =IFERROR(E195*F195/$F$194, 0) -> 27.5 | J195: =IFERROR(H195*F195/$F$194,0) -> 12.42960714
E196: ='2.2_Option2Calcs'!C13 -> 150 | F196: ='2.2_Option2Calcs'!D13 -> 3612.5 | G196: NA | H196: ='2.2_Option2Calcs'!F13 -> 67.79785714 | I196: =IFERROR(E196*F196/$F$194, 0) -> 51 | J196: =IFERROR(H196*F196/$F$194,0) -> 23.05127143
E197: ='2.2_Option2Calcs'!C14 -> 250 | F197: ='2.2_Option2Calcs'!D14 -> 2868.75 | G197: NA | H197: ='2.2_Option2Calcs'!F14 -> 112.9964286 | I197: =IFERROR(E197*F197/$F$194, 0) -> 67.5 | J197: =IFERROR(H197*F197/$F$194,0) -> 30.50903571
E198: ='2.2_Option2Calcs'!C15 -> 400 | F198: ='2.2_Option2Calcs'!D15 -> 1806.25 | G198: NA | H198: ='2.2_Option2Calcs'!F15 -> 180.7942857 | I198: =IFERROR(E198*F198/$F$194, 0) -> 68 | J198: =IFERROR(H198*F198/$F$194,0) -> 30.73502857
D199: =Language_Refs!D91 -> Metal Halide | F199: =G199*$F$182 -> 4250 | G199: 0.1 | I199: ='2.2_Option2Calcs'!G16 -> 385 | J199: ='2.2_Option2Calcs'!H16 -> 231.2658333
E200: ='2.2_Option2Calcs'!C17 -> 70 | F200: ='2.2_Option2Calcs'!D17 -> 425 | G200: NA | H200: ='2.2_Option2Calcs'!F17 -> 42.04833333 | I200: =IFERROR(E200*F200/$F$199, 0) -> 7 | J200: =IFERROR(H200*F200/$F$199,0) -> 4.204833333
E201: ='2.2_Option2Calcs'!C18 -> 100 | F201: ='2.2_Option2Calcs'!D18 -> 297.5 | G201: NA | H201: ='2.2_Option2Calcs'!F18 -> 60.06904762 | I201: =IFERROR(E201*F201/$F$199, 0) -> 7 | J201: =IFERROR(H201*F201/$F$199,0) -> 4.204833333
E202: ='2.2_Option2Calcs'!C19 -> 150 | F202: ='2.2_Option2Calcs'!D19 -> 170 | G202: NA | H202: ='2.2_Option2Calcs'!F19 -> 90.10357143 | I202: 6 | J202: 3.604142857
E203: ='2.2_Option2Calcs'!C20 -> 175 | F203: ='2.2_Option2Calcs'!D20 -> 0 | G203: NA | H203: ='2.2_Option2Calcs'!F20 -> 105.1208333 | I203: 0 | J203: 0
E204: ='2.2_Option2Calcs'!C21 -> 200 | F204: ='2.2_Option2Calcs'!D21 -> 42.5 | G204: NA | H204: ='2.2_Option2Calcs'!F21 -> 120.1380952 | I204: 2 | J204: 1.201380952
E205: ='2.2_Option2Calcs'!C22 -> 250 | F205: ='2.2_Option2Calcs'!D22 -> 765 | G205: NA | H205: ='2.2_Option2Calcs'!F22 -> 150.172619 | I205: 45 | J205: 27.03107143
E206: ='2.2_Option2Calcs'!C23 -> 400 | F206: ='2.2_Option2Calcs'!D23 -> 1997.5 | G206: NA | H206: ='2.2_Option2Calcs'!F23 -> 240.2761905 | I206: 188 | J206: 112.9298095
E207: ='2.2_Option2Calcs'!C24 -> 1000 | F207: ='2.2_Option2Calcs'!D24 -> 552.5 | G207: NA | H207: ='2.2_Option2Calcs'!F24 -> 600.6904762 | I207: =IFERROR(E207*F207/$F$199, 0) -> 130 | J207: =IFERROR(H207*F207/$F$199,0) -> 78.0897619
D208: =Language_Refs!D92 -> Fluorescent | E208: NA | F208: =G208*$F$182 -> 0 | I208: ='2.2_Option2Calcs'!G25 -> 0 | J208: ='2.2_Option2Calcs'!H25 -> 0
E209: ='2.2_Option2Calcs'!C26 -> 110 | F209: ='2.2_Option2Calcs'!D26 -> 0 | G209: NA | H209: ='2.2_Option2Calcs'!F26 -> 35 | I209: =IFERROR(E209*F209/$F$208, 0) -> 0 | J209: =IFERROR(H209*F209/$F$208,0) -> 0
E210: ='2.2_Option2Calcs'!C27 -> 0 | F210: ='2.2_Option2Calcs'!D27 -> 0 | G210: NA | H210: ='2.2_Option2Calcs'!F27 -> 0 | I210: 0 | J210: 0
E211: ='2.2_Option2Calcs'!C28 -> 0 | F211: ='2.2_Option2Calcs'!D28 -> 0 | G211: NA | H211: ='2.2_Option2Calcs'!F28 -> 0 | I211: 0 | J211: 0
E212: ='2.2_Option2Calcs'!C29 -> 0 | F212: ='2.2_Option2Calcs'!D29 -> 0 | G212: NA | H212: ='2.2_Option2Calcs'!F29 -> 0 | I212: 0 | J212: 0
E213: ='2.2_Option2Calcs'!C30 -> 0 | F213: ='2.2_Option2Calcs'!D30 -> 0 | G213: NA | H213: ='2.2_Option2Calcs'!F30 -> 0 | I213: 0 | J213: 0
E214: ='2.2_Option2Calcs'!C31 -> 0 | F214: ='2.2_Option2Calcs'!D31 -> 0 | G214: NA | H214: ='2.2_Option2Calcs'!F31 -> 0 | I214: 0 | J214: 0
D215: =Language_Refs!D93 -> Incandescent | E215: NA | F215: =G215*$F$182 -> 0 | I215: ='2.2_Option2Calcs'!G32 -> 0 | J215: ='2.2_Option2Calcs'!H32 -> 0
E216: ='2.2_Option2Calcs'!C33 -> 200 | F216: ='2.2_Option2Calcs'!D33 -> 0 | G216: NA | H216: ='2.2_Option2Calcs'!F33 -> 25.98333333 | I216: =IFERROR(E216*F216/$F$215, 0) -> 0 | J216: =IFERROR(H216*F216/$F$215,0) -> 0
E217: ='2.2_Option2Calcs'!C34 -> 300 | F217: ='2.2_Option2Calcs'!D34 -> 0 | G217: NA | H217: ='2.2_Option2Calcs'!F34 -> 38.975 | I217: =IFERROR(E217*F217/$F$215, 0) -> 0 | J217: =IFERROR(H217*F217/$F$215,0) -> 0
E218: ='2.2_Option2Calcs'!C35 -> 500 | F218: ='2.2_Option2Calcs'!D35 -> 0 | G218: NA | H218: ='2.2_Option2Calcs'!F35 -> 64.95833333 | I218: =IFERROR(E218*F218/$F$215, 0) -> 0 | J218: =IFERROR(H218*F218/$F$215,0) -> 0
E219: ='2.2_Option2Calcs'!C36 -> 1000 | F219: ='2.2_Option2Calcs'!D36 -> 0 | G219: NA | H219: ='2.2_Option2Calcs'!F36 -> 129.9166667 | I219: =IFERROR(E219*F219/$F$215, 0) -> 0 | J219: =IFERROR(H219*F219/$F$215,0) -> 0
D220: =Language_Refs!D94 -> Halogen | E220: NA | F220: =G220*$F$182 -> 0 | I220: ='2.2_Option2Calcs'!G37 -> 0 | J220: ='2.2_Option2Calcs'!H37 -> 0
E221: ='2.2_Option2Calcs'!C38 -> 400 | F221: ='2.2_Option2Calcs'!D38 -> 0 | G221: NA | H221: ='2.2_Option2Calcs'!F38 -> 60.5 | I221: =IFERROR(E221*F221/$F$220, 0) -> 0 | J221: =IFERROR(H221*F221/$F$220,0) -> 0
E222: ='2.2_Option2Calcs'!C39 -> 500 | F222: ='2.2_Option2Calcs'!D39 -> 0 | G222: NA | H222: ='2.2_Option2Calcs'!F39 -> 75.625 | I222: =IFERROR(E222*F222/$F$220, 0) -> 0 | J222: =IFERROR(H222*F222/$F$220,0) -> 0
E223: ='2.2_Option2Calcs'!C40 -> 1000 | F223: ='2.2_Option2Calcs'!D40 -> 0 | G223: NA | H223: ='2.2_Option2Calcs'!F40 -> 151.25 | I223: =IFERROR(E223*F223/$F$220, 0) -> 0 | J223: =IFERROR(H223*F223/$F$220,0) -> 0
E224: ='2.2_Option2Calcs'!C41 -> 1500 | F224: ='2.2_Option2Calcs'!D41 -> 0 | G224: NA | H224: ='2.2_Option2Calcs'!F41 -> 226.875 | I224: =IFERROR(E224*F224/$F$220, 0) -> 0 | J224: =IFERROR(H224*F224/$F$220,0) -> 0
... 75 more rows

Sheet 2.3_ExistingParameters
C6: =Language_Refs!D104 -> Directions:
C7: =Language_Refs!D105&" "&Language_Refs!D106 -> Complete tables below. Review parameters and assumptions and make adjustments as needed by inputting a new value in the cell. If desired, you can use default value by clicking the 'Set All to Default' button or 'Use Default' button.
D12: =Language_Refs!D110 -> Average operating hours per day | F12: 11.5 | H12: hours
D14: =Language_Refs!D111 -> Average life existing technology | E14: =Lifetime!F15 -> 28800 | F14: 28800 | H14: hours
D16: =Language_Refs!D112 -> Average life LED | E16: =Lifetime!C10 -> 50000 | F16: 50000 | H16: hours
F18: 55000
D20: =Language_Refs!D114 -> Grid emission factor (tonnes CO2e/MWh) | F20: 0.44 | H20: tonnes
D26: =Language_Refs!D116 -> Retail cost of electricity for street lighting | E26: * | F26: 440 | H26: =IF('2.1_BasicInformation'!$E$16=Language_Refs!$D$345,"$/kWh",CONCATENATE('2.1_BasicInformation'!$E$16,"/kWh")) -> R$/kWh
D28: =Language_Refs!D117 -> Unsubsidized cost of electricity for street lighting | E28: * | F28: 540 | H28: =IF('2.1_BasicInformation'!$E$16=Language_Refs!$D$345,"$/kWh",CONCATENATE('2.1_BasicInformation'!$E$16,"/kWh")) -> R$/kWh
D30: =Language_Refs!D118 -> Real annual increase on electricity tariff (net of inflation) | F30: 0.02
D32: =Language_Refs!D119 -> Average price per luminaire - existing technology | E32: * | F32: 369.4361191 | G32: =Assumptions!E110*Assumptions!$E$9 -> 386.9726438 | H32: =IF('2.1_BasicInformation'!$E$16=Language_Refs!$D$345,"$",'2.1_BasicInformation'!$E$16) -> R$
D34: =Language_Refs!D120 -> Average price per luminaire - LED - existing case (pre-tax) | E34: * | F34: 604.5672816 | G34: =Assumptions!E111*Assumptions!$E$9 -> 633.2650956 | H34: =IF('2.1_BasicInformation'!$E$16=Language_Refs!$D$345,"$",'2.1_BasicInformation'!$E$16) -> R$
D36: =Language_Refs!D121 -> Annual decrease in LED prices | F36: 0.1 | H36: %
D38: =Language_Refs!D122 -> Additional cost of smart system (% increase to assumed LED price) | E38: * | F38: 0.1 | H38: % | K38: move to 2.3
D40: =Language_Refs!D123 -> Additional infrastructure (civil works) cost per point | E40: =Assumptions!E113*Assumptions!$E$9 -> 0 | F40: 0 | H40: =IF('2.1_BasicInformation'!$E$16=Language_Refs!$D$345,"$",'2.1_BasicInformation'!$E$16) -> R$
D42: =Language_Refs!D124 -> Installation cost per LED | E42: * | F42: 79 | H42: =IF('2.1_BasicInformation'!$E$16=Language_Refs!$D$345,"$",'2.1_BasicInformation'!$E$16) -> R$
D44: =Language_Refs!D125 -> Labor cost per lamp replacement - all technologies | E44: * | F44: 165.71 | H44: =IF('2.1_BasicInformation'!$E$16=Language_Refs!$D$345,"$",'2.1_BasicInformation'!$E$16) -> R$
D46: =Language_Refs!D126 -> Years of depreciation (default is straight-line) | E46: =MAX(1/G32,1/IF(Assumptions!$E$19="Y", Lifetime!D11, Lifetime!D10)) -> 0.07631818182 | F46: 13 | H46: ='3.1_ProjectDesignData'!$B$82 -> years
D48: =Language_Refs!D127 -> Tax on domestic equipment | F48: 0.46 | H48: %
D50: =Language_Refs!D128 -> Tax on imported equipment | F50: 0.75 | H50: %
D52: =Language_Refs!D129 -> % equipment expected to be imported | F52: 0.5 | H52: %
D54: =Language_Refs!D130 -> Corporate Tax Rate | F54: 0.3 | H54: %
D56: =Language_Refs!D131 -> Current annual budget / COSIP rev. to fund public street lighting electricity and lamp replacement (equipment & labor)) | E56: * | F56: 18000000 | H56: =IF('2.1_BasicInformation'!$E$16=Language_Refs!$D$345,"$",'2.1_BasicInformation'!$E$16) -> R$
D58: =Language_Refs!D132 -> Estimated annual increase (decrease) in budget for PSL | F58: 0.005 | H58: %
D60: =Language_Refs!D133 -> Social cost of carbon dioxide (CO2e) in 2015 | F60: 94.8 | H60: =IF('2.1_BasicInformation'!$E$16=Language_Refs!$D$345,"$",'2.1_BasicInformation'!$E$16) -> R$
D62: =Language_Refs!D161 -> Additional Operating Expenditures | F62: 0 | H62: =IF('2.1_BasicInformation'!$E$16=Language_Refs!$D$345,"$",'2.1_BasicInformation'!$E$16) -> R$
C73: =Language_Refs!D346 -> * The asterisk mark indicates parameters that have a considerable impact on the financial performance of the project. Take extra effort to costumize these parameters to your project context.

Sheet 2.2_EnergytoLampCalc (hidden)
A1: Placeholder needs clean up. Add other cities? | B1: Technology | C1: w/lamp from proxy inventory | D1: MWh/lamp | E1: total lamps per type from proxy inventory | F1: Total MWh per type from proxy inventory | G1: % of total energy from proxy inventory | H1: Distribution of energy use by lamp type for City | I1: Number of lamps per type in City | J1: Distribution of Lamps in City
B2: High Pressure Sodium | I2: =SUM(I3:I8) -> 33223 | J2: =I2/$I$55 -> 0.6799770769
C3: 70 | D3: =C3/1000000*'2.3_ExistingParameters'!$F$12*365.25 -> 0.29402625 | E3: 42500 | F3: =D3*E3 -> 12496.11563 | G3: =F3/$F$55 -> 0.03380009657 | H3: =G3*'2.2_StreetlightInventory'!$F$182 -> 1436.504104 | I3: =ROUND(IFERROR(H3/D3,0),0) -> 4886 | J3: =I3/$I$55 -> 0.1000020467
C4: 100 | D4: =C4/1000000*'2.3_ExistingParameters'!$F$12*365.25 -> 0.4200375 | E4: 42500 | F4: 17851.59375 | G4: 0.04828585225 | H4: =G4*'2.2_StreetlightInventory'!$F$182 -> 2052.14872 | I4: 4886 | J4: =I4/$I$55 -> 0.1000020467
C5: 150 | D5: =C5/1000000*'2.3_ExistingParameters'!$F$12*365.25 -> 0.63005625 | E5: 85000 | F5: 53554.78125 | G5: 0.1448575567 | H5: =G5*'2.2_StreetlightInventory'!$F$182 -> 6156.446161 | I5: 9771 | J5: 0.1999836264
C6: 250 | D6: =C6/1000000*'2.3_ExistingParameters'!$F$12*365.25 -> 1.05009375 | E6: 85000 | F6: 89257.96875 | G6: 0.2414292612 | H6: =G6*'2.2_StreetlightInventory'!$F$182 -> 10260.7436 | I6: 9771 | J6: 0.1999836264
C7: 350 | D7: =C7/1000000*'2.3_ExistingParameters'!$F$12*365.25 -> 1.47013125 | E7: 0 | F7: 0 | G7: 0 | H7: =G7*'2.2_StreetlightInventory'!$F$182 -> 0 | I7: 0 | J7: 0
C8: 400 | D8: =C8/1000000*'2.3_ExistingParameters'!$F$12*365.25 -> 1.68015 | E8: 34000 | F8: 57125.1 | G8: 0.1545147272 | H8: =G8*'2.2_StreetlightInventory'!$F$182 -> 6566.875905 | I8: 3909 | J8: 0.08000573078
B9: Mercury Vapor | I9: =SUM(I10:I13) -> 11238 | J9: 0.2300088008
C10: 80 | D10: =C10/1000000*'2.3_ExistingParameters'!$F$12*365.25 -> 0.33603 | E10: 0 | F10: =D10*E10 -> 0 | G10: =F10/$F$55 -> 0 | H10: =G10*'2.2_StreetlightInventory'!$F$182 -> 0 | I10: =ROUND(IFERROR(H10/D10,0),0) -> 0 | J10: =I10/$I$55 -> 0
C11: 125 | D11: =C11/1000000*'2.3_ExistingParameters'!$F$12*365.25 -> 0.525046875 | E11: 34000 | F11: =D11*E11 -> 17851.59375 | G11: =F11/$F$55 -> 0.04828585225 | H11: =G11*'2.2_StreetlightInventory'!$F$182 -> 2052.14872 | I11: =ROUND(IFERROR(H11/D11,0),0) -> 3909 | J11: =I11/$I$55 -> 0.08000573078
C12: 250 | D12: =C12/1000000*'2.3_ExistingParameters'!$F$12*365.25 -> 1.05009375 | E12: 34000 | F12: =D12*E12 -> 35703.1875 | G12: =F12/$F$55 -> 0.09657170449 | H12: =G12*'2.2_StreetlightInventory'!$F$182 -> 4104.297441 | I12: =ROUND(IFERROR(H12/D12,0),0) -> 3909 | J12: =I12/$I$55 -> 0.08000573078
C13: 400 | D13: =C13/1000000*'2.3_ExistingParameters'!$F$12*365.25 -> 1.68015 | E13: 29750 | F13: =D13*E13 -> 49984.4625 | G13: =F13/$F$55 -> 0.1352003863 | H13: =G13*'2.2_StreetlightInventory'!$F$182 -> 5746.016417 | I13: =ROUND(IFERROR(H13/D13,0),0) -> 3420 | J13: =I13/$I$55 -> 0.06999733928
B14: Metal Halide | I14: =SUM(I15:I22) -> 2444 | J14: =I14/$I$55 -> 0.05002149041
C15: 35 | D15: =C15/1000000*'2.3_ExistingParameters'!$F$12*365.25 -> 0.147013125 | E15: 0 | F15: =D15*E15 -> 0 | G15: =F15/$F$55 -> 0 | H15: =G15*'2.2_StreetlightInventory'!$F$182 -> 0 | I15: =ROUND(IFERROR(H15/D15,0),0) -> 0 | J15: =I15/$I$55 -> 0
C16: 70 | D16: =C16/1000000*'2.3_ExistingParameters'!$F$12*365.25 -> 0.29402625 | E16: 4250 | F16: 1249.611562 | G16: 0.003380009657 | H16: =G16*'2.2_StreetlightInventory'!$F$182 -> 143.6504104 | I16: 489 | J16: 0.01000839149
C17: 100 | D17: =C17/1000000*'2.3_ExistingParameters'!$F$12*365.25 -> 0.4200375 | E17: 4250 | F17: 1785.159375 | G17: 0.004828585225 | H17: =G17*'2.2_StreetlightInventory'!$F$182 -> 205.214872 | I17: 489 | J17: 0.01000839149
C18: 150 | D18: =C18/1000000*'2.3_ExistingParameters'!$F$12*365.25 -> 0.63005625 | E18: 0 | F18: 0 | G18: 0 | H18: =G18*'2.2_StreetlightInventory'!$F$182 -> 0 | I18: 0 | J18: 0
C19: 175 | D19: =C19/1000000*'2.3_ExistingParameters'!$F$12*365.25 -> 0.735065625 | E19: 0 | F19: 0 | G19: 0 | H19: =G19*'2.2_StreetlightInventory'!$F$182 -> 0 | I19: 0 | J19: 0
C20: 200 | D20: =C20/1000000*'2.3_ExistingParameters'!$F$12*365.25 -> 0.840075 | E20: 0 | F20: 0 | G20: 0 | H20: =G20*'2.2_StreetlightInventory'!$F$182 -> 0 | I20: 0 | J20: 0
C21: 250 | D21: =C21/1000000*'2.3_ExistingParameters'!$F$12*365.25 -> 1.05009375 | E21: 0 | F21: 0 | G21: 0 | H21: =G21*'2.2_StreetlightInventory'!$F$182 -> 0 | I21: 0 | J21: 0
C22: 400 | D22: =C22/1000000*'2.3_ExistingParameters'!$F$12*365.25 -> 1.68015 | E22: 12750 | F22: 21421.9125 | G22: 0.05794302269 | H22: =G22*'2.2_StreetlightInventory'!$F$182 -> 2462.578465 | I22: 1466 | J22: 0.03000470742
B23: Fluorescent | I23: =SUM(I24:I29) -> 0 | J23: 0
D24: =C24/1000000*'2.3_ExistingParameters'!$F$12*365.25 -> 0 | E24: 0 | F24: =D24*E24 -> 0 | G24: =F24/$F$55 -> 0 | H24: =G24*'2.2_StreetlightInventory'!$F$182 -> 0 | I24: =ROUND(IFERROR(H24/D24,0),0) -> 0 | J24: =I24/$I$55 -> 0
D25: =C25/1000000*'2.3_ExistingParameters'!$F$12*365.25 -> 0 | E25: 0 | F25: 0 | G25: 0 | H25: =G25*'2.2_StreetlightInventory'!$F$182 -> 0 | I25: 0 | J25: 0
D26: =C26/1000000*'2.3_ExistingParameters'!$F$12*365.25 -> 0 | E26: 0 | F26: 0 | G26: 0 | H26: =G26*'2.2_StreetlightInventory'!$F$182 -> 0 | I26: 0 | J26: 0
D27: =C27/1000000*'2.3_ExistingParameters'!$F$12*365.25 -> 0 | E27: 0 | F27: 0 | G27: 0 | H27: =G27*'2.2_StreetlightInventory'!$F$182 -> 0 | I27: 0 | J27: 0
D28: =C28/1000000*'2.3_ExistingParameters'!$F$12*365.25 -> 0 | E28: 0 | F28: 0 | G28: 0 | H28: =G28*'2.2_StreetlightInventory'!$F$182 -> 0 | I28: 0 | J28: 0
D29: =C29/1000000*'2.3_ExistingParameters'!$F$12*365.25 -> 0 | E29: 0 | F29: 0 | G29: 0 | H29: =G29*'2.2_StreetlightInventory'!$F$182 -> 0 | I29: 0 | J29: 0
B30: Incandescent | I30: =SUM(I31:I34) -> 0 | J30: 0
D31: =C31/1000000*'2.3_ExistingParameters'!$F$12*365.25 -> 0 | E31: 0 | F31: =D31*E31 -> 0 | G31: =F31/$F$55 -> 0 | H31: =G31*'2.2_StreetlightInventory'!$F$182 -> 0
D32: =C32/1000000*'2.3_ExistingParameters'!$F$12*365.25 -> 0 | E32: 0 | F32: =D32*E32 -> 0 | G32: =F32/$F$55 -> 0 | H32: =G32*'2.2_StreetlightInventory'!$F$182 -> 0 | I32: =ROUND(IFERROR(H32/D32,0),0) -> 0 | J32: =I32/$I$55 -> 0
D33: =C33/1000000*'2.3_ExistingParameters'!$F$12*365.25 -> 0 | E33: 0 | F33: =D33*E33 -> 0 | G33: =F33/$F$55 -> 0 | H33: =G33*'2.2_StreetlightInventory'!$F$182 -> 0 | I33: =ROUND(IFERROR(H33/D33,0),0) -> 0 | J33: =I33/$I$55 -> 0
D34: =C34/1000000*'2.3_ExistingParameters'!$F$12*365.25 -> 0 | E34: 0 | F34: =D34*E34 -> 0 | G34: =F34/$F$55 -> 0 | H34: =G34*'2.2_StreetlightInventory'!$F$182 -> 0 | I34: =ROUND(IFERROR(H34/D34,0),0) -> 0 | J34: =I34/$I$55 -> 0
B35: Halogen | I35: =SUM(I36:I40) -> 0
D36: =C36/1000000*'2.3_ExistingParameters'!$F$12*365.25 -> 0 | E36: 0 | F36: =D36*E36 -> 0 | G36: =F36/$F$55 -> 0 | H36: =G36*'2.2_StreetlightInventory'!$F$182 -> 0 | I36: =ROUND(IFERROR(H36/D36,0),0) -> 0 | J36: =I36/$I$55 -> 0
D37: =C37/1000000*'2.3_ExistingParameters'!$F$12*365.25 -> 0 | E37: 0 | F37: =D37*E37 -> 0 | G37: =F37/$F$55 -> 0 | H37: =G37*'2.2_StreetlightInventory'!$F$182 -> 0 | I37: =ROUND(IFERROR(H37/D37,0),0) -> 0 | J37: 0
D38: =C38/1000000*'2.3_ExistingParameters'!$F$12*365.25 -> 0 | E38: 0 | F38: =D38*E38 -> 0 | G38: =F38/$F$55 -> 0 | H38: =G38*'2.2_StreetlightInventory'!$F$182 -> 0 | I38: =ROUND(IFERROR(H38/D38,0),0) -> 0 | J38: 0
D39: =C39/1000000*'2.3_ExistingParameters'!$F$12*365.25 -> 0 | E39: 0 | F39: =D39*E39 -> 0 | G39: =F39/$F$55 -> 0 | H39: =G39*'2.2_StreetlightInventory'!$F$182 -> 0 | I39: =ROUND(IFERROR(H39/D39,0),0) -> 0 | J39: 0
D40: =C40/1000000*'2.3_ExistingParameters'!$F$12*365.25 -> 0 | E40: 0 | F40: =D40*E40 -> 0 | G40: =F40/$F$55 -> 0 | H40: =G40*'2.2_StreetlightInventory'!$F$182 -> 0 | I40: =ROUND(IFERROR(H40/D40,0),0) -> 0 | J40: 0
B41: Mixed Lights | I41: =SUM(I42:I46) -> 0 | J41: 0
D42: =C42/1000000*'2.3_ExistingParameters'!$F$12*365.25 -> 0 | E42: 0 | F42: =D42*E42 -> 0 | G42: =F42/$F$55 -> 0 | H42: =G42*'2.2_StreetlightInventory'!$F$182 -> 0 | I42: =ROUND(IFERROR(H42/D42,0),0) -> 0 | J42: 0
D43: =C43/1000000*'2.3_ExistingParameters'!$F$12*365.25 -> 0 | E43: 0 | F43: =D43*E43 -> 0 | G43: =F43/$F$55 -> 0 | H43: =G43*'2.2_StreetlightInventory'!$F$182 -> 0 | I43: =ROUND(IFERROR(H43/D43,0),0) -> 0 | J43: 0
D44: =C44/1000000*'2.3_ExistingParameters'!$F$12*365.25 -> 0 | E44: 0 | F44: =D44*E44 -> 0 | G44: =F44/$F$55 -> 0 | H44: =G44*'2.2_StreetlightInventory'!$F$182 -> 0 | I44: =ROUND(IFERROR(H44/D44,0),0) -> 0 | J44: 0
D45: =C45/1000000*'2.3_ExistingParameters'!$F$12*365.25 -> 0 | E45: 0 | F45: =D45*E45 -> 0 | G45: =F45/$F$55 -> 0 | H45: =G45*'2.2_StreetlightInventory'!$F$182 -> 0 | I45: =ROUND(IFERROR(H45/D45,0),0) -> 0 | J45: 0
D46: =C46/1000000*'2.3_ExistingParameters'!$F$12*365.25 -> 0 | E46: 0 | F46: =D46*E46 -> 0 | G46: =F46/$F$55 -> 0 | H46: =G46*'2.2_StreetlightInventory'!$F$182 -> 0 | I46: =ROUND(IFERROR(H46/D46,0),0) -> 0 | J46: 0
B47: Other | I47: =SUM(I48:I54) -> 1954 | J47: 0.03999263186
C48: 160 | D48: =C48/1000000*'2.3_ExistingParameters'!$F$12*365.25 -> 0.67206 | E48: 17000 | F48: =D48*E48 -> 11425.02 | G48: =F48/$F$55 -> 0.03090294544 | H48: =G48*'2.2_StreetlightInventory'!$F$182 -> 1313.375181 | I48: =ROUND(IFERROR(H48/D48,0),0) -> 1954 | J48: =I48/$I$55 -> 0.03999263186
D49: =C49/1000000*'2.3_ExistingParameters'!$F$12*365.25 -> 0 | E49: 0 | F49: 0 | G49: 0 | H49: =G49*'2.2_StreetlightInventory'!$F$182 -> 0 | I49: 0 | J49: 0
D50: =C50/1000000*'2.3_ExistingParameters'!$F$12*365.25 -> 0 | E50: 0 | F50: 0 | G50: 0 | H50: =G50*'2.2_StreetlightInventory'!$F$182 -> 0 | I50: 0 | J50: 0
D51: =C51/1000000*'2.3_ExistingParameters'!$F$12*365.25 -> 0 | E51: 0 | F51: 0 | G51: 0 | H51: =G51*'2.2_StreetlightInventory'!$F$182 -> 0 | I51: 0 | J51: 0
D52: =C52/1000000*'2.3_ExistingParameters'!$F$12*365.25 -> 0 | E52: 0 | F52: 0 | G52: 0 | H52: =G52*'2.2_StreetlightInventory'!$F$182 -> 0 | I52: 0 | J52: 0
D53: =C53/1000000*'2.3_ExistingParameters'!$F$12*365.25 -> 0 | E53: 0 | F53: 0 | G53: 0 | H53: =G53*'2.2_StreetlightInventory'!$F$182 -> 0 | I53: 0 | J53: 0
D54: =C54/1000000*'2.3_ExistingParameters'!$F$12*365.25 -> 0 | E54: 0 | F54: 0 | G54: 0 | H54: =G54*'2.2_StreetlightInventory'!$F$182 -> 0 | I54: 0 | J54: 0
B55: Total | E55: 425000 | F55: =SUM(F3:F54) -> 369706.5066 | G55: 1 | H55: =G55*'2.2_StreetlightInventory'!$F$182 -> 42500 | I55: =SUM(I2,I9,I14,I23,I30,I35,I41,I47) -> 48859 | J55: 1

Sheet 3.1_ProjectDesign
A1: 0
A2: 0
C9: =Language_Refs!D136 -> IMPLEMENTATION & TECHNICAL VARIABLES | M9: =Language_Refs!D194 -> Financial vs. Economic analysis | N9: Econômica
D11: =Language_Refs!D137 -> Total luminaires in city | E11: =Assumptions!E12 -> 42500 | F11: 42500 | H11: n
D13: =Language_Refs!D138 -> % luminaires replaced | F13: 1 | H13: %
D15: =Language_Refs!D139 -> Total luminaires replaced | E15: =IF(H16=TRUE,'3.1_ProjectDesign_Form'!H118,E11*F13) -> 42500 | F15: 42500 | H15: n
H16: FALSE
D17: =Language_Refs!D140 -> Years to implement project | E17: * | F17: 2 | H17: n
D19: =Language_Refs!D141 -> Starting year of project | F19: 2019 | H19: YYYY
D21: =Language_Refs!D142 -> Period of analysis | F21: 13 | H21: ='3.1_ProjectDesignData'!$B$82 -> years
D23: =Language_Refs!D143 -> Include smart system? | F23: Y | H23: Y/N
D25: =Language_Refs!D144 -> Dimming hours per day | F25: =Assumptions!E21 -> 5 | H25: ='3.1_ProjectDesignData'!$B$83 -> hours
D27: =Language_Refs!D145 -> Include manufacture warranty | F27: Y | H27: Y/N
D29: =Language_Refs!D146 -> Manufacture warranty duration | F29: 10 | H29: ='3.1_ProjectDesignData'!$B$82 -> years
D31: =Language_Refs!D147 -> % failure not warrantied | F31: 0.1 | H31: =Assumptions!D64 -> %
C34: =Language_Refs!D148 -> FINANCIAL VARIABLES
D36: =Language_Refs!D149 -> Revenue source | E36: * | F36: Project Savings
D38: =Language_Refs!D150 -> % finance by debt | F38: 1 | H38: %
D40: =Language_Refs!D151 -> % finance by equity | E40: =1-F38 -> 0 | F40: 0 | H40: %
D42: =Language_Refs!D152 -> Cost of Debt (net of inflation) | F42: 0.0325 | H42: %
D44: =Language_Refs!D153 -> Cost of Equity (net of inflation) | F44: 0 | H44: %
D46: =Language_Refs!D154 -> Loan Tenure | E46: * | F46: 10 | H46: ='3.1_ProjectDesignData'!$B$82 -> years
D48: =Language_Refs!D155 -> Estimated loan size | E48: =ROUND(Investment!C52, -5) -> 35000000 | F48: 30100000 | H48: =H56 -> R$
D50: =Language_Refs!D156 -> Grace Period (Principal) | F50: 1 | H50: ='3.1_ProjectDesignData'!$B$82 -> years
D52: =Language_Refs!D157 -> Grace Period (Interest) | F52: 0 | H52: ='3.1_ProjectDesignData'!$B$82 -> years
D54: =Language_Refs!D158 -> Total loan fees | F54: 0 | H54: %
D56: =Language_Refs!D159 -> Engineering + design cost (default) | E56: =IF(F57=TRUE,"",Assumptions!E114*Assumptions!$E$9) ->  | H56: =IF('2.1_BasicInformation'!$E$16=Language_Refs!$D$345,"$",'2.1_BasicInformation'!$E$16) -> R$
F57: TRUE
D58: =Language_Refs!D160 -> Engineering + design cost (user input) | F58: 1125750 | H58: =IF('2.1_BasicInformation'!$E$16=Language_Refs!$D$345,"$",'2.1_BasicInformation'!$E$16) -> R$
D62: =Language_Refs!D162 -> Annual Change in Additional Operational Expenditures | F62: 0 | H62: %
D64: =Language_Refs!D122 -> Additional cost of smart system (% increase to assumed LED price) | F64: 0.1 | H64: %

Sheet 3.1_ProjectDesign_Form
A1: 1
A2: 0
D6: =Language_Refs!D220 -> This page allows the user to define the specific types of lamps that will be converted to LED luminaires. Use the following form to define a detailed streetlight replacement project.
E8: =Language_Refs!D82 -> Technology | F8: =Language_Refs!D364 -> Lamp Rated Power (W) | G8: =Language_Refs!D360 -> No. lamps in inventory | H8: =Language_Refs!D361 -> No. lamps to be replaced | I8: =Language_Refs!D85 -> % share | J8: =L108 -> Default LED replacement wattage | K8: =M108 -> User override - LED replacement wattage | L8: =Language_Refs!D87 -> Average existing tech (W) | M8: =Language_Refs!D88 -> Average LED (W)
E9: =E109 -> High Pressure Sodium | F9: =IF(G9=0,""," ") ->  | G9: =SUM(G10:G19) -> 285000 | H9: =SUM(H10:H19) -> 0 | I9: =IFERROR(H9/$H$98,"") ->  | L9: =SUM(L10:L19) -> 0 | M9: =SUM(M10:M19) -> 0
F10: =IF('2.2_StreetlightInventory'!E21="","",'2.2_StreetlightInventory'!E21) -> 70 | G10: =IF('2.2_StreetlightInventory'!F21="","",'2.2_StreetlightInventory'!F21) -> 40000 | I10: =IFERROR(H10/$H$98,"") ->  | J10: =IF(OR('2.2_StreetlightInventory'!H21="",'2.2_StreetlightInventory'!H21=0),"",'2.2_StreetlightInventory'!H21) -> 38.71866667 | L10: =IFERROR(F10*H10/$H$9, 0) -> 0 | M10: =IFERROR(IF(K10="",J10,K10)*H10/$H$9, 0) -> 0
F11: =IF('2.2_StreetlightInventory'!E22="","",'2.2_StreetlightInventory'!E22) -> 100 | G11: =IF('2.2_StreetlightInventory'!F22="","",'2.2_StreetlightInventory'!F22) -> 40000 | I11: =IFERROR(H11/$H$98,"") ->  | J11: =IF(OR('2.2_StreetlightInventory'!H22="",'2.2_StreetlightInventory'!H22=0),"",'2.2_StreetlightInventory'!H22) -> 55.31238095 | L11: =IFERROR(F11*H11/$H$9, 0) -> 0 | M11: =IFERROR(IF(K11="",J11,K11)*H11/$H$9, 0) -> 0
F12: =IF('2.2_StreetlightInventory'!E23="","",'2.2_StreetlightInventory'!E23) -> 150 | G12: =IF('2.2_StreetlightInventory'!F23="","",'2.2_StreetlightInventory'!F23) -> 85000 | J12: =IF(OR('2.2_StreetlightInventory'!H23="",'2.2_StreetlightInventory'!H23=0),"",'2.2_StreetlightInventory'!H23) -> 82.96857143 | L12: 0 | M12: 0
F13: =IF('2.2_StreetlightInventory'!E24="","",'2.2_StreetlightInventory'!E24) -> 250 | G13: =IF('2.2_StreetlightInventory'!F24="","",'2.2_StreetlightInventory'!F24) -> 85000 | J13: =IF(OR('2.2_StreetlightInventory'!H24="",'2.2_StreetlightInventory'!H24=0),"",'2.2_StreetlightInventory'!H24) -> 138.2809524 | L13: 0 | M13: 0
F14: =IF('2.2_StreetlightInventory'!E25="","",'2.2_StreetlightInventory'!E25) -> 400 | G14: =IF('2.2_StreetlightInventory'!F25="","",'2.2_StreetlightInventory'!F25) -> 35000 | J14: =IF(OR('2.2_StreetlightInventory'!H25="",'2.2_StreetlightInventory'!H25=0),"",'2.2_StreetlightInventory'!H25) -> 221.2495238 | L14: 0 | M14: 0
F15: =IF('2.2_StreetlightInventory'!E26="","",'2.2_StreetlightInventory'!E26) ->  | G15: =IF('2.2_StreetlightInventory'!F26="","",'2.2_StreetlightInventory'!F26) ->  | J15: =IF(OR('2.2_StreetlightInventory'!H26="",'2.2_StreetlightInventory'!H26=0),"",'2.2_StreetlightInventory'!H26) ->  | L15: 0 | M15: 0
F16: =IF('2.2_StreetlightInventory'!E27="","",'2.2_StreetlightInventory'!E27) ->  | G16: =IF('2.2_StreetlightInventory'!F27="","",'2.2_StreetlightInventory'!F27) ->  | J16: =IF(OR('2.2_StreetlightInventory'!H27="",'2.2_StreetlightInventory'!H27=0),"",'2.2_StreetlightInventory'!H27) ->  | L16: 0 | M16: 0
F17: =IF('2.2_StreetlightInventory'!E28="","",'2.2_StreetlightInventory'!E28) ->  | G17: =IF('2.2_StreetlightInventory'!F28="","",'2.2_StreetlightInventory'!F28) ->  | J17: =IF(OR('2.2_StreetlightInventory'!H28="",'2.2_StreetlightInventory'!H28=0),"",'2.2_StreetlightInventory'!H28) ->  | L17: 0 | M17: 0
F18: =IF('2.2_StreetlightInventory'!E29="","",'2.2_StreetlightInventory'!E29) ->  | G18: =IF('2.2_StreetlightInventory'!F29="","",'2.2_StreetlightInventory'!F29) ->  | J18: =IF(OR('2.2_StreetlightInventory'!H29="",'2.2_StreetlightInventory'!H29=0),"",'2.2_StreetlightInventory'!H29) ->  | L18: 0 | M18: 0
F19: =IF('2.2_StreetlightInventory'!E30="","",'2.2_StreetlightInventory'!E30) ->  | G19: =IF('2.2_StreetlightInventory'!F30="","",'2.2_StreetlightInventory'!F30) ->  | J19: =IF(OR('2.2_StreetlightInventory'!H30="",'2.2_StreetlightInventory'!H30=0),"",'2.2_StreetlightInventory'!H30) ->  | L19: 0 | M19: 0
E20: =E110 -> Mercury Vapor | F20: =IF(G20=0,""," ") ->  | G20: =SUM(G21:G30) -> 96000 | H20: =SUM(H21:H30) -> 0 | I20: =IFERROR(H20/$H$98,"") ->  | L20: =SUM(L21:L30) -> 0 | M20: =SUM(M21:M30) -> 0
F21: =IF('2.2_StreetlightInventory'!E32="","",'2.2_StreetlightInventory'!E32) -> 80 | G21: =IF('2.2_StreetlightInventory'!F32="","",'2.2_StreetlightInventory'!F32) -> 1000 | I21: =IFERROR(H21/$H$98,"") ->  | J21: =IF(OR('2.2_StreetlightInventory'!H32="",'2.2_StreetlightInventory'!H32=0),"",'2.2_StreetlightInventory'!H32) -> 36.15885714 | L21: =IFERROR(F21*H21/$H$20, 0) -> 0 | M21: =IFERROR(IF(K21="",J21,K21)*H21/$H$20, 0) -> 0
F22: =IF('2.2_StreetlightInventory'!E33="","",'2.2_StreetlightInventory'!E33) -> 125 | G22: =IF('2.2_StreetlightInventory'!F33="","",'2.2_StreetlightInventory'!F33) -> 30000 | I22: =IFERROR(H22/$H$98,"") ->  | J22: =IF(OR('2.2_StreetlightInventory'!H33="",'2.2_StreetlightInventory'!H33=0),"",'2.2_StreetlightInventory'!H33) -> 56.49821429 | L22: =IFERROR(F22*H22/$H$20, 0) -> 0 | M22: =IFERROR(IF(K22="",J22,K22)*H22/$H$20, 0) -> 0
F23: =IF('2.2_StreetlightInventory'!E34="","",'2.2_StreetlightInventory'!E34) -> 250 | G23: =IF('2.2_StreetlightInventory'!F34="","",'2.2_StreetlightInventory'!F34) -> 35000 | J23: =IF(OR('2.2_StreetlightInventory'!H34="",'2.2_StreetlightInventory'!H34=0),"",'2.2_StreetlightInventory'!H34) -> 112.9964286 | L23: 0 | M23: 0
F24: =IF('2.2_StreetlightInventory'!E35="","",'2.2_StreetlightInventory'!E35) -> 400 | G24: =IF('2.2_StreetlightInventory'!F35="","",'2.2_StreetlightInventory'!F35) -> 30000 | J24: =IF(OR('2.2_StreetlightInventory'!H35="",'2.2_StreetlightInventory'!H35=0),"",'2.2_StreetlightInventory'!H35) -> 180.7942857 | L24: 0 | M24: 0
F25: =IF('2.2_StreetlightInventory'!E36="","",'2.2_StreetlightInventory'!E36) ->  | G25: =IF('2.2_StreetlightInventory'!F36="","",'2.2_StreetlightInventory'!F36) ->  | J25: =IF(OR('2.2_StreetlightInventory'!H36="",'2.2_StreetlightInventory'!H36=0),"",'2.2_StreetlightInventory'!H36) ->  | L25: 0 | M25: 0
F26: =IF('2.2_StreetlightInventory'!E37="","",'2.2_StreetlightInventory'!E37) ->  | G26: =IF('2.2_StreetlightInventory'!F37="","",'2.2_StreetlightInventory'!F37) ->  | J26: =IF(OR('2.2_StreetlightInventory'!H37="",'2.2_StreetlightInventory'!H37=0),"",'2.2_StreetlightInventory'!H37) ->  | L26: 0 | M26: 0
F27: =IF('2.2_StreetlightInventory'!E38="","",'2.2_StreetlightInventory'!E38) ->  | G27: =IF('2.2_StreetlightInventory'!F38="","",'2.2_StreetlightInventory'!F38) ->  | J27: =IF(OR('2.2_StreetlightInventory'!H38="",'2.2_StreetlightInventory'!H38=0),"",'2.2_StreetlightInventory'!H38) ->  | L27: 0 | M27: 0
F28: =IF('2.2_StreetlightInventory'!E39="","",'2.2_StreetlightInventory'!E39) ->  | G28: =IF('2.2_StreetlightInventory'!F39="","",'2.2_StreetlightInventory'!F39) ->  | J28: =IF(OR('2.2_StreetlightInventory'!H39="",'2.2_StreetlightInventory'!H39=0),"",'2.2_StreetlightInventory'!H39) ->  | L28: 0 | M28: 0
F29: =IF('2.2_StreetlightInventory'!E40="","",'2.2_StreetlightInventory'!E40) ->  | G29: =IF('2.2_StreetlightInventory'!F40="","",'2.2_StreetlightInventory'!F40) ->  | J29: =IF(OR('2.2_StreetlightInventory'!H40="",'2.2_StreetlightInventory'!H40=0),"",'2.2_StreetlightInventory'!H40) ->  | L29: 0 | M29: 0
F30: =IF('2.2_StreetlightInventory'!E41="","",'2.2_StreetlightInventory'!E41) ->  | G30: =IF('2.2_StreetlightInventory'!F41="","",'2.2_StreetlightInventory'!F41) ->  | J30: =IF(OR('2.2_StreetlightInventory'!H41="",'2.2_StreetlightInventory'!H41=0),"",'2.2_StreetlightInventory'!H41) ->  | L30: 0 | M30: 0
E31: =E111 -> Metal Halide | F31: =IF(G31=0,""," ") ->  | G31: =SUM(G32:G41) -> 27700 | H31: =SUM(H32:H41) -> 0 | I31: =IFERROR(H31/$H$98,"") ->  | L31: =SUM(L32:L41) -> 0 | M31: =SUM(M32:M41) -> 0
F32: =IF('2.2_StreetlightInventory'!E43="","",'2.2_StreetlightInventory'!E43) -> 35 | G32: =IF('2.2_StreetlightInventory'!F43="","",'2.2_StreetlightInventory'!F43) -> 100 | I32: =IFERROR(H32/$H$98,"") ->  | J32: =IF(OR('2.2_StreetlightInventory'!H43="",'2.2_StreetlightInventory'!H43=0),"",'2.2_StreetlightInventory'!H43) -> 21.02416667 | L32: =IFERROR(F32*H32/$H$31, 0) -> 0 | M32: =IFERROR(IF(K32="",J32,K32)*H32/H$31, 0) -> 0
F33: =IF('2.2_StreetlightInventory'!E44="","",'2.2_StreetlightInventory'!E44) -> 70 | G33: =IF('2.2_StreetlightInventory'!F44="","",'2.2_StreetlightInventory'!F44) -> 5000 | I33: =IFERROR(H33/$H$98,"") ->  | J33: =IF(OR('2.2_StreetlightInventory'!H44="",'2.2_StreetlightInventory'!H44=0),"",'2.2_StreetlightInventory'!H44) -> 42.04833333 | L33: =IFERROR(F33*H33/$H$31, 0) -> 0 | M33: =IFERROR(IF(K33="",J33,K33)*H33/H$31, 0) -> 0
F34: =IF('2.2_StreetlightInventory'!E45="","",'2.2_StreetlightInventory'!E45) -> 100 | G34: =IF('2.2_StreetlightInventory'!F45="","",'2.2_StreetlightInventory'!F45) -> 4000 | J34: =IF(OR('2.2_StreetlightInventory'!H45="",'2.2_StreetlightInventory'!H45=0),"",'2.2_StreetlightInventory'!H45) -> 60.06904762 | L34: =IFERROR(F34*H34/$H$31, 0) -> 0 | M34: =IFERROR(IF(K34="",J34,K34)*H34/H$31, 0) -> 0
F35: =IF('2.2_StreetlightInventory'!E46="","",'2.2_StreetlightInventory'!E46) -> 150 | G35: =IF('2.2_StreetlightInventory'!F46="","",'2.2_StreetlightInventory'!F46) -> 1500 | J35: =IF(OR('2.2_StreetlightInventory'!H46="",'2.2_StreetlightInventory'!H46=0),"",'2.2_StreetlightInventory'!H46) -> 90.10357143 | L35: 0 | M35: 0
F36: =IF('2.2_StreetlightInventory'!E47="","",'2.2_StreetlightInventory'!E47) -> 175 | G36: =IF('2.2_StreetlightInventory'!F47="","",'2.2_StreetlightInventory'!F47) -> 200 | J36: =IF(OR('2.2_StreetlightInventory'!H47="",'2.2_StreetlightInventory'!H47=0),"",'2.2_StreetlightInventory'!H47) -> 105.1208333 | L36: 0 | M36: 0
F37: =IF('2.2_StreetlightInventory'!E48="","",'2.2_StreetlightInventory'!E48) -> 200 | G37: =IF('2.2_StreetlightInventory'!F48="","",'2.2_StreetlightInventory'!F48) -> 400 | J37: =IF(OR('2.2_StreetlightInventory'!H48="",'2.2_StreetlightInventory'!H48=0),"",'2.2_StreetlightInventory'!H48) -> 120.1380952 | L37: 0 | M37: 0
F38: =IF('2.2_StreetlightInventory'!E49="","",'2.2_StreetlightInventory'!E49) -> 250 | G38: =IF('2.2_StreetlightInventory'!F49="","",'2.2_StreetlightInventory'!F49) -> 1500 | J38: =IF(OR('2.2_StreetlightInventory'!H49="",'2.2_StreetlightInventory'!H49=0),"",'2.2_StreetlightInventory'!H49) -> 150.172619 | L38: 0 | M38: 0
F39: =IF('2.2_StreetlightInventory'!E50="","",'2.2_StreetlightInventory'!E50) -> 400 | G39: =IF('2.2_StreetlightInventory'!F50="","",'2.2_StreetlightInventory'!F50) -> 15000 | J39: =IF(OR('2.2_StreetlightInventory'!H50="",'2.2_StreetlightInventory'!H50=0),"",'2.2_StreetlightInventory'!H50) -> 240.2761905 | L39: 0 | M39: 0
F40: =IF('2.2_StreetlightInventory'!E51="","",'2.2_StreetlightInventory'!E51) ->  | G40: =IF('2.2_StreetlightInventory'!F51="","",'2.2_StreetlightInventory'!F51) ->  | J40: =IF(OR('2.2_StreetlightInventory'!H51="",'2.2_StreetlightInventory'!H51=0),"",'2.2_StreetlightInventory'!H51) ->  | L40: 0 | M40: 0
F41: =IF('2.2_StreetlightInventory'!E52="","",'2.2_StreetlightInventory'!E52) ->  | G41: =IF('2.2_StreetlightInventory'!F52="","",'2.2_StreetlightInventory'!F52) ->  | J41: =IF(OR('2.2_StreetlightInventory'!H52="",'2.2_StreetlightInventory'!H52=0),"",'2.2_StreetlightInventory'!H52) ->  | L41: 0 | M41: 0
E42: =E112 -> Fluorescent | F42: =IF(G42=0,""," ") ->  | G42: =SUM(G43:G52) -> 0 | H42: =SUM(H43:H52) -> 0 | I42: =IFERROR(H42/$H$98,"") ->  | L42: =SUM(L43:L52) -> 0 | M42: =SUM(M43:M52) -> 0
F43: =IF('2.2_StreetlightInventory'!E54="","",'2.2_StreetlightInventory'!E54) ->  | G43: =IF('2.2_StreetlightInventory'!F54="","",'2.2_StreetlightInventory'!F54) ->  | I43: =IFERROR(H43/$H$98,"") ->  | J43: =IF(OR('2.2_StreetlightInventory'!H54="",'2.2_StreetlightInventory'!H54=0),"",'2.2_StreetlightInventory'!H54) ->  | L43: =IFERROR(F43*H43/$H$42, 0) -> 0 | M43: =IFERROR(IF(K43="",J43,K43)*H43/$H$42, 0) -> 0
F44: =IF('2.2_StreetlightInventory'!E55="","",'2.2_StreetlightInventory'!E55) ->  | G44: =IF('2.2_StreetlightInventory'!F55="","",'2.2_StreetlightInventory'!F55) ->  | I44: =IFERROR(H44/$H$98,"") ->  | J44: =IF(OR('2.2_StreetlightInventory'!H55="",'2.2_StreetlightInventory'!H55=0),"",'2.2_StreetlightInventory'!H55) ->  | L44: =IFERROR(F44*H44/$H$42, 0) -> 0 | M44: =IFERROR(IF(K44="",J44,K44)*H44/$H$42, 0) -> 0
F45: =IF('2.2_StreetlightInventory'!E56="","",'2.2_StreetlightInventory'!E56) ->  | G45: =IF('2.2_StreetlightInventory'!F56="","",'2.2_StreetlightInventory'!F56) ->  | J45: =IF(OR('2.2_StreetlightInventory'!H56="",'2.2_StreetlightInventory'!H56=0),"",'2.2_StreetlightInventory'!H56) ->  | L45: 0 | M45: 0
F46: =IF('2.2_StreetlightInventory'!E57="","",'2.2_StreetlightInventory'!E57) ->  | G46: =IF('2.2_StreetlightInventory'!F57="","",'2.2_StreetlightInventory'!F57) ->  | J46: =IF(OR('2.2_StreetlightInventory'!H57="",'2.2_StreetlightInventory'!H57=0),"",'2.2_StreetlightInventory'!H57) ->  | L46: 0 | M46: 0
F47: =IF('2.2_StreetlightInventory'!E58="","",'2.2_StreetlightInventory'!E58) ->  | G47: =IF('2.2_StreetlightInventory'!F58="","",'2.2_StreetlightInventory'!F58) ->  | J47: =IF(OR('2.2_StreetlightInventory'!H58="",'2.2_StreetlightInventory'!H58=0),"",'2.2_StreetlightInventory'!H58) ->  | L47: 0 | M47: 0
F48: =IF('2.2_StreetlightInventory'!E59="","",'2.2_StreetlightInventory'!E59) ->  | G48: =IF('2.2_StreetlightInventory'!F59="","",'2.2_StreetlightInventory'!F59) ->  | J48: =IF(OR('2.2_StreetlightInventory'!H59="",'2.2_StreetlightInventory'!H59=0),"",'2.2_StreetlightInventory'!H59) ->  | L48: 0 | M48: 0
F49: =IF('2.2_StreetlightInventory'!E60="","",'2.2_StreetlightInventory'!E60) ->  | G49: =IF('2.2_StreetlightInventory'!F60="","",'2.2_StreetlightInventory'!F60) ->  | J49: =IF(OR('2.2_StreetlightInventory'!H60="",'2.2_StreetlightInventory'!H60=0),"",'2.2_StreetlightInventory'!H60) ->  | L49: 0 | M49: 0
F50: =IF('2.2_StreetlightInventory'!E61="","",'2.2_StreetlightInventory'!E61) ->  | G50: =IF('2.2_StreetlightInventory'!F61="","",'2.2_StreetlightInventory'!F61) ->  | J50: =IF(OR('2.2_StreetlightInventory'!H61="",'2.2_StreetlightInventory'!H61=0),"",'2.2_StreetlightInventory'!H61) ->  | L50: 0 | M50: 0
F51: =IF('2.2_StreetlightInventory'!E62="","",'2.2_StreetlightInventory'!E62) ->  | G51: =IF('2.2_StreetlightInventory'!F62="","",'2.2_StreetlightInventory'!F62) ->  | J51: =IF(OR('2.2_StreetlightInventory'!H62="",'2.2_StreetlightInventory'!H62=0),"",'2.2_StreetlightInventory'!H62) ->  | L51: 0 | M51: 0
F52: =IF('2.2_StreetlightInventory'!E63="","",'2.2_StreetlightInventory'!E63) ->  | G52: =IF('2.2_StreetlightInventory'!F63="","",'2.2_StreetlightInventory'!F63) ->  | J52: =IF(OR('2.2_StreetlightInventory'!H63="",'2.2_StreetlightInventory'!H63=0),"",'2.2_StreetlightInventory'!H63) ->  | L52: 0 | M52: 0
E53: =E113 -> Incandescent | F53: =IF(G53=0,""," ") ->  | G53: =SUM(G54:G63) -> 0 | H53: =SUM(H54:H63) -> 0 | I53: =IFERROR(H53/$H$98,"") ->  | L53: =SUM(L54:L63) -> 0 | M53: =SUM(M54:M63) -> 0
F54: =IF('2.2_StreetlightInventory'!E65="","",'2.2_StreetlightInventory'!E65) ->  | G54: =IF('2.2_StreetlightInventory'!F65="","",'2.2_StreetlightInventory'!F65) ->  | I54: =IFERROR(H54/$H$98,"") ->  | J54: =IF(OR('2.2_StreetlightInventory'!H65="",'2.2_StreetlightInventory'!H65=0),"",'2.2_StreetlightInventory'!H65) ->  | L54: =IFERROR(F54*H54/$H$53, 0) -> 0 | M54: =IFERROR(IF(K54="",J54,K54)*H54/$H$53, 0) -> 0
F55: =IF('2.2_StreetlightInventory'!E66="","",'2.2_StreetlightInventory'!E66) ->  | G55: =IF('2.2_StreetlightInventory'!F66="","",'2.2_StreetlightInventory'!F66) ->  | I55: =IFERROR(H55/$H$98,"") ->  | J55: =IF(OR('2.2_StreetlightInventory'!H66="",'2.2_StreetlightInventory'!H66=0),"",'2.2_StreetlightInventory'!H66) ->  | L55: =IFERROR(F55*H55/$H$53, 0) -> 0 | M55: =IFERROR(IF(K55="",J55,K55)*H55/$H$53, 0) -> 0
F56: =IF('2.2_StreetlightInventory'!E67="","",'2.2_StreetlightInventory'!E67) ->  | G56: =IF('2.2_StreetlightInventory'!F67="","",'2.2_StreetlightInventory'!F67) ->  | J56: =IF(OR('2.2_StreetlightInventory'!H67="",'2.2_StreetlightInventory'!H67=0),"",'2.2_StreetlightInventory'!H67) ->  | L56: 0 | M56: 0
F57: =IF('2.2_StreetlightInventory'!E68="","",'2.2_StreetlightInventory'!E68) ->  | G57: =IF('2.2_StreetlightInventory'!F68="","",'2.2_StreetlightInventory'!F68) ->  | J57: =IF(OR('2.2_StreetlightInventory'!H68="",'2.2_StreetlightInventory'!H68=0),"",'2.2_StreetlightInventory'!H68) ->  | L57: 0 | M57: 0
F58: =IF('2.2_StreetlightInventory'!E69="","",'2.2_StreetlightInventory'!E69) ->  | G58: =IF('2.2_StreetlightInventory'!F69="","",'2.2_StreetlightInventory'!F69) ->  | J58: =IF(OR('2.2_StreetlightInventory'!H69="",'2.2_StreetlightInventory'!H69=0),"",'2.2_StreetlightInventory'!H69) ->  | L58: 0 | M58: 0
F59: =IF('2.2_StreetlightInventory'!E70="","",'2.2_StreetlightInventory'!E70) ->  | G59: =IF('2.2_StreetlightInventory'!F70="","",'2.2_StreetlightInventory'!F70) ->  | J59: =IF(OR('2.2_StreetlightInventory'!H70="",'2.2_StreetlightInventory'!H70=0),"",'2.2_StreetlightInventory'!H70) ->  | L59: 0 | M59: 0
F60: =IF('2.2_StreetlightInventory'!E71="","",'2.2_StreetlightInventory'!E71) ->  | G60: =IF('2.2_StreetlightInventory'!F71="","",'2.2_StreetlightInventory'!F71) ->  | J60: =IF(OR('2.2_StreetlightInventory'!H71="",'2.2_StreetlightInventory'!H71=0),"",'2.2_StreetlightInventory'!H71) ->  | L60: 0 | M60: 0
F61: =IF('2.2_StreetlightInventory'!E72="","",'2.2_StreetlightInventory'!E72) ->  | G61: =IF('2.2_StreetlightInventory'!F72="","",'2.2_StreetlightInventory'!F72) ->  | J61: =IF(OR('2.2_StreetlightInventory'!H72="",'2.2_StreetlightInventory'!H72=0),"",'2.2_StreetlightInventory'!H72) ->  | L61: 0 | M61: 0
F62: =IF('2.2_StreetlightInventory'!E73="","",'2.2_StreetlightInventory'!E73) ->  | G62: =IF('2.2_StreetlightInventory'!F73="","",'2.2_StreetlightInventory'!F73) ->  | J62: =IF(OR('2.2_StreetlightInventory'!H73="",'2.2_StreetlightInventory'!H73=0),"",'2.2_StreetlightInventory'!H73) ->  | L62: 0 | M62: 0
F63: =IF('2.2_StreetlightInventory'!E74="","",'2.2_StreetlightInventory'!E74) ->  | G63: =IF('2.2_StreetlightInventory'!F74="","",'2.2_StreetlightInventory'!F74) ->  | J63: =IF(OR('2.2_StreetlightInventory'!H74="",'2.2_StreetlightInventory'!H74=0),"",'2.2_StreetlightInventory'!H74) ->  | L63: 0 | M63: 0
E64: =E114 -> Halogen | F64: =IF(G64=0,""," ") ->  | G64: =SUM(G65:G74) -> 0 | H64: =SUM(H65:H74) -> 0 | I64: =IFERROR(H64/$H$98,"") ->  | L64: =SUM(L65:L74) -> 0 | M64: =SUM(M65:M74) -> 0
F65: =IF('2.2_StreetlightInventory'!E76="","",'2.2_StreetlightInventory'!E76) ->  | G65: =IF('2.2_StreetlightInventory'!F76="","",'2.2_StreetlightInventory'!F76) ->  | I65: =IFERROR(H65/$H$98,"") ->  | J65: =IF(OR('2.2_StreetlightInventory'!H76="",'2.2_StreetlightInventory'!H76=0),"",'2.2_StreetlightInventory'!H76) ->  | L65: =IFERROR(F65*H65/$H$64, 0) -> 0 | M65: =IFERROR(IF(K65="",J65,K65)*H65/$H$64, 0) -> 0
F66: =IF('2.2_StreetlightInventory'!E77="","",'2.2_StreetlightInventory'!E77) ->  | G66: =IF('2.2_StreetlightInventory'!F77="","",'2.2_StreetlightInventory'!F77) ->  | I66: =IFERROR(H66/$H$98,"") ->  | J66: =IF(OR('2.2_StreetlightInventory'!H77="",'2.2_StreetlightInventory'!H77=0),"",'2.2_StreetlightInventory'!H77) ->  | L66: =IFERROR(F66*H66/$H$64, 0) -> 0 | M66: =IFERROR(IF(K66="",J66,K66)*H66/$H$64, 0) -> 0
F67: =IF('2.2_StreetlightInventory'!E78="","",'2.2_StreetlightInventory'!E78) ->  | G67: =IF('2.2_StreetlightInventory'!F78="","",'2.2_StreetlightInventory'!F78) ->  | J67: =IF(OR('2.2_StreetlightInventory'!H78="",'2.2_StreetlightInventory'!H78=0),"",'2.2_StreetlightInventory'!H78) ->  | L67: 0 | M67: 0
F68: =IF('2.2_StreetlightInventory'!E79="","",'2.2_StreetlightInventory'!E79) ->  | G68: =IF('2.2_StreetlightInventory'!F79="","",'2.2_StreetlightInventory'!F79) ->  | J68: =IF(OR('2.2_StreetlightInventory'!H79="",'2.2_StreetlightInventory'!H79=0),"",'2.2_StreetlightInventory'!H79) ->  | L68: 0 | M68: 0
F69: =IF('2.2_StreetlightInventory'!E80="","",'2.2_StreetlightInventory'!E80) ->  | G69: =IF('2.2_StreetlightInventory'!F80="","",'2.2_StreetlightInventory'!F80) ->  | J69: =IF(OR('2.2_StreetlightInventory'!H80="",'2.2_StreetlightInventory'!H80=0),"",'2.2_StreetlightInventory'!H80) ->  | L69: 0 | M69: 0
F70: =IF('2.2_StreetlightInventory'!E81="","",'2.2_StreetlightInventory'!E81) ->  | G70: =IF('2.2_StreetlightInventory'!F81="","",'2.2_StreetlightInventory'!F81) ->  | J70: =IF(OR('2.2_StreetlightInventory'!H81="",'2.2_StreetlightInventory'!H81=0),"",'2.2_StreetlightInventory'!H81) ->  | L70: 0 | M70: 0
F71: =IF('2.2_StreetlightInventory'!E82="","",'2.2_StreetlightInventory'!E82) ->  | G71: =IF('2.2_StreetlightInventory'!F82="","",'2.2_StreetlightInventory'!F82) ->  | J71: =IF(OR('2.2_StreetlightInventory'!H82="",'2.2_StreetlightInventory'!H82=0),"",'2.2_StreetlightInventory'!H82) ->  | L71: 0 | M71: 0
F72: =IF('2.2_StreetlightInventory'!E83="","",'2.2_StreetlightInventory'!E83) ->  | G72: =IF('2.2_StreetlightInventory'!F83="","",'2.2_StreetlightInventory'!F83) ->  | J72: =IF(OR('2.2_StreetlightInventory'!H83="",'2.2_StreetlightInventory'!H83=0),"",'2.2_StreetlightInventory'!H83) ->  | L72: 0 | M72: 0
F73: =IF('2.2_StreetlightInventory'!E84="","",'2.2_StreetlightInventory'!E84) ->  | G73: =IF('2.2_StreetlightInventory'!F84="","",'2.2_StreetlightInventory'!F84) ->  | J73: =IF(OR('2.2_StreetlightInventory'!H84="",'2.2_StreetlightInventory'!H84=0),"",'2.2_StreetlightInventory'!H84) ->  | L73: 0 | M73: 0
F74: =IF('2.2_StreetlightInventory'!E85="","",'2.2_StreetlightInventory'!E85) ->  | G74: =IF('2.2_StreetlightInventory'!F85="","",'2.2_StreetlightInventory'!F85) ->  | J74: =IF(OR('2.2_StreetlightInventory'!H85="",'2.2_StreetlightInventory'!H85=0),"",'2.2_StreetlightInventory'!H85) ->  | L74: 0 | M74: 0
E75: =E115 -> Mixed Lights | F75: =IF(G75=0,""," ") ->  | G75: =SUM(G76:G85) -> 0 | H75: =SUM(H76:H85) -> 0 | I75: =IFERROR(H75/$H$98,"") ->  | L75: =SUM(L76:L85) -> 0 | M75: =SUM(M76:M85) -> 0
F76: =IF('2.2_StreetlightInventory'!E87="","",'2.2_StreetlightInventory'!E87) ->  | G76: =IF('2.2_StreetlightInventory'!F87="","",'2.2_StreetlightInventory'!F87) ->  | I76: =IFERROR(H76/$H$98,"") ->  | J76: =IF(OR('2.2_StreetlightInventory'!H87="",'2.2_StreetlightInventory'!H87=0),"",'2.2_StreetlightInventory'!H87) ->  | L76: =IFERROR(F76*H76/$H$75, 0) -> 0 | M76: =IFERROR(IF(K76="",J76,K76)*H76/$H$75, 0) -> 0
F77: =IF('2.2_StreetlightInventory'!E88="","",'2.2_StreetlightInventory'!E88) ->  | G77: =IF('2.2_StreetlightInventory'!F88="","",'2.2_StreetlightInventory'!F88) ->  | I77: =IFERROR(H77/$H$98,"") ->  | J77: =IF(OR('2.2_StreetlightInventory'!H88="",'2.2_StreetlightInventory'!H88=0),"",'2.2_StreetlightInventory'!H88) ->  | L77: =IFERROR(F77*H77/$H$75, 0) -> 0 | M77: =IFERROR(IF(K77="",J77,K77)*H77/$H$75, 0) -> 0
F78: =IF('2.2_StreetlightInventory'!E89="","",'2.2_StreetlightInventory'!E89) ->  | G78: =IF('2.2_StreetlightInventory'!F89="","",'2.2_StreetlightInventory'!F89) ->  | J78: =IF(OR('2.2_StreetlightInventory'!H89="",'2.2_StreetlightInventory'!H89=0),"",'2.2_StreetlightInventory'!H89) ->  | L78: 0 | M78: 0
F79: =IF('2.2_StreetlightInventory'!E90="","",'2.2_StreetlightInventory'!E90) ->  | G79: =IF('2.2_StreetlightInventory'!F90="","",'2.2_StreetlightInventory'!F90) ->  | J79: =IF(OR('2.2_StreetlightInventory'!H90="",'2.2_StreetlightInventory'!H90=0),"",'2.2_StreetlightInventory'!H90) ->  | L79: 0 | M79: 0
F80: =IF('2.2_StreetlightInventory'!E91="","",'2.2_StreetlightInventory'!E91) ->  | G80: =IF('2.2_StreetlightInventory'!F91="","",'2.2_StreetlightInventory'!F91) ->  | J80: =IF(OR('2.2_StreetlightInventory'!H91="",'2.2_StreetlightInventory'!H91=0),"",'2.2_StreetlightInventory'!H91) ->  | L80: 0 | M80: 0
F81: =IF('2.2_StreetlightInventory'!E92="","",'2.2_StreetlightInventory'!E92) ->  | G81: =IF('2.2_StreetlightInventory'!F92="","",'2.2_StreetlightInventory'!F92) ->  | J81: =IF(OR('2.2_StreetlightInventory'!H92="",'2.2_StreetlightInventory'!H92=0),"",'2.2_StreetlightInventory'!H92) ->  | L81: 0 | M81: 0
F82: =IF('2.2_StreetlightInventory'!E93="","",'2.2_StreetlightInventory'!E93) ->  | G82: =IF('2.2_StreetlightInventory'!F93="","",'2.2_StreetlightInventory'!F93) ->  | J82: =IF(OR('2.2_StreetlightInventory'!H93="",'2.2_StreetlightInventory'!H93=0),"",'2.2_StreetlightInventory'!H93) ->  | L82: 0 | M82: 0
F83: =IF('2.2_StreetlightInventory'!E94="","",'2.2_StreetlightInventory'!E94) ->  | G83: =IF('2.2_StreetlightInventory'!F94="","",'2.2_StreetlightInventory'!F94) ->  | J83: =IF(OR('2.2_StreetlightInventory'!H94="",'2.2_StreetlightInventory'!H94=0),"",'2.2_StreetlightInventory'!H94) ->  | L83: 0 | M83: 0
F84: =IF('2.2_StreetlightInventory'!E95="","",'2.2_StreetlightInventory'!E95) ->  | G84: =IF('2.2_StreetlightInventory'!F95="","",'2.2_StreetlightInventory'!F95) ->  | J84: =IF(OR('2.2_StreetlightInventory'!H95="",'2.2_StreetlightInventory'!H95=0),"",'2.2_StreetlightInventory'!H95) ->  | L84: 0 | M84: 0
F85: =IF('2.2_StreetlightInventory'!E96="","",'2.2_StreetlightInventory'!E96) ->  | G85: =IF('2.2_StreetlightInventory'!F96="","",'2.2_StreetlightInventory'!F96) ->  | J85: =IF(OR('2.2_StreetlightInventory'!H96="",'2.2_StreetlightInventory'!H96=0),"",'2.2_StreetlightInventory'!H96) ->  | L85: =IFERROR(F85*H85/$H$75, 0) -> 0 | M85: =IFERROR(IF(K85="",J85,K85)*H85/$H$75, 0) -> 0
E86: =E116 -> Other | F86: =IF(G86=0,""," ") ->  | G86: =SUM(G87:G96) -> 0 | H86: =SUM(H87:H96) -> 0 | I86: =IFERROR(H86/$H$98,"") ->  | L86: =SUM(L87:L96) -> 0 | M86: =SUM(M87:M96) -> 0
F87: =IF('2.2_StreetlightInventory'!E98="","",'2.2_StreetlightInventory'!E98) ->  | G87: =IF('2.2_StreetlightInventory'!F98="","",'2.2_StreetlightInventory'!F98) ->  | I87: =IFERROR(H87/$H$98,"") ->  | J87: =IF(OR('2.2_StreetlightInventory'!H98="",'2.2_StreetlightInventory'!H98=0),"",'2.2_StreetlightInventory'!H98) ->  | L87: =IFERROR(F87*H87/$H$86, 0) -> 0 | M87: =IFERROR(IF(K87="",J87,K87)*H87/$H$86, 0) -> 0
F88: =IF('2.2_StreetlightInventory'!E99="","",'2.2_StreetlightInventory'!E99) ->  | G88: =IF('2.2_StreetlightInventory'!F99="","",'2.2_StreetlightInventory'!F99) ->  | I88: =IFERROR(H88/$H$98,"") ->  | J88: =IF(OR('2.2_StreetlightInventory'!H99="",'2.2_StreetlightInventory'!H99=0),"",'2.2_StreetlightInventory'!H99) ->  | L88: =IFERROR(F88*H88/$H$86, 0) -> 0 | M88: =IFERROR(IF(K88="",J88,K88)*H88/$H$86, 0) -> 0
F89: =IF('2.2_StreetlightInventory'!E100="","",'2.2_StreetlightInventory'!E100) ->  | G89: =IF('2.2_StreetlightInventory'!F100="","",'2.2_StreetlightInventory'!F100) ->  | J89: =IF(OR('2.2_StreetlightInventory'!H100="",'2.2_StreetlightInventory'!H100=0),"",'2.2_StreetlightInventory'!H100) ->  | L89: 0 | M89: 0
F90: =IF('2.2_StreetlightInventory'!E101="","",'2.2_StreetlightInventory'!E101) ->  | G90: =IF('2.2_StreetlightInventory'!F101="","",'2.2_StreetlightInventory'!F101) ->  | J90: =IF(OR('2.2_StreetlightInventory'!H101="",'2.2_StreetlightInventory'!H101=0),"",'2.2_StreetlightInventory'!H101) ->  | L90: 0 | M90: 0
F91: =IF('2.2_StreetlightInventory'!E102="","",'2.2_StreetlightInventory'!E102) ->  | G91: =IF('2.2_StreetlightInventory'!F102="","",'2.2_StreetlightInventory'!F102) ->  | J91: =IF(OR('2.2_StreetlightInventory'!H102="",'2.2_StreetlightInventory'!H102=0),"",'2.2_StreetlightInventory'!H102) ->  | L91: 0 | M91: 0
F92: =IF('2.2_StreetlightInventory'!E103="","",'2.2_StreetlightInventory'!E103) ->  | G92: =IF('2.2_StreetlightInventory'!F103="","",'2.2_StreetlightInventory'!F103) ->  | J92: =IF(OR('2.2_StreetlightInventory'!H103="",'2.2_StreetlightInventory'!H103=0),"",'2.2_StreetlightInventory'!H103) ->  | L92: 0 | M92: 0
F93: =IF('2.2_StreetlightInventory'!E104="","",'2.2_StreetlightInventory'!E104) ->  | G93: =IF('2.2_StreetlightInventory'!F104="","",'2.2_StreetlightInventory'!F104) ->  | J93: =IF(OR('2.2_StreetlightInventory'!H104="",'2.2_StreetlightInventory'!H104=0),"",'2.2_StreetlightInventory'!H104) ->  | L93: 0 | M93: 0
F94: =IF('2.2_StreetlightInventory'!E105="","",'2.2_StreetlightInventory'!E105) ->  | G94: =IF('2.2_StreetlightInventory'!F105="","",'2.2_StreetlightInventory'!F105) ->  | J94: =IF(OR('2.2_StreetlightInventory'!H105="",'2.2_StreetlightInventory'!H105=0),"",'2.2_StreetlightInventory'!H105) ->  | L94: 0 | M94: 0
F95: =IF('2.2_StreetlightInventory'!E106="","",'2.2_StreetlightInventory'!E106) ->  | G95: =IF('2.2_StreetlightInventory'!F106="","",'2.2_StreetlightInventory'!F106) ->  | J95: =IF(OR('2.2_StreetlightInventory'!H106="",'2.2_StreetlightInventory'!H106=0),"",'2.2_StreetlightInventory'!H106) ->  | L95: 0 | M95: 0
F96: =IF('2.2_StreetlightInventory'!E107="","",'2.2_StreetlightInventory'!E107) ->  | G96: =IF('2.2_StreetlightInventory'!F107="","",'2.2_StreetlightInventory'!F107) ->  | J96: =IF(OR('2.2_StreetlightInventory'!H107="",'2.2_StreetlightInventory'!H107=0),"",'2.2_StreetlightInventory'!H107) ->  | L96: 0 | M96: 0
E98: =Language_Refs!D97 -> Total | G98: =SUM(G9,G20,G31,G42,G53,G64,G75,G86,) -> 408700 | H98: =SUM(H9,H20,H31,H42,H53,H64,H75,H86,) -> 0 | I98: =IFERROR(H98/G98,"") -> 0 | L98: =IFERROR((L9*$I$9)+(L20*$I$20)+(L31*$I$31)+(L42*$I$42)+(L53*$I$53)+(L64*$I$64)+(L75*$I$75)+(L86*$I$86),0) -> 0 | M98: =IFERROR((M9*$I$9)+(M20*$I$20)+(M31*$I$31)+(M42*$I$42)+(M53*$I$53)+(M64*$I$64)+(M75*$I$75)+(M86*$I$86),0) -> 0
G100: Average Wattage of Baseline Existing Technology | H100: =L98 -> 0
G101: Average Wattage of New LED Technology | H101: =M98 -> 0
E108: =Language_Refs!D82 -> Technology | G108: =Language_Refs!D360 -> No. lamps in inventory | H108: =Language_Refs!D361 -> No. lamps to be replaced | I108: =Language_Refs!D85 -> % share | K108: =Language_Refs!D87 -> Average existing tech (W) | L108: =Language_Refs!D362 -> Default LED replacement wattage | M108: =Language_Refs!D363 -> User override - LED replacement wattage
E109: =Language_Refs!D89 -> High Pressure Sodium | F109: NA | G109: =IF('2.2_StreetlightInventory'!F187="","",'2.2_StreetlightInventory'!F187) -> 27625 | H109: 27625 | I109: =IFERROR(H109/$H$118,0) -> 0.65 | K109: =IF(OR('2.2_Option2Calcs'!$G4="",'2.2_Option2Calcs'!$G4=0),0,'2.2_Option2Calcs'!$G4) -> 170.1 | L109: =IF(OR('2.2_Option2Calcs'!H4="",'2.2_Option2Calcs'!H4=0),0,'2.2_Option2Calcs'!H4) -> 94.08636
E110: =Language_Refs!D90 -> Mercury Vapor | F110: NA | G110: =IF('2.2_StreetlightInventory'!F194="","",'2.2_StreetlightInventory'!F194) -> 10625 | H110: 10625 | I110: 0.25 | K110: =IF(OR('2.2_Option2Calcs'!$G11="",'2.2_Option2Calcs'!$G11=0),0,'2.2_Option2Calcs'!$G11) -> 214 | L110: =IF(OR('2.2_Option2Calcs'!H11="",'2.2_Option2Calcs'!H11=0),0,'2.2_Option2Calcs'!H11) -> 96.72494286
E111: =Language_Refs!D91 -> Metal Halide | F111: NA | G111: =IF('2.2_StreetlightInventory'!F199="","",'2.2_StreetlightInventory'!F199) -> 4250 | H111: 4250 | I111: 0.1 | K111: =IF(OR('2.2_Option2Calcs'!$G16="",'2.2_Option2Calcs'!$G16=0),0,'2.2_Option2Calcs'!$G16) -> 385 | L111: =IF(OR('2.2_Option2Calcs'!H16="",'2.2_Option2Calcs'!H16=0),0,'2.2_Option2Calcs'!H16) -> 231.2658333
E112: =Language_Refs!D92 -> Fluorescent | F112: NA | G112: =IF('2.2_StreetlightInventory'!F208="","",'2.2_StreetlightInventory'!F208) -> 0 | I112: 0 | K112: =IF(OR('2.2_Option2Calcs'!$G25="",'2.2_Option2Calcs'!$G25=0),0,'2.2_Option2Calcs'!$G25) -> 0 | L112: =IF(OR('2.2_Option2Calcs'!H25="",'2.2_Option2Calcs'!H25=0),0,'2.2_Option2Calcs'!H25) -> 0
E113: =Language_Refs!D93 -> Incandescent | F113: NA | G113: =IF('2.2_StreetlightInventory'!F215="","",'2.2_StreetlightInventory'!F215) -> 0 | I113: 0 | K113: =IF(OR('2.2_Option2Calcs'!$G32="",'2.2_Option2Calcs'!$G32=0),0,'2.2_Option2Calcs'!$G32) -> 0 | L113: =IF(OR('2.2_Option2Calcs'!H32="",'2.2_Option2Calcs'!H32=0),0,'2.2_Option2Calcs'!H32) -> 0
E114: =Language_Refs!D94 -> Halogen | F114: NA | G114: =IF('2.2_StreetlightInventory'!F220="","",'2.2_StreetlightInventory'!F220) -> 0 | I114: 0 | K114: =IF(OR('2.2_Option2Calcs'!$G37="",'2.2_Option2Calcs'!$G37=0),0,'2.2_Option2Calcs'!$G37) -> 0 | L114: =IF(OR('2.2_Option2Calcs'!H37="",'2.2_Option2Calcs'!H37=0),0,'2.2_Option2Calcs'!H37) -> 0
E115: =Language_Refs!D95 -> Mixed Lights | F115: NA | G115: =IF('2.2_StreetlightInventory'!F226="","",'2.2_StreetlightInventory'!F226) -> 0 | I115: 0 | K115: =IF(OR('2.2_Option2Calcs'!$G43="",'2.2_Option2Calcs'!$G43=0),0,'2.2_Option2Calcs'!$G43) -> 0 | L115: =IF(OR('2.2_Option2Calcs'!H43="",'2.2_Option2Calcs'!H43=0),0,'2.2_Option2Calcs'!H43) -> 0
E116: =Language_Refs!D96 -> Other | F116: NA | G116: =IF('2.2_StreetlightInventory'!F232="","",'2.2_StreetlightInventory'!F232) -> 0 | I116: 0 | K116: =IF(OR('2.2_Option2Calcs'!$G49="",'2.2_Option2Calcs'!$G49=0),0,'2.2_Option2Calcs'!$G49) -> 0 | L116: =IF(OR('2.2_Option2Calcs'!H49="",'2.2_Option2Calcs'!H49=0),0,'2.2_Option2Calcs'!H49) -> 0
K117: =Language_Refs!D87 -> Average existing tech (W) | L117: =Language_Refs!D88 -> Average LED (W)
E118: =Language_Refs!D97 -> Total | G118: =SUM(G109,G110,G111,G112,G113,G114,G115,G116) -> 42500 | H118: =SUM(H109,H110,H111,H112,H113,H114,H115,H116) -> 42500 | I118: =IFERROR(H118/G118,"") -> 1 | K118: =IFERROR(($I$109*K109)+($I$110*K110)+($I$111*K111)+($I$112*K112)+($I$113*K113)+($I$114*K114)+($I$115*K115)+($I$116*K116),0) -> 202.565 | L118: =IFERROR(($I$109*IF(M109="",L109,M109))+($I$110*IF(M110="",L110,M110))+($I$111*IF(M111="",L111,M111))+($I$112*IF(M112="",L112,M112))+($I$113*IF(M113="",L113,M113))+($I$114*IF(M114="",L114,M114))+($I$115*IF(M115="",L115,M115))+($I$116*IF(M116="",L116,M116)),0) -> 108.463953

Sheet 3.1_ProjectDesign_Form2
T2: 1
D6: =Language_Refs!D224 -> This page allows the user to define annual LED added into the system in the baseline scenario.
D7: ='2.2_StreetlightInventory'!C9 -> Select one option
E8: =D11 -> Option 1 - Enter customized LED replacement plan for baseline by Year
E9: =D38 -> Option 2 - Enter customized LED replacement plan for Baseline by Year by Technology
D11: =Language_Refs!D355 -> Option 1 - Enter customized LED replacement plan for baseline by Year
D13: TRUE | E13: =Language_Refs!D366 -> Year | F13: =Language_Refs!D367 -> Default | G13: =Language_Refs!D368 -> User Override
E14: 2019 | F14: 0 | T14: =IF($T$2=1,G14,F47) -> 0
E15: 2020 | F15: 0 | T15: =IF($T$2=1,G15,F48) -> 0
E16: 2021 | F16: 0 | T16: 0
E17: 2022 | F17: 0 | T17: 0
E18: 2023 | F18: 0 | T18: 0
E19: 2024 | F19: 0 | T19: 0
E20: 2025 | F20: 0 | T20: 0
E21: 2026 | F21: 0 | T21: 0
E22: 2027 | F22: 0 | T22: 0
E23: 2028 | F23: 0 | T23: 0
E24: 2029 | F24: 0 | T24: 0
E25: 2030 | F25: 0 | T25: 0
E26: 2031 | F26: 0 | T26: 0
E27: 2032 | F27: 0 | T27: =IF($T$2=1,G27,F60) -> 0
E28: 2033 | F28: 0 | T28: 0
E29: 2034 | F29: 0 | T29: 0
E30: 2035 | F30: 0 | T30: 0
E31: 2036 | F31: 0 | T31: 0
E32: 2037 | F32: 0 | T32: 0
E33: 2038 | F33: 0 | T33: 0
D38: =Language_Refs!D356 -> Option 2 - Enter customized LED replacement plan for Baseline by Year by Technology
G41: Street Light Inventory by Technology
F42: Total Inventory | G42: High Pressure Sodium | H42: Mercury Vapor | I42: Metal Halide | J42: Fluorescent | K42: Incandescent | L42: Halogen | M42: Mixed Lights | N42: Other
F43: =SUM(G43:N43) -> 42500 | G43: ='3.1_ProjectDesign_Form'!G109 -> 27625 | H43: ='3.1_ProjectDesign_Form'!G110 -> 10625 | I43: ='3.1_ProjectDesign_Form'!G111 -> 4250 | J43: ='3.1_ProjectDesign_Form'!G112 -> 0 | K43: ='3.1_ProjectDesign_Form'!G113 -> 0 | L43: ='3.1_ProjectDesign_Form'!G114 -> 0 | M43: ='3.1_ProjectDesign_Form'!G115 -> 0 | N43: ='3.1_ProjectDesign_Form'!G116 -> 0
G45: LED Replacement for Current Inventory
E46: Year | F46: Total Replacement | G46: =G42 -> High Pressure Sodium | H46: =H42 -> Mercury Vapor | I46: Metal Halide | J46: Fluorescent | K46: Incandescent | L46: Halogen | M46: Mixed Lights | N46: Other
E47: 2019 | F47: =SUM(G47:M47) -> 2000 | G47: 2000
E48: 2020 | F48: =SUM(G48:M48) -> 2000 | G48: 2000
E49: 2021 | F49: 1500 | H49: 1500
E50: 2022 | F50: 3000 | H50: 3000
E51: 2023 | F51: 4250 | I51: 4250
E52: 2024 | F52: 0
E53: 2025 | F53: 0
E54: 2026 | F54: 0
E55: 2027 | F55: 0
E56: 2028 | F56: 0
E57: 2029 | F57: 0
E58: 2030 | F58: 0
E59: 2031 | F59: 0
E60: 2032 | F60: 0
E61: 2033 | F61: 0
E62: 2034 | F62: 0
E63: 2035 | F63: 0
E64: 2036 | F64: 0
E65: 2037 | F65: 0
E66: 2038 | F66: 0
E68: Total | F68: =SUM(F47:F66) -> 12750 | G68: =SUM(G47:G66) -> 4000 | H68: 4500 | I68: 4250 | J68: 0 | K68: 0 | L68: 0 | M68: 0 | N68: 0

Sheet 3.2_SaveModScenario
D14: =Language_Refs!D226 -> New scenario name | E14: : | F14: Economic Analysis
D16: =Language_Refs!D227 -> Descriptions | E16: : | F16: for GCF funding proposal
D31: =Language_Refs!D230 -> Scenario to modify | E31: : | F31: Economic Analysis
D33: =Language_Refs!D231 -> Descriptions | E33: : | F33: =IF(F31="","",IF(INDEX('3.2_SavedScenarios'!$E$8:$N$8,1,MATCH(F31,lst_scenario,0))="","",INDEX('3.2_SavedScenarios'!$E$8:$N$8,1,MATCH(F31,lst_scenario,0)))) -> for GCF funding proposal

Sheet 3.2_SavedScenarios (hidden)
B2: override flag | C2: =IFERROR(MATCH(C7,lst_scenario,0),-1) -> 5 | D2: =IFERROR(MATCH(D7,lst_scenario,0),-1) -> 5
B3: num saved | C3: =COUNTA(lst_scenario) -> 5
C4: Live Scenario | E4: Scenario 1 | F4: Scenario 2 | G4: Scenario 3 | H4: Scenario 4 | I4: Scenario 5 | J4: Scenario 6 | K4: Scenario 7 | L4: Scenario 8 | M4: Scenario 9 | N4: Scenario 10
A6: SCENARIO IDENTIFER
B7: Name of scenario | C7: ='3.2_SaveModScenario'!F14 -> Economic Analysis | D7: ='3.2_SaveModScenario'!F31 -> Economic Analysis | E7: GCF proposal #1 | F7: GCF proposal #2 | G7: GCF proposal #2 - economic | H7: Financial Analysis | I7: Economic Analysis
B8: =Language_Refs!D245 -> Descriptions | C8: ='3.2_SaveModScenario'!F16 -> for GCF funding proposal | E8: 42,500 lamps; 9 year tenor, 1 year grace period | F8: 42,500 lamps; 9 year tenor, 1 year grace period - updated other figures | G8: 42,500 lamps; 3.25 discount rate | H8: for GCF funding proposal | I8: for GCF funding proposal
A10: IMPLEMENTATION & TECHNICAL VARIABLES
B12: ='4.2_ScenarioComparison'!C24 -> Total luminaires in city | C12: ='3.1_ProjectDesign'!E11 -> 42500 | D12: n | E12: 42500 | F12: 42500 | G12: 42500 | H12: 42500 | I12: 42500
B14: ='4.2_ScenarioComparison'!C25 -> % luminaires replaced | C14: ='3.1_ProjectDesign'!F13 -> 1 | D14: % | E14: 1 | F14: 1 | G14: 1 | H14: 1 | I14: 1
B16: ='4.2_ScenarioComparison'!C26 -> Total luminaires replaced | C16: ='3.1_ProjectDesign'!E15 -> 42500 | D16: n | E16: 42500 | F16: 42500 | G16: 42500 | H16: 42500 | I16: 42500
B18: ='4.2_ScenarioComparison'!C27 -> Years to implement project | C18: ='3.1_ProjectDesign'!F17 -> 2 | D18: n | E18: 2 | F18: 2 | G18: 2 | H18: 2 | I18: 2
B20: ='4.2_ScenarioComparison'!C28 -> Starting year of project | C20: ='3.1_ProjectDesign'!F19 -> 2019 | D20: YYYY | E20: 2019 | F20: 2019 | G20: 2019 | H20: 2019 | I20: 2019
B22: ='4.2_ScenarioComparison'!C29 -> Period of analysis | C22: ='3.1_ProjectDesign'!F21 -> 13 | D22: years | E22: 13 | F22: 13 | G22: 13 | H22: 13 | I22: 13
B24: ='4.2_ScenarioComparison'!C30 -> Include smart system? | C24: ='3.1_ProjectDesign'!F23 -> Y | D24: Y/N | E24: Y | F24: Y | G24: Y | H24: Y | I24: Y
B26: ='4.2_ScenarioComparison'!C31 -> Dimming hours per day | C26: ='3.1_ProjectDesign'!F25 -> 5 | D26: hours | E26: 5 | F26: 5 | G26: 5 | H26: 5 | I26: 5
B28: ='4.2_ScenarioComparison'!C32 -> Include manufacture warranty | C28: ='3.1_ProjectDesign'!F27 -> Y | D28: Y/N | E28: Y | F28: Y | G28: Y | H28: Y | I28: Y
B30: ='4.2_ScenarioComparison'!C33 -> Manufacture warranty duration | C30: ='3.1_ProjectDesign'!F29 -> 10 | D30: years | E30: 10 | F30: 10 | G30: 10 | H30: 10 | I30: 10
B32: ='4.2_ScenarioComparison'!C34 -> % failure not warrantied | C32: ='3.1_ProjectDesign'!F31 -> 0.1 | D32: % | E32: 0.1 | F32: 0.1 | G32: 0.1 | H32: 0.1 | I32: 0.1
A35: FINANCIAL VARIABLES
B37: ='4.2_ScenarioComparison'!C35 -> Revenue source | C37: ='3.1_ProjectDesign'!F36 -> Project Savings | E37: Project Savings | F37: Project Savings | G37: Project Savings | H37: Project Savings | I37: Project Savings
B39: ='4.2_ScenarioComparison'!C36 -> % finance by debt | C39: ='3.1_ProjectDesign'!F38 -> 1 | D39: % | E39: 0.8 | F39: 0.7 | G39: 1 | H39: 0.7 | I39: 1
B41: ='4.2_ScenarioComparison'!C37 -> % finance by equity | C41: ='3.1_ProjectDesign'!E40 -> 0 | D41: % | E41: 0.2 | F41: 0.3 | G41: 0 | H41: 0.3 | I41: 0
B43: ='4.2_ScenarioComparison'!C38 -> Cost of Debt (net of inflation) | C43: ='3.1_ProjectDesign'!F42 -> 0.0325 | D43: % | E43: 0.096 | F43: 0.096 | G43: 0.0325 | H43: 0.096 | I43: 0.0325
B45: ='4.2_ScenarioComparison'!C39 -> Cost of Equity (net of inflation) | C45: ='3.1_ProjectDesign'!F44 -> 0 | D45: % | E45: 0.25 | F45: 0.14 | G45: 0.14 | H45: 0.14 | I45: 0
B47: ='4.2_ScenarioComparison'!C40 -> Loan Tenure | C47: ='3.1_ProjectDesign'!F46 -> 10 | D47: years | E47: 9 | F47: 10 | G47: 10 | H47: 10 | I47: 10
B49: =Language_Refs!D155 -> Estimated loan size | C49: ='3.1_ProjectDesign'!E48 -> 35000000 | D49: ='2.1_BasicInformation'!$E$16 -> R$ | E49: 37400000 | F49: 33500000 | G49: 30100000 | H49: 33500000 | I49: 30100000
B51: ='4.2_ScenarioComparison'!C42 -> Grace Period (Principal) | C51: ='3.1_ProjectDesign'!F50 -> 1 | D51: years | E51: 1 | F51: 1 | G51: 0 | H51: 1 | I51: 1
B53: ='4.2_ScenarioComparison'!C43 -> Grace Period (Interest) | C53: ='3.1_ProjectDesign'!F52 -> 0 | D53: years | E53: 0 | F53: 0 | G53: 0 | H53: 0 | I53: 0
B55: ='4.2_ScenarioComparison'!C44 -> Total loan fees | C55: ='3.1_ProjectDesign'!F54 -> 0 | D55: % | E55: 0 | F55: 0 | G55: 0 | H55: 0 | I55: 0
A57: redudant? | D57: ='2.1_BasicInformation'!$E$16 -> R$
C58: ='3.1_ProjectDesign'!F57 -> TRUE | E58: FALSE | F58: TRUE | G58: TRUE | H58: TRUE | I58: TRUE
A59: redudant? | B59: =IF('3.1_ProjectDesign'!F57=TRUE,'3.1_ProjectDesign'!D58,'3.1_ProjectDesign'!D56) -> Engineering + design cost (user input) | C59: =IF('3.1_ProjectDesign'!F57=TRUE,'3.1_ProjectDesign'!F58,'3.1_ProjectDesign'!E56) -> 1125750 | D59: ='2.1_BasicInformation'!$E$16 -> R$ | E59: 1125750 | F59: 1125750 | G59: 1125750 | H59: 1125750 | I59: 1125750
D60: ='2.1_BasicInformation'!$E$16 -> R$
B63: Annual Change in Additional Expenditures | C63: ='3.1_ProjectDesign'!F62 -> 0 | D63: % | E63: 0 | F63: 0 | G63: 0 | H63: 0 | I63: 0
B65: Additional cost of smart system (% increase to assumed LED price) | C65: ='3.1_ProjectDesign'!F64 -> 0.1 | D65: % | E65: 0.1 | F65: 0.1 | G65: 0.1 | H65: 0.1 | I65: 0.1
A66: FLAGS
B67: Financial vs. Economic analysis | C67: ='3.1_ProjectDesign'!N9 -> Econômica | E67: Financial | F67: Financial | G67: Economic | H67: Financial | I67: Economic
B68: LED (and smart system) pricing scenario | C68: =Assumptions!E73 -> Base case | E68: Base case | F68: Base case | G68: Base case | H68: Base case | I68: Base case
B69: Cost of electricity scenario | C69: =Assumptions!E74 -> Base case | E69: Base case | F69: Base case | G69: Base case | H69: Base case | I69: Base case
B70: Savings potential (electricity and O&M) | C70: =Assumptions!E75 -> Base case | E70: Base case | F70: Base case | G70: Base case | H70: Base case | I70: Base case
A73: FINANIAL PARAMETERS (BASIC)
B75: Retail cost of electricity for street lighting | C75: ='2.3_ExistingParameters'!F26 -> 440 | E75: 420 | F75: 440 | G75: 440 | H75: 440 | I75: 440
B77: Unsubsidized cost of electricity for street lighting | C77: ='2.3_ExistingParameters'!F28 -> 540 | E77: 560 | F77: 540 | G77: 540 | H77: 540 | I77: 540
B79: Real annual increase on electricity tariff - existing case | C79: ='2.3_ExistingParameters'!F30 -> 0.02 | E79: 0.02 | F79: 0.02 | G79: 0.02 | H79: 0.02 | I79: 0.02
B81: Average price per luminaire - existing technology | C81: ='2.3_ExistingParameters'!F32 -> 369.4361191 | E81: 369.4361191 | F81: 369.4361191 | G81: 369.4361191 | H81: 369.4361191 | I81: 369.4361191
B83: Average price per luminaire - LED - existing case (pre-tax) | C83: ='2.3_ExistingParameters'!F34 -> 604.5672816 | E83: 604.5672816 | F83: 604.5672816 | G83: 604.5672816 | H83: 604.5672816 | I83: 604.5672816
B85: Annual decrease in LED prices | C85: ='2.3_ExistingParameters'!F36 -> 0.1 | E85: 0.1 | F85: 0.1 | G85: 0.1 | H85: 0.1 | I85: 0.1
B87: Additional cost of smart system (% increase to assumed LED price) | C87: ='3.1_ProjectDesign'!F64 -> 0.1 | E87: 0.1 | F87: 0.1 | G87: 0.1 | H87: 0.1 | I87: 0.1
B89: Additional infrastructure (civil works) cost per point | C89: ='2.3_ExistingParameters'!F40 -> 0 | E89: 0 | F89: 0 | G89: 0 | H89: 0 | I89: 0
B91: Installation cost per LED | C91: ='2.3_ExistingParameters'!F42 -> 79 | E91: 79 | F91: 79 | G91: 79 | H91: 79 | I91: 79
B93: Labor cost per lamp replacement - all technologies (incl'd LED) | C93: ='2.3_ExistingParameters'!F44 -> 165.71 | E93: 165.71 | F93: 165.71 | G93: 165.71 | H93: 165.71 | I93: 165.71
B95: Depreciation (annual) | C95: ='2.3_ExistingParameters'!F46 -> 13 | E95: 13 | F95: 13 | G95: 13 | H95: 13 | I95: 13
B97: Tax on domestic equipment | C97: ='2.3_ExistingParameters'!F48 -> 0.46 | E97: 0.46 | F97: 0.46 | G97: 0.46 | H97: 0.46 | I97: 0.46
B99: Tax on imported equipment | C99: ='2.3_ExistingParameters'!F50 -> 0.75 | E99: 0.75 | F99: 0.75 | G99: 0.75 | H99: 0.75 | I99: 0.75
B101: % equipment expected to be imported | C101: ='2.3_ExistingParameters'!F52 -> 0.5 | E101: 0.5 | F101: 0.5 | G101: 0.5 | H101: 0.5 | I101: 0.5
B103: Corporate Tax Rate | C103: ='2.3_ExistingParameters'!F54 -> 0.3 | E103: 0.3 | F103: 0.3 | G103: 0.3 | H103: 0.3 | I103: 0.3
B105: Current annual budget / COSIP rev. to fund PSL (elec. + O&M) | C105: ='2.3_ExistingParameters'!F56 -> 18000000 | E105: 12000000 | F105: 18000000 | G105: 18000000 | H105: 18000000 | I105: 18000000
B107: Estimated annual increase (decrease) in budget for PSL | C107: ='2.3_ExistingParameters'!F58 -> 0.005 | E107: 0.005 | F107: 0.005 | G107: 0.005 | H107: 0.005 | I107: 0.005
B109: Social cost of carbon dioxide (CO2e) | C109: ='2.3_ExistingParameters'!F60 -> 94.8 | E109: 94.8 | F109: 94.8 | G109: 94.8 | H109: 94.8 | I109: 94.8
B111: Additional Operating Expenditures | C111: ='2.3_ExistingParameters'!F62 -> 0 | D111: ='2.1_BasicInformation'!$E$16 -> R$ | E111: 0 | F111: 0 | G111: 0 | H111: 0 | I111: 0
A113: TECHNICAL PARAMETERS (BASIC)
B115: Average operating hours per day | C115: ='2.3_ExistingParameters'!F12 -> 11.5 | E115: 11.5 | F115: 11.5 | G115: 11.5 | H115: 11.5 | I115: 11.5
B117: Averge life existing technology | C117: ='2.3_ExistingParameters'!F14 -> 28800 | E117: 28800 | F117: 28800 | G117: 28800 | H117: 28800 | I117: 28800
B119: Averge life LED | C119: ='2.3_ExistingParameters'!F16 -> 50000 | E119: 50000 | F119: 50000 | G119: 50000 | H119: 50000 | I119: 50000
B121: Averge life LED with dimming | C121: =Lifetime!C11 -> 55000 | E121: 55000 | F121: 55000 | G121: 55000 | H121: 55000 | I121: 55000
B123: Grid emission factor (tonnes CO2e/MWh) | C123: ='2.3_ExistingParameters'!F20 -> 0.44 | E123: 0.44 | F123: 0.44 | G123: 0.44 | H123: 0.44 | I123: 0.44
A125: Key Metrics
B126: =Language_Refs!D247 -> Total Investment | C126: ='3.1_ProjectDesignData'!F2 -> 30100000 | E126: 46800000 | F126: 47900000 | G126: 30100000 | H126: 47900000 | I126: 30100000
B127: =Language_Refs!D248 -> Total Revenue | C127: ='3.1_ProjectDesignData'!F3 -> 174500000 | E127: 131500000 | F127: 105500000 | G127: 135700000 | H127: 124600000 | I127: 162600000
B128: =Language_Refs!D249 -> Total Electricity Savings | C128: ='3.1_ProjectDesignData'!F4 -> 241.54446 | D128: GWH | E128: 241.54446 | F128: 181.4292981 | G128: 181.4292981 | H128: 225.5433047 | I128: 225.5433047
B129: =Language_Refs!D250 -> Total GHG Reduction | C129: ='3.1_ProjectDesignData'!F5 -> 106279.5624 | D129: tCO2e | E129: 106279.5624 | F129: 79828.89118 | G129: 79828.89118 | H129: 99239.05406 | I129: 99239.05406
B130: =Language_Refs!D251 -> Total NPV | C130: ='3.1_ProjectDesignData'!I2 -> 74100000 | E130: 8000000 | F130: 4300000 | G130: 54300000 | H130: 9100000 | I130: 68100000
B131: =Language_Refs!D252 -> IRR | C131: ='3.1_ProjectDesignData'!I3 -> 0.4609898717 | E131: 0.1782913503 | F131: 0.1372020318 | G131: 0.4245952859 | H131: 0.1628094125 | I131: 0.4499187038
B132: =Language_Refs!D253 -> Payback period (non-discounted) | C132: ='3.1_ProjectDesignData'!I4 -> 2.242406877 | D132: years | E132: 4.62661597 | F132: 5.902369668 | G132: 2.883566691 | H132: 4.997592295 | I132: 2.406519065
B133: =Language_Refs!D254 -> RoI | C133: ='3.1_ProjectDesignData'!I5 -> 4.797342193 | E133: 1.80982906 | F133: 1.202505219 | G133: 3.508305648 | H133: 1.60125261 | I133: 4.401993355
B134: =Language_Refs!D255 -> WACC (net) | C134: ='3.1_ProjectDesignData'!I6 -> 0.0325 | E134: 0.1268 | F134: 0.1092 | G134: 0.0325 | H134: 0.1092 | I134: 0.0325
B135: =Language_Refs!D256 -> Min DSCR | C135: ='3.1_ProjectDesignData'!I7 -> NA | E135: 1.260876588 | F135: 1.135393784 | G135: NA | H135: 1.431883755 | I135: NA

Sheet 3.2_SavedScenarioData (hidden)
D2: Year
D3: 1 | E3: 2 | F3: 3 | G3: 4 | H3: 5 | I3: 6 | J3: 7 | K3: 8 | L3: 9 | M3: 10 | N3: 11 | O3: 12 | P3: 13 | Q3: 14 | R3: 15 | S3: 16 | T3: 17 | U3: 18 | V3: 19 | W3: 20
A4: live | B4: ='3.1_ProjectDesignData'!B89 -> Net from Operations | D4: ='3.1_ProjectDesignData'!C89 -> 6151931.061 | E4: ='3.1_ProjectDesignData'!D89 -> 12731707.37 | F4: ='3.1_ProjectDesignData'!E89 -> 13023923.67 | G4: ='3.1_ProjectDesignData'!F89 -> 13233797.22 | H4: ='3.1_ProjectDesignData'!G89 -> 13449154.8 | I4: ='3.1_ProjectDesignData'!H89 -> 13704626.97 | J4: ='3.1_ProjectDesignData'!I89 -> 13896774.39 | K4: ='3.1_ProjectDesignData'!J89 -> 14129265.43 | L4: ='3.1_ProjectDesignData'!K89 -> 14367698.97 | M4: ='3.1_ProjectDesignData'!L89 -> 14649664.05 | N4: ='3.1_ProjectDesignData'!M89 -> 14790400.29 | O4: ='3.1_ProjectDesignData'!N89 -> 15046661.74 | P4: ='3.1_ProjectDesignData'!O89 -> 15309422.04 | Q4: ='3.1_ProjectDesignData'!P89 -> 0 | R4: ='3.1_ProjectDesignData'!Q89 -> 0 | S4: ='3.1_ProjectDesignData'!R89 -> 0 | T4: ='3.1_ProjectDesignData'!S89 -> 0 | U4: ='3.1_ProjectDesignData'!T89 -> 0 | V4: ='3.1_ProjectDesignData'!U89 -> 0 | W4: ='3.1_ProjectDesignData'!V89 -> 0
A5: live | B5: ='3.1_ProjectDesignData'!B90 -> Net from Investing | D5: ='3.1_ProjectDesignData'!C90 -> -16495035.21 | E5: ='3.1_ProjectDesignData'!D90 -> -13625109.19 | F5: ='3.1_ProjectDesignData'!E90 -> 0 | G5: ='3.1_ProjectDesignData'!F90 -> 0 | H5: ='3.1_ProjectDesignData'!G90 -> 0 | I5: ='3.1_ProjectDesignData'!H90 -> 0 | J5: ='3.1_ProjectDesignData'!I90 -> 0 | K5: ='3.1_ProjectDesignData'!J90 -> 0 | L5: ='3.1_ProjectDesignData'!K90 -> 0 | M5: ='3.1_ProjectDesignData'!L90 -> 0 | N5: ='3.1_ProjectDesignData'!M90 -> 0 | O5: ='3.1_ProjectDesignData'!N90 -> 0 | P5: ='3.1_ProjectDesignData'!O90 -> 0 | Q5: ='3.1_ProjectDesignData'!P90 -> 0 | R5: ='3.1_ProjectDesignData'!Q90 -> 0 | S5: ='3.1_ProjectDesignData'!R90 -> 0 | T5: ='3.1_ProjectDesignData'!S90 -> 0 | U5: ='3.1_ProjectDesignData'!T90 -> 0 | V5: ='3.1_ProjectDesignData'!U90 -> 0 | W5: ='3.1_ProjectDesignData'!V90 -> 0
A6: live | B6: ='3.1_ProjectDesignData'!B91 -> Financing Proceeds | D6: ='3.1_ProjectDesignData'!C91 -> 16495035.21 | E6: ='3.1_ProjectDesignData'!D91 -> 13625109.19 | F6: ='3.1_ProjectDesignData'!E91 -> 0 | G6: ='3.1_ProjectDesignData'!F91 -> 0 | H6: ='3.1_ProjectDesignData'!G91 -> 0 | I6: ='3.1_ProjectDesignData'!H91 -> 0 | J6: ='3.1_ProjectDesignData'!I91 -> 0 | K6: ='3.1_ProjectDesignData'!J91 -> 0 | L6: ='3.1_ProjectDesignData'!K91 -> 0 | M6: ='3.1_ProjectDesignData'!L91 -> 0 | N6: ='3.1_ProjectDesignData'!M91 -> 0 | O6: ='3.1_ProjectDesignData'!N91 -> 0 | P6: ='3.1_ProjectDesignData'!O91 -> 0 | Q6: ='3.1_ProjectDesignData'!P91 -> 0 | R6: ='3.1_ProjectDesignData'!Q91 -> 0 | S6: ='3.1_ProjectDesignData'!R91 -> 0 | T6: ='3.1_ProjectDesignData'!S91 -> 0 | U6: ='3.1_ProjectDesignData'!T91 -> 0 | V6: ='3.1_ProjectDesignData'!U91 -> 0 | W6: ='3.1_ProjectDesignData'!V91 -> 0
A7: live | B7: ='3.1_ProjectDesignData'!B92 -> Debt Service | D7: ='3.1_ProjectDesignData'!C92 -> -1136208.849 | E7: ='3.1_ProjectDesignData'!D92 -> -4542582.366 | F7: ='3.1_ProjectDesignData'!E92 -> -4542582.366 | G7: ='3.1_ProjectDesignData'!F92 -> -4542582.366 | H7: ='3.1_ProjectDesignData'!G92 -> -4542582.366 | I7: ='3.1_ProjectDesignData'!H92 -> -4542582.366 | J7: ='3.1_ProjectDesignData'!I92 -> -4542582.366 | K7: ='3.1_ProjectDesignData'!J92 -> -4542582.366 | L7: ='3.1_ProjectDesignData'!K92 -> -4542582.366 | M7: ='3.1_ProjectDesignData'!L92 -> -4542582.366 | N7: ='3.1_ProjectDesignData'!M92 -> 0 | O7: ='3.1_ProjectDesignData'!N92 -> 0 | P7: ='3.1_ProjectDesignData'!O92 -> 0 | Q7: ='3.1_ProjectDesignData'!P92 -> 0 | R7: ='3.1_ProjectDesignData'!Q92 -> 0 | S7: ='3.1_ProjectDesignData'!R92 -> 0 | T7: ='3.1_ProjectDesignData'!S92 -> 0 | U7: ='3.1_ProjectDesignData'!T92 -> 0 | V7: ='3.1_ProjectDesignData'!U92 -> 0 | W7: ='3.1_ProjectDesignData'!V92 -> 0
A8: live | B8: ='3.1_ProjectDesignData'!B93 -> Cash Flow | D8: ='3.1_ProjectDesignData'!C93 -> 5015722.212 | E8: ='3.1_ProjectDesignData'!D93 -> 8189125.002 | F8: ='3.1_ProjectDesignData'!E93 -> 8481341.301 | G8: ='3.1_ProjectDesignData'!F93 -> 8691214.855 | H8: ='3.1_ProjectDesignData'!G93 -> 8906572.436 | I8: ='3.1_ProjectDesignData'!H93 -> 9162044.606 | J8: ='3.1_ProjectDesignData'!I93 -> 9354192.021 | K8: ='3.1_ProjectDesignData'!J93 -> 9586683.059 | L8: ='3.1_ProjectDesignData'!K93 -> 9825116.603 | M8: ='3.1_ProjectDesignData'!L93 -> 10107081.69 | N8: ='3.1_ProjectDesignData'!M93 -> 14790400.29 | O8: ='3.1_ProjectDesignData'!N93 -> 15046661.74 | P8: ='3.1_ProjectDesignData'!O93 -> 15309422.04 | Q8: ='3.1_ProjectDesignData'!P93 -> 0 | R8: ='3.1_ProjectDesignData'!Q93 -> 0 | S8: ='3.1_ProjectDesignData'!R93 -> 0 | T8: ='3.1_ProjectDesignData'!S93 -> 0 | U8: ='3.1_ProjectDesignData'!T93 -> 0 | V8: ='3.1_ProjectDesignData'!U93 -> 0 | W8: ='3.1_ProjectDesignData'!V93 -> 0
A21: 1 | B21: =B4 -> Net from Operations | C21: =A21&"-"&B21 -> 1-Net from Operations | D21: 5311136.828 | E21: 8799772.273 | F21: 8799138.316 | G21: 8807504.538 | H21: 8808181.038 | I21: 8817432.029 | J21: 8782735.149 | K21: 8754506.948 | L21: 8714359.006 | M21: 8679543.545 | N21: 8741142.184 | O21: 8874321.038 | P21: 8513125.158 | Q21: 0 | R21: 0 | S21: 0 | T21: 0 | U21: 0 | V21: 0 | W21: 0
A22: 1 | B22: Net from Investing | C22: =A22&"-"&B22 -> 1-Net from Investing | D22: -24676225.13 | E22: -22092077.62 | F22: 0 | G22: 0 | H22: 0 | I22: 0 | J22: 0 | K22: 0 | L22: 0 | M22: 0 | N22: 0 | O22: 0 | P22: 0 | Q22: 0 | R22: 0 | S22: 0 | T22: 0 | U22: 0 | V22: 0 | W22: 0
A23: 1 | B23: Financing Proceeds | C23: 1-Financing Proceeds | D23: 24676225.13 | E23: 22092077.62 | F23: 0 | G23: 0 | H23: 0 | I23: 0 | J23: 0 | K23: 0 | L23: 0 | M23: 0 | N23: 0 | O23: 0 | P23: 0 | Q23: 0 | R23: 0 | S23: 0 | T23: 0 | U23: 0 | V23: 0 | W23: 0
A24: 1 | B24: Debt Service | C24: 1-Debt Service | D24: -3591805.651 | E24: -6911349.683 | F24: -6911349.683 | G24: -6911349.683 | H24: -6911349.683 | I24: -6911349.683 | J24: -6911349.683 | K24: -6911349.683 | L24: -6911349.683 | M24: 0 | N24: 0 | O24: 0 | P24: 0 | Q24: 0 | R24: 0 | S24: 0 | T24: 0 | U24: 0 | V24: 0 | W24: 0
A25: 1 | B25: Cash Flow | C25: 1-Cash Flow | D25: 1719331.176 | E25: 1888422.59 | F25: 1887788.633 | G25: 1896154.855 | H25: 1896831.354 | I25: 1906082.345 | J25: 1871385.466 | K25: 1843157.265 | L25: 1803009.322 | M25: 8679543.545 | N25: 8741142.184 | O25: 8874321.038 | P25: 8513125.158 | Q25: 0 | R25: 0 | S25: 0 | T25: 0 | U25: 0 | V25: 0 | W25: 0
A26: 1 | B26: 0 | C26: 1-0
A27: 1 | B27: 0 | C27: 1-0
A28: 1 | B28: 0 | C28: 1-0
A29: 1 | B29: 0 | C29: 1-0
A30: 1 | B30: 0 | C30: 1-0
A31: 1 | B31: 0 | C31: 1-0
A32: 1 | B32: 0 | C32: 1-0
A33: 1 | B33: 0 | C33: 1-0
A34: 1 | B34: 0 | C34: 1-0
A35: 1 | B35: 0 | C35: 1-0
A36: 1 | B36: 0 | C36: 1-0
A38: =A21+1 -> 2 | B38: =B21 -> Net from Operations | C38: =A38&"-"&B38 -> 2-Net from Operations | D38: 5269568.455 | E38: 8757033.05 | F38: 8611401.076 | G38: 8448018.62 | H38: 8245447.527 | I38: 8012325.525 | J38: 7697232.716 | K38: 7337525.386 | L38: 6931379.417 | M38: 6504907.102 | N38: 5969129.308 | O38: 5624844.202 | P38: 4760311.941 | Q38: 0 | R38: 0 | S38: 0 | T38: 0 | U38: 0 | V38: 0 | W38: 0
A39: =A22+1 -> 2 | B39: =B22 -> Net from Investing | C39: 2-Net from Investing | D39: -25801975.13 | E39: -22092077.62 | F39: 0 | G39: 0 | H39: 0 | I39: 0 | J39: 0 | K39: 0 | L39: 0 | M39: 0 | N39: 0 | O39: 0 | P39: 0 | Q39: 0 | R39: 0 | S39: 0 | T39: 0 | U39: 0 | V39: 0 | W39: 0
A40: =A23+1 -> 2 | B40: Financing Proceeds | C40: 2-Financing Proceeds | D40: 25801975.13 | E40: 22092077.62 | F40: 0 | G40: 0 | H40: 0 | I40: 0 | J40: 0 | K40: 0 | L40: 0 | M40: 0 | N40: 0 | O40: 0 | P40: 0 | Q40: 0 | R40: 0 | S40: 0 | T40: 0 | U40: 0 | V40: 0 | W40: 0
A41: =A24+1 -> 2 | B41: Debt Service | C41: 2-Debt Service | D41: -3218480.345 | E41: -5729207.96 | F41: -5729207.96 | G41: -5729207.96 | H41: -5729207.96 | I41: -5729207.96 | J41: -5729207.96 | K41: -5729207.96 | L41: -5729207.96 | M41: -5729207.96 | N41: 0 | O41: 0 | P41: 0 | Q41: 0 | R41: 0 | S41: 0 | T41: 0 | U41: 0 | V41: 0 | W41: 0
A42: =A25+1 -> 2 | B42: Cash Flow | C42: 2-Cash Flow | D42: 2051088.11 | E42: 3027825.09 | F42: 2882193.117 | G42: 2718810.66 | H42: 2516239.567 | I42: 2283117.565 | J42: 1968024.756 | K42: 1608317.427 | L42: 1202171.458 | M42: 775699.1426 | N42: 5969129.308 | O42: 5624844.202 | P42: 4760311.941 | Q42: 0 | R42: 0 | S42: 0 | T42: 0 | U42: 0 | V42: 0 | W42: 0
A43: 2 | B43: 0 | C43: 2-0
A44: 2 | B44: 0 | C44: 2-0
A45: 2 | B45: 0 | C45: 2-0
A46: 2 | B46: 0 | C46: 2-0
A47: 2 | B47: 0 | C47: 2-0
A48: 2 | B48: 0 | C48: 2-0
A49: 2 | B49: 0 | C49: 2-0
A50: 2 | B50: 0 | C50: 2-0
A51: 2 | B51: 0 | C51: 2-0
A52: 2 | B52: 0 | C52: 2-0
A53: 2 | B53: 0 | C53: 2-0
A55: =A38+1 -> 3 | B55: =B38 -> Net from Operations | C55: =A55&"-"&B55 -> 3-Net from Operations | D55: 6823485.625 | E55: 12515334.62 | F55: 12385284.17 | G55: 12234494.11 | H55: 12023246.26 | I55: 11769315.03 | J55: 11375802.05 | K55: 10915581.13 | L55: 10386853.62 | M55: 9841527.759 | N55: 9135950.302 | O55: 8483441.065 | P55: 7785829.367 | Q55: 0 | R55: 0 | S55: 0 | T55: 0 | U55: 0 | V55: 0 | W55: 0
A56: =A39+1 -> 3 | B56: =B39 -> Net from Investing | C56: 3-Net from Investing | D56: -16480035.21 | E56: -13625109.19 | F56: 0 | G56: 0 | H56: 0 | I56: 0 | J56: 0 | K56: 0 | L56: 0 | M56: 0 | N56: 0 | O56: 0 | P56: 0 | Q56: 0 | R56: 0 | S56: 0 | T56: 0 | U56: 0 | V56: 0 | W56: 0
A57: =A40+1 -> 3 | B57: Financing Proceeds | C57: 3-Financing Proceeds | D57: 16480035.21 | E57: 13625109.19 | F57: 0 | G57: 0 | H57: 0 | I57: 0 | J57: 0 | K57: 0 | L57: 0 | M57: 0 | N57: 0 | O57: 0 | P57: 0 | Q57: 0 | R57: 0 | S57: 0 | T57: 0 | U57: 0 | V57: 0 | W57: 0
A58: =A41+1 -> 3 | B58: Debt Service | C58: 3-Debt Service | D58: -3574416.078 | E58: -3574416.078 | F58: -3574416.078 | G58: -3574416.078 | H58: -3574416.078 | I58: -3574416.078 | J58: -3574416.078 | K58: -3574416.078 | L58: -3574416.078 | M58: -3574416.078 | N58: 0 | O58: 0 | P58: 0 | Q58: 0 | R58: 0 | S58: 0 | T58: 0 | U58: 0 | V58: 0 | W58: 0
A59: =A42+1 -> 3 | B59: Cash Flow | C59: 3-Cash Flow | D59: 3249069.546 | E59: 8940918.54 | F59: 8810868.088 | G59: 8660078.035 | H59: 8448830.179 | I59: 8194898.953 | J59: 7801385.973 | K59: 7341165.055 | L59: 6812437.54 | M59: 6267111.68 | N59: 9135950.302 | O59: 8483441.065 | P59: 7785829.367 | Q59: 0 | R59: 0 | S59: 0 | T59: 0 | U59: 0 | V59: 0 | W59: 0
A60: 3 | B60: 0 | C60: 3-0
A61: 3 | B61: 0 | C61: 3-0
A62: 3 | B62: 0 | C62: 3-0
A63: 3 | B63: 0 | C63: 3-0
A64: 3 | B64: 0 | C64: 3-0
A65: 3 | B65: 0 | C65: 3-0
A66: 3 | B66: 0 | C66: 3-0
A67: 3 | B67: 0 | C67: 3-0
A68: 3 | B68: 0 | C68: 3-0
A69: 3 | B69: 0 | C69: 3-0
A70: 3 | B70: 0 | C70: 3-0
A72: =A55+1 -> 4 | B72: =B55 -> Net from Operations | C72: =A72&"-"&B72 -> 4-Net from Operations | D72: 4714481.914 | E72: 8808355.45 | F72: 8871528.081 | G72: 8847207.964 | H72: 8801282.932 | I72: 8749506.786 | J72: 8637932.164 | K72: 8516888.086 | L72: 8366985.712 | M72: 8203559.804 | N72: 7920398.536 | O72: 7832145.232 | P72: 7224054.645 | Q72: 0 | R72: 0 | S72: 0 | T72: 0 | U72: 0 | V72: 0 | W72: 0
A73: =A56+1 -> 4 | B73: =B56 -> Net from Investing | C73: 4-Net from Investing | D73: -25801975.13 | E73: -22092077.62 | F73: 0 | G73: 0 | H73: 0 | I73: 0 | J73: 0 | K73: 0 | L73: 0 | M73: 0 | N73: 0 | O73: 0 | P73: 0 | Q73: 0 | R73: 0 | S73: 0 | T73: 0 | U73: 0 | V73: 0 | W73: 0
A74: =A57+1 -> 4 | B74: Financing Proceeds | C74: 4-Financing Proceeds | D74: 25801975.13 | E74: 22092077.62 | F74: 0 | G74: 0 | H74: 0 | I74: 0 | J74: 0 | K74: 0 | L74: 0 | M74: 0 | N74: 0 | O74: 0 | P74: 0 | Q74: 0 | R74: 0 | S74: 0 | T74: 0 | U74: 0 | V74: 0 | W74: 0
A75: =A58+1 -> 4 | B75: Debt Service | C75: 4-Debt Service | D75: -3218480.345 | E75: -5729207.96 | F75: -5729207.96 | G75: -5729207.96 | H75: -5729207.96 | I75: -5729207.96 | J75: -5729207.96 | K75: -5729207.96 | L75: -5729207.96 | M75: -5729207.96 | N75: 0 | O75: 0 | P75: 0 | Q75: 0 | R75: 0 | S75: 0 | T75: 0 | U75: 0 | V75: 0 | W75: 0
A76: =A59+1 -> 4 | B76: Cash Flow | C76: 4-Cash Flow | D76: 1496001.569 | E76: 3079147.49 | F76: 3142320.121 | G76: 3118000.004 | H76: 3072074.972 | I76: 3020298.826 | J76: 2908724.204 | K76: 2787680.126 | L76: 2637777.752 | M76: 2474351.845 | N76: 7920398.536 | O76: 7832145.232 | P76: 7224054.645 | Q76: 0 | R76: 0 | S76: 0 | T76: 0 | U76: 0 | V76: 0 | W76: 0
A77: 4 | B77: 0 | C77: 4-0
A78: 4 | B78: 0 | C78: 4-0
A79: 4 | B79: 0 | C79: 4-0
A80: 4 | B80: 0 | C80: 4-0
A81: 4 | B81: 0 | C81: 4-0
A82: 4 | B82: 0 | C82: 4-0
A83: 4 | B83: 0 | C83: 4-0
A84: 4 | B84: 0 | C84: 4-0
A85: 4 | B85: 0 | C85: 4-0
A86: 4 | B86: 0 | C86: 4-0
A87: 4 | B87: 0 | C87: 4-0
A89: =A72+1 -> 5 | B89: =B72 -> Net from Operations | C89: =A89&"-"&B89 -> 5-Net from Operations | D89: 6130545.584 | E89: 12687600.35 | F89: 12925000.59 | G89: 13049038.42 | H89: 13146385 | I89: 13248490.73 | J89: 13253728.68 | K89: 13259895 | L89: 13231702.87 | M89: 13200487.41 | N89: 12989998.43 | O89: 12840717.83 | P89: 12647809.07 | Q89: 0 | R89: 0 | S89: 0 | T89: 0 | U89: 0 | V89: 0 | W89: 0
A90: =A73+1 -> 5 | B90: Net from Investing | C90: 5-Net from Investing | D90: -16480035.21 | E90: -13625109.19 | F90: 0 | G90: 0 | H90: 0 | I90: 0 | J90: 0 | K90: 0 | L90: 0 | M90: 0 | N90: 0 | O90: 0 | P90: 0 | Q90: 0 | R90: 0 | S90: 0 | T90: 0 | U90: 0 | V90: 0 | W90: 0
A91: =A74+1 -> 5 | B91: Financing Proceeds | C91: 5-Financing Proceeds | D91: 16480035.21 | E91: 13625109.19 | F91: 0 | G91: 0 | H91: 0 | I91: 0 | J91: 0 | K91: 0 | L91: 0 | M91: 0 | N91: 0 | O91: 0 | P91: 0 | Q91: 0 | R91: 0 | S91: 0 | T91: 0 | U91: 0 | V91: 0 | W91: 0
A92: =A75+1 -> 5 | B92: Debt Service | C92: 5-Debt Service | D92: -978417.1928 | E92: -3911728.633 | F92: -3911728.633 | G92: -3911728.633 | H92: -3911728.633 | I92: -3911728.633 | J92: -3911728.633 | K92: -3911728.633 | L92: -3911728.633 | M92: -3911728.633 | N92: 0 | O92: 0 | P92: 0 | Q92: 0 | R92: 0 | S92: 0 | T92: 0 | U92: 0 | V92: 0 | W92: 0
A93: =A76+1 -> 5 | B93: Cash Flow | C93: 5-Cash Flow | D93: 5152128.392 | E93: 8775871.718 | F93: 9013271.954 | G93: 9137309.788 | H93: 9234656.366 | I93: 9336762.097 | J93: 9342000.049 | K93: 9348166.371 | L93: 9319974.239 | M93: 9288758.781 | N93: 12989998.43 | O93: 12840717.83 | P93: 12647809.07 | Q93: 0 | R93: 0 | S93: 0 | T93: 0 | U93: 0 | V93: 0 | W93: 0
A94: 5 | B94: 0 | C94: 5-0
A95: 5 | B95: 0 | C95: 5-0
A96: 5 | B96: 0 | C96: 5-0
A97: 5 | B97: 0 | C97: 5-0
A98: 5 | B98: 0 | C98: 5-0
A99: 5 | B99: 0 | C99: 5-0
A100: 5 | B100: 0 | C100: 5-0
A101: 5 | B101: 0 | C101: 5-0
A102: 5 | B102: 0 | C102: 5-0
A103: 5 | B103: 0 | C103: 5-0
A104: 5 | B104: 0 | C104: 5-0
A106: =A89+1 -> 6 | B106: =B89 -> Net from Operations | C106: =A106&"-"&B106 -> 6-Net from Operations
A107: =A90+1 -> 6 | B107: Net from Investing | C107: 6-Net from Investing
A108: =A91+1 -> 6 | B108: Financing Proceeds | C108: 6-Financing Proceeds
A109: =A92+1 -> 6 | B109: Debt Service | C109: 6-Debt Service
A110: =A93+1 -> 6 | B110: Cash Flow | C110: 6-Cash Flow
A111: 6 | B111: 0 | C111: 6-0
A112: 6 | B112: 0 | C112: 6-0
A113: 6 | B113: 0 | C113: 6-0
A114: 6 | B114: 0 | C114: 6-0
A115: 6 | B115: 0 | C115: 6-0
A116: 6 | B116: 0 | C116: 6-0
A117: 6 | B117: 0 | C117: 6-0
A118: 6 | B118: 0 | C118: 6-0
A119: 6 | B119: 0 | C119: 6-0
A120: 6 | B120: 0 | C120: 6-0
A121: 6 | B121: 0 | C121: 6-0
A123: =A106+1 -> 7 | B123: =B106 -> Net from Operations | C123: =A123&"-"&B123 -> 7-Net from Operations
A124: =A107+1 -> 7 | B124: Net from Investing | C124: 7-Net from Investing
A125: =A108+1 -> 7 | B125: Financing Proceeds | C125: 7-Financing Proceeds
A126: =A109+1 -> 7 | B126: Debt Service | C126: 7-Debt Service
A127: =A110+1 -> 7 | B127: Cash Flow | C127: 7-Cash Flow
A128: 7 | B128: 0 | C128: 7-0
A129: 7 | B129: 0 | C129: 7-0
A130: 7 | B130: 0 | C130: 7-0
A131: 7 | B131: 0 | C131: 7-0
A132: 7 | B132: 0 | C132: 7-0
A133: 7 | B133: 0 | C133: 7-0
A134: 7 | B134: 0 | C134: 7-0
A135: 7 | B135: 0 | C135: 7-0
A136: 7 | B136: 0 | C136: 7-0
A137: 7 | B137: 0 | C137: 7-0
A138: 7 | B138: 0 | C138: 7-0
A140: =A123+1 -> 8 | B140: =B123 -> Net from Operations | C140: =A140&"-"&B140 -> 8-Net from Operations
A141: =A124+1 -> 8 | B141: Net from Investing | C141: 8-Net from Investing
A142: =A125+1 -> 8 | B142: Financing Proceeds | C142: 8-Financing Proceeds
A143: =A126+1 -> 8 | B143: Debt Service | C143: 8-Debt Service
A144: =A127+1 -> 8 | B144: Cash Flow | C144: 8-Cash Flow
A145: 8 | B145: 0 | C145: 8-0
A146: 8 | B146: 0 | C146: 8-0
A147: 8 | B147: 0 | C147: 8-0
A148: 8 | B148: 0 | C148: 8-0
A149: 8 | B149: 0 | C149: 8-0
A150: 8 | B150: 0 | C150: 8-0
A151: 8 | B151: 0 | C151: 8-0
A152: 8 | B152: 0 | C152: 8-0
A153: 8 | B153: =B136 -> 0 | C153: 8-0
A154: 8 | B154: 0 | C154: 8-0
A155: 8 | B155: 0 | C155: 8-0
A157: =A140+1 -> 9 | B157: =B140 -> Net from Operations | C157: =A157&"-"&B157 -> 9-Net from Operations
A158: =A141+1 -> 9 | B158: Net from Investing | C158: 9-Net from Investing
A159: =A142+1 -> 9 | B159: Financing Proceeds | C159: 9-Financing Proceeds
A160: =A143+1 -> 9 | B160: Debt Service | C160: 9-Debt Service
A161: =A144+1 -> 9 | B161: Cash Flow | C161: 9-Cash Flow
A162: 9 | B162: 0 | C162: 9-0
A163: 9 | B163: 0 | C163: 9-0
A164: 9 | B164: 0 | C164: 9-0
A165: 9 | B165: 0 | C165: 9-0
A166: 9 | B166: 0 | C166: 9-0
A167: 9 | B167: 0 | C167: 9-0
A168: 9 | B168: 0 | C168: 9-0
A169: 9 | B169: 0 | C169: 9-0
A170: 9 | B170: 0 | C170: 9-0
A171: 9 | B171: 0 | C171: 9-0
A172: 9 | B172: 0 | C172: 9-0
A174: =A157+1 -> 10 | B174: =B157 -> Net from Operations | C174: =A174&"-"&B174 -> 10-Net from Operations
A175: =A158+1 -> 10 | B175: Net from Investing | C175: 10-Net from Investing
A176: =A159+1 -> 10 | B176: Financing Proceeds | C176: 10-Financing Proceeds
A177: =A160+1 -> 10 | B177: Debt Service | C177: 10-Debt Service
A178: =A161+1 -> 10 | B178: Cash Flow | C178: 10-Cash Flow
A179: 10 | B179: 0 | C179: 10-0
A180: 10 | B180: 0 | C180: 10-0
A181: 10 | B181: 0 | C181: 10-0
A182: 10 | B182: 0 | C182: 10-0
A183: 10 | B183: 0 | C183: 10-0
A184: 10 | B184: 0 | C184: 10-0
A185: 10 | B185: 0 | C185: 10-0
A186: 10 | B186: 0 | C186: 10-0
A187: 10 | B187: 0 | C187: 10-0
A188: 10 | B188: 0 | C188: 10-0
A189: 10 | B189: 0 | C189: 10-0
A191: =A174+1 -> 11 | B191: =B174 -> Net from Operations | C191: =A191&"-"&B191 -> 11-Net from Operations
A192: =A175+1 -> 11 | B192: Net from Investing | C192: 11-Net from Investing
A193: =A176+1 -> 11 | B193: Financing Proceeds | C193: 11-Financing Proceeds
A194: =A177+1 -> 11 | B194: Debt Service | C194: 11-Debt Service
A195: =A178+1 -> 11 | B195: Cash Flow | C195: 11-Cash Flow
A196: 11 | B196: 0 | C196: 11-0
A197: 11 | B197: 0 | C197: 11-0
A198: 11 | B198: 0 | C198: 11-0
A199: 11 | B199: 0 | C199: 11-0
A200: 11 | B200: 0 | C200: 11-0
A201: 11 | B201: 0 | C201: 11-0
A202: 11 | B202: 0 | C202: 11-0
A203: 11 | B203: 0 | C203: 11-0
A204: 11 | B204: 0 | C204: 11-0
A205: 11 | B205: 0 | C205: 11-0
A206: 11 | B206: 0 | C206: 11-0
A208: =A191+1 -> 12 | B208: =B191 -> Net from Operations | C208: =A208&"-"&B208 -> 12-Net from Operations
A209: =A192+1 -> 12 | B209: Net from Investing | C209: 12-Net from Investing
A210: =A193+1 -> 12 | B210: Financing Proceeds | C210: 12-Financing Proceeds
A211: =A194+1 -> 12 | B211: Debt Service | C211: 12-Debt Service
A212: =A195+1 -> 12 | B212: Cash Flow | C212: 12-Cash Flow
A213: 12 | B213: 0 | C213: 12-0
A214: 12 | B214: 0 | C214: 12-0
A215: 12 | B215: 0 | C215: 12-0
A216: 12 | B216: 0 | C216: 12-0
A217: 12 | B217: =B200 -> 0 | C217: 12-0
A218: 12 | B218: 0 | C218: 12-0
A219: 12 | B219: 0 | C219: 12-0
A220: 12 | B220: 0 | C220: 12-0
A221: 12 | B221: 0 | C221: 12-0
A222: 12 | B222: 0 | C222: 12-0
A223: 12 | B223: 0 | C223: 12-0
A225: =A208+1 -> 13 | B225: =B208 -> Net from Operations | C225: =A225&"-"&B225 -> 13-Net from Operations
... 287 more rows

Sheet 4.1_ScenarioSelection
E9: =Language_Refs!D237 -> Ref # | F9: =Language_Refs!D238 -> Scenario Name | G9: =Language_Refs!D239 -> Descriptions | H9: =Language_Refs!D240 -> Preferred Scenario
E10: 1 | F10: Financial Analysis | G10: =IF(F10="","",IF(INDEX('3.2_SavedScenarios'!$E$8:$N$8,1,MATCH(F10,lst_scenario,0))=0,"",INDEX('3.2_SavedScenarios'!$E$8:$N$8,1,MATCH(F10,lst_scenario,0)))) -> for GCF funding proposal | H10: TRUE
E11: 2 | F11: Economic Analysis | G11: =IF(F11="","",IF(INDEX('3.2_SavedScenarios'!$E$8:$N$8,1,MATCH(F11,lst_scenario,0))=0,"",INDEX('3.2_SavedScenarios'!$E$8:$N$8,1,MATCH(F11,lst_scenario,0)))) -> for GCF funding proposal | H11: FALSE
E12: 3 | G12: =IF(F12="","",IF(INDEX('3.2_SavedScenarios'!$E$8:$N$8,1,MATCH(F12,lst_scenario,0))=0,"",INDEX('3.2_SavedScenarios'!$E$8:$N$8,1,MATCH(F12,lst_scenario,0)))) ->  | H12: FALSE
E13: 4 | G13: =IF(F13="","",IF(INDEX('3.2_SavedScenarios'!$E$8:$N$8,1,MATCH(F13,lst_scenario,0))=0,"",INDEX('3.2_SavedScenarios'!$E$8:$N$8,1,MATCH(F13,lst_scenario,0)))) ->  | H13: FALSE
E14: 5 | G14: =IF(F14="","",IF(INDEX('3.2_SavedScenarios'!$E$8:$N$8,1,MATCH(F14,lst_scenario,0))=0,"",INDEX('3.2_SavedScenarios'!$E$8:$N$8,1,MATCH(F14,lst_scenario,0)))) ->  | H14: FALSE
E15: 6 | G15: =IF(F15="","",IF(INDEX('3.2_SavedScenarios'!$E$8:$N$8,1,MATCH(F15,lst_scenario,0))=0,"",INDEX('3.2_SavedScenarios'!$E$8:$N$8,1,MATCH(F15,lst_scenario,0)))) ->  | H15: FALSE
E16: 7 | G16: =IF(F16="","",IF(INDEX('3.2_SavedScenarios'!$E$8:$N$8,1,MATCH(F16,lst_scenario,0))=0,"",INDEX('3.2_SavedScenarios'!$E$8:$N$8,1,MATCH(F16,lst_scenario,0)))) ->  | H16: FALSE
E17: 8 | G17: =IF(F17="","",IF(INDEX('3.2_SavedScenarios'!$E$8:$N$8,1,MATCH(F17,lst_scenario,0))=0,"",INDEX('3.2_SavedScenarios'!$E$8:$N$8,1,MATCH(F17,lst_scenario,0)))) ->  | H17: FALSE
E18: 9 | G18: =IF(F18="","",IF(INDEX('3.2_SavedScenarios'!$E$8:$N$8,1,MATCH(F18,lst_scenario,0))=0,"",INDEX('3.2_SavedScenarios'!$E$8:$N$8,1,MATCH(F18,lst_scenario,0)))) ->  | H18: FALSE
E19: 10 | G19: =IF(F19="","",IF(INDEX('3.2_SavedScenarios'!$E$8:$N$8,1,MATCH(F19,lst_scenario,0))=0,"",INDEX('3.2_SavedScenarios'!$E$8:$N$8,1,MATCH(F19,lst_scenario,0)))) ->  | H19: FALSE

Sheet 4.2_ScenarioComparison
E5: 1 | F5: 2 | G5: 3 | H5: 4 | I5: 5 | J5: 6 | K5: 7 | L5: 8 | M5: 9 | N5: 10
E6: ="SCENARIO COMPARISONS" -> SCENARIO COMPARISONS
C8: =Language_Refs!D244 -> Scenario | E8: =IF(ISBLANK('4.1_ScenarioSelection'!F10),"",'4.1_ScenarioSelection'!F10) -> Financial Analysis | F8: =IF(ISBLANK('4.1_ScenarioSelection'!F11),"",'4.1_ScenarioSelection'!F11) -> Economic Analysis | G8: =IF(ISBLANK('4.1_ScenarioSelection'!F12),"",'4.1_ScenarioSelection'!F12) ->  | H8: =IF(ISBLANK('4.1_ScenarioSelection'!F13),"",'4.1_ScenarioSelection'!F13) ->  | I8: =IF(ISBLANK('4.1_ScenarioSelection'!F14),"",'4.1_ScenarioSelection'!F14) ->  | J8: =IF(ISBLANK('4.1_ScenarioSelection'!F15),"",'4.1_ScenarioSelection'!F15) ->  | K8: =IF(ISBLANK('4.1_ScenarioSelection'!F16),"",'4.1_ScenarioSelection'!F16) ->  | L8: =IF(ISBLANK('4.1_ScenarioSelection'!F17),"",'4.1_ScenarioSelection'!F17) ->  | M8: =IF(ISBLANK('4.1_ScenarioSelection'!F18),"",'4.1_ScenarioSelection'!F18) ->  | N8: =IF(ISBLANK('4.1_ScenarioSelection'!F19),"",'4.1_ScenarioSelection'!F19) -> 
C9: =Language_Refs!D245 -> Descriptions | E9: =IF(E$8="","",INDEX('3.2_SavedScenarios'!$E$8:$N$123,MATCH($C9,'3.2_SavedScenarios'!$B$8:$B$123,0),MATCH(E$8,lst_scenario,0))) -> for GCF funding proposal | F9: =IF(F$8="","",INDEX('3.2_SavedScenarios'!$E$8:$N$123,MATCH($C9,'3.2_SavedScenarios'!$B$8:$B$123,0),MATCH(F$8,lst_scenario,0))) -> for GCF funding proposal | G9: =IF(G$8="","",INDEX('3.2_SavedScenarios'!$E$8:$N$123,MATCH($C9,'3.2_SavedScenarios'!$B$8:$B$123,0),MATCH(G$8,lst_scenario,0))) ->  | H9: =IF(H$8="","",INDEX('3.2_SavedScenarios'!$E$8:$N$123,MATCH($C9,'3.2_SavedScenarios'!$B$8:$B$123,0),MATCH(H$8,lst_scenario,0))) ->  | I9: =IF(I$8="","",INDEX('3.2_SavedScenarios'!$E$8:$N$123,MATCH($C9,'3.2_SavedScenarios'!$B$8:$B$123,0),MATCH(I$8,lst_scenario,0))) ->  | J9: =IF(J$8="","",INDEX('3.2_SavedScenarios'!$E$8:$N$123,MATCH($C9,'3.2_SavedScenarios'!$B$8:$B$123,0),MATCH(J$8,lst_scenario,0))) ->  | K9: =IF(K$8="","",INDEX('3.2_SavedScenarios'!$E$8:$N$123,MATCH($C9,'3.2_SavedScenarios'!$B$8:$B$123,0),MATCH(K$8,lst_scenario,0))) ->  | L9: =IF(L$8="","",INDEX('3.2_SavedScenarios'!$E$8:$N$123,MATCH($C9,'3.2_SavedScenarios'!$B$8:$B$123,0),MATCH(L$8,lst_scenario,0))) ->  | M9: =IF(M$8="","",INDEX('3.2_SavedScenarios'!$E$8:$N$123,MATCH($C9,'3.2_SavedScenarios'!$B$8:$B$123,0),MATCH(M$8,lst_scenario,0))) ->  | N9: =IF(N$8="","",INDEX('3.2_SavedScenarios'!$E$8:$N$123,MATCH($C9,'3.2_SavedScenarios'!$B$8:$B$123,0),MATCH(N$8,lst_scenario,0))) -> 
C10: =Language_Refs!D246 -> Debit and Equity Proceeds Chart
C11: =Language_Refs!D166 -> METRICS
C12: =Language_Refs!D247 -> Total Investment | E12: =IF(E$8="","",INDEX('3.2_SavedScenarios'!$E$124:$N$135,MATCH($C12,'3.2_SavedScenarios'!$B$124:$B$135,0),MATCH(E$8,lst_scenario,0))) -> 47900000 | F12: =IF(F$8="","",INDEX('3.2_SavedScenarios'!$E$124:$N$135,MATCH($C12,'3.2_SavedScenarios'!$B$124:$B$135,0),MATCH(F$8,lst_scenario,0))) -> 30100000 | G12: =IF(G$8="","",INDEX('3.2_SavedScenarios'!$E$124:$N$135,MATCH($C12,'3.2_SavedScenarios'!$B$124:$B$135,0),MATCH(G$8,lst_scenario,0))) ->  | H12: =IF(H$8="","",INDEX('3.2_SavedScenarios'!$E$124:$N$135,MATCH($C12,'3.2_SavedScenarios'!$B$124:$B$135,0),MATCH(H$8,lst_scenario,0))) ->  | I12: =IF(I$8="","",INDEX('3.2_SavedScenarios'!$E$124:$N$135,MATCH($C12,'3.2_SavedScenarios'!$B$124:$B$135,0),MATCH(I$8,lst_scenario,0))) ->  | J12: =IF(J$8="","",INDEX('3.2_SavedScenarios'!$E$124:$N$135,MATCH($C12,'3.2_SavedScenarios'!$B$124:$B$135,0),MATCH(J$8,lst_scenario,0))) ->  | K12: =IF(K$8="","",INDEX('3.2_SavedScenarios'!$E$124:$N$135,MATCH($C12,'3.2_SavedScenarios'!$B$124:$B$135,0),MATCH(K$8,lst_scenario,0))) ->  | L12: =IF(L$8="","",INDEX('3.2_SavedScenarios'!$E$124:$N$135,MATCH($C12,'3.2_SavedScenarios'!$B$124:$B$135,0),MATCH(L$8,lst_scenario,0))) ->  | M12: =IF(M$8="","",INDEX('3.2_SavedScenarios'!$E$124:$N$135,MATCH($C12,'3.2_SavedScenarios'!$B$124:$B$135,0),MATCH(M$8,lst_scenario,0))) ->  | N12: =IF(N$8="","",INDEX('3.2_SavedScenarios'!$E$124:$N$135,MATCH($C12,'3.2_SavedScenarios'!$B$124:$B$135,0),MATCH(N$8,lst_scenario,0))) -> 
C13: =Language_Refs!D248 -> Total Revenue | E13: =IF(E$8="","",INDEX('3.2_SavedScenarios'!$E$124:$N$135,MATCH($C13,'3.2_SavedScenarios'!$B$124:$B$135,0),MATCH(E$8,lst_scenario,0))) -> 124600000 | F13: =IF(F$8="","",INDEX('3.2_SavedScenarios'!$E$124:$N$135,MATCH($C13,'3.2_SavedScenarios'!$B$124:$B$135,0),MATCH(F$8,lst_scenario,0))) -> 162600000 | G13: =IF(G$8="","",INDEX('3.2_SavedScenarios'!$E$124:$N$135,MATCH($C13,'3.2_SavedScenarios'!$B$124:$B$135,0),MATCH(G$8,lst_scenario,0))) ->  | H13: =IF(H$8="","",INDEX('3.2_SavedScenarios'!$E$124:$N$135,MATCH($C13,'3.2_SavedScenarios'!$B$124:$B$135,0),MATCH(H$8,lst_scenario,0))) ->  | I13: =IF(I$8="","",INDEX('3.2_SavedScenarios'!$E$124:$N$135,MATCH($C13,'3.2_SavedScenarios'!$B$124:$B$135,0),MATCH(I$8,lst_scenario,0))) ->  | J13: =IF(J$8="","",INDEX('3.2_SavedScenarios'!$E$124:$N$135,MATCH($C13,'3.2_SavedScenarios'!$B$124:$B$135,0),MATCH(J$8,lst_scenario,0))) ->  | K13: =IF(K$8="","",INDEX('3.2_SavedScenarios'!$E$124:$N$135,MATCH($C13,'3.2_SavedScenarios'!$B$124:$B$135,0),MATCH(K$8,lst_scenario,0))) ->  | L13: =IF(L$8="","",INDEX('3.2_SavedScenarios'!$E$124:$N$135,MATCH($C13,'3.2_SavedScenarios'!$B$124:$B$135,0),MATCH(L$8,lst_scenario,0))) ->  | M13: =IF(M$8="","",INDEX('3.2_SavedScenarios'!$E$124:$N$135,MATCH($C13,'3.2_SavedScenarios'!$B$124:$B$135,0),MATCH(M$8,lst_scenario,0))) ->  | N13: =IF(N$8="","",INDEX('3.2_SavedScenarios'!$E$124:$N$135,MATCH($C13,'3.2_SavedScenarios'!$B$124:$B$135,0),MATCH(N$8,lst_scenario,0))) -> 
C14: =Language_Refs!D249 -> Total Electricity Savings | E14: =IF(E$8="","",INDEX('3.2_SavedScenarios'!$E$124:$N$135,MATCH($C14,'3.2_SavedScenarios'!$B$124:$B$135,0),MATCH(E$8,lst_scenario,0))) -> 225.5433047 | F14: =IF(F$8="","",INDEX('3.2_SavedScenarios'!$E$124:$N$135,MATCH($C14,'3.2_SavedScenarios'!$B$124:$B$135,0),MATCH(F$8,lst_scenario,0))) -> 225.5433047 | G14: =IF(G$8="","",INDEX('3.2_SavedScenarios'!$E$124:$N$135,MATCH($C14,'3.2_SavedScenarios'!$B$124:$B$135,0),MATCH(G$8,lst_scenario,0))) ->  | H14: =IF(H$8="","",INDEX('3.2_SavedScenarios'!$E$124:$N$135,MATCH($C14,'3.2_SavedScenarios'!$B$124:$B$135,0),MATCH(H$8,lst_scenario,0))) ->  | I14: =IF(I$8="","",INDEX('3.2_SavedScenarios'!$E$124:$N$135,MATCH($C14,'3.2_SavedScenarios'!$B$124:$B$135,0),MATCH(I$8,lst_scenario,0))) ->  | J14: =IF(J$8="","",INDEX('3.2_SavedScenarios'!$E$124:$N$135,MATCH($C14,'3.2_SavedScenarios'!$B$124:$B$135,0),MATCH(J$8,lst_scenario,0))) ->  | K14: =IF(K$8="","",INDEX('3.2_SavedScenarios'!$E$124:$N$135,MATCH($C14,'3.2_SavedScenarios'!$B$124:$B$135,0),MATCH(K$8,lst_scenario,0))) ->  | L14: =IF(L$8="","",INDEX('3.2_SavedScenarios'!$E$124:$N$135,MATCH($C14,'3.2_SavedScenarios'!$B$124:$B$135,0),MATCH(L$8,lst_scenario,0))) ->  | M14: =IF(M$8="","",INDEX('3.2_SavedScenarios'!$E$124:$N$135,MATCH($C14,'3.2_SavedScenarios'!$B$124:$B$135,0),MATCH(M$8,lst_scenario,0))) ->  | N14: =IF(N$8="","",INDEX('3.2_SavedScenarios'!$E$124:$N$135,MATCH($C14,'3.2_SavedScenarios'!$B$124:$B$135,0),MATCH(N$8,lst_scenario,0))) -> 
C15: =Language_Refs!D250 -> Total GHG Reduction | E15: =IF(E$8="","",INDEX('3.2_SavedScenarios'!$E$124:$N$135,MATCH($C15,'3.2_SavedScenarios'!$B$124:$B$135,0),MATCH(E$8,lst_scenario,0))) -> 99239.05406 | F15: =IF(F$8="","",INDEX('3.2_SavedScenarios'!$E$124:$N$135,MATCH($C15,'3.2_SavedScenarios'!$B$124:$B$135,0),MATCH(F$8,lst_scenario,0))) -> 99239.05406 | G15: =IF(G$8="","",INDEX('3.2_SavedScenarios'!$E$124:$N$135,MATCH($C15,'3.2_SavedScenarios'!$B$124:$B$135,0),MATCH(G$8,lst_scenario,0))) ->  | H15: =IF(H$8="","",INDEX('3.2_SavedScenarios'!$E$124:$N$135,MATCH($C15,'3.2_SavedScenarios'!$B$124:$B$135,0),MATCH(H$8,lst_scenario,0))) ->  | I15: =IF(I$8="","",INDEX('3.2_SavedScenarios'!$E$124:$N$135,MATCH($C15,'3.2_SavedScenarios'!$B$124:$B$135,0),MATCH(I$8,lst_scenario,0))) ->  | J15: =IF(J$8="","",INDEX('3.2_SavedScenarios'!$E$124:$N$135,MATCH($C15,'3.2_SavedScenarios'!$B$124:$B$135,0),MATCH(J$8,lst_scenario,0))) ->  | K15: =IF(K$8="","",INDEX('3.2_SavedScenarios'!$E$124:$N$135,MATCH($C15,'3.2_SavedScenarios'!$B$124:$B$135,0),MATCH(K$8,lst_scenario,0))) ->  | L15: =IF(L$8="","",INDEX('3.2_SavedScenarios'!$E$124:$N$135,MATCH($C15,'3.2_SavedScenarios'!$B$124:$B$135,0),MATCH(L$8,lst_scenario,0))) ->  | M15: =IF(M$8="","",INDEX('3.2_SavedScenarios'!$E$124:$N$135,MATCH($C15,'3.2_SavedScenarios'!$B$124:$B$135,0),MATCH(M$8,lst_scenario,0))) ->  | N15: =IF(N$8="","",INDEX('3.2_SavedScenarios'!$E$124:$N$135,MATCH($C15,'3.2_SavedScenarios'!$B$124:$B$135,0),MATCH(N$8,lst_scenario,0))) -> 
C16: =Language_Refs!D167 -> SECONDARY METRICS
C17: =Language_Refs!D251 -> Total NPV | E17: =IF(E$8="","",INDEX('3.2_SavedScenarios'!$E$124:$N$135,MATCH($C17,'3.2_SavedScenarios'!$B$124:$B$135,0),MATCH(E$8,lst_scenario,0))) -> 9100000 | F17: =IF(F$8="","",INDEX('3.2_SavedScenarios'!$E$124:$N$135,MATCH($C17,'3.2_SavedScenarios'!$B$124:$B$135,0),MATCH(F$8,lst_scenario,0))) -> 68100000 | G17: =IF(G$8="","",INDEX('3.2_SavedScenarios'!$E$124:$N$135,MATCH($C17,'3.2_SavedScenarios'!$B$124:$B$135,0),MATCH(G$8,lst_scenario,0))) ->  | H17: =IF(H$8="","",INDEX('3.2_SavedScenarios'!$E$124:$N$135,MATCH($C17,'3.2_SavedScenarios'!$B$124:$B$135,0),MATCH(H$8,lst_scenario,0))) ->  | I17: =IF(I$8="","",INDEX('3.2_SavedScenarios'!$E$124:$N$135,MATCH($C17,'3.2_SavedScenarios'!$B$124:$B$135,0),MATCH(I$8,lst_scenario,0))) ->  | J17: =IF(J$8="","",INDEX('3.2_SavedScenarios'!$E$124:$N$135,MATCH($C17,'3.2_SavedScenarios'!$B$124:$B$135,0),MATCH(J$8,lst_scenario,0))) ->  | K17: =IF(K$8="","",INDEX('3.2_SavedScenarios'!$E$124:$N$135,MATCH($C17,'3.2_SavedScenarios'!$B$124:$B$135,0),MATCH(K$8,lst_scenario,0))) ->  | L17: =IF(L$8="","",INDEX('3.2_SavedScenarios'!$E$124:$N$135,MATCH($C17,'3.2_SavedScenarios'!$B$124:$B$135,0),MATCH(L$8,lst_scenario,0))) ->  | M17: =IF(M$8="","",INDEX('3.2_SavedScenarios'!$E$124:$N$135,MATCH($C17,'3.2_SavedScenarios'!$B$124:$B$135,0),MATCH(M$8,lst_scenario,0))) ->  | N17: =IF(N$8="","",INDEX('3.2_SavedScenarios'!$E$124:$N$135,MATCH($C17,'3.2_SavedScenarios'!$B$124:$B$135,0),MATCH(N$8,lst_scenario,0))) -> 
C18: =Language_Refs!D252 -> IRR | E18: =IF(E$8="","",INDEX('3.2_SavedScenarios'!$E$124:$N$135,MATCH($C18,'3.2_SavedScenarios'!$B$124:$B$135,0),MATCH(E$8,lst_scenario,0))) -> 0.1628094125 | F18: =IF(F$8="","",INDEX('3.2_SavedScenarios'!$E$124:$N$135,MATCH($C18,'3.2_SavedScenarios'!$B$124:$B$135,0),MATCH(F$8,lst_scenario,0))) -> 0.4499187038 | G18: =IF(G$8="","",INDEX('3.2_SavedScenarios'!$E$124:$N$135,MATCH($C18,'3.2_SavedScenarios'!$B$124:$B$135,0),MATCH(G$8,lst_scenario,0))) ->  | H18: =IF(H$8="","",INDEX('3.2_SavedScenarios'!$E$124:$N$135,MATCH($C18,'3.2_SavedScenarios'!$B$124:$B$135,0),MATCH(H$8,lst_scenario,0))) ->  | I18: =IF(I$8="","",INDEX('3.2_SavedScenarios'!$E$124:$N$135,MATCH($C18,'3.2_SavedScenarios'!$B$124:$B$135,0),MATCH(I$8,lst_scenario,0))) ->  | J18: =IF(J$8="","",INDEX('3.2_SavedScenarios'!$E$124:$N$135,MATCH($C18,'3.2_SavedScenarios'!$B$124:$B$135,0),MATCH(J$8,lst_scenario,0))) ->  | K18: =IF(K$8="","",INDEX('3.2_SavedScenarios'!$E$124:$N$135,MATCH($C18,'3.2_SavedScenarios'!$B$124:$B$135,0),MATCH(K$8,lst_scenario,0))) ->  | L18: =IF(L$8="","",INDEX('3.2_SavedScenarios'!$E$124:$N$135,MATCH($C18,'3.2_SavedScenarios'!$B$124:$B$135,0),MATCH(L$8,lst_scenario,0))) ->  | M18: =IF(M$8="","",INDEX('3.2_SavedScenarios'!$E$124:$N$135,MATCH($C18,'3.2_SavedScenarios'!$B$124:$B$135,0),MATCH(M$8,lst_scenario,0))) ->  | N18: =IF(N$8="","",INDEX('3.2_SavedScenarios'!$E$124:$N$135,MATCH($C18,'3.2_SavedScenarios'!$B$124:$B$135,0),MATCH(N$8,lst_scenario,0))) -> 
C19: =Language_Refs!D253 -> Payback period (non-discounted) | E19: =IF(E$8="","",INDEX('3.2_SavedScenarios'!$E$124:$N$135,MATCH($C19,'3.2_SavedScenarios'!$B$124:$B$135,0),MATCH(E$8,lst_scenario,0))) -> 4.997592295 | F19: =IF(F$8="","",INDEX('3.2_SavedScenarios'!$E$124:$N$135,MATCH($C19,'3.2_SavedScenarios'!$B$124:$B$135,0),MATCH(F$8,lst_scenario,0))) -> 2.406519065 | G19: =IF(G$8="","",INDEX('3.2_SavedScenarios'!$E$124:$N$135,MATCH($C19,'3.2_SavedScenarios'!$B$124:$B$135,0),MATCH(G$8,lst_scenario,0))) ->  | H19: =IF(H$8="","",INDEX('3.2_SavedScenarios'!$E$124:$N$135,MATCH($C19,'3.2_SavedScenarios'!$B$124:$B$135,0),MATCH(H$8,lst_scenario,0))) ->  | I19: =IF(I$8="","",INDEX('3.2_SavedScenarios'!$E$124:$N$135,MATCH($C19,'3.2_SavedScenarios'!$B$124:$B$135,0),MATCH(I$8,lst_scenario,0))) ->  | J19: =IF(J$8="","",INDEX('3.2_SavedScenarios'!$E$124:$N$135,MATCH($C19,'3.2_SavedScenarios'!$B$124:$B$135,0),MATCH(J$8,lst_scenario,0))) ->  | K19: =IF(K$8="","",INDEX('3.2_SavedScenarios'!$E$124:$N$135,MATCH($C19,'3.2_SavedScenarios'!$B$124:$B$135,0),MATCH(K$8,lst_scenario,0))) ->  | L19: =IF(L$8="","",INDEX('3.2_SavedScenarios'!$E$124:$N$135,MATCH($C19,'3.2_SavedScenarios'!$B$124:$B$135,0),MATCH(L$8,lst_scenario,0))) ->  | M19: =IF(M$8="","",INDEX('3.2_SavedScenarios'!$E$124:$N$135,MATCH($C19,'3.2_SavedScenarios'!$B$124:$B$135,0),MATCH(M$8,lst_scenario,0))) ->  | N19: =IF(N$8="","",INDEX('3.2_SavedScenarios'!$E$124:$N$135,MATCH($C19,'3.2_SavedScenarios'!$B$124:$B$135,0),MATCH(N$8,lst_scenario,0))) -> 
C20: =Language_Refs!D254 -> RoI | E20: =IF(E$8="","",INDEX('3.2_SavedScenarios'!$E$124:$N$135,MATCH($C20,'3.2_SavedScenarios'!$B$124:$B$135,0),MATCH(E$8,lst_scenario,0))) -> 1.60125261 | F20: =IF(F$8="","",INDEX('3.2_SavedScenarios'!$E$124:$N$135,MATCH($C20,'3.2_SavedScenarios'!$B$124:$B$135,0),MATCH(F$8,lst_scenario,0))) -> 4.401993355 | G20: =IF(G$8="","",INDEX('3.2_SavedScenarios'!$E$124:$N$135,MATCH($C20,'3.2_SavedScenarios'!$B$124:$B$135,0),MATCH(G$8,lst_scenario,0))) ->  | H20: =IF(H$8="","",INDEX('3.2_SavedScenarios'!$E$124:$N$135,MATCH($C20,'3.2_SavedScenarios'!$B$124:$B$135,0),MATCH(H$8,lst_scenario,0))) ->  | I20: =IF(I$8="","",INDEX('3.2_SavedScenarios'!$E$124:$N$135,MATCH($C20,'3.2_SavedScenarios'!$B$124:$B$135,0),MATCH(I$8,lst_scenario,0))) ->  | J20: =IF(J$8="","",INDEX('3.2_SavedScenarios'!$E$124:$N$135,MATCH($C20,'3.2_SavedScenarios'!$B$124:$B$135,0),MATCH(J$8,lst_scenario,0))) ->  | K20: =IF(K$8="","",INDEX('3.2_SavedScenarios'!$E$124:$N$135,MATCH($C20,'3.2_SavedScenarios'!$B$124:$B$135,0),MATCH(K$8,lst_scenario,0))) ->  | L20: =IF(L$8="","",INDEX('3.2_SavedScenarios'!$E$124:$N$135,MATCH($C20,'3.2_SavedScenarios'!$B$124:$B$135,0),MATCH(L$8,lst_scenario,0))) ->  | M20: =IF(M$8="","",INDEX('3.2_SavedScenarios'!$E$124:$N$135,MATCH($C20,'3.2_SavedScenarios'!$B$124:$B$135,0),MATCH(M$8,lst_scenario,0))) ->  | N20: =IF(N$8="","",INDEX('3.2_SavedScenarios'!$E$124:$N$135,MATCH($C20,'3.2_SavedScenarios'!$B$124:$B$135,0),MATCH(N$8,lst_scenario,0))) -> 
C21: =Language_Refs!D255 -> WACC (net) | E21: =IF(E$8="","",INDEX('3.2_SavedScenarios'!$E$124:$N$135,MATCH($C21,'3.2_SavedScenarios'!$B$124:$B$135,0),MATCH(E$8,lst_scenario,0))) -> 0.1092 | F21: =IF(F$8="","",INDEX('3.2_SavedScenarios'!$E$124:$N$135,MATCH($C21,'3.2_SavedScenarios'!$B$124:$B$135,0),MATCH(F$8,lst_scenario,0))) -> 0.0325 | G21: =IF(G$8="","",INDEX('3.2_SavedScenarios'!$E$124:$N$135,MATCH($C21,'3.2_SavedScenarios'!$B$124:$B$135,0),MATCH(G$8,lst_scenario,0))) ->  | H21: =IF(H$8="","",INDEX('3.2_SavedScenarios'!$E$124:$N$135,MATCH($C21,'3.2_SavedScenarios'!$B$124:$B$135,0),MATCH(H$8,lst_scenario,0))) ->  | I21: =IF(I$8="","",INDEX('3.2_SavedScenarios'!$E$124:$N$135,MATCH($C21,'3.2_SavedScenarios'!$B$124:$B$135,0),MATCH(I$8,lst_scenario,0))) ->  | J21: =IF(J$8="","",INDEX('3.2_SavedScenarios'!$E$124:$N$135,MATCH($C21,'3.2_SavedScenarios'!$B$124:$B$135,0),MATCH(J$8,lst_scenario,0))) ->  | K21: =IF(K$8="","",INDEX('3.2_SavedScenarios'!$E$124:$N$135,MATCH($C21,'3.2_SavedScenarios'!$B$124:$B$135,0),MATCH(K$8,lst_scenario,0))) ->  | L21: =IF(L$8="","",INDEX('3.2_SavedScenarios'!$E$124:$N$135,MATCH($C21,'3.2_SavedScenarios'!$B$124:$B$135,0),MATCH(L$8,lst_scenario,0))) ->  | M21: =IF(M$8="","",INDEX('3.2_SavedScenarios'!$E$124:$N$135,MATCH($C21,'3.2_SavedScenarios'!$B$124:$B$135,0),MATCH(M$8,lst_scenario,0))) ->  | N21: =IF(N$8="","",INDEX('3.2_SavedScenarios'!$E$124:$N$135,MATCH($C21,'3.2_SavedScenarios'!$B$124:$B$135,0),MATCH(N$8,lst_scenario,0))) -> 
C22: =Language_Refs!D256 -> Min DSCR | E22: =IF(E$8="","",INDEX('3.2_SavedScenarios'!$E$124:$N$135,MATCH($C22,'3.2_SavedScenarios'!$B$124:$B$135,0),MATCH(E$8,lst_scenario,0))) -> 1.431883755 | F22: =IF(F$8="","",INDEX('3.2_SavedScenarios'!$E$124:$N$135,MATCH($C22,'3.2_SavedScenarios'!$B$124:$B$135,0),MATCH(F$8,lst_scenario,0))) -> NA | G22: =IF(G$8="","",INDEX('3.2_SavedScenarios'!$E$124:$N$135,MATCH($C22,'3.2_SavedScenarios'!$B$124:$B$135,0),MATCH(G$8,lst_scenario,0))) ->  | H22: =IF(H$8="","",INDEX('3.2_SavedScenarios'!$E$124:$N$135,MATCH($C22,'3.2_SavedScenarios'!$B$124:$B$135,0),MATCH(H$8,lst_scenario,0))) ->  | I22: =IF(I$8="","",INDEX('3.2_SavedScenarios'!$E$124:$N$135,MATCH($C22,'3.2_SavedScenarios'!$B$124:$B$135,0),MATCH(I$8,lst_scenario,0))) ->  | J22: =IF(J$8="","",INDEX('3.2_SavedScenarios'!$E$124:$N$135,MATCH($C22,'3.2_SavedScenarios'!$B$124:$B$135,0),MATCH(J$8,lst_scenario,0))) ->  | K22: =IF(K$8="","",INDEX('3.2_SavedScenarios'!$E$124:$N$135,MATCH($C22,'3.2_SavedScenarios'!$B$124:$B$135,0),MATCH(K$8,lst_scenario,0))) ->  | L22: =IF(L$8="","",INDEX('3.2_SavedScenarios'!$E$124:$N$135,MATCH($C22,'3.2_SavedScenarios'!$B$124:$B$135,0),MATCH(L$8,lst_scenario,0))) ->  | M22: =IF(M$8="","",INDEX('3.2_SavedScenarios'!$E$124:$N$135,MATCH($C22,'3.2_SavedScenarios'!$B$124:$B$135,0),MATCH(M$8,lst_scenario,0))) ->  | N22: =IF(N$8="","",INDEX('3.2_SavedScenarios'!$E$124:$N$135,MATCH($C22,'3.2_SavedScenarios'!$B$124:$B$135,0),MATCH(N$8,lst_scenario,0))) -> 
C23: =Language_Refs!D257 -> KEY ASSUMPTIONS
C24: ='3.1_ProjectDesign'!D11 -> Total luminaires in city | E24: =IF(E$8="","",INDEX('3.2_SavedScenarios'!$E$8:$N$123,MATCH($C24,'3.2_SavedScenarios'!$B$8:$B$123,0),MATCH(E$8,lst_scenario,0))) -> 42500 | F24: =IF(F$8="","",INDEX('3.2_SavedScenarios'!$E$8:$N$123,MATCH($C24,'3.2_SavedScenarios'!$B$8:$B$123,0),MATCH(F$8,lst_scenario,0))) -> 42500 | G24: =IF(G$8="","",INDEX('3.2_SavedScenarios'!$E$8:$N$123,MATCH($C24,'3.2_SavedScenarios'!$B$8:$B$123,0),MATCH(G$8,lst_scenario,0))) ->  | H24: =IF(H$8="","",INDEX('3.2_SavedScenarios'!$E$8:$N$123,MATCH($C24,'3.2_SavedScenarios'!$B$8:$B$123,0),MATCH(H$8,lst_scenario,0))) ->  | I24: =IF(I$8="","",INDEX('3.2_SavedScenarios'!$E$8:$N$123,MATCH($C24,'3.2_SavedScenarios'!$B$8:$B$123,0),MATCH(I$8,lst_scenario,0))) ->  | J24: =IF(J$8="","",INDEX('3.2_SavedScenarios'!$E$8:$N$123,MATCH($C24,'3.2_SavedScenarios'!$B$8:$B$123,0),MATCH(J$8,lst_scenario,0))) ->  | K24: =IF(K$8="","",INDEX('3.2_SavedScenarios'!$E$8:$N$123,MATCH($C24,'3.2_SavedScenarios'!$B$8:$B$123,0),MATCH(K$8,lst_scenario,0))) ->  | L24: =IF(L$8="","",INDEX('3.2_SavedScenarios'!$E$8:$N$123,MATCH($C24,'3.2_SavedScenarios'!$B$8:$B$123,0),MATCH(L$8,lst_scenario,0))) ->  | M24: =IF(M$8="","",INDEX('3.2_SavedScenarios'!$E$8:$N$123,MATCH($C24,'3.2_SavedScenarios'!$B$8:$B$123,0),MATCH(M$8,lst_scenario,0))) ->  | N24: =IF(N$8="","",INDEX('3.2_SavedScenarios'!$E$8:$N$123,MATCH($C24,'3.2_SavedScenarios'!$B$8:$B$123,0),MATCH(N$8,lst_scenario,0))) -> 
C25: ='3.1_ProjectDesign'!D13 -> % luminaires replaced | E25: =IF(E$8="","",INDEX('3.2_SavedScenarios'!$E$8:$N$123,MATCH($C25,'3.2_SavedScenarios'!$B$8:$B$123,0),MATCH(E$8,lst_scenario,0))) -> 1 | F25: =IF(F$8="","",INDEX('3.2_SavedScenarios'!$E$8:$N$123,MATCH($C25,'3.2_SavedScenarios'!$B$8:$B$123,0),MATCH(F$8,lst_scenario,0))) -> 1 | G25: =IF(G$8="","",INDEX('3.2_SavedScenarios'!$E$8:$N$123,MATCH($C25,'3.2_SavedScenarios'!$B$8:$B$123,0),MATCH(G$8,lst_scenario,0))) ->  | H25: =IF(H$8="","",INDEX('3.2_SavedScenarios'!$E$8:$N$123,MATCH($C25,'3.2_SavedScenarios'!$B$8:$B$123,0),MATCH(H$8,lst_scenario,0))) ->  | I25: =IF(I$8="","",INDEX('3.2_SavedScenarios'!$E$8:$N$123,MATCH($C25,'3.2_SavedScenarios'!$B$8:$B$123,0),MATCH(I$8,lst_scenario,0))) ->  | J25: =IF(J$8="","",INDEX('3.2_SavedScenarios'!$E$8:$N$123,MATCH($C25,'3.2_SavedScenarios'!$B$8:$B$123,0),MATCH(J$8,lst_scenario,0))) ->  | K25: =IF(K$8="","",INDEX('3.2_SavedScenarios'!$E$8:$N$123,MATCH($C25,'3.2_SavedScenarios'!$B$8:$B$123,0),MATCH(K$8,lst_scenario,0))) ->  | L25: =IF(L$8="","",INDEX('3.2_SavedScenarios'!$E$8:$N$123,MATCH($C25,'3.2_SavedScenarios'!$B$8:$B$123,0),MATCH(L$8,lst_scenario,0))) ->  | M25: =IF(M$8="","",INDEX('3.2_SavedScenarios'!$E$8:$N$123,MATCH($C25,'3.2_SavedScenarios'!$B$8:$B$123,0),MATCH(M$8,lst_scenario,0))) ->  | N25: =IF(N$8="","",INDEX('3.2_SavedScenarios'!$E$8:$N$123,MATCH($C25,'3.2_SavedScenarios'!$B$8:$B$123,0),MATCH(N$8,lst_scenario,0))) -> 
C26: ='3.1_ProjectDesign'!D15 -> Total luminaires replaced | E26: =IF(E$8="","",INDEX('3.2_SavedScenarios'!$E$8:$N$123,MATCH($C26,'3.2_SavedScenarios'!$B$8:$B$123,0),MATCH(E$8,lst_scenario,0))) -> 42500 | F26: =IF(F$8="","",INDEX('3.2_SavedScenarios'!$E$8:$N$123,MATCH($C26,'3.2_SavedScenarios'!$B$8:$B$123,0),MATCH(F$8,lst_scenario,0))) -> 42500 | G26: =IF(G$8="","",INDEX('3.2_SavedScenarios'!$E$8:$N$123,MATCH($C26,'3.2_SavedScenarios'!$B$8:$B$123,0),MATCH(G$8,lst_scenario,0))) ->  | H26: =IF(H$8="","",INDEX('3.2_SavedScenarios'!$E$8:$N$123,MATCH($C26,'3.2_SavedScenarios'!$B$8:$B$123,0),MATCH(H$8,lst_scenario,0))) ->  | I26: =IF(I$8="","",INDEX('3.2_SavedScenarios'!$E$8:$N$123,MATCH($C26,'3.2_SavedScenarios'!$B$8:$B$123,0),MATCH(I$8,lst_scenario,0))) ->  | J26: =IF(J$8="","",INDEX('3.2_SavedScenarios'!$E$8:$N$123,MATCH($C26,'3.2_SavedScenarios'!$B$8:$B$123,0),MATCH(J$8,lst_scenario,0))) ->  | K26: =IF(K$8="","",INDEX('3.2_SavedScenarios'!$E$8:$N$123,MATCH($C26,'3.2_SavedScenarios'!$B$8:$B$123,0),MATCH(K$8,lst_scenario,0))) ->  | L26: =IF(L$8="","",INDEX('3.2_SavedScenarios'!$E$8:$N$123,MATCH($C26,'3.2_SavedScenarios'!$B$8:$B$123,0),MATCH(L$8,lst_scenario,0))) ->  | M26: =IF(M$8="","",INDEX('3.2_SavedScenarios'!$E$8:$N$123,MATCH($C26,'3.2_SavedScenarios'!$B$8:$B$123,0),MATCH(M$8,lst_scenario,0))) ->  | N26: =IF(N$8="","",INDEX('3.2_SavedScenarios'!$E$8:$N$123,MATCH($C26,'3.2_SavedScenarios'!$B$8:$B$123,0),MATCH(N$8,lst_scenario,0))) -> 
C27: ='3.1_ProjectDesign'!D17 -> Years to implement project | E27: =IF(E$8="","",INDEX('3.2_SavedScenarios'!$E$8:$N$123,MATCH($C27,'3.2_SavedScenarios'!$B$8:$B$123,0),MATCH(E$8,lst_scenario,0))) -> 2 | F27: =IF(F$8="","",INDEX('3.2_SavedScenarios'!$E$8:$N$123,MATCH($C27,'3.2_SavedScenarios'!$B$8:$B$123,0),MATCH(F$8,lst_scenario,0))) -> 2 | G27: =IF(G$8="","",INDEX('3.2_SavedScenarios'!$E$8:$N$123,MATCH($C27,'3.2_SavedScenarios'!$B$8:$B$123,0),MATCH(G$8,lst_scenario,0))) ->  | H27: =IF(H$8="","",INDEX('3.2_SavedScenarios'!$E$8:$N$123,MATCH($C27,'3.2_SavedScenarios'!$B$8:$B$123,0),MATCH(H$8,lst_scenario,0))) ->  | I27: =IF(I$8="","",INDEX('3.2_SavedScenarios'!$E$8:$N$123,MATCH($C27,'3.2_SavedScenarios'!$B$8:$B$123,0),MATCH(I$8,lst_scenario,0))) ->  | J27: =IF(J$8="","",INDEX('3.2_SavedScenarios'!$E$8:$N$123,MATCH($C27,'3.2_SavedScenarios'!$B$8:$B$123,0),MATCH(J$8,lst_scenario,0))) ->  | K27: =IF(K$8="","",INDEX('3.2_SavedScenarios'!$E$8:$N$123,MATCH($C27,'3.2_SavedScenarios'!$B$8:$B$123,0),MATCH(K$8,lst_scenario,0))) ->  | L27: =IF(L$8="","",INDEX('3.2_SavedScenarios'!$E$8:$N$123,MATCH($C27,'3.2_SavedScenarios'!$B$8:$B$123,0),MATCH(L$8,lst_scenario,0))) ->  | M27: =IF(M$8="","",INDEX('3.2_SavedScenarios'!$E$8:$N$123,MATCH($C27,'3.2_SavedScenarios'!$B$8:$B$123,0),MATCH(M$8,lst_scenario,0))) ->  | N27: =IF(N$8="","",INDEX('3.2_SavedScenarios'!$E$8:$N$123,MATCH($C27,'3.2_SavedScenarios'!$B$8:$B$123,0),MATCH(N$8,lst_scenario,0))) -> 
C28: ='3.1_ProjectDesign'!D19 -> Starting year of project | E28: =IF(E$8="","",INDEX('3.2_SavedScenarios'!$E$8:$N$123,MATCH($C28,'3.2_SavedScenarios'!$B$8:$B$123,0),MATCH(E$8,lst_scenario,0))) -> 2019 | F28: =IF(F$8="","",INDEX('3.2_SavedScenarios'!$E$8:$N$123,MATCH($C28,'3.2_SavedScenarios'!$B$8:$B$123,0),MATCH(F$8,lst_scenario,0))) -> 2019 | G28: =IF(G$8="","",INDEX('3.2_SavedScenarios'!$E$8:$N$123,MATCH($C28,'3.2_SavedScenarios'!$B$8:$B$123,0),MATCH(G$8,lst_scenario,0))) ->  | H28: =IF(H$8="","",INDEX('3.2_SavedScenarios'!$E$8:$N$123,MATCH($C28,'3.2_SavedScenarios'!$B$8:$B$123,0),MATCH(H$8,lst_scenario,0))) ->  | I28: =IF(I$8="","",INDEX('3.2_SavedScenarios'!$E$8:$N$123,MATCH($C28,'3.2_SavedScenarios'!$B$8:$B$123,0),MATCH(I$8,lst_scenario,0))) ->  | J28: =IF(J$8="","",INDEX('3.2_SavedScenarios'!$E$8:$N$123,MATCH($C28,'3.2_SavedScenarios'!$B$8:$B$123,0),MATCH(J$8,lst_scenario,0))) ->  | K28: =IF(K$8="","",INDEX('3.2_SavedScenarios'!$E$8:$N$123,MATCH($C28,'3.2_SavedScenarios'!$B$8:$B$123,0),MATCH(K$8,lst_scenario,0))) ->  | L28: =IF(L$8="","",INDEX('3.2_SavedScenarios'!$E$8:$N$123,MATCH($C28,'3.2_SavedScenarios'!$B$8:$B$123,0),MATCH(L$8,lst_scenario,0))) ->  | M28: =IF(M$8="","",INDEX('3.2_SavedScenarios'!$E$8:$N$123,MATCH($C28,'3.2_SavedScenarios'!$B$8:$B$123,0),MATCH(M$8,lst_scenario,0))) ->  | N28: =IF(N$8="","",INDEX('3.2_SavedScenarios'!$E$8:$N$123,MATCH($C28,'3.2_SavedScenarios'!$B$8:$B$123,0),MATCH(N$8,lst_scenario,0))) -> 
C29: ='3.1_ProjectDesign'!D21 -> Period of analysis | E29: =IF(E$8="","",INDEX('3.2_SavedScenarios'!$E$8:$N$123,MATCH($C29,'3.2_SavedScenarios'!$B$8:$B$123,0),MATCH(E$8,lst_scenario,0))) -> 13 | F29: =IF(F$8="","",INDEX('3.2_SavedScenarios'!$E$8:$N$123,MATCH($C29,'3.2_SavedScenarios'!$B$8:$B$123,0),MATCH(F$8,lst_scenario,0))) -> 13 | G29: =IF(G$8="","",INDEX('3.2_SavedScenarios'!$E$8:$N$123,MATCH($C29,'3.2_SavedScenarios'!$B$8:$B$123,0),MATCH(G$8,lst_scenario,0))) ->  | H29: =IF(H$8="","",INDEX('3.2_SavedScenarios'!$E$8:$N$123,MATCH($C29,'3.2_SavedScenarios'!$B$8:$B$123,0),MATCH(H$8,lst_scenario,0))) ->  | I29: =IF(I$8="","",INDEX('3.2_SavedScenarios'!$E$8:$N$123,MATCH($C29,'3.2_SavedScenarios'!$B$8:$B$123,0),MATCH(I$8,lst_scenario,0))) ->  | J29: =IF(J$8="","",INDEX('3.2_SavedScenarios'!$E$8:$N$123,MATCH($C29,'3.2_SavedScenarios'!$B$8:$B$123,0),MATCH(J$8,lst_scenario,0))) ->  | K29: =IF(K$8="","",INDEX('3.2_SavedScenarios'!$E$8:$N$123,MATCH($C29,'3.2_SavedScenarios'!$B$8:$B$123,0),MATCH(K$8,lst_scenario,0))) ->  | L29: =IF(L$8="","",INDEX('3.2_SavedScenarios'!$E$8:$N$123,MATCH($C29,'3.2_SavedScenarios'!$B$8:$B$123,0),MATCH(L$8,lst_scenario,0))) ->  | M29: =IF(M$8="","",INDEX('3.2_SavedScenarios'!$E$8:$N$123,MATCH($C29,'3.2_SavedScenarios'!$B$8:$B$123,0),MATCH(M$8,lst_scenario,0))) ->  | N29: =IF(N$8="","",INDEX('3.2_SavedScenarios'!$E$8:$N$123,MATCH($C29,'3.2_SavedScenarios'!$B$8:$B$123,0),MATCH(N$8,lst_scenario,0))) -> 
C30: ='3.1_ProjectDesign'!D23 -> Include smart system? | E30: =IF(E$8="","",INDEX('3.2_SavedScenarios'!$E$8:$N$123,MATCH($C30,'3.2_SavedScenarios'!$B$8:$B$123,0),MATCH(E$8,lst_scenario,0))) -> Y | F30: =IF(F$8="","",INDEX('3.2_SavedScenarios'!$E$8:$N$123,MATCH($C30,'3.2_SavedScenarios'!$B$8:$B$123,0),MATCH(F$8,lst_scenario,0))) -> Y | G30: =IF(G$8="","",INDEX('3.2_SavedScenarios'!$E$8:$N$123,MATCH($C30,'3.2_SavedScenarios'!$B$8:$B$123,0),MATCH(G$8,lst_scenario,0))) ->  | H30: =IF(H$8="","",INDEX('3.2_SavedScenarios'!$E$8:$N$123,MATCH($C30,'3.2_SavedScenarios'!$B$8:$B$123,0),MATCH(H$8,lst_scenario,0))) ->  | I30: =IF(I$8="","",INDEX('3.2_SavedScenarios'!$E$8:$N$123,MATCH($C30,'3.2_SavedScenarios'!$B$8:$B$123,0),MATCH(I$8,lst_scenario,0))) ->  | J30: =IF(J$8="","",INDEX('3.2_SavedScenarios'!$E$8:$N$123,MATCH($C30,'3.2_SavedScenarios'!$B$8:$B$123,0),MATCH(J$8,lst_scenario,0))) ->  | K30: =IF(K$8="","",INDEX('3.2_SavedScenarios'!$E$8:$N$123,MATCH($C30,'3.2_SavedScenarios'!$B$8:$B$123,0),MATCH(K$8,lst_scenario,0))) ->  | L30: =IF(L$8="","",INDEX('3.2_SavedScenarios'!$E$8:$N$123,MATCH($C30,'3.2_SavedScenarios'!$B$8:$B$123,0),MATCH(L$8,lst_scenario,0))) ->  | M30: =IF(M$8="","",INDEX('3.2_SavedScenarios'!$E$8:$N$123,MATCH($C30,'3.2_SavedScenarios'!$B$8:$B$123,0),MATCH(M$8,lst_scenario,0))) ->  | N30: =IF(N$8="","",INDEX('3.2_SavedScenarios'!$E$8:$N$123,MATCH($C30,'3.2_SavedScenarios'!$B$8:$B$123,0),MATCH(N$8,lst_scenario,0))) -> 
C31: ='3.1_ProjectDesign'!D25 -> Dimming hours per day | E31: =IF(E$8="","",INDEX('3.2_SavedScenarios'!$E$8:$N$123,MATCH($C31,'3.2_SavedScenarios'!$B$8:$B$123,0),MATCH(E$8,lst_scenario,0))) -> 5 | F31: =IF(F$8="","",INDEX('3.2_SavedScenarios'!$E$8:$N$123,MATCH($C31,'3.2_SavedScenarios'!$B$8:$B$123,0),MATCH(F$8,lst_scenario,0))) -> 5 | G31: =IF(G$8="","",INDEX('3.2_SavedScenarios'!$E$8:$N$123,MATCH($C31,'3.2_SavedScenarios'!$B$8:$B$123,0),MATCH(G$8,lst_scenario,0))) ->  | H31: =IF(H$8="","",INDEX('3.2_SavedScenarios'!$E$8:$N$123,MATCH($C31,'3.2_SavedScenarios'!$B$8:$B$123,0),MATCH(H$8,lst_scenario,0))) ->  | I31: =IF(I$8="","",INDEX('3.2_SavedScenarios'!$E$8:$N$123,MATCH($C31,'3.2_SavedScenarios'!$B$8:$B$123,0),MATCH(I$8,lst_scenario,0))) ->  | J31: =IF(J$8="","",INDEX('3.2_SavedScenarios'!$E$8:$N$123,MATCH($C31,'3.2_SavedScenarios'!$B$8:$B$123,0),MATCH(J$8,lst_scenario,0))) ->  | K31: =IF(K$8="","",INDEX('3.2_SavedScenarios'!$E$8:$N$123,MATCH($C31,'3.2_SavedScenarios'!$B$8:$B$123,0),MATCH(K$8,lst_scenario,0))) ->  | L31: =IF(L$8="","",INDEX('3.2_SavedScenarios'!$E$8:$N$123,MATCH($C31,'3.2_SavedScenarios'!$B$8:$B$123,0),MATCH(L$8,lst_scenario,0))) ->  | M31: =IF(M$8="","",INDEX('3.2_SavedScenarios'!$E$8:$N$123,MATCH($C31,'3.2_SavedScenarios'!$B$8:$B$123,0),MATCH(M$8,lst_scenario,0))) ->  | N31: =IF(N$8="","",INDEX('3.2_SavedScenarios'!$E$8:$N$123,MATCH($C31,'3.2_SavedScenarios'!$B$8:$B$123,0),MATCH(N$8,lst_scenario,0))) -> 
C32: ='3.1_ProjectDesign'!D27 -> Include manufacture warranty | E32: =IF(E$8="","",INDEX('3.2_SavedScenarios'!$E$8:$N$123,MATCH($C32,'3.2_SavedScenarios'!$B$8:$B$123,0),MATCH(E$8,lst_scenario,0))) -> Y | F32: =IF(F$8="","",INDEX('3.2_SavedScenarios'!$E$8:$N$123,MATCH($C32,'3.2_SavedScenarios'!$B$8:$B$123,0),MATCH(F$8,lst_scenario,0))) -> Y | G32: =IF(G$8="","",INDEX('3.2_SavedScenarios'!$E$8:$N$123,MATCH($C32,'3.2_SavedScenarios'!$B$8:$B$123,0),MATCH(G$8,lst_scenario,0))) ->  | H32: =IF(H$8="","",INDEX('3.2_SavedScenarios'!$E$8:$N$123,MATCH($C32,'3.2_SavedScenarios'!$B$8:$B$123,0),MATCH(H$8,lst_scenario,0))) ->  | I32: =IF(I$8="","",INDEX('3.2_SavedScenarios'!$E$8:$N$123,MATCH($C32,'3.2_SavedScenarios'!$B$8:$B$123,0),MATCH(I$8,lst_scenario,0))) ->  | J32: =IF(J$8="","",INDEX('3.2_SavedScenarios'!$E$8:$N$123,MATCH($C32,'3.2_SavedScenarios'!$B$8:$B$123,0),MATCH(J$8,lst_scenario,0))) ->  | K32: =IF(K$8="","",INDEX('3.2_SavedScenarios'!$E$8:$N$123,MATCH($C32,'3.2_SavedScenarios'!$B$8:$B$123,0),MATCH(K$8,lst_scenario,0))) ->  | L32: =IF(L$8="","",INDEX('3.2_SavedScenarios'!$E$8:$N$123,MATCH($C32,'3.2_SavedScenarios'!$B$8:$B$123,0),MATCH(L$8,lst_scenario,0))) ->  | M32: =IF(M$8="","",INDEX('3.2_SavedScenarios'!$E$8:$N$123,MATCH($C32,'3.2_SavedScenarios'!$B$8:$B$123,0),MATCH(M$8,lst_scenario,0))) ->  | N32: =IF(N$8="","",INDEX('3.2_SavedScenarios'!$E$8:$N$123,MATCH($C32,'3.2_SavedScenarios'!$B$8:$B$123,0),MATCH(N$8,lst_scenario,0))) -> 
C33: ='3.1_ProjectDesign'!D29 -> Manufacture warranty duration | E33: =IF(E$8="","",INDEX('3.2_SavedScenarios'!$E$8:$N$123,MATCH($C33,'3.2_SavedScenarios'!$B$8:$B$123,0),MATCH(E$8,lst_scenario,0))) -> 10 | F33: =IF(F$8="","",INDEX('3.2_SavedScenarios'!$E$8:$N$123,MATCH($C33,'3.2_SavedScenarios'!$B$8:$B$123,0),MATCH(F$8,lst_scenario,0))) -> 10 | G33: =IF(G$8="","",INDEX('3.2_SavedScenarios'!$E$8:$N$123,MATCH($C33,'3.2_SavedScenarios'!$B$8:$B$123,0),MATCH(G$8,lst_scenario,0))) ->  | H33: =IF(H$8="","",INDEX('3.2_SavedScenarios'!$E$8:$N$123,MATCH($C33,'3.2_SavedScenarios'!$B$8:$B$123,0),MATCH(H$8,lst_scenario,0))) ->  | I33: =IF(I$8="","",INDEX('3.2_SavedScenarios'!$E$8:$N$123,MATCH($C33,'3.2_SavedScenarios'!$B$8:$B$123,0),MATCH(I$8,lst_scenario,0))) ->  | J33: =IF(J$8="","",INDEX('3.2_SavedScenarios'!$E$8:$N$123,MATCH($C33,'3.2_SavedScenarios'!$B$8:$B$123,0),MATCH(J$8,lst_scenario,0))) ->  | K33: =IF(K$8="","",INDEX('3.2_SavedScenarios'!$E$8:$N$123,MATCH($C33,'3.2_SavedScenarios'!$B$8:$B$123,0),MATCH(K$8,lst_scenario,0))) ->  | L33: =IF(L$8="","",INDEX('3.2_SavedScenarios'!$E$8:$N$123,MATCH($C33,'3.2_SavedScenarios'!$B$8:$B$123,0),MATCH(L$8,lst_scenario,0))) ->  | M33: =IF(M$8="","",INDEX('3.2_SavedScenarios'!$E$8:$N$123,MATCH($C33,'3.2_SavedScenarios'!$B$8:$B$123,0),MATCH(M$8,lst_scenario,0))) ->  | N33: =IF(N$8="","",INDEX('3.2_SavedScenarios'!$E$8:$N$123,MATCH($C33,'3.2_SavedScenarios'!$B$8:$B$123,0),MATCH(N$8,lst_scenario,0))) -> 
C34: ='3.1_ProjectDesign'!D31 -> % failure not warrantied | E34: =IF(E$8="","",INDEX('3.2_SavedScenarios'!$E$8:$N$123,MATCH($C34,'3.2_SavedScenarios'!$B$8:$B$123,0),MATCH(E$8,lst_scenario,0))) -> 0.1 | F34: =IF(F$8="","",INDEX('3.2_SavedScenarios'!$E$8:$N$123,MATCH($C34,'3.2_SavedScenarios'!$B$8:$B$123,0),MATCH(F$8,lst_scenario,0))) -> 0.1 | G34: =IF(G$8="","",INDEX('3.2_SavedScenarios'!$E$8:$N$123,MATCH($C34,'3.2_SavedScenarios'!$B$8:$B$123,0),MATCH(G$8,lst_scenario,0))) ->  | H34: =IF(H$8="","",INDEX('3.2_SavedScenarios'!$E$8:$N$123,MATCH($C34,'3.2_SavedScenarios'!$B$8:$B$123,0),MATCH(H$8,lst_scenario,0))) ->  | I34: =IF(I$8="","",INDEX('3.2_SavedScenarios'!$E$8:$N$123,MATCH($C34,'3.2_SavedScenarios'!$B$8:$B$123,0),MATCH(I$8,lst_scenario,0))) ->  | J34: =IF(J$8="","",INDEX('3.2_SavedScenarios'!$E$8:$N$123,MATCH($C34,'3.2_SavedScenarios'!$B$8:$B$123,0),MATCH(J$8,lst_scenario,0))) ->  | K34: =IF(K$8="","",INDEX('3.2_SavedScenarios'!$E$8:$N$123,MATCH($C34,'3.2_SavedScenarios'!$B$8:$B$123,0),MATCH(K$8,lst_scenario,0))) ->  | L34: =IF(L$8="","",INDEX('3.2_SavedScenarios'!$E$8:$N$123,MATCH($C34,'3.2_SavedScenarios'!$B$8:$B$123,0),MATCH(L$8,lst_scenario,0))) ->  | M34: =IF(M$8="","",INDEX('3.2_SavedScenarios'!$E$8:$N$123,MATCH($C34,'3.2_SavedScenarios'!$B$8:$B$123,0),MATCH(M$8,lst_scenario,0))) ->  | N34: =IF(N$8="","",INDEX('3.2_SavedScenarios'!$E$8:$N$123,MATCH($C34,'3.2_SavedScenarios'!$B$8:$B$123,0),MATCH(N$8,lst_scenario,0))) -> 
C35: ='3.1_ProjectDesign'!D36 -> Revenue source | E35: =IF(E$8="","",INDEX('3.2_SavedScenarios'!$E$8:$N$123,MATCH($C35,'3.2_SavedScenarios'!$B$8:$B$123,0),MATCH(E$8,lst_scenario,0))) -> Project Savings | F35: =IF(F$8="","",INDEX('3.2_SavedScenarios'!$E$8:$N$123,MATCH($C35,'3.2_SavedScenarios'!$B$8:$B$123,0),MATCH(F$8,lst_scenario,0))) -> Project Savings | G35: =IF(G$8="","",INDEX('3.2_SavedScenarios'!$E$8:$N$123,MATCH($C35,'3.2_SavedScenarios'!$B$8:$B$123,0),MATCH(G$8,lst_scenario,0))) ->  | H35: =IF(H$8="","",INDEX('3.2_SavedScenarios'!$E$8:$N$123,MATCH($C35,'3.2_SavedScenarios'!$B$8:$B$123,0),MATCH(H$8,lst_scenario,0))) ->  | I35: =IF(I$8="","",INDEX('3.2_SavedScenarios'!$E$8:$N$123,MATCH($C35,'3.2_SavedScenarios'!$B$8:$B$123,0),MATCH(I$8,lst_scenario,0))) ->  | J35: =IF(J$8="","",INDEX('3.2_SavedScenarios'!$E$8:$N$123,MATCH($C35,'3.2_SavedScenarios'!$B$8:$B$123,0),MATCH(J$8,lst_scenario,0))) ->  | K35: =IF(K$8="","",INDEX('3.2_SavedScenarios'!$E$8:$N$123,MATCH($C35,'3.2_SavedScenarios'!$B$8:$B$123,0),MATCH(K$8,lst_scenario,0))) ->  | L35: =IF(L$8="","",INDEX('3.2_SavedScenarios'!$E$8:$N$123,MATCH($C35,'3.2_SavedScenarios'!$B$8:$B$123,0),MATCH(L$8,lst_scenario,0))) ->  | M35: =IF(M$8="","",INDEX('3.2_SavedScenarios'!$E$8:$N$123,MATCH($C35,'3.2_SavedScenarios'!$B$8:$B$123,0),MATCH(M$8,lst_scenario,0))) ->  | N35: =IF(N$8="","",INDEX('3.2_SavedScenarios'!$E$8:$N$123,MATCH($C35,'3.2_SavedScenarios'!$B$8:$B$123,0),MATCH(N$8,lst_scenario,0))) -> 
C36: ='3.1_ProjectDesign'!D38 -> % finance by debt | E36: =IF(E$8="","",INDEX('3.2_SavedScenarios'!$E$8:$N$123,MATCH($C36,'3.2_SavedScenarios'!$B$8:$B$123,0),MATCH(E$8,lst_scenario,0))) -> 0.7 | F36: =IF(F$8="","",INDEX('3.2_SavedScenarios'!$E$8:$N$123,MATCH($C36,'3.2_SavedScenarios'!$B$8:$B$123,0),MATCH(F$8,lst_scenario,0))) -> 1 | G36: =IF(G$8="","",INDEX('3.2_SavedScenarios'!$E$8:$N$123,MATCH($C36,'3.2_SavedScenarios'!$B$8:$B$123,0),MATCH(G$8,lst_scenario,0))) ->  | H36: =IF(H$8="","",INDEX('3.2_SavedScenarios'!$E$8:$N$123,MATCH($C36,'3.2_SavedScenarios'!$B$8:$B$123,0),MATCH(H$8,lst_scenario,0))) ->  | I36: =IF(I$8="","",INDEX('3.2_SavedScenarios'!$E$8:$N$123,MATCH($C36,'3.2_SavedScenarios'!$B$8:$B$123,0),MATCH(I$8,lst_scenario,0))) ->  | J36: =IF(J$8="","",INDEX('3.2_SavedScenarios'!$E$8:$N$123,MATCH($C36,'3.2_SavedScenarios'!$B$8:$B$123,0),MATCH(J$8,lst_scenario,0))) ->  | K36: =IF(K$8="","",INDEX('3.2_SavedScenarios'!$E$8:$N$123,MATCH($C36,'3.2_SavedScenarios'!$B$8:$B$123,0),MATCH(K$8,lst_scenario,0))) ->  | L36: =IF(L$8="","",INDEX('3.2_SavedScenarios'!$E$8:$N$123,MATCH($C36,'3.2_SavedScenarios'!$B$8:$B$123,0),MATCH(L$8,lst_scenario,0))) ->  | M36: =IF(M$8="","",INDEX('3.2_SavedScenarios'!$E$8:$N$123,MATCH($C36,'3.2_SavedScenarios'!$B$8:$B$123,0),MATCH(M$8,lst_scenario,0))) ->  | N36: =IF(N$8="","",INDEX('3.2_SavedScenarios'!$E$8:$N$123,MATCH($C36,'3.2_SavedScenarios'!$B$8:$B$123,0),MATCH(N$8,lst_scenario,0))) -> 
C37: ='3.1_ProjectDesign'!D40 -> % finance by equity | E37: =IF(E$8="","",INDEX('3.2_SavedScenarios'!$E$8:$N$123,MATCH($C37,'3.2_SavedScenarios'!$B$8:$B$123,0),MATCH(E$8,lst_scenario,0))) -> 0.3 | F37: =IF(F$8="","",INDEX('3.2_SavedScenarios'!$E$8:$N$123,MATCH($C37,'3.2_SavedScenarios'!$B$8:$B$123,0),MATCH(F$8,lst_scenario,0))) -> 0 | G37: =IF(G$8="","",INDEX('3.2_SavedScenarios'!$E$8:$N$123,MATCH($C37,'3.2_SavedScenarios'!$B$8:$B$123,0),MATCH(G$8,lst_scenario,0))) ->  | H37: =IF(H$8="","",INDEX('3.2_SavedScenarios'!$E$8:$N$123,MATCH($C37,'3.2_SavedScenarios'!$B$8:$B$123,0),MATCH(H$8,lst_scenario,0))) ->  | I37: =IF(I$8="","",INDEX('3.2_SavedScenarios'!$E$8:$N$123,MATCH($C37,'3.2_SavedScenarios'!$B$8:$B$123,0),MATCH(I$8,lst_scenario,0))) ->  | J37: =IF(J$8="","",INDEX('3.2_SavedScenarios'!$E$8:$N$123,MATCH($C37,'3.2_SavedScenarios'!$B$8:$B$123,0),MATCH(J$8,lst_scenario,0))) ->  | K37: =IF(K$8="","",INDEX('3.2_SavedScenarios'!$E$8:$N$123,MATCH($C37,'3.2_SavedScenarios'!$B$8:$B$123,0),MATCH(K$8,lst_scenario,0))) ->  | L37: =IF(L$8="","",INDEX('3.2_SavedScenarios'!$E$8:$N$123,MATCH($C37,'3.2_SavedScenarios'!$B$8:$B$123,0),MATCH(L$8,lst_scenario,0))) ->  | M37: =IF(M$8="","",INDEX('3.2_SavedScenarios'!$E$8:$N$123,MATCH($C37,'3.2_SavedScenarios'!$B$8:$B$123,0),MATCH(M$8,lst_scenario,0))) ->  | N37: =IF(N$8="","",INDEX('3.2_SavedScenarios'!$E$8:$N$123,MATCH($C37,'3.2_SavedScenarios'!$B$8:$B$123,0),MATCH(N$8,lst_scenario,0))) -> 
C38: ='3.1_ProjectDesign'!D42 -> Cost of Debt (net of inflation) | E38: =IF(E$8="","",INDEX('3.2_SavedScenarios'!$E$8:$N$123,MATCH($C38,'3.2_SavedScenarios'!$B$8:$B$123,0),MATCH(E$8,lst_scenario,0))) -> 0.096 | F38: =IF(F$8="","",INDEX('3.2_SavedScenarios'!$E$8:$N$123,MATCH($C38,'3.2_SavedScenarios'!$B$8:$B$123,0),MATCH(F$8,lst_scenario,0))) -> 0.0325 | G38: =IF(G$8="","",INDEX('3.2_SavedScenarios'!$E$8:$N$123,MATCH($C38,'3.2_SavedScenarios'!$B$8:$B$123,0),MATCH(G$8,lst_scenario,0))) ->  | H38: =IF(H$8="","",INDEX('3.2_SavedScenarios'!$E$8:$N$123,MATCH($C38,'3.2_SavedScenarios'!$B$8:$B$123,0),MATCH(H$8,lst_scenario,0))) ->  | I38: =IF(I$8="","",INDEX('3.2_SavedScenarios'!$E$8:$N$123,MATCH($C38,'3.2_SavedScenarios'!$B$8:$B$123,0),MATCH(I$8,lst_scenario,0))) ->  | J38: =IF(J$8="","",INDEX('3.2_SavedScenarios'!$E$8:$N$123,MATCH($C38,'3.2_SavedScenarios'!$B$8:$B$123,0),MATCH(J$8,lst_scenario,0))) ->  | K38: =IF(K$8="","",INDEX('3.2_SavedScenarios'!$E$8:$N$123,MATCH($C38,'3.2_SavedScenarios'!$B$8:$B$123,0),MATCH(K$8,lst_scenario,0))) ->  | L38: =IF(L$8="","",INDEX('3.2_SavedScenarios'!$E$8:$N$123,MATCH($C38,'3.2_SavedScenarios'!$B$8:$B$123,0),MATCH(L$8,lst_scenario,0))) ->  | M38: =IF(M$8="","",INDEX('3.2_SavedScenarios'!$E$8:$N$123,MATCH($C38,'3.2_SavedScenarios'!$B$8:$B$123,0),MATCH(M$8,lst_scenario,0))) ->  | N38: =IF(N$8="","",INDEX('3.2_SavedScenarios'!$E$8:$N$123,MATCH($C38,'3.2_SavedScenarios'!$B$8:$B$123,0),MATCH(N$8,lst_scenario,0))) -> 
C39: ='3.1_ProjectDesign'!D44 -> Cost of Equity (net of inflation) | E39: =IF(E$8="","",INDEX('3.2_SavedScenarios'!$E$8:$N$123,MATCH($C39,'3.2_SavedScenarios'!$B$8:$B$123,0),MATCH(E$8,lst_scenario,0))) -> 0.14 | F39: =IF(F$8="","",INDEX('3.2_SavedScenarios'!$E$8:$N$123,MATCH($C39,'3.2_SavedScenarios'!$B$8:$B$123,0),MATCH(F$8,lst_scenario,0))) -> 0 | G39: =IF(G$8="","",INDEX('3.2_SavedScenarios'!$E$8:$N$123,MATCH($C39,'3.2_SavedScenarios'!$B$8:$B$123,0),MATCH(G$8,lst_scenario,0))) ->  | H39: =IF(H$8="","",INDEX('3.2_SavedScenarios'!$E$8:$N$123,MATCH($C39,'3.2_SavedScenarios'!$B$8:$B$123,0),MATCH(H$8,lst_scenario,0))) ->  | I39: =IF(I$8="","",INDEX('3.2_SavedScenarios'!$E$8:$N$123,MATCH($C39,'3.2_SavedScenarios'!$B$8:$B$123,0),MATCH(I$8,lst_scenario,0))) ->  | J39: =IF(J$8="","",INDEX('3.2_SavedScenarios'!$E$8:$N$123,MATCH($C39,'3.2_SavedScenarios'!$B$8:$B$123,0),MATCH(J$8,lst_scenario,0))) ->  | K39: =IF(K$8="","",INDEX('3.2_SavedScenarios'!$E$8:$N$123,MATCH($C39,'3.2_SavedScenarios'!$B$8:$B$123,0),MATCH(K$8,lst_scenario,0))) ->  | L39: =IF(L$8="","",INDEX('3.2_SavedScenarios'!$E$8:$N$123,MATCH($C39,'3.2_SavedScenarios'!$B$8:$B$123,0),MATCH(L$8,lst_scenario,0))) ->  | M39: =IF(M$8="","",INDEX('3.2_SavedScenarios'!$E$8:$N$123,MATCH($C39,'3.2_SavedScenarios'!$B$8:$B$123,0),MATCH(M$8,lst_scenario,0))) ->  | N39: =IF(N$8="","",INDEX('3.2_SavedScenarios'!$E$8:$N$123,MATCH($C39,'3.2_SavedScenarios'!$B$8:$B$123,0),MATCH(N$8,lst_scenario,0))) -> 
C40: ='3.1_ProjectDesign'!D46 -> Loan Tenure | E40: =IF(E$8="","",INDEX('3.2_SavedScenarios'!$E$8:$N$123,MATCH($C40,'3.2_SavedScenarios'!$B$8:$B$123,0),MATCH(E$8,lst_scenario,0))) -> 10 | F40: =IF(F$8="","",INDEX('3.2_SavedScenarios'!$E$8:$N$123,MATCH($C40,'3.2_SavedScenarios'!$B$8:$B$123,0),MATCH(F$8,lst_scenario,0))) -> 10 | G40: =IF(G$8="","",INDEX('3.2_SavedScenarios'!$E$8:$N$123,MATCH($C40,'3.2_SavedScenarios'!$B$8:$B$123,0),MATCH(G$8,lst_scenario,0))) ->  | H40: =IF(H$8="","",INDEX('3.2_SavedScenarios'!$E$8:$N$123,MATCH($C40,'3.2_SavedScenarios'!$B$8:$B$123,0),MATCH(H$8,lst_scenario,0))) ->  | I40: =IF(I$8="","",INDEX('3.2_SavedScenarios'!$E$8:$N$123,MATCH($C40,'3.2_SavedScenarios'!$B$8:$B$123,0),MATCH(I$8,lst_scenario,0))) ->  | J40: =IF(J$8="","",INDEX('3.2_SavedScenarios'!$E$8:$N$123,MATCH($C40,'3.2_SavedScenarios'!$B$8:$B$123,0),MATCH(J$8,lst_scenario,0))) ->  | K40: =IF(K$8="","",INDEX('3.2_SavedScenarios'!$E$8:$N$123,MATCH($C40,'3.2_SavedScenarios'!$B$8:$B$123,0),MATCH(K$8,lst_scenario,0))) ->  | L40: =IF(L$8="","",INDEX('3.2_SavedScenarios'!$E$8:$N$123,MATCH($C40,'3.2_SavedScenarios'!$B$8:$B$123,0),MATCH(L$8,lst_scenario,0))) ->  | M40: =IF(M$8="","",INDEX('3.2_SavedScenarios'!$E$8:$N$123,MATCH($C40,'3.2_SavedScenarios'!$B$8:$B$123,0),MATCH(M$8,lst_scenario,0))) ->  | N40: =IF(N$8="","",INDEX('3.2_SavedScenarios'!$E$8:$N$123,MATCH($C40,'3.2_SavedScenarios'!$B$8:$B$123,0),MATCH(N$8,lst_scenario,0))) -> 
C41: ='3.2_SavedScenarios'!B49 -> Estimated loan size | E41: =IF(E$8="","",INDEX('3.2_SavedScenarios'!$E$8:$N$123,MATCH($C41,'3.2_SavedScenarios'!$B$8:$B$123,0),MATCH(E$8,lst_scenario,0))) -> 33500000 | F41: =IF(F$8="","",INDEX('3.2_SavedScenarios'!$E$8:$N$123,MATCH($C41,'3.2_SavedScenarios'!$B$8:$B$123,0),MATCH(F$8,lst_scenario,0))) -> 30100000 | G41: =IF(G$8="","",INDEX('3.2_SavedScenarios'!$E$8:$N$123,MATCH($C41,'3.2_SavedScenarios'!$B$8:$B$123,0),MATCH(G$8,lst_scenario,0))) ->  | H41: =IF(H$8="","",INDEX('3.2_SavedScenarios'!$E$8:$N$123,MATCH($C41,'3.2_SavedScenarios'!$B$8:$B$123,0),MATCH(H$8,lst_scenario,0))) ->  | I41: =IF(I$8="","",INDEX('3.2_SavedScenarios'!$E$8:$N$123,MATCH($C41,'3.2_SavedScenarios'!$B$8:$B$123,0),MATCH(I$8,lst_scenario,0))) ->  | J41: =IF(J$8="","",INDEX('3.2_SavedScenarios'!$E$8:$N$123,MATCH($C41,'3.2_SavedScenarios'!$B$8:$B$123,0),MATCH(J$8,lst_scenario,0))) ->  | K41: =IF(K$8="","",INDEX('3.2_SavedScenarios'!$E$8:$N$123,MATCH($C41,'3.2_SavedScenarios'!$B$8:$B$123,0),MATCH(K$8,lst_scenario,0))) ->  | L41: =IF(L$8="","",INDEX('3.2_SavedScenarios'!$E$8:$N$123,MATCH($C41,'3.2_SavedScenarios'!$B$8:$B$123,0),MATCH(L$8,lst_scenario,0))) ->  | M41: =IF(M$8="","",INDEX('3.2_SavedScenarios'!$E$8:$N$123,MATCH($C41,'3.2_SavedScenarios'!$B$8:$B$123,0),MATCH(M$8,lst_scenario,0))) ->  | N41: =IF(N$8="","",INDEX('3.2_SavedScenarios'!$E$8:$N$123,MATCH($C41,'3.2_SavedScenarios'!$B$8:$B$123,0),MATCH(N$8,lst_scenario,0))) -> 
C42: ='3.1_ProjectDesign'!D50 -> Grace Period (Principal) | E42: =IF(E$8="","",INDEX('3.2_SavedScenarios'!$E$8:$N$123,MATCH($C42,'3.2_SavedScenarios'!$B$8:$B$123,0),MATCH(E$8,lst_scenario,0))) -> 1 | F42: =IF(F$8="","",INDEX('3.2_SavedScenarios'!$E$8:$N$123,MATCH($C42,'3.2_SavedScenarios'!$B$8:$B$123,0),MATCH(F$8,lst_scenario,0))) -> 1 | G42: =IF(G$8="","",INDEX('3.2_SavedScenarios'!$E$8:$N$123,MATCH($C42,'3.2_SavedScenarios'!$B$8:$B$123,0),MATCH(G$8,lst_scenario,0))) ->  | H42: =IF(H$8="","",INDEX('3.2_SavedScenarios'!$E$8:$N$123,MATCH($C42,'3.2_SavedScenarios'!$B$8:$B$123,0),MATCH(H$8,lst_scenario,0))) ->  | I42: =IF(I$8="","",INDEX('3.2_SavedScenarios'!$E$8:$N$123,MATCH($C42,'3.2_SavedScenarios'!$B$8:$B$123,0),MATCH(I$8,lst_scenario,0))) ->  | J42: =IF(J$8="","",INDEX('3.2_SavedScenarios'!$E$8:$N$123,MATCH($C42,'3.2_SavedScenarios'!$B$8:$B$123,0),MATCH(J$8,lst_scenario,0))) ->  | K42: =IF(K$8="","",INDEX('3.2_SavedScenarios'!$E$8:$N$123,MATCH($C42,'3.2_SavedScenarios'!$B$8:$B$123,0),MATCH(K$8,lst_scenario,0))) ->  | L42: =IF(L$8="","",INDEX('3.2_SavedScenarios'!$E$8:$N$123,MATCH($C42,'3.2_SavedScenarios'!$B$8:$B$123,0),MATCH(L$8,lst_scenario,0))) ->  | M42: =IF(M$8="","",INDEX('3.2_SavedScenarios'!$E$8:$N$123,MATCH($C42,'3.2_SavedScenarios'!$B$8:$B$123,0),MATCH(M$8,lst_scenario,0))) ->  | N42: =IF(N$8="","",INDEX('3.2_SavedScenarios'!$E$8:$N$123,MATCH($C42,'3.2_SavedScenarios'!$B$8:$B$123,0),MATCH(N$8,lst_scenario,0))) -> 
C43: ='3.1_ProjectDesign'!D52 -> Grace Period (Interest) | E43: =IF(E$8="","",INDEX('3.2_SavedScenarios'!$E$8:$N$123,MATCH($C43,'3.2_SavedScenarios'!$B$8:$B$123,0),MATCH(E$8,lst_scenario,0))) -> 0 | F43: =IF(F$8="","",INDEX('3.2_SavedScenarios'!$E$8:$N$123,MATCH($C43,'3.2_SavedScenarios'!$B$8:$B$123,0),MATCH(F$8,lst_scenario,0))) -> 0 | G43: =IF(G$8="","",INDEX('3.2_SavedScenarios'!$E$8:$N$123,MATCH($C43,'3.2_SavedScenarios'!$B$8:$B$123,0),MATCH(G$8,lst_scenario,0))) ->  | H43: =IF(H$8="","",INDEX('3.2_SavedScenarios'!$E$8:$N$123,MATCH($C43,'3.2_SavedScenarios'!$B$8:$B$123,0),MATCH(H$8,lst_scenario,0))) ->  | I43: =IF(I$8="","",INDEX('3.2_SavedScenarios'!$E$8:$N$123,MATCH($C43,'3.2_SavedScenarios'!$B$8:$B$123,0),MATCH(I$8,lst_scenario,0))) ->  | J43: =IF(J$8="","",INDEX('3.2_SavedScenarios'!$E$8:$N$123,MATCH($C43,'3.2_SavedScenarios'!$B$8:$B$123,0),MATCH(J$8,lst_scenario,0))) ->  | K43: =IF(K$8="","",INDEX('3.2_SavedScenarios'!$E$8:$N$123,MATCH($C43,'3.2_SavedScenarios'!$B$8:$B$123,0),MATCH(K$8,lst_scenario,0))) ->  | L43: =IF(L$8="","",INDEX('3.2_SavedScenarios'!$E$8:$N$123,MATCH($C43,'3.2_SavedScenarios'!$B$8:$B$123,0),MATCH(L$8,lst_scenario,0))) ->  | M43: =IF(M$8="","",INDEX('3.2_SavedScenarios'!$E$8:$N$123,MATCH($C43,'3.2_SavedScenarios'!$B$8:$B$123,0),MATCH(M$8,lst_scenario,0))) ->  | N43: =IF(N$8="","",INDEX('3.2_SavedScenarios'!$E$8:$N$123,MATCH($C43,'3.2_SavedScenarios'!$B$8:$B$123,0),MATCH(N$8,lst_scenario,0))) -> 
C44: ='3.1_ProjectDesign'!D54 -> Total loan fees | E44: =IF(E$8="","",INDEX('3.2_SavedScenarios'!$E$8:$N$123,MATCH($C44,'3.2_SavedScenarios'!$B$8:$B$123,0),MATCH(E$8,lst_scenario,0))) -> 0 | F44: =IF(F$8="","",INDEX('3.2_SavedScenarios'!$E$8:$N$123,MATCH($C44,'3.2_SavedScenarios'!$B$8:$B$123,0),MATCH(F$8,lst_scenario,0))) -> 0 | G44: =IF(G$8="","",INDEX('3.2_SavedScenarios'!$E$8:$N$123,MATCH($C44,'3.2_SavedScenarios'!$B$8:$B$123,0),MATCH(G$8,lst_scenario,0))) ->  | H44: =IF(H$8="","",INDEX('3.2_SavedScenarios'!$E$8:$N$123,MATCH($C44,'3.2_SavedScenarios'!$B$8:$B$123,0),MATCH(H$8,lst_scenario,0))) ->  | I44: =IF(I$8="","",INDEX('3.2_SavedScenarios'!$E$8:$N$123,MATCH($C44,'3.2_SavedScenarios'!$B$8:$B$123,0),MATCH(I$8,lst_scenario,0))) ->  | J44: =IF(J$8="","",INDEX('3.2_SavedScenarios'!$E$8:$N$123,MATCH($C44,'3.2_SavedScenarios'!$B$8:$B$123,0),MATCH(J$8,lst_scenario,0))) ->  | K44: =IF(K$8="","",INDEX('3.2_SavedScenarios'!$E$8:$N$123,MATCH($C44,'3.2_SavedScenarios'!$B$8:$B$123,0),MATCH(K$8,lst_scenario,0))) ->  | L44: =IF(L$8="","",INDEX('3.2_SavedScenarios'!$E$8:$N$123,MATCH($C44,'3.2_SavedScenarios'!$B$8:$B$123,0),MATCH(L$8,lst_scenario,0))) ->  | M44: =IF(M$8="","",INDEX('3.2_SavedScenarios'!$E$8:$N$123,MATCH($C44,'3.2_SavedScenarios'!$B$8:$B$123,0),MATCH(M$8,lst_scenario,0))) ->  | N44: =IF(N$8="","",INDEX('3.2_SavedScenarios'!$E$8:$N$123,MATCH($C44,'3.2_SavedScenarios'!$B$8:$B$123,0),MATCH(N$8,lst_scenario,0))) -> 
C45: =IF('3.1_ProjectDesign'!F57=TRUE,'3.1_ProjectDesign'!D58,'3.1_ProjectDesign'!D56) -> Engineering + design cost (user input) | E45: =IF(E$8="","",INDEX('3.2_SavedScenarios'!$E$8:$N$123,MATCH($C45,'3.2_SavedScenarios'!$B$8:$B$123,0),MATCH(E$8,lst_scenario,0))) -> 1125750 | F45: =IF(F$8="","",INDEX('3.2_SavedScenarios'!$E$8:$N$123,MATCH($C45,'3.2_SavedScenarios'!$B$8:$B$123,0),MATCH(F$8,lst_scenario,0))) -> 1125750 | G45: =IF(G$8="","",INDEX('3.2_SavedScenarios'!$E$8:$N$123,MATCH($C45,'3.2_SavedScenarios'!$B$8:$B$123,0),MATCH(G$8,lst_scenario,0))) ->  | H45: =IF(H$8="","",INDEX('3.2_SavedScenarios'!$E$8:$N$123,MATCH($C45,'3.2_SavedScenarios'!$B$8:$B$123,0),MATCH(H$8,lst_scenario,0))) ->  | I45: =IF(I$8="","",INDEX('3.2_SavedScenarios'!$E$8:$N$123,MATCH($C45,'3.2_SavedScenarios'!$B$8:$B$123,0),MATCH(I$8,lst_scenario,0))) ->  | J45: =IF(J$8="","",INDEX('3.2_SavedScenarios'!$E$8:$N$123,MATCH($C45,'3.2_SavedScenarios'!$B$8:$B$123,0),MATCH(J$8,lst_scenario,0))) ->  | K45: =IF(K$8="","",INDEX('3.2_SavedScenarios'!$E$8:$N$123,MATCH($C45,'3.2_SavedScenarios'!$B$8:$B$123,0),MATCH(K$8,lst_scenario,0))) ->  | L45: =IF(L$8="","",INDEX('3.2_SavedScenarios'!$E$8:$N$123,MATCH($C45,'3.2_SavedScenarios'!$B$8:$B$123,0),MATCH(L$8,lst_scenario,0))) ->  | M45: =IF(M$8="","",INDEX('3.2_SavedScenarios'!$E$8:$N$123,MATCH($C45,'3.2_SavedScenarios'!$B$8:$B$123,0),MATCH(M$8,lst_scenario,0))) ->  | N45: =IF(N$8="","",INDEX('3.2_SavedScenarios'!$E$8:$N$123,MATCH($C45,'3.2_SavedScenarios'!$B$8:$B$123,0),MATCH(N$8,lst_scenario,0))) -> 

Sheet 4.3_SensitivityAnalysis
D9: =Language_Refs!D263 -> LED price in Year 1 (%)
E10: =Language_Refs!D272 -> Ref. | G10: =Language_Refs!D274 -> Best | I10: =Language_Refs!D276 -> Worst
D11: 50 | E11: 0 | F11: 44 | G11: -0.1 | H11: 60 | I11: 0.1
D12: 50 | F12: 44 | H12: 60
D14: =Language_Refs!D264 -> Annual decrease in LED prices (%)
E15: =$E$10 -> Ref. | G15: =$G$10 -> Best | I15: =$I$10 -> Worst
D16: 50 | E16: 0.1 | F16: 74 | G16: 0.15 | H16: 51 | I16: 0.05
D17: 50 | F17: 74 | H17: 51
D19: =Language_Refs!D265 -> Additional cost of smart system (%)
E20: =$E$10 -> Ref. | G20: =$G$10 -> Best | I20: =$I$10 -> Worst
D21: 51 | E21: 0.1 | F21: 50 | G21: 0.05 | H21: 62 | I21: 0.15
D22: 51 | F22: 50 | H22: 62
D24: =Language_Refs!D266 -> Cost of electricity at year 1
E25: =$E$10 -> Ref. | G25: =$G$10 -> Best | I25: =$I$10 -> Worst
D26: 50 | E26: 0 | F26: 71 | G26: 0.1 | H26: 35 | I26: -0.1
D27: 50 | F27: 71 | H27: 35
D29: =Language_Refs!D267 -> Change in real annual increase on electricity tariff (%)
E30: =$E$10 -> Ref. | G30: =$G$10 -> Best | I30: =$I$10 -> Worst
D31: 52 | E31: 0.02 | F31: 57 | G31: 0.07 | H31: 47 | I31: -0.03
D32: 52 | F32: 57 | H32: 47
D34: =Language_Refs!D268 -> Change in average LED life (%)
E35: =$E$10 -> Ref. | G35: =$G$10 -> Best | I35: =$I$10 -> Worst
D36: 50 | E36: 0 | F36: 57 | G36: 0.1 | H36: 45 | I36: -0.1
D37: 50 | F37: 57 | H37: 45
D45: =Language_Refs!D381 -> Reset variables
D46: TRUE

Sheet 4.4_SensitivityReport
A1: led
D10: =Language_Refs!D371 -> PRINT REPORTS

Sheet 5.1_DefaultData
C7: =Language_Refs!D285 -> Directions:
C8: =Language_Refs!D286 -> This page allows you to reset the default assumptions used throughout the tool. Please enter the revised value in the same format and unit as the original value. Prices listed are as of 2012, and are automatically indexed to change over time, depending on the technology (see assumptions on annual price changes below).
D12: ='2.3_ExistingParameters'!D32 -> Average price per luminaire - existing technology | E12: =Language_Refs!D350 -> US$ / point | F12: 126.75
D13: ='2.3_ExistingParameters'!D34 -> Average price per luminaire - LED - existing case (pre-tax) | E13: =Language_Refs!D350 -> US$ / point | F13: 400
D14: =Language_Refs!D288 -> Annual decrease in LED prices | E14: % | F14: 0.1
D15: =Language_Refs!D289 -> Additional infrastructure (civil works) cost per point | E15: =Language_Refs!D350 -> US$ / point | F15: 0
D16: =Language_Refs!D290 -> Engineering + project design cost | E16: US$ | F16: =Assumptions!E200 -> 356250
D17: =Language_Refs!D291 -> Installation cost/luminaire | E17: =Language_Refs!D350 -> US$ / point | F17: 25
D18: =Language_Refs!D292 -> Current lamp replacement (equipment & labor) cost per point per year | E18: =Language_Refs!D351 -> US$ / point / year | F18: 60
D19: =Language_Refs!D293 -> Maintenance cost per lamp replacement - all technologies | E19: =Language_Refs!D350 -> US$ / point | F19: 50
D20: =Language_Refs!D294 -> Overhead cost of software for smart system (CAPEX) | E20: US$ | F20: 100000
D21: =Language_Refs!D295 -> Additional cost of smart system (% increase to assumed LED price) | E21: % | F21: 0.2
D22: =Language_Refs!D296 -> Cost of existing tech. replacement parts upon failure | E22: =Language_Refs!D352 -> % luminaire cost | F22: 0.2
D23: =Language_Refs!D297 -> Cost of LED replacement parts upon failure | E23: =Language_Refs!D352 -> % luminaire cost | F23: 0.4
D24: =Language_Refs!D301 -> Change in LED price in low price scenario (Year 1) | E24: % | F24: removed
D25: =Language_Refs!D302 -> Change in LED price in high price scenario (Year 1) | E25: % | F25: removed
D26: =Language_Refs!D303 -> Year of LED price plateau | E26: n | F26: 10
D32: EXISTING LAMP COSTS
D33: ='3.1_ProjectDesign_Form'!E112 -> Fluorescent | E33: =Language_Refs!$D$350 -> US$ / point | F33: 135
D34: ='3.1_ProjectDesign_Form'!E114 -> Halogen | E34: =Language_Refs!$D$350 -> US$ / point | F34: 18
D35: ='3.1_ProjectDesign_Form'!E113 -> Incandescent | E35: =Language_Refs!$D$350 -> US$ / point | F35: 4
D36: ='3.1_ProjectDesign_Form'!E115 -> Mixed Lights | E36: =Language_Refs!$D$350 -> US$ / point | F36: 55
D37: ='3.1_ProjectDesign_Form'!E110 -> Mercury Vapor | E37: =Language_Refs!$D$350 -> US$ / point | F37: 115
D38: ='3.1_ProjectDesign_Form'!E109 -> High Pressure Sodium | E38: =Language_Refs!$D$350 -> US$ / point | F38: 130
D39: ='3.1_ProjectDesign_Form'!E111 -> Metal Halide | E39: =Language_Refs!$D$350 -> US$ / point | F39: 135
D40: COST CHANGES
D41: =Language_Refs!D304 -> Annual change in current technology prices | E41: =Language_Refs!D349 -> % / year | F41: -0.02
D42: =Language_Refs!D305 -> Year of current technology price plateau | E42: n | F42: 5
D48: =Language_Refs!D307 -> Tax on domestic equipment | F48: 0.46
D49: =Language_Refs!D308 -> Tax on imported equipment | F49: 0.75
D50: =Language_Refs!D309 -> % equipment expected to be imported | F50: 0.7
D51: =Language_Refs!D310 -> Corporate Tax Rate | F51: 0.3
D57: =Language_Refs!D312 -> Change in electricity tariff in year 1 - low case | E57: % | F57: removed
D58: =Language_Refs!D313 -> Change in electricity tariff in year 1 - high case | E58: % | F58: removed
D59: =Language_Refs!D314 -> Real annual increase on electricity tariff - existing case | E59: % | F59: 0.02
D60: =Language_Refs!D315 -> Change in real annual increase on electricity tariff - low case | E60: % | F60: removed
D61: =Language_Refs!D316 -> Change in real annual increase on electricity tariff - high case | E61: % | F61: removed
D67: =Language_Refs!D330 -> Mortgage style amortization | E67: =Language_Refs!D331 -> % Principal | F67: 1
D68: =Language_Refs!D298 -> Social cost of carbon (CO2e) in 2015 | E68: =Language_Refs!D353 -> US$ / tonne | F68: 30
D69: =Language_Refs!D299 -> Maximum social cost of carbon (CO2e) in 2050 | E69: =Language_Refs!D353 -> US$ / tonne | F69: =F68*8/3 -> 80

Sheet Language_Refs (hidden)
A1: Ref # | B1: Tab | C1: Note | D1: Current Language | E1: English | F1: Portuguese | G1: comments | H1: Note2
A2: =ROW(A2) -> 2 | B2: {Navigation} | D2: =IF(Lookups!$N$3=1,E2,IF(Lookups!$N$3=2,F2)) -> CityLED Tool | E2: CityLED Tool | F2: Ferramenta CityLED
A3: 3 | B3: {Navigation} | D3: =IF(Lookups!$N$3=1,E3,IF(Lookups!$N$3=2,F3)) -> Introduction | E3: Introduction | F3: Introdução
A4: 4 | B4: {Navigation} | D4: =IF(Lookups!$N$3=1,E4,IF(Lookups!$N$3=2,F4)) -> Set Up | E4: Set Up | F4: Configuração | G4: "Configuração" is used for a system set up. If Set Up means to prepare or get ready, than change to "Preparação"
A5: 5 | B5: {Navigation} | D5: =IF(Lookups!$N$3=1,E5,IF(Lookups!$N$3=2,F5)) -> Project Design | E5: Project Design | F5: Desenho do Projeto | G5: "Desenvolvimento do Projeto" is Project Development. If you want a noum it would be "Desenho do Projeto" or only "Projeto"
A6: 6 | B6: {Navigation} | D6: =IF(Lookups!$N$3=1,E6,IF(Lookups!$N$3=2,F6)) -> Scenarios/Reports | E6: Scenarios/Reports | F6: Cenários/Relatórios
A7: 7 | B7: {Navigation} | D7: =IF(Lookups!$N$3=1,E7,IF(Lookups!$N$3=2,F7)) -> Defaults | E7: Defaults | F7: Suposições Padrão
A8: 8 | B8: {Navigation} | D8: =IF(Lookups!$N$3=1,E8,IF(Lookups!$N$3=2,F8)) -> 1.1 INTRODUCTION | E8: 1.1 INTRODUCTION | F8: 1.1 INTRODUÇÃO
A9: 9 | B9: {Navigation} | D9: =IF(Lookups!$N$3=1,E9,IF(Lookups!$N$3=2,F9)) -> 1.2 STEPS & WORKFLOW | E9: 1.2 STEPS & WORKFLOW | F9: 1.2 FASES E FLUXO DE TRABALHO
A10: 10 | B10: {Navigation} | D10: =IF(Lookups!$N$3=1,E10,IF(Lookups!$N$3=2,F10)) -> 1.3 TOOLKIT CONFIGURATIONS | E10: 1.3 TOOLKIT CONFIGURATIONS | F10: 1.3 CONFIGURAÇÕES DA FERRAMENTA
A11: 11 | B11: {Navigation} | D11: =IF(Lookups!$N$3=1,E11,IF(Lookups!$N$3=2,F11)) -> 1.4 DEFINITIONS | E11: 1.4 DEFINITIONS | F11: Definições
A12: 12 | B12: {Navigation} | D12: =IF(Lookups!$N$3=1,E12,IF(Lookups!$N$3=2,F12)) -> 2.1 BASIC INFORMATION | E12: 2.1 BASIC INFORMATION | F12: 2.1 INFORMAÇÃO BÁSICA
A13: 13 | B13: {Navigation} | D13: =IF(Lookups!$N$3=1,E13,IF(Lookups!$N$3=2,F13)) -> 2.2 STREET LIGHT INVENTORY | E13: 2.2 STREET LIGHT INVENTORY | F13: 2.2 INVENTÁRIO DE ILUMINAÇÃO
A14: 14 | B14: {Navigation} | D14: =IF(Lookups!$N$3=1,E14,IF(Lookups!$N$3=2,F14)) -> 2.3 PARAMETERS & ASSUMPTIONS | E14: 2.3 PARAMETERS & ASSUMPTIONS | F14: 2.3 PARÂMETROS E PREMISSAS
A15: 15 | B15: {Navigation} | D15: =IF(Lookups!$N$3=1,E15,IF(Lookups!$N$3=2,F15)) -> 3 PROJECT DESIGN | E15: 3 PROJECT DESIGN | F15: 3 DESENHO DE PROJETO | G15: "Desenvolvimento do Projeto" is Project Development. If you want a noum it would be "Desenho do Projeto" or only "Projeto"
A16: 16 | B16: {Navigation} | D16: =IF(Lookups!$N$3=1,E16,IF(Lookups!$N$3=2,F16)) -> 3.1 PROJECT DESIGN | E16: 3.1 PROJECT DESIGN | F16: 3.1 DESENHO DE PROJETO | G16: "Desenvolvimento do Projeto" is Project Development. If you want a noum it would be "Desenho do Projeto" or only "Projeto"
A17: 17 | B17: {Navigation} | D17: =IF(Lookups!$N$3=1,E17,IF(Lookups!$N$3=2,F17)) -> 3.2 SAVE/MODIFY SCENARIO | E17: 3.2 SAVE/MODIFY SCENARIO | F17: 3.2 SALVAR/MODIFICAR O CENÁRIO
A18: 18 | B18: {Navigation} | D18: =IF(Lookups!$N$3=1,E18,IF(Lookups!$N$3=2,F18)) -> 4 SENSITIVITY DASHBOARD | E18: 4 SENSITIVITY DASHBOARD | F18: 4 PAINEL DE SENSIBILIDADE
A19: 19 | B19: {Navigation} | D19: =IF(Lookups!$N$3=1,E19,IF(Lookups!$N$3=2,F19)) -> 4.1 Scenario Selection | E19: 4.1 Scenario Selection | F19: 4.1 Seleção do Cenário
A20: 20 | B20: {Navigation} | D20: =IF(Lookups!$N$3=1,E20,IF(Lookups!$N$3=2,F20)) -> 4.2 Scenario Comparison | E20: 4.2 Scenario Comparison | F20: 4.2 Comparação dos Cenários
A21: 21 | B21: {Navigation} | D21: =IF(Lookups!$N$3=1,E21,IF(Lookups!$N$3=2,F21)) -> 4.3 Sensitivity Analysis | E21: 4.3 Sensitivity Analysis | F21: 4.3 Análise de Sensibilidade
A22: 22 | B22: {Navigation} | D22: =IF(Lookups!$N$3=1,E22,IF(Lookups!$N$3=2,F22)) -> 4.4 Reports | E22: 4.4 Reports | F22: 4.4 Relatórios
A23: 23 | B23: {Navigation} | D23: =IF(Lookups!$N$3=1,E23,IF(Lookups!$N$3=2,F23)) -> 5.1 DEFAULT COSTS ASSUMPTIONS | E23: 5.1 DEFAULT COSTS ASSUMPTIONS | F23: 5.1 PRESSUPOSTOS DO CUSTOS PADRÃO
A24: 24 | B24: {Navigation} | D24: =IF(Lookups!$N$3=1,E24,IF(Lookups!$N$3=2,F24)) -> 5.2 DEFAULT TECHNICAL ASSUMPTIONS | E24: 5.2 DEFAULT TECHNICAL ASSUMPTIONS | F24: 5.2 PRESSUPOSTOS TÉCNICOS PADRÃO
A25: 25 | B25: {Placeholder} | D25: =IF(Lookups!$N$3=1,E25,IF(Lookups!$N$3=2,F25)) -> Summary of the Project | E25: Summary of the Project | F25: Resumo do Projeto
A26: 26 | B26: {Unit} | D26: =IF(Lookups!$N$3=1,E26,IF(Lookups!$N$3=2,F26)) -> % | E26: % | F26: %
A27: 27 | B27: {Unit} | D27: =IF(Lookups!$N$3=1,E27,IF(Lookups!$N$3=2,F27)) -> n | E27: n | F27: n
A28: 28 | B28: {Unit} | D28: =IF(Lookups!$N$3=1,E28,IF(Lookups!$N$3=2,F28)) -> YYYY | E28: YYYY | F28: YYYY
A29: 29 | B29: {Unit} | D29: =IF(Lookups!$N$3=1,E29,IF(Lookups!$N$3=2,F29)) -> years | E29: years | F29: anos
A30: 30 | B30: {Unit} | D30: =IF(Lookups!$N$3=1,E30,IF(Lookups!$N$3=2,F30)) -> hours | E30: hours | F30: horas
A31: 31 | B31: {Unit} | D31: =IF(Lookups!$N$3=1,E31,IF(Lookups!$N$3=2,F31)) -> tonnes | E31: tonnes | F31: toneladas
A32: 32 | B32: {Unit} | D32: =IF(Lookups!$N$3=1,E32,IF(Lookups!$N$3=2,F32)) -> Y/N | E32: Y/N | F32: S/N
A33: 33 | B33: {Placeholder} | D33: =IF(Lookups!$N$3=1,E33,IF(Lookups!$N$3=2,F33)) -> 0
A34: 34 | B34: 1.1_HomePage | D34: =IF(Lookups!$N$3=1,E34,IF(Lookups!$N$3=2,F34)) -> Tool Purpose | E34: Tool Purpose | F34: Objetivo da Ferramenta
A35: 35 | B35: 1.1_HomePage | C35: changed O&M to "Lamp Replacement (Equipment & Labor)" | D35: =IF(Lookups!$N$3=1,E35,IF(Lookups!$N$3=2,F35)) -> The LED Streetlight Financing Tool allows cities to evaluate the financial and economic benefits, including energy, lamp replacement (equipment & labor) and emission reduction benefits, of switching from conventional lighting technology to LED lamps. While city staff (mayor’s office/executive team, finance department, public works department, etc.) are the primary target users, the tool can also help potential financiers (e.g., local financial institutions, national, multilateral, bilateral development agencies), and others to identify opportunities. The tool performs the following functions: • Allow easy entry of city-specific data; • Provide proxy data for users when city-specific data is not available; • Estimates financial, economic, energy, and emission reduction benefits; • Provide comparisons of financial performance (NPV, IRR, simple payback) of different implementation scenarios defined by the user (different assumptions of penetration rates, interest rate, or other financial terms); and, • Allow users to adjust key assumptions and parameters to identify optimal solutions for their specific project. | E35: The LED Streetlight Financing Tool allows cities to evaluate the financial and economic benefits, including energy, lamp replacement (equipment & labor) and emission reduction benefits, of switching from conventional lighting technology to LED lamps. While city staff (mayor’s office/executive team, finance department, public works department, etc.) are the primary target users, the tool can also help potential financiers (e.g., local financial institutions, national, multilateral, bilateral development agencies), and others to identify opportunities. The tool performs the following functions: • Allow easy entry of city-specific data; • Provide proxy data for users when city-specific data is not available; • Estimates financial, economic, energy, and emission reduction benefits; • Provide comparisons of financial performance (NPV, IRR, simple payback) of different implementation scenarios defined by the user (different assumptions of penetration rates, interest rate, or other financial terms); and, • Allow users to adjust key assumptions and parameters to identify optimal solutions for their specific project. | F35: A Ferramenta de Análise Financeira de Investimentos em Iluminação Pública a LED permite que as cidades avaliem os benefícios financeiros e econômicos, incluindo energéticos, Operação e Manutenção e de redução de emissões por conta da troca de tecnologia de lâmpadas convencionais por lâmpadas a LED. Enquanto a equipe da cidade (prefeitura e sua equipe executiva, departamento de finanças, departamento de obras públicas, etc.) são os usuários-alvo principais, a ferramenta também pode ajudar as equipes de projeto do Banco Mundial, provedores de capital (por exemplo, as instituições financeiras locais, agências de desenvolvimento nacionais, bilaterais e multilaterais) e outros a identificar oportunidades. A ferramenta executa as seguintes funções: • Permite entrada fácil de dados específicos da cidade; • Fornece dados padrão para usuários quando dados específicos da cidade não estão disponíveis; • Fornece cálculos dos benefícios econômicos, financeiros, energéticos e de redução de emissões; • Fornece comparações do desempenho financeiro (Valor Presente Líquido, retorno sobre o investimento, e simples retorno) de três cenários de implementação, definidos pelo usuário, assumindo diferentes premissas de taxas de penetração, taxas de juros ou outros termos financeiros; e • Permite que os usuários ajustem as premissas e os parâmetros principais para identificar soluções ótimas para seu projeto específico. | H35: revised text
A36: 36 | B36: 1.1_HomePage | D36: =IF(Lookups!$N$3=1,E36,IF(Lookups!$N$3=2,F36)) -> Developers | E36: Developers | F36: Desenvolvedores
A37: 37 | B37: 1.1_HomePage | D37: =IF(Lookups!$N$3=1,E37,IF(Lookups!$N$3=2,F37)) -> The LED Streetlight Financing Tool was developed by the World Bank Group. | E37: The LED Streetlight Financing Tool was developed by the World Bank Group. | F37: Ferramenta de Iluminação Pública a LED foi desenvolvida pelo Banco Mundial.
A38: 38 | B38: 1.1_HomePage | D38: =IF(Lookups!$N$3=1,E38,IF(Lookups!$N$3=2,F38)) -> Contacts: | E38: Contacts: | F38: Contatos:
A39: 39 | B39: 1.1_HomePage | D39: =IF(Lookups!$N$3=1,E39,IF(Lookups!$N$3=2,F39)) -> Megan Meyer, Energy Specialist, Energy & Extractives,World Bank +1 (202) 458 8178 | E39: Megan Meyer, Energy Specialist, Energy & Extractives,World Bank +1 (202) 458 8178 | F39: Megan Meyer,Especialista em Energia, Energia & Extrativos, Banco Mundial +1 (202) 458-8178
A40: 40 | B40: 1.1_HomePage | D40: =IF(Lookups!$N$3=1,E40,IF(Lookups!$N$3=2,F40)) -> Luiz T. A. Maurer, Lead Industry Specialist, IFC +1 (202) 473-3928 | E40: Luiz T. A. Maurer, Lead Industry Specialist, IFC +1 (202) 473-3928 | F40: Luiz T. A. Maurer, Especialista Líder Industrial, IFC +1 (202) 473-3928 | H40: revised text
A41: 41 | D41: =IF(Lookups!$N$3=1,E41,IF(Lookups!$N$3=2,F41)) -> Switch Use Mode: | E41: Switch Use Mode: | F41: Transferir o Modo de Usuário:
A42: 42 | D42: =IF(Lookups!$N$3=1,E42,IF(Lookups!$N$3=2,F42)) -> Mode Definition: | E42: Mode Definition: | F42: Definição do Modo:
A43: 43 | D43: =IF(Lookups!$N$3=1,E43,IF(Lookups!$N$3=2,F43)) -> Option 1 = shows user interfaces only | E43: Option 1 = shows user interfaces only | F43: Opção 1 = mostra interface de usuário única
A44: 44 | D44: =IF(Lookups!$N$3=1,E44,IF(Lookups!$N$3=2,F44)) -> Option 2 = allows access to open calculation sheets | E44: Option 2 = allows access to open calculation sheets | F44: Opção 2 = permite o acesso para abrir folhas de cálculo
A45: 45 | D45: =IF(Lookups!$N$3=1,E45,IF(Lookups!$N$3=2,F45)) -> Option 3 = administration mode - password required | E45: Option 3 = administration mode - password required | F45: Opção 3 = modo de administração - senha necessária
A46: 46 | D46: =IF(Lookups!$N$3=1,E46,IF(Lookups!$N$3=2,F46)) -> Clear All Inputs: | E46: Clear All Inputs: | F46: Excluir Todas as Entradas:
A47: 47 | D47: =IF(Lookups!$N$3=1,E47,IF(Lookups!$N$3=2,F47)) -> Clear | E47: Clear | F47: Excluir
A48: 48 | B48: 1.2_Workflow | D48: =IF(Lookups!$N$3=1,E48,IF(Lookups!$N$3=2,F48)) -> Introduction: | E48: Introduction: | F48: Introdução: | G48: new text
A49: 49 | B49: 1.2_Workflow | D49: =IF(Lookups!$N$3=1,E49,IF(Lookups!$N$3=2,F49)) -> · Select language (on any page) · Choose tool mode (on 1.3 Toolkit Configurations) | E49: · Select language (on any page) · Choose tool mode (on 1.3 Toolkit Configurations) | F49: · Selecione idioma (em todas as páginas) · Selecione modo de usuário (em 1.3 – Configurações da Ferramenta) | G49: new text
A50: 50 | B50: 1.2_Workflow | D50: =IF(Lookups!$N$3=1,E50,IF(Lookups!$N$3=2,F50)) -> Set Up: | E50: Set Up: | F50: Configuração:
A51: 51 | B51: 1.2_Workflow | D51: =IF(Lookups!$N$3=1,E51,IF(Lookups!$N$3=2,F51)) -> · Provide City's name, nation, and currency rate (on 2.1 Basic Information) · Define the number and type of existing streetlights (on 2.2 Streelight Inventory) · Define technical and financial parameters of existing streetlights (on 2.3 Parameters and Assumptions) | E51: · Provide City's name, nation, and currency rate (on 2.1 Basic Information) · Define the number and type of existing streetlights (on 2.2 Streelight Inventory) · Define technical and financial parameters of existing streetlights (on 2.3 Parameters and Assumptions) | F51: · Fornecer nome da cidade, país, moeda e taxa de câmbio (em 2.1 - Informação Básica) · Definir o número e a potência das lâmpadas no parque de iluminação pública (em 2.2 Inventário de Iluminação) · Definir os parâmetros técnicos e financeiros do inventário vigente (em 2.3 Parâmetros e Premissas)
A52: 52 | B52: 1.2_Workflow | D52: =IF(Lookups!$N$3=1,E52,IF(Lookups!$N$3=2,F52)) -> Project Design: | E52: Project Design: | F52: Desenho do Projeto:
A53: 53 | B53: 1.2_Workflow | D53: =IF(Lookups!$N$3=1,E53,IF(Lookups!$N$3=2,F53)) -> · Design a streetlight retrofit project including level of implementation, timing, and technical and financial assumptions (on 3.1 Project Design) · Review the project's financial, energy, and emission reduction performance (on 3.1 Project Design) · Save the current project into the alternative scenario database (on 3.2 Save/Modify Scenario) · Revive a saved scenario and modify it on project design page (on 3.2 Save/Modify Scenario) | E53: · Design a streetlight retrofit project including level of implementation, timing, and technical and financial assumptions (on 3.1 Project Design) · Review the project's financial, energy, and emission reduction performance (on 3.1 Project Design) · Save the current project into the alternative scenario database (on 3.2 Save/Modify Scenario) · Revive a saved scenario and modify it on project design page (on 3.2 Save/Modify Scenario) | F53: · Desenhar um projeto de modernização de iluminação pública, incluindo escala, cronograma, e premissas técnicas e financeiras (em 3.1 – Desenho do Projeto) · Revisar o desempenho do projeto em termos financeiro-econômicos, energéticos, e climáticos (em 3.1 Desenho do Projeto) · Salvar o seu projeto atual na base de dados de cenários (em 3.2 Salvar/Modificar o Cenário) · Abrir um cenário salvo e modificá-lo na planilha de Desenho de Projetos (em 3.2 Salvar/Modificar Cenário)
A54: 54 | B54: 1.2_Workflow | D54: =IF(Lookups!$N$3=1,E54,IF(Lookups!$N$3=2,F54)) -> Scenarios/Reports: | E54: Scenarios/Reports: | F54: Cenários/Relatórios:
A55: 55 | B55: 1.2_Workflow | D55: =IF(Lookups!$N$3=1,E55,IF(Lookups!$N$3=2,F55)) -> · Select saved projects to analyze and set order of appearance (on 4.1 Scenario Selection) · Compare financial, energy, and emissions performance of alternative projects (4.2 Scenario Comparision) · Conduct sensitivity analysis on a single or multiple project variables to determine likely range of project performance (on 4.2 Sensitivity Analysis Page) · Review and print summary of project performance of selected scenarios. | E55: · Select saved projects to analyze and set order of appearance (on 4.1 Scenario Selection) · Compare financial, energy, and emissions performance of alternative projects (4.2 Scenario Comparision) · Conduct sensitivity analysis on a single or multiple project variables to determine likely range of project performance (on 4.2 Sensitivity Analysis Page) · Review and print summary of project performance of selected scenarios. | F55: · Selecionar projetos salvos para análise (em 4.1 Seleção do Cenário) · Comparar desempenho financeiro, energético e climático dos cenários selecionados (em 4.2 Comparação dos Cenários) · Realizar análise de sensibilidade em um ou mais variável para avaliar a possível gama de desempenho de projeto (em 4.3 Análise de Sensibilidade) · Revisar e imprimir um sumário dos cenários selecionados de um projeto
A56: 56 | B56: 1.2_Workflow | D56: =IF(Lookups!$N$3=1,E56,IF(Lookups!$N$3=2,F56)) -> Data Base | E56: Data Base | F56: Base de dados:
A57: 57 | B57: 1.2_Workflow | D57: =IF(Lookups!$N$3=1,E57,IF(Lookups!$N$3=2,F57)) -> · Review and modify, if necessary, all default parameters and assumptions (on 5.1 Default Data) | E57: · Review and modify, if necessary, all default parameters and assumptions (on 5.1 Default Data) | F57: · Revisar e modificar, se for necessário, todas os parâmetros e premissas (5.1 Banco de Dados)
A58: 58 | B58: 1.2_Workflow | D58: =IF(Lookups!$N$3=1,E58,IF(Lookups!$N$3=2,F58)) -> How to use the tool: | E58: How to use the tool: | F58: Como usar a ferramenta:
A59: 59 | B59: 1.2_Workflow | D59: =IF(Lookups!$N$3=1,E59,IF(Lookups!$N$3=2,F59)) -> To evaluate the performance of proposed streetlight retrofit projects, the user will need to complete the following steps. Further details on how to use the tooll are provided within the tool's user guide, which is available in PDF format here: LED Streetlight Financing Tool User Guide | E59: To evaluate the performance of proposed streetlight retrofit projects, the user will need to complete the following steps. Further details on how to use the tooll are provided within the tool's user guide, which is available in PDF format here: LED Streetlight Financing Tool User Guide | F59: Para avaliar o desempenho dos projetos de modernização de iluminação pública propostos, os usuários devem completar os passos a seguir. Maiores informações sobre como utilizar a ferramenta podem ser encontradas no guia para usuários, disponível no link a seguir: Ferramenta VIP – Guia para Usuários (ainda em preparação)
A60: 60 | B60: 1.2_Workflow
A61: 61 | B61: 1.4_Definitions | D61: =IF(Lookups!$N$3=1,E61,IF(Lookups!$N$3=2,F61)) -> Definitions of Terms Used in the Tool | E61: Definitions of Terms Used in the Tool | F61: Definições dos termos utilizados na ferramenta
A62: 62 | B62: 2.1_BasicInformation | D62: =IF(Lookups!$N$3=1,E62,IF(Lookups!$N$3=2,F62)) -> Directions: | E62: Directions: | F62: Instruções:
A63: 63 | B63: 2.1_BasicInformation | D63: =IF(Lookups!$N$3=1,E63,IF(Lookups!$N$3=2,F63)) -> Enter your city's name and country and enter the current exchange rate of your national currency per U.S. dollar. | E63: Enter your city's name and country and enter the current exchange rate of your national currency per U.S. dollar. | F63: Entre com o nome da sua cidade e país; e entre a taxa de conversão atual da sua moeda local com o dólar americano.
A64: 64 | B64: 2.1_BasicInformation | D64: =IF(Lookups!$N$3=1,E64,IF(Lookups!$N$3=2,F64)) -> The country that is selected changes the default data used within model. | E64: The country that is selected changes the default data used within model. | F64: O país selecionado altera os dados padrão usados no modelo.
A65: 65 | B65: 2.1_BasicInformation | D65: =IF(Lookups!$N$3=1,E65,IF(Lookups!$N$3=2,F65)) -> BASIC CITY INFORMATION | E65: BASIC CITY INFORMATION | F65: INFORMAÇÃO BÁSICA DA CIDADE
A66: 66 | B66: 2.1_BasicInformation | D66: =IF(Lookups!$N$3=1,E66,IF(Lookups!$N$3=2,F66)) -> Name of City | E66: Name of City | F66: Nome da Cidade
A67: 67 | B67: 2.1_BasicInformation | D67: =IF(Lookups!$N$3=1,E67,IF(Lookups!$N$3=2,F67)) -> Country | E67: Country | F67: País
A68: 68 | B68: 2.1_BasicInformation | D68: =IF(Lookups!$N$3=1,E68,IF(Lookups!$N$3=2,F68)) -> Currency | E68: Currency | F68: Moeda
A69: 69 | B69: 2.1_BasicInformation | D69: =IF(Lookups!$N$3=1,E69,IF(Lookups!$N$3=2,F69)) -> Currency Exchange Rate (R$ per 1 $US) | E69: =IF('2.1_BasicInformation'!E14="","Currency Exchange Rate",CONCATENATE("Currency Exchange Rate (",'2.1_BasicInformation'!$E$16," per 1 $US)")) -> Currency Exchange Rate (R$ per 1 $US) | F69: =IF('2.1_BasicInformation'!E14="","Taxa de câmbio",CONCATENATE("Taxa de câmbio (",'2.1_BasicInformation'!$E$16," por 1 $US)")) -> Taxa de câmbio (R$ por 1 $US)
A70: 70 | B70: 2.1_BasicInformation | D70: =IF(Lookups!$N$3=1,E70,IF(Lookups!$N$3=2,F70)) -> Lookup | E70: Lookup | F70: Buscar | G70: To translate this one, would need to understand exactly the context. I translated as "Look for"
A71: 71 | B71: {Placeholder} | D71: =IF(Lookups!$N$3=1,E71,IF(Lookups!$N$3=2,F71)) -> 0
A72: 72 | B72: 2.2_StreetlightInventory | D72: =IF(Lookups!$N$3=1,E72,IF(Lookups!$N$3=2,F72)) -> Directions: | E72: Directions: | F72: Instruções | G72: "Endereço" stands for Address. If Directions means instructions, than use "Instruções"
A73: 73 | B73: 2.2_StreetlightInventory | D73: =IF(Lookups!$N$3=1,E73,IF(Lookups!$N$3=2,F73)) -> Select an appropriate option based on data availability and complete streetlight inventory table below. | E73: Select an appropriate option based on data availability and complete streetlight inventory table below. | F73: Selecione a opção apropriada com base na disponibilidade de dados e complete a tabela abaixo do inventário de iluminação.
A74: 74 | B74: 2.2_StreetlightInventory | D74: =IF(Lookups!$N$3=1,E74,IF(Lookups!$N$3=2,F74)) -> Select one option | E74: Select one option | F74: Selecione uma opção | H74: new text
A75: 75 | B75: 2.2_StreetlightInventory | D75: =IF(Lookups!$N$3=1,E75,IF(Lookups!$N$3=2,F75)) -> Option 1 | E75: Option 1 | F75: Opção 1
A76: 76 | B76: 2.2_StreetlightInventory | D76: =IF(Lookups!$N$3=1,E76,IF(Lookups!$N$3=2,F76)) -> Enter a detailed streetlight inventory if you have data on the number, type, and wattage of lamps | E76: Enter a detailed streetlight inventory if you have data on the number, type, and wattage of lamps | F76: Inclua o inventário de iluminação detalhado com dados de número, tipo e voltagem
A77: 77 | B77: 2.2_StreetlightInventory | D77: =IF(Lookups!$N$3=1,E77,IF(Lookups!$N$3=2,F77)) -> Detailed Streetlight Inventory | E77: Detailed Streetlight Inventory | F77: Inventário de Iluminação Detalhado
A78: 78 | B78: 2.2_StreetlightInventory | D78: =IF(Lookups!$N$3=1,E78,IF(Lookups!$N$3=2,F78)) -> Option 2 | E78: Option 2 | F78: Opção 2
A79: 79 | B79: 2.2_StreetlightInventory | D79: =IF(Lookups!$N$3=1,E79,IF(Lookups!$N$3=2,F79)) -> Use the tool to estimate the number, type, and wattage of lamps | E79: Use the tool to estimate the number, type, and wattage of lamps | F79: Inclua o inventário de iluminação detalhado com dados de número, tipo e potência
A80: =ROW(A80) -> 80 | B80: 2.2_StreetlightInventory | D80: =IF(Lookups!$N$3=1,E80,IF(Lookups!$N$3=2,F80)) -> Estimated Inventory Using Total Number of Streetlights and Estimated Distribution of Lamp Technologies | E80: Estimated Inventory Using Total Number of Streetlights and Estimated Distribution of Lamp Technologies | F80: Inventário de Ruas Calculado pela Ferramenta com base no Número Total de Lâmpadas | G80: If Streetlights stand for lamps, change "Luzes de Ruas" for "Lâmpadas de Ruas" | H80: revised text
A81: 81 | B81: 2.2_StreetlightInventory | D81: =IF(Lookups!$N$3=1,E81,IF(Lookups!$N$3=2,F81)) -> STREETLIGHT INVENTORY | E81: STREETLIGHT INVENTORY | F81: INVENTÁRIO DE ILUMINAÇÃO PÚBLICA
A82: 82 | B82: 2.2_StreetlightInventory | D82: =IF(Lookups!$N$3=1,E82,IF(Lookups!$N$3=2,F82)) -> Technology | E82: Technology | F82: Tecnologia
A83: 83 | B83: 2.2_StreetlightInventory | D83: =IF(Lookups!$N$3=1,E83,IF(Lookups!$N$3=2,F83)) -> Lamp / Rated Power (W) | E83: Lamp / Rated Power (W) | F83: Lâmpada / Voltagem Potência (W)
A84: 84 | B84: 2.2_StreetlightInventory | D84: =IF(Lookups!$N$3=1,E84,IF(Lookups!$N$3=2,F84)) -> No. of lamps | E84: No. of lamps | F84: No de lâmpadas
A85: 85 | B85: 2.2_StreetlightInventory | D85: =IF(Lookups!$N$3=1,E85,IF(Lookups!$N$3=2,F85)) -> % share | E85: % share | F85: % participação
A86: 86 | B86: 2.2_StreetlightInventory | D86: =IF(Lookups!$N$3=1,E86,IF(Lookups!$N$3=2,F86)) -> Equivalent LED rated Power (W) | E86: Equivalent LED rated Power (W) | F86: Potência equivalente de LED avaliada (W)
A87: 87 | B87: 2.2_StreetlightInventory | D87: =IF(Lookups!$N$3=1,E87,IF(Lookups!$N$3=2,F87)) -> Average existing tech (W) | E87: Average existing tech (W) | F87: Média tecnologia existente (W)
A88: 88 | B88: 2.2_StreetlightInventory | D88: =IF(Lookups!$N$3=1,E88,IF(Lookups!$N$3=2,F88)) -> Average LED (W) | E88: Average LED (W) | F88: Media LED (W)
A89: 89 | B89: 2.2_StreetlightInventory | D89: =IF(Lookups!$N$3=1,E89,IF(Lookups!$N$3=2,F89)) -> High Pressure Sodium | E89: High Pressure Sodium | F89: Sódio de Alta Pressão (HPS)
A90: 90 | B90: 2.2_StreetlightInventory | D90: =IF(Lookups!$N$3=1,E90,IF(Lookups!$N$3=2,F90)) -> Mercury Vapor | E90: Mercury Vapor | F90: Vapor de Mercúrio
A91: 91 | B91: 2.2_StreetlightInventory | D91: =IF(Lookups!$N$3=1,E91,IF(Lookups!$N$3=2,F91)) -> Metal Halide | E91: Metal Halide | F91: Iodetos Metálicos
A92: 92 | B92: 2.2_StreetlightInventory | D92: =IF(Lookups!$N$3=1,E92,IF(Lookups!$N$3=2,F92)) -> Fluorescent | E92: Fluorescent | F92: Fluorescente
A93: 93 | B93: 2.2_StreetlightInventory | D93: =IF(Lookups!$N$3=1,E93,IF(Lookups!$N$3=2,F93)) -> Incandescent | E93: Incandescent | F93: Incandescente
A94: 94 | B94: 2.2_StreetlightInventory | D94: =IF(Lookups!$N$3=1,E94,IF(Lookups!$N$3=2,F94)) -> Halogen | E94: Halogen | F94: Halógena
A95: 95 | B95: 2.2_StreetlightInventory | D95: =IF(Lookups!$N$3=1,E95,IF(Lookups!$N$3=2,F95)) -> Mixed Lights | E95: Mixed Lights | F95: Luz Mixta
A96: 96 | B96: 2.2_StreetlightInventory | D96: =IF(Lookups!$N$3=1,E96,IF(Lookups!$N$3=2,F96)) -> Other | E96: Other | F96: Outras
A97: 97 | B97: 2.2_StreetlightInventory | D97: =IF(Lookups!$N$3=1,E97,IF(Lookups!$N$3=2,F97)) -> Total | E97: Total | F97: Total
A98: 98 | B98: 2.2_StreetlightInventory | D98: =IF(Lookups!$N$3=1,E98,IF(Lookups!$N$3=2,F98)) -> Step 1 - Enter Total Streetlights | E98: Step 1 - Enter Total Streetlights | F98: Fase 1 - Entre o número Total de Lâmpadas de Rua | G98: If Streetlights stand for lamps, change "Luzes de Ruas" for "Lâmpadas de Ruas"
A99: 99 | B99: 2.2_StreetlightInventory | D99: =IF(Lookups!$N$3=1,E99,IF(Lookups!$N$3=2,F99)) -> Number of Streetlights in City | E99: Number of Streetlights in City | F99: Número de Lâmpadas de Rua na Cidade | G99: If Streetlights stand for lamps, change "Luzes de Ruas" for "Lâmpadas de Ruas"
A100: 100 | B100: 2.2_StreetlightInventory | D100: =IF(Lookups!$N$3=1,E100,IF(Lookups!$N$3=2,F100)) -> Step 2 - Estimate Distribution of Streetlights by Technology and Wattage | E100: Step 2 - Estimate Distribution of Streetlights by Technology and Wattage | F100: Fase 2 - Estime a Distribuição das Luzes de Rua por Tecnologia e Potência
A101: 101 | B101: 2.2_StreetlightInventory | D101: =IF(Lookups!$N$3=1,E101,IF(Lookups!$N$3=2,F101)) -> Use Default % Share | E101: Use Default % Share | F101: Usar o % Distribuição Padrão
A102: 102 | B102: 2.2_StreetlightInventory | D102: =IF(Lookups!$N$3=1,E102,IF(Lookups!$N$3=2,F102)) -> Clear Inventory | E102: Clear Inventory | F102: Limpar o Inventário
A103: 103 | B103: {Placeholder} | D103: =IF(Lookups!$N$3=1,E103,IF(Lookups!$N$3=2,F103)) -> 0
A104: 104 | B104: 2.3_ExistingParameters | D104: =IF(Lookups!$N$3=1,E104,IF(Lookups!$N$3=2,F104)) -> Directions: | E104: Directions: | F104: Instruções:
A105: 105 | B105: 2.3_ExistingParameters | D105: =IF(Lookups!$N$3=1,E105,IF(Lookups!$N$3=2,F105)) -> Complete tables below. Review parameters and assumptions and make adjustments as needed by inputting a new value in the cell. | E105: Complete tables below. Review parameters and assumptions and make adjustments as needed by inputting a new value in the cell. | F105: Complete as tabelas abaixo. Reveja os parâmetros e premissas e faça os ajustes necessários incluindo um novo valor na célula.
A106: 106 | B106: 2.3_ExistingParameters | D106: =IF(Lookups!$N$3=1,E106,IF(Lookups!$N$3=2,F106)) -> If desired, you can use default value by clicking the 'Set All to Default' button or 'Use Default' button. | E106: If desired, you can use default value by clicking the 'Set All to Default' button or 'Use Default' button. | F106: Se desejar, você pode usar o valor padrão ao ciclar o botão "Configurar Todos para Padrão" ou o botão "Usar Padrão".
A107: 107 | B107: 2.3_ExistingParameters | D107: =IF(Lookups!$N$3=1,E107,IF(Lookups!$N$3=2,F107)) -> Set All to Default | E107: Set All to Default | F107: Configurar Todos para Padrão
A108: 108 | B108: 2.3_ExistingParameters | D108: =IF(Lookups!$N$3=1,E108,IF(Lookups!$N$3=2,F108)) -> Use Default | E108: Use Default | F108: Usar Padrão
A109: 109 | B109: 2.3_ExistingParameters | D109: =IF(Lookups!$N$3=1,E109,IF(Lookups!$N$3=2,F109)) -> TECHNICAL PARAMETERS AND ASSUMPTIONS | E109: TECHNICAL PARAMETERS AND ASSUMPTIONS | F109: PARÂMETROS TÉCNICOS E PREMISSAS
A110: 110 | B110: 2.3_ExistingParameters | D110: =IF(Lookups!$N$3=1,E110,IF(Lookups!$N$3=2,F110)) -> Average operating hours per day | E110: Average operating hours per day | F110: Média de horas de operação por dia
A111: 111 | B111: 2.3_ExistingParameters | D111: =IF(Lookups!$N$3=1,E111,IF(Lookups!$N$3=2,F111)) -> Average life existing technology | E111: Average life existing technology | F111: Vida útil média - tecnologia existente
A112: 112 | B112: 2.3_ExistingParameters | D112: =IF(Lookups!$N$3=1,E112,IF(Lookups!$N$3=2,F112)) -> Average life LED | E112: Average life LED | F112: Vida útil média - LED
A113: 113 | B113: 2.3_ExistingParameters | D113: =IF(Lookups!$N$3=1,E113,IF(Lookups!$N$3=2,F113)) -> Average life LED with dimming | E113: Average life LED with dimming | F113: Vida útil média - LED com dímer
A114: 114 | B114: 2.3_ExistingParameters | D114: =IF(Lookups!$N$3=1,E114,IF(Lookups!$N$3=2,F114)) -> Grid emission factor (tonnes CO2e/MWh) | E114: Grid emission factor (tonnes CO2e/MWh) | F114: Fator de emissão da rede (toneladas de CO2e/MWh)
A115: 115 | B115: 2.3_ExistingParameters | D115: =IF(Lookups!$N$3=1,E115,IF(Lookups!$N$3=2,F115)) -> FINANCIAL PARAMETERS AND ASSUMPTIONS | E115: FINANCIAL PARAMETERS AND ASSUMPTIONS | F115: PARÂMETROS FINANCEIROS E PREMISSAS
A116: 116 | B116: 2.3_ExistingParameters | D116: =IF(Lookups!$N$3=1,E116,IF(Lookups!$N$3=2,F116)) -> Retail cost of electricity for street lighting | E116: Retail cost of electricity for street lighting | F116: Preço de varejo da eletricidade para iluminação pública
A117: 117 | B117: 2.3_ExistingParameters | D117: =IF(Lookups!$N$3=1,E117,IF(Lookups!$N$3=2,F117)) -> Unsubsidized cost of electricity for street lighting | E117: Unsubsidized cost of electricity for street lighting | F117: Custo não subsidiado da eletricidade para iluminação pública
A118: 118 | B118: 2.3_ExistingParameters | D118: =IF(Lookups!$N$3=1,E118,IF(Lookups!$N$3=2,F118)) -> Real annual increase on electricity tariff (net of inflation) | E118: Real annual increase on electricity tariff (net of inflation) | F118: Aumento real anual na tarifa elétrica - caso base
A119: 119 | B119: 2.3_ExistingParameters | D119: =IF(Lookups!$N$3=1,E119,IF(Lookups!$N$3=2,F119)) -> Average price per luminaire - existing technology | E119: Average price per luminaire - existing technology | F119: Preço médio por luminária - tecnologia existente | H119: revised text
A120: 120 | B120: 2.3_ExistingParameters | D120: =IF(Lookups!$N$3=1,E120,IF(Lookups!$N$3=2,F120)) -> Average price per luminaire - LED - existing case (pre-tax) | E120: Average price per luminaire - LED - existing case (pre-tax) | F120: Preço médio por luminária - LED - caso base (antes dos impostos)
A121: 121 | B121: 2.3_ExistingParameters | D121: =IF(Lookups!$N$3=1,E121,IF(Lookups!$N$3=2,F121)) -> Annual decrease in LED prices | E121: Annual decrease in LED prices | F121: Decréscimo anual nos preços de LED
A122: 122 | B122: 2.3_ExistingParameters | D122: =IF(Lookups!$N$3=1,E122,IF(Lookups!$N$3=2,F122)) -> Additional cost of smart system (% increase to assumed LED price) | E122: Additional cost of smart system (% increase to assumed LED price) | F122: Custo adicional de sistema inteligente (% acima do preço de LED)
A123: 123 | B123: 2.3_ExistingParameters | D123: =IF(Lookups!$N$3=1,E123,IF(Lookups!$N$3=2,F123)) -> Additional infrastructure (civil works) cost per point | E123: Additional infrastructure (civil works) cost per point | F123: Custo da infraestrutura adicional (obra civil) por ponto
A124: 124 | B124: 2.3_ExistingParameters | D124: =IF(Lookups!$N$3=1,E124,IF(Lookups!$N$3=2,F124)) -> Installation cost per LED | E124: Installation cost per LED | F124: Custo de instalação por LED
A125: 125 | B125: 2.3_ExistingParameters | D125: =IF(Lookups!$N$3=1,E125,IF(Lookups!$N$3=2,F125)) -> Labor cost per lamp replacement - all technologies | E125: Labor cost per lamp replacement - all technologies | F125: Custo com pessoal por lâmpada substituída - todas tecnologias
A126: 126 | B126: 2.3_ExistingParameters | D126: =IF(Lookups!$N$3=1,E126,IF(Lookups!$N$3=2,F126)) -> Years of depreciation (default is straight-line) | E126: Years of depreciation (default is straight-line) | F126: Anos de depreciação (o padrão é linha reta )
A127: 127 | B127: 2.3_ExistingParameters | D127: =IF(Lookups!$N$3=1,E127,IF(Lookups!$N$3=2,F127)) -> Tax on domestic equipment | E127: Tax on domestic equipment | F127: Imposto sobre equipamento doméstico
A128: 128 | B128: 2.3_ExistingParameters | D128: =IF(Lookups!$N$3=1,E128,IF(Lookups!$N$3=2,F128)) -> Tax on imported equipment | E128: Tax on imported equipment | F128: Imposto sobre equipamento importado
A129: 129 | B129: 2.3_ExistingParameters | D129: =IF(Lookups!$N$3=1,E129,IF(Lookups!$N$3=2,F129)) -> % equipment expected to be imported | E129: % equipment expected to be imported | F129: % de equipamento que espera-se importar
A130: 130 | B130: 2.3_ExistingParameters | D130: =IF(Lookups!$N$3=1,E130,IF(Lookups!$N$3=2,F130)) -> Corporate Tax Rate | E130: Corporate Tax Rate | F130: Imposto corporativo
A131: 131 | B131: 2.3_ExistingParameters | C131: changed O&M to "Lamp Replacement (Equipment & Labor)" | D131: =IF(Lookups!$N$3=1,E131,IF(Lookups!$N$3=2,F131)) -> Current annual budget / COSIP rev. to fund public street lighting electricity and lamp replacement (equipment & labor)) | E131: =IF('2.1_BasicInformation'!$E$14="Brazil","Current annual budget / COSIP rev. to fund public street lighting electricity and lamp replacement (equipment & labor))","Current annual budget / public street lighting tax to fund electricity + lamp replacement (equipment & labor))") -> Current annual budget / COSIP rev. to fund public street lighting electricity and lamp replacement (equipment & labor)) | F131: =IF('2.1_BasicInformation'!$E$14="Brazil","Orçamento anual atual / COSIP rev. ao fundo de iluminação pública (eletric. + O&M)", "Orçamento anual atual / imposto por iluminação pública (eletric. + O&M)") -> Orçamento anual atual / COSIP rev. ao fundo de iluminação pública (eletric. + O&M)
A132: 132 | B132: 2.3_ExistingParameters | D132: =IF(Lookups!$N$3=1,E132,IF(Lookups!$N$3=2,F132)) -> Estimated annual increase (decrease) in budget for PSL | E132: Estimated annual increase (decrease) in budget for PSL | F132: Aumento (decréscimo) anual estimado no orçamento para PSL
A133: 133 | B133: 2.3_ExistingParameters | D133: =IF(Lookups!$N$3=1,E133,IF(Lookups!$N$3=2,F133)) -> Social cost of carbon dioxide (CO2e) in 2015 | E133: Social cost of carbon dioxide (CO2e) in 2015 | F133: Custo social do dióxido de carbono (CO2e) en 2015
A134: 134 | B134: {Placeholder} | D134: =IF(Lookups!$N$3=1,E134,IF(Lookups!$N$3=2,F134)) -> 0
A135: 135 | B135: 3.1_ProjectDesign | D135: =IF(Lookups!$N$3=1,E135,IF(Lookups!$N$3=2,F135)) -> PROJECT DESIGN PARAMETERS AND ASSUMPTIONS | E135: PROJECT DESIGN PARAMETERS AND ASSUMPTIONS | F135: PARÂMETROS DE PROJETO E PREMISSAS
A136: 136 | B136: 3.1_ProjectDesign | D136: =IF(Lookups!$N$3=1,E136,IF(Lookups!$N$3=2,F136)) -> IMPLEMENTATION & TECHNICAL VARIABLES | E136: IMPLEMENTATION & TECHNICAL VARIABLES | F136: IMPLEMENTAÇÃO E VARIÁVEIS TÉCNICAS
A137: 137 | B137: 3.1_ProjectDesign | D137: =IF(Lookups!$N$3=1,E137,IF(Lookups!$N$3=2,F137)) -> Total luminaires in city | E137: Total luminaires in city | F137: Total de luminárias na cidade
A138: 138 | B138: 3.1_ProjectDesign | D138: =IF(Lookups!$N$3=1,E138,IF(Lookups!$N$3=2,F138)) -> % luminaires replaced | E138: % luminaires replaced | F138: % de luminárias substituídas
A139: 139 | B139: 3.1_ProjectDesign | D139: =IF(Lookups!$N$3=1,E139,IF(Lookups!$N$3=2,F139)) -> Total luminaires replaced | E139: Total luminaires replaced | F139: Total de luminárias substituídas
A140: 140 | B140: 3.1_ProjectDesign | D140: =IF(Lookups!$N$3=1,E140,IF(Lookups!$N$3=2,F140)) -> Years to implement project | E140: Years to implement project | F140: Anos para implementar o projeto
A141: 141 | B141: 3.1_ProjectDesign | D141: =IF(Lookups!$N$3=1,E141,IF(Lookups!$N$3=2,F141)) -> Starting year of project | E141: Starting year of project | F141: Ano de início do projeto
A142: 142 | B142: 3.1_ProjectDesign | D142: =IF(Lookups!$N$3=1,E142,IF(Lookups!$N$3=2,F142)) -> Period of analysis | E142: Period of analysis | F142: Período de análise
A143: 143 | B143: 3.1_ProjectDesign | D143: =IF(Lookups!$N$3=1,E143,IF(Lookups!$N$3=2,F143)) -> Include smart system? | E143: Include smart system? | F143: Inclui sistema inteligente?
A144: =ROW(A144) -> 144 | B144: 3.1_ProjectDesign | D144: =IF(Lookups!$N$3=1,E144,IF(Lookups!$N$3=2,F144)) -> Dimming hours per day | E144: Dimming hours per day | F144: Horas de iluminação reduzida por dia
A145: 145 | B145: 3.1_ProjectDesign | D145: =IF(Lookups!$N$3=1,E145,IF(Lookups!$N$3=2,F145)) -> Include manufacture warranty | E145: Include manufacture warranty | F145: Inclui garantia do fabricante
A146: 146 | B146: 3.1_ProjectDesign | D146: =IF(Lookups!$N$3=1,E146,IF(Lookups!$N$3=2,F146)) -> Manufacture warranty duration | E146: Manufacture warranty duration | F146: Duração da garantia do fabricante
A147: 147 | B147: 3.1_ProjectDesign | D147: =IF(Lookups!$N$3=1,E147,IF(Lookups!$N$3=2,F147)) -> % failure not warrantied | E147: % failure not warrantied | F147: % de falha não coberta por garantia
A148: 148 | B148: 3.1_ProjectDesign | D148: =IF(Lookups!$N$3=1,E148,IF(Lookups!$N$3=2,F148)) -> FINANCIAL VARIABLES | E148: FINANCIAL VARIABLES | F148: VARIÁVEIS FINANCEIRAS
A149: 149 | B149: 3.1_ProjectDesign | D149: =IF(Lookups!$N$3=1,E149,IF(Lookups!$N$3=2,F149)) -> Revenue source | E149: Revenue source | F149: Fonte da receita
A150: 150 | B150: 3.1_ProjectDesign | D150: =IF(Lookups!$N$3=1,E150,IF(Lookups!$N$3=2,F150)) -> % finance by debt | E150: % finance by debt | F150: % financiamento por dívida
A151: 151 | B151: 3.1_ProjectDesign | D151: =IF(Lookups!$N$3=1,E151,IF(Lookups!$N$3=2,F151)) -> % finance by equity | E151: % finance by equity | F151: % financiamento por capital próprio
A152: 152 | B152: 3.1_ProjectDesign | D152: =IF(Lookups!$N$3=1,E152,IF(Lookups!$N$3=2,F152)) -> Cost of Debt (net of inflation) | E152: Cost of Debt (net of inflation) | F152: Custo da dívida (líquido de inflação)
A153: 153 | B153: 3.1_ProjectDesign | D153: =IF(Lookups!$N$3=1,E153,IF(Lookups!$N$3=2,F153)) -> Cost of Equity (net of inflation) | E153: Cost of Equity (net of inflation) | F153: Custo do capital (líquido de inflação)
A154: 154 | B154: 3.1_ProjectDesign | D154: =IF(Lookups!$N$3=1,E154,IF(Lookups!$N$3=2,F154)) -> Loan Tenure | E154: Loan Tenure | F154: Duração do impréstimo
A155: 155 | B155: 3.1_ProjectDesign | D155: =IF(Lookups!$N$3=1,E155,IF(Lookups!$N$3=2,F155)) -> Estimated loan size | E155: Estimated loan size | F155: Tamanho estimado do empréstimo
A156: 156 | B156: 3.1_ProjectDesign | D156: =IF(Lookups!$N$3=1,E156,IF(Lookups!$N$3=2,F156)) -> Grace Period (Principal) | E156: Grace Period (Principal) | F156: Período de carência (principal)
A157: 157 | B157: 3.1_ProjectDesign | D157: =IF(Lookups!$N$3=1,E157,IF(Lookups!$N$3=2,F157)) -> Grace Period (Interest) | E157: Grace Period (Interest) | F157: Período de carência (juros)
A158: 158 | B158: 3.1_ProjectDesign | D158: =IF(Lookups!$N$3=1,E158,IF(Lookups!$N$3=2,F158)) -> Total loan fees | E158: Total loan fees | F158: Taxas totais do empréstimo
A159: 159 | B159: 3.1_ProjectDesign | D159: =IF(Lookups!$N$3=1,E159,IF(Lookups!$N$3=2,F159)) -> Engineering + design cost (default) | E159: Engineering + design cost (default) | F159: Custo de projeto + engenharia (padrão)
A160: 160 | B160: 3.1_ProjectDesign | D160: =IF(Lookups!$N$3=1,E160,IF(Lookups!$N$3=2,F160)) -> Engineering + design cost (user input) | E160: Engineering + design cost (user input) | F160: Custo de projeto + engenharia (do usuário)
A161: 161 | B161: 3.1_ProjectDesign | D161: =IF(Lookups!$N$3=1,E161,IF(Lookups!$N$3=2,F161)) -> Additional Operating Expenditures | E161: Additional Operating Expenditures | F161: Despesas Operacionais Adicionais
D162: =IF(Lookups!$N$3=1,E162,IF(Lookups!$N$3=2,F162)) -> Annual Change in Additional Operational Expenditures | E162: Annual Change in Additional Operational Expenditures | F162: Variação Anual de Despesas Adicionais
A163: 163 | B163: 3.1_ProjectDesign | D163: =IF(Lookups!$N$3=1,E163,IF(Lookups!$N$3=2,F163)) -> Select Chart: | E163: Select Chart: | F163: Selecionar Gráfico:
A164: 164 | B164: 3.1_ProjectDesign | D164: =IF(Lookups!$N$3=1,E164,IF(Lookups!$N$3=2,F164)) -> Show All | E164: Show All | F164: Mostre Tudo
A165: 165 | B165: 3.1_ProjectDesign | D165: =IF(Lookups!$N$3=1,E165,IF(Lookups!$N$3=2,F165)) -> PROJECT PERFORMANCE DASHBOARD | E165: PROJECT PERFORMANCE DASHBOARD | F165: PAINEL DE DESEMPENHO DO PROJETO
A166: 166 | B166: 3.1_ProjectDesign | C166: changed from 'PRIMARY METRICS' to 'METRICS'; 'MÉTRICAS PRIMÁRIAS' to 'MÉTRICAS' | D166: =IF(Lookups!$N$3=1,E166,IF(Lookups!$N$3=2,F166)) -> METRICS | E166: METRICS | F166: MÉTRICAS
A167: 167 | B167: 3.1_ProjectDesign | D167: =IF(Lookups!$N$3=1,E167,IF(Lookups!$N$3=2,F167)) -> SECONDARY METRICS | E167: SECONDARY METRICS | F167: MÉTRICAS SECUNDÁRIAS
A168: 168 | B168: 3.1_ProjectDesign | D168: =IF(Lookups!$N$3=1,E168,IF(Lookups!$N$3=2,F168)) -> FREE CASH FLOW (CUMULATIVE) | E168: FREE CASH FLOW (CUMULATIVE) | F168: FLUXO DE CAIXA LIVRE (CUMULATIVO)
A169: 169 | B169: 3.1_ProjectDesign | D169: =IF(Lookups!$N$3=1,E169,IF(Lookups!$N$3=2,F169)) -> Cumulative Free Cash Flow | E169: Cumulative Free Cash Flow | F169: Fluxo de Caixa Livre Cumulativo
A170: 170 | B170: 3.1_ProjectDesign | D170: =IF(Lookups!$N$3=1,E170,IF(Lookups!$N$3=2,F170)) -> Operating Cash Flow | E170: Operating Cash Flow | F170: Fluxo de Caixa Operacional
A171: 171 | B171: 3.1_ProjectDesign | D171: =IF(Lookups!$N$3=1,E171,IF(Lookups!$N$3=2,F171)) -> DEBT AND EQUITY PROCEEDS | E171: DEBT AND EQUITY PROCEEDS | F171: RECURSOS DE DIVIDA E CAPITAL
A172: 172 | B172: 3.1_ProjectDesign | D172: =IF(Lookups!$N$3=1,E172,IF(Lookups!$N$3=2,F172)) -> Capital Expenses | E172: Capital Expenses | F172: Despesas de Capital
A173: 173 | B173: 3.1_ProjectDesign | D173: =IF(Lookups!$N$3=1,E173,IF(Lookups!$N$3=2,F173)) -> Net from Operations | E173: Net from Operations | F173: Líquido das Operações
A174: 174 | B174: 3.1_ProjectDesign | D174: =IF(Lookups!$N$3=1,E174,IF(Lookups!$N$3=2,F174)) -> Net from Investing | E174: Net from Investing | F174: Líquido dos Investimentos
A175: 175 | B175: 3.1_ProjectDesign | D175: =IF(Lookups!$N$3=1,E175,IF(Lookups!$N$3=2,F175)) -> Financing Proceeds | E175: Financing Proceeds | F175: Os rendimentos da Financiamento
A176: 176 | B176: 3.1_ProjectDesign | D176: =IF(Lookups!$N$3=1,E176,IF(Lookups!$N$3=2,F176)) -> Debt Service | E176: Debt Service | F176: Serviço de Débito
A177: 177 | B177: 3.1_ProjectDesign | D177: =IF(Lookups!$N$3=1,E177,IF(Lookups!$N$3=2,F177)) -> Cash Flow | E177: Cash Flow | F177: Fluxo de Caixa
A178: 178 | B178: 3.1_ProjectDesign | D178: =IF(Lookups!$N$3=1,E178,IF(Lookups!$N$3=2,F178)) -> Cumulative Cash Flow | E178: Cumulative Cash Flow | F178: Fluxo de Caixa Cumulativo
A179: 179 | B179: 3.1_ProjectDesign | D179: =IF(Lookups!$N$3=1,E179,IF(Lookups!$N$3=2,F179)) -> DEBT SERVICE COVERAGE RATIO (DSCR) TRENDS | E179: DEBT SERVICE COVERAGE RATIO (DSCR) TRENDS | F179: TENDÊNCIAS DE ÍNDICE DE COBERTURA DA DÍVIDA DE SERVIÇO (DSCR)
A180: 180 | B180: 3.1_ProjectDesign | D180: =IF(Lookups!$N$3=1,E180,IF(Lookups!$N$3=2,F180)) -> Terms: | E180: Terms: | F180: Termos:
A181: 181 | B181: 3.1_ProjectDesign | D181: =IF(Lookups!$N$3=1,E181,IF(Lookups!$N$3=2,F181)) -> CFADS = cash available for debt service | E181: CFADS = cash available for debt service | F181: CFADS = caixa disponível para dívida de serviço
A182: 182 | B182: 3.1_ProjectDesign | D182: =IF(Lookups!$N$3=1,E182,IF(Lookups!$N$3=2,F182)) -> DS = debt service amount | E182: DS = debt service amount | F182: DS = quantidade de dívida de serviço
A183: 183 | B183: 3.1_ProjectDesign | D183: =IF(Lookups!$N$3=1,E183,IF(Lookups!$N$3=2,F183)) -> DSCR = debt service coverage ratio | E183: DSCR = debt service coverage ratio | F183: DSCR = índice de cobertura da dívida de serviço
A184: 184 | B184: 3.1_ProjectDesign | D184: =IF(Lookups!$N$3=1,E184,IF(Lookups!$N$3=2,F184)) -> EARNINGS BEFORE INTEREST, TAXES, DEPRECIATION AND AMORTIZATION (EBITDA) TRENDS | E184: EARNINGS BEFORE INTEREST, TAXES, DEPRECIATION AND AMORTIZATION (EBITDA) TRENDS | F184: TENDÊNCIAS DE LUCRO ANTES DE JUROS, IMPOSTOS, DEPRECIAÇÃO E AMORTIZAÇÃO (EBITDA)
A185: 185 | B185: 3.1_ProjectDesign | D185: =IF(Lookups!$N$3=1,E185,IF(Lookups!$N$3=2,F185)) -> Terms: | E185: Terms: | F185: Termos:
A186: 186 | B186: 3.1_ProjectDesign | D186: =IF(Lookups!$N$3=1,E186,IF(Lookups!$N$3=2,F186)) -> EBITDA = earnings before interest, taxes, depreciation and amortization | E186: EBITDA = earnings before interest, taxes, depreciation and amortization | F186: EBITDA = lucro antes de juros, impostos, depreciação e amortização
A187: 187 | B187: 3.1_ProjectDesign | D187: =IF(Lookups!$N$3=1,E187,IF(Lookups!$N$3=2,F187)) -> Note: Due to the nature of the retrofit project, there are no net operating expenses. | E187: Note: Due to the nature of the retrofit project, there are no net operating expenses. | F187: Nota: Devido à natureza do projeto de substituição, não há despesas operacionais líquidas.
A188: 188 | B188: 3.1_ProjectDesign | D188: =IF(Lookups!$N$3=1,E188,IF(Lookups!$N$3=2,F188)) -> Therefore EBITDA is equal to net operating revenues. | E188: Therefore EBITDA is equal to net operating revenues. | F188: Logo, o EBITDA é igual às receitas operacionais líquidas.
A189: 189 | B189: 3.1_ProjectDesign | D189: =IF(Lookups!$N$3=1,E189,IF(Lookups!$N$3=2,F189)) -> Operating Revenues (+) | E189: Operating Revenues (+) | F189: Receitas Operacionais (+)
A190: 190 | B190: 3.1_ProjectDesign | D190: =IF(Lookups!$N$3=1,E190,IF(Lookups!$N$3=2,F190)) -> Operating Expenses (-) | E190: Operating Expenses (-) | F190: Despesas Operacionais (-)
A191: 191 | B191: 3.1_ProjectDesign | D191: =IF(Lookups!$N$3=1,E191,IF(Lookups!$N$3=2,F191)) -> EBITDA | E191: EBITDA | F191: EBITDA
A192: 192 | B192: 3.1_ProjectDesign | D192: =IF(Lookups!$N$3=1,E192,IF(Lookups!$N$3=2,F192)) -> EBITDA margin | E192: EBITDA margin | F192: Margem do EBITDA
A193: 193 | B193: 3.1_ProjectDesign | D193: =IF(Lookups!$N$3=1,E193,IF(Lookups!$N$3=2,F193)) -> Timeline (Years) | E193: Timeline (Years) | F193: Duração (Anos)
A194: 194 | B194: 3.1_ProjectDesign | D194: =IF(Lookups!$N$3=1,E194,IF(Lookups!$N$3=2,F194)) -> Financial vs. Economic analysis | E194: Financial vs. Economic analysis | F194: Análise Financeira vs. Econômica
A195: 195 | B195: 3.1_ProjectDesign | C195: # year is linked to period | D195: =IF(Lookups!$N$3=1,E195,IF(Lookups!$N$3=2,F195)) -> Total investment over 13 years (CAPEX + fees) | E195: ="Total investment over "&ref_period&" years (CAPEX + fees)" -> Total investment over 13 years (CAPEX + fees) | F195: ="Investimento total em "&ref_period&" anos (CAPEX + taxas)" -> Investimento total em 13 anos (CAPEX + taxas)
A196: 196 | B196: 3.1_ProjectDesign | C196: # year is linked to period | D196: =IF(Lookups!$N$3=1,E196,IF(Lookups!$N$3=2,F196)) -> Total revenues over 13 years | E196: ="Total revenues over "&ref_period&" years" -> Total revenues over 13 years | F196: ="Receita total em "&ref_period&" anos" -> Receita total em 13 anos
A197: 197 | B197: 3.1_ProjectDesign | C197: # year is linked to period | D197: =IF(Lookups!$N$3=1,E197,IF(Lookups!$N$3=2,F197)) -> Total electricity savings over 13 years | E197: ="Total electricity savings over "&ref_period&" years" -> Total electricity savings over 13 years | F197: ="Economia total com eletricidade em "&ref_period&" anos" -> Economia total com eletricidade em 13 anos
A198: 198 | B198: 3.1_ProjectDesign | C198: # year is linked to period | D198: =IF(Lookups!$N$3=1,E198,IF(Lookups!$N$3=2,F198)) -> Total GHG reductions over 13 years | E198: ="Total GHG reductions over "&ref_period&" years" -> Total GHG reductions over 13 years | F198: ="Redução total de GEE em "&ref_period&" anos" -> Redução total de GEE em 13 anos
A199: 199 | B199: 3.1_ProjectDesign | C199: changed from 'NPV' to 'Project NPV'; # year is linked to period | D199: =IF(Lookups!$N$3=1,E199,IF(Lookups!$N$3=2,F199)) -> Project NPV over 13 years (R$) | E199: ="Project NPV over "&ref_period&" years (R$)" -> Project NPV over 13 years (R$) | F199: ="Valor presente líquido "&ref_period&" anos (R$)" -> Valor presente líquido 13 anos (R$)
A200: 200 | B200: 3.1_ProjectDesign | C200: changed from 'IRR' to 'Project IRR' | D200: =IF(Lookups!$N$3=1,E200,IF(Lookups!$N$3=2,F200)) -> Project IRR | E200: Project IRR | F200: TIR de Projeto
... 181 more rows

Sheet 5.2_UserOverride
C7: =Language_Refs!D285 -> Directions:
C8: =Language_Refs!D286 -> This page allows you to reset the default assumptions used throughout the tool. Please enter the revised value in the same format and unit as the original value. Prices listed are as of 2012, and are automatically indexed to change over time, depending on the technology (see assumptions on annual price changes below).
D13: =Language_Refs!D82 -> Technology | F13: =Language_Refs!D380 -> Replacement efficiency with LEDs
D15: =Language_Refs!D92 -> Fluorescent | E15: % | F15: 0.6818181818
D16: =Language_Refs!D89 -> High Pressure Sodium | E16: % | F16: 0.4468761905
D17: =Language_Refs!D94 -> Halogen | E17: % | F17: 0.84875
D18: =Language_Refs!D90 -> Mercury Vapor | E18: % | F18: 0.5480142857
D19: =Language_Refs!D91 -> Metal Halide | E19: % | F19: 0.3993095238
D20: =Language_Refs!D93 -> Incandescent | E20: % | F20: 0.8700833333
D21: =Language_Refs!D95 -> Mixed Lights | E21: % | F21: 0.7648333333
D22: ='Inventory - Replacement Plan'!B10 -> Ceramic Metal Halide | E22: 0.2
D27: =Lifetime!B2 -> Fixture type | F27: =Language_Refs!D379 -> Average Life (hours)
D29: =D15 -> Fluorescent | E29: n | F29: 9000
D30: =D16 -> High Pressure Sodium | E30: n | F30: 32000
D31: =D18 -> Mercury Vapor | E31: n | F31: 24000
D32: =D19 -> Metal Halide | E32: n | F32: 20000
D33: =D20 -> Incandescent | E33: n | F33: 2000
D34: =D21 -> Mixed Lights | E34: n | F34: 9000
D35: =Language_Refs!D96 -> Other | E35: n | F35: 0
D36: LED | E36: n | F36: 50000
D37: =Language_Refs!D377 -> LED lifetime with control system | E37: n | F37: 55000
D44: =Language_Refs!D320 -> Change in avg. LED replacement wattage - low savings scenario | E44: % | F44: Removed
D45: =Language_Refs!D321 -> Change in avg. LED replacement wattage - high savings scenario | E45: % | F45: Removed
D46: =Language_Refs!D322 -> Change in average life - low savings scenario | E46: % | F46: Removed
D47: =Language_Refs!D323 -> Change in average life - high savings scenario | E47: % | F47: Removed
D48: =Language_Refs!D324 -> LED failure rate in year 1 | E48: % | F48: 0.05
D49: =Language_Refs!D325 -> LED annual failure rate until useful life reached | E49: % | F49: 0.02
D50: =Language_Refs!D326 -> LED annual failure rate after useful life reached | E50: % | F50: 0.2
D51: =Language_Refs!D327 -> % decrease in lumen output from smart system when dimming | E51: % | F51: -0.3
D52: =Language_Refs!D328 -> Average operating hours per day | E52: n | F52: 11.53
D60: =Language_Refs!D333 -> Grid emission factor | E60: =Language_Refs!D334 -> tonnes CO2e/MWh | F60: 0.2997

Sheet Assumptions (hidden)
C2: Assumptions
C5: Part 1 - City information | D5: unit | E5: value
C6: Name of city | D6: name | E6: ='2.1_BasicInformation'!E12 -> Average FinBRAZEEC City
C7: Nation | D7: ADD | E7: ='2.1_BasicInformation'!E14 -> Brazil
C8: Currency | D8: symbol | E8: =INDEX(Lookups!$D$3:$D$298,MATCH(E7,Lookups!$B$3:$B$298,0),1) -> R$
C9: Exchange rate | D9: =E8&" / USD" -> R$ / USD | E9: ='2.1_BasicInformation'!$E$18 -> 3.31
C11: Part 2 - Key assumptions | D11: unit | E11: value
C12: Total luminaires in city | D12: n | E12: ='Inventory - Replacement Plan'!G69 -> 42500
C13: % luminaires replaced in project | D13: % | E13: =IF('Inventory - Replacement Plan'!G3=1,'3.1_ProjectDesign'!F13,IF('Inventory - Replacement Plan'!G3=2,'Inventory - Replacement Plan'!H69/'Inventory - Replacement Plan'!G69)) -> 1
C14: Total luminaires replaced in project | D14: n | E14: =E12*E13 -> 42500
C15: Years to implement project | D15: n | E15: ='3.1_ProjectDesign'!F17 -> 2
C16: Starting year of project | D16: n | E16: ='3.1_ProjectDesign'!F19 -> 2019
C17: Period of analysis | D17: years | E17: ='3.1_ProjectDesign'!F21 -> 13
C18: Average operating hours per day | D18: hours | E18: ='2.3_ExistingParameters'!F12 -> 11.5
C19: Include smart system? | D19: flag | E19: ='3.1_ProjectDesign'!F23 -> Y
C20: Additional cost of smart system (% increase to assumed LED price) | D20: % | E20: =IF(E19="Y",20%,0) -> 0.2
C21: Dimming hours per day | D21: hours | E21: =IF(E19="Y",5,0) -> 5
C22: Retail cost of electricity for street lighting | D22: =$E$8&" / MWh" -> R$ / MWh | E22: ='2.3_ExistingParameters'!F26 -> 440
C23: Unsubsidized cost of electricity for street lighting | D23: =$E$8&" / MWh" -> R$ / MWh | E23: ='2.3_ExistingParameters'!F28 -> 540
C24: Real annual increase on electricity tariff - base case | D24: % | E24: ='2.3_ExistingParameters'!F30 -> 0.02
C25: Current annual budget / COSIP rev. to fund PSL (elec. + O&M) | D25: =$E$8 -> R$ | E25: ='2.3_ExistingParameters'!F56 -> 18000000
C26: Estimated annual increase (decrease) in budget for PSL | D26: % | E26: ='2.3_ExistingParameters'!F58 -> 0.005
C27: Current technology weighted average | D27: watt | E27: ='Inventory - Replacement Plan'!G70 -> 202.565
C28: LED replacement wattage (weighted avg) - base case | D28: watt | E28: ='Inventory - Replacement Plan'!H70 -> 108.463953
C29: Grid emission factor | D29: tCO2e / MWh | E29: ='2.3_ExistingParameters'!F20 -> 0.44
C30: Tax on domestic equipment | D30: % | E30: ='2.3_ExistingParameters'!F48 -> 0.46
C31: Tax on imported equipment | D31: % | E31: ='2.3_ExistingParameters'!F50 -> 0.75
C32: % equipment expected to be imported | D32: % | E32: ='2.3_ExistingParameters'!F52 -> 0.5
C33: % finance by debt | D33: % | E33: ='3.1_ProjectDesign'!F38 -> 1
C34: % finance by equity | D34: % | E34: =1-E33 -> 0
C35: Cost of Debt (net of inflation) | D35: % | E35: ='3.1_ProjectDesign'!F42 -> 0.0325
C36: Cost of Equity (net of inflation) | D36: % | E36: ='3.1_ProjectDesign'!F44 -> 0
C37: Loan tenure | D37: years | E37: ='3.1_ProjectDesign'!F46 -> 10
C38: Corporate Tax Rate | D38: % | E38: ='2.3_ExistingParameters'!F54 -> 0.3
C41: Part 3 - Other important data / assumptions (to be reviewed) | D41: unit | E41: value
C42: Estimated loan size | D42: =$E$8 -> R$ | E42: =Investment!C52 -> 34960272.27
C43: =C188 -> Grace Period (Principal) | D43: =D188 -> years | E43: ='3.1_ProjectDesign'!F50 -> 1
C44: =C189 -> Grace Period (Interest) | D44: =D189 -> years | E44: ='3.1_ProjectDesign'!F52 -> 0
C46: Total loan fees | D46: % | E46: ='3.1_ProjectDesign'!F54 -> 0
C47: Depreciation (annual) | D47: % | E47: =MAX(1/'2.3_ExistingParameters'!$F$46,1/E17,1/IF($E$19="Y", Lifetime!D11, Lifetime!D10)) -> 0.07692307692
C48: Average price per luminaire - existing technology | D48: =$E$8&" / point" -> R$ / point | E48: ='2.3_ExistingParameters'!F32 -> 369.4361191 | G48: --> complete "Prices" worksheet (optional)
C49: Average price per luminaire - LED - base case (pre-tax) | D49: =$E$8&" / point" -> R$ / point | E49: ='2.3_ExistingParameters'!F34 -> 604.5672816 | G49: --> complete "Prices" worksheet (optional)
C50: Additional infrastructure (civil works) cost per point | D50: =$E$8&" / point" -> R$ / point | E50: ='2.3_ExistingParameters'!E40 -> 0
C51: Additional cost of smart system (% increase to assumed LED price) | D51: % | E51: =IF(flag_sens,IF(E76="Base case",('4.3_SensitivityAnalysis'!E21),IF(E76="Low",('4.3_SensitivityAnalysis'!G21),('4.3_SensitivityAnalysis'!I21))),'3.1_ProjectDesign'!F64) -> 0.1
C52: Annual decrease in LED prices | D52: % / year | E52: =IF(flag_sens,IF(E78="Base case",('4.3_SensitivityAnalysis'!E16),IF(E78="Low",('4.3_SensitivityAnalysis'!I16),('4.3_SensitivityAnalysis'!G16))),'2.3_ExistingParameters'!F36) -> 0.1
C53: Engineering + project design cost | D53: =$E$8 -> R$ | E53: =IF('3.1_ProjectDesign'!F57=TRUE,'3.1_ProjectDesign'!F58,'3.1_ProjectDesign'!E56) -> 1125750
C54: Installation cost per LED | D54: =$E$8&" / point" -> R$ / point | E54: ='2.3_ExistingParameters'!F42 -> 79
C56: Labor cost per lamp replacement - all technologies (incl'd LED) | D56: =$E$8&" / point" -> R$ / point | E56: ='2.3_ExistingParameters'!F44 -> 165.71
C57: Averge life existing technology | D57: hours | E57: ='2.3_ExistingParameters'!F14 -> 28800 | G57: --> complete "Lifetime" worksheet (optional)
C58: Averge life LED | D58: hours | E58: ='2.3_ExistingParameters'!F16 -> 50000 | G58: --> complete "Lifetime" worksheet (optional)
C59: Averge life LED with dimming | D59: hours | E59: =Lifetime!C11 -> 55000 | G59: --> complete "Lifetime" worksheet (optional)
C60: Dimming hours per day | D60: hours | E60: ='3.1_ProjectDesign'!F25 -> 5
C61: Social cost of carbon dioxide (CO2e) - in 2015 | D61: =$E$8&" / tCO2e" -> R$ / tCO2e | E61: ='2.3_ExistingParameters'!F60 -> 94.8
C62: Include manufacture warranty | D62: flag | E62: ='3.1_ProjectDesign'!F27 -> Y
C63: Manufacture warranty duration | D63: years | E63: ='3.1_ProjectDesign'!F29 -> 10
C64: Estimated % failures not covered by warranty while active | D64: % | E64: ='3.1_ProjectDesign'!F31 -> 0.1
C65: Additional Operational Expenditures | D65: =$E$8 -> R$ | E65: ='2.3_ExistingParameters'!F62 -> 0
C66: Annual Change in 'Additional Operating Expenditures' | D66: % | E66: ='3.1_ProjectDesign'!F62 -> 0
C67: Maximum social cost of carbon dioxide (CO2e) | D67: =$E$8&" / tCO2e" -> R$ / tCO2e | E67: =E129*E9 -> 264.8
C69: Scenario & Sensitivity Analysis Parameters
C70: Part 4 - Variables for Scenario analysis and Sensitivity Analysis | D70: unit | E70: value
C71: Revenue source - muni budget/COSIP or project revenues | D71: flag | E71: =IF(OR('3.1_ProjectDesign'!F36=Language_Refs!$E$340,'3.1_ProjectDesign'!F36=Language_Refs!$F$340),'3.1_ProjectDesignData'!$D$122,IF(OR('3.1_ProjectDesign'!F36=Language_Refs!$E$341,'3.1_ProjectDesign'!F36=Language_Refs!$F$341),'3.1_ProjectDesignData'!$D$123)) -> Project Savings
C72: Financial vs. Economic analysis | D72: flag | E72: =IF(OR('3.1_ProjectDesign'!N9=Language_Refs!$E$342,'3.1_ProjectDesign'!N9=Language_Refs!$F$342),'3.1_ProjectDesignData'!$D$126,IF(OR('3.1_ProjectDesign'!N9=Language_Refs!$E$343,'3.1_ProjectDesign'!N9=Language_Refs!$F$343),'3.1_ProjectDesignData'!$D$127)) -> Economic
C73: LED (and smart system) pricing scenario | D73: flag | E73: ='4.3_SensitivityData'!D6 -> Base case
C74: Cost of electricity scenario | D74: flag | E74: ='4.3_SensitivityData'!D7 -> Base case
C75: Savings potential (electricity and O&M) | D75: flag | E75: ='4.3_SensitivityData'!D8 -> Base case
C76: Cost of smart system | D76: flag | E76: ='4.3_SensitivityData'!D9 -> Base case
C77: ='4.3_SensitivityData'!C10 -> Cost of Eletricity in Year 1 | D77: flag | E77: ='4.3_SensitivityData'!D10 -> Base case
C78: ='4.3_SensitivityData'!C11 -> Annual decrease in LED price | D78: flag | E78: ='4.3_SensitivityData'!D11 -> Base case
C80: Key Metrics
C81: Part 5 - Estimated project results | D81: unit | E81: value
C82: ="Total project investment over "&E17&" years (CAPEX + fees)" -> Total project investment over 13 years (CAPEX + fees) | D82: =$E$8 -> R$ | E82: =ROUND(-Investment!D46, -5) -> 30100000
C83: ="Total revenues over "&E17&" years" -> Total revenues over 13 years | D83: =$E$8 -> R$ | E83: =ROUND(IF(E71="Budget/COSIP", Operations!D35,Operations!D29), -5) -> 174500000
C84: ="Total GHG reductions over "&E17&" years" -> Total GHG reductions over 13 years | D84: tCO2e | E84: =SUM('Electricity savings'!E45:X45) -> 106279.5624
C85: ="Total electricity savings over "&E17&" years" -> Total electricity savings over 13 years | D85: GWh | E85: ='Electricity savings'!D39/1000 -> 241.54446
C86: Payback period (non-discounted) | D86: years | E86: =E82/(E83/E17) -> 2.242406877
C87: RoI | D87: % | E87: =(E83-E82)/E82 -> 4.797342193
C88: ="NPV over "&E17&" years (million "&E8&")" -> NPV over 13 years (million R$) | D88: =$E$8 -> R$ | E88: =ROUND('Free Cash Flows'!D23,-5) -> 74100000
C89: Project IRR | D89: % | E89: =IFERROR('Free Cash Flows'!D24, "n/a") -> 0.4609898717
C90: WACC (net) | D90: % | E90: ='Free Cash Flows'!C11 -> 0.0325
C91: Min DSCR | D91: n | E91: ='Debt Service'!C40 -> 2.802746619
C92: After-tax cost per point in year 1 of project (tech + infrastructure) | D92: =$E$8 -> R$ | E92: =Investment!C12 -> 665.0240098
C93: Cost of electricity at year 1 | D93: =$E$8&"/MWh" -> R$/MWh | E93: =IF(E72="Financial", E22, E23)*IF(flag_sens,IF(E77="Base case",(1+'4.3_SensitivityAnalysis'!E26), IF(E77="Low",(1+'4.3_SensitivityAnalysis'!I26), (1+'4.3_SensitivityAnalysis'!G26))),1) -> 540
C94: Real annual increase on electricity tariff | D94: % | E94: =IF(flag_sens,IF(E74="Base case",'4.3_SensitivityAnalysis'!E31, IF(E74="Low",'4.3_SensitivityAnalysis'!I31,'4.3_SensitivityAnalysis'!G31)),E24) -> 0.02
C95: Averge life LED | D95: hours | E95: =IF(flag_sens,IF(E75="Base case",1+'4.3_SensitivityAnalysis'!E36,IF(E75="Low",1+'4.3_SensitivityAnalysis'!I36,1+'4.3_SensitivityAnalysis'!G36)),1)*IF(E19="Y",E59,E58) -> 55000
C96: Average LED wattage with project | D96: watt | E96: =IF($E$19="N",1,1*(1+E177))*E28 -> 94.31648091
C97: % electricity saving to LED with project | D97: % | E97: =($E$27-E96)/$E$27 -> 0.5343890558
C98: % O&M saving to LED with project | D98: % | E98: ='O&M'!D98 -> 0.7995253351
C99: Equity IRR | D99: % | E99: =IFERROR('Free Cash Flows'!D39, "n/a") -> n/a
C103: Default Data
C106: Additional assumptions: Note to user: Cells in orange incorporate user's input from Table 3 in the LED street lighitng tool worksheet. Cells in blue denote calculated figures.
C107: Notes to user: -- If desired, you can review these detailed assumptions and make changes as needed -- Cells in orange incorporate user's input from Table 3 in the LED street lighitng tool worksheet. -- Cells in blue denote calculated figures.
C109: Part 6 - Default cost assumptions in USD | D109: unit | E109: value
C110: Average price per luminaire - existing technology | D110: USD / point | E110: =INDEX(Prices!B34:Y34,1,MATCH(E16,Prices!B21:Y21,1)) -> 116.9101643
C111: Average price per luminaire - LED - base case | D111: USD / point | E111: =INDEX(Prices!B35:Y35, 1, MATCH(E16, Prices!B21:Y21, 1)) -> 191.31876
C112: Annual decrease in LED prices | D112: % | E112: ='5.1_DefaultData'!F14 -> 0.1
C113: Additional infrastructure (civil works) cost per point | D113: USD / point | E113: ='5.1_DefaultData'!F15 -> 0
C114: Engineering + project design cost | D114: USD | E114: ='5.1_DefaultData'!F16 -> 356250
C115: Installation cost/luminaire | D115: USD / point | E115: ='5.1_DefaultData'!F17 -> 25
C116: Current O&M cost per point per year | D116: USD / point / year | E116: ='5.1_DefaultData'!F18 -> 60
C117: Maintenance cost per lamp replacement - all technologies (incl'd LED) | D117: USD / point | E117: ='5.1_DefaultData'!F19 -> 50
C118: Overhead cost of software for smart system (CAPEX) | D118: USD | E118: ='5.1_DefaultData'!F20 -> 100000
C119: Additional cost of smart system (% increase to assumed LED price) | D119: % | E119: ='5.1_DefaultData'!F21 -> 0.2
C120: Cost of existing tech. replacement parts upon failure | D120: % luminaire cost | E120: ='5.1_DefaultData'!F22 -> 0.2
C121: Cost of LED replacement parts upon failure | D121: % luminaire cost | E121: ='5.1_DefaultData'!F23 -> 0.4
C122: Social cost of carbon (CO2e) | D122: USD / ton | E122: ='5.1_DefaultData'!F68 -> 30
C123: Cost of existing tech. replacement parts upon failure | D123: USD / point | E123: =E110*E120 -> 23.38203286
C124: Cost per LED replacement parts upon failure | D124: USD / point | E124: =E111*E121 -> 76.527504
C125: Tax on domestic equipment | E125: ='5.1_DefaultData'!F48 -> 0.46
C126: Tax on imported equipment | E126: ='5.1_DefaultData'!F49 -> 0.75
C127: % equipment expected to be imported | E127: ='5.1_DefaultData'!F50 -> 0.7
C128: Corporate Tax Rate | E128: ='5.1_DefaultData'!F51 -> 0.3
C129: Social cost of carbon (CO2e) | D129: USD / ton | E129: ='5.1_DefaultData'!F69 -> 80
C130: Final cost assumptions in LOCAL CURRENCY, incorporating user input | D130: unit | E130: value
C131: Average price per luminaire - existing technology | D131: =$E$8&" / point" -> R$ / point | E131: =E48 -> 369.4361191 | F131: x
C132: Average price per luminaire - LED - base case | D132: =$E$8&" / point" -> R$ / point | E132: =E49 -> 604.5672816 | F132: x
C133: Additional infrastructure (civil works) cost per point | D133: =$E$8&" / point" -> R$ / point | E133: =E50 -> 0 | F133: x
B134: 2 | C134: Additional % cost of smart system | D134: % additional cost | E134: =E51 -> 0.1 | F134: x
C135: Final pre-tax cost per point | D135: =$E$8&" / point" -> R$ / point | E135: =E49*IF(E19="N", 1, (1+E51))+E50 -> 665.0240098
C136: Annual decrease in LED prices | D136: %/year | E136: =E52 -> 0.1 | F136: x
C137: Engineering + project design cost | D137: =$E$8 -> R$ | E137: =E53 -> 1125750 | F137: x
C138: Installation cost/luminaire | D138: =$E$8&" / point" -> R$ / point | E138: =E54 -> 79 | F138: x
C139: Maintenance cost per lamp replacement - all technologies (incl'd LED) | D139: =$E$8&" / point" -> R$ / point | E139: =E56 -> 165.71 | F139: x
C140: Social cost of carbon (CO2e) in 2015 | D140: =$E$8&" / ton" -> R$ / ton | E140: =E122*$E$9 -> 99.3
C141: % annual increase in social cost of carbon | D141: % | E141: =((80/30)^(1/(2050-2015)))-1 -> 0.02842005043
C142: Overhead cost of software for smart system (CAPEX) | D142: =$E$8 -> R$ | E142: =E118*E9 -> 331000
C143: Cost of existing tech. replacement parts upon failure | D143: =$E$8&" / point" -> R$ / point | E143: =E48*E120 -> 73.88722382
C144: Expected cost per LED replacement parts upon failure | D144: =$E$8&" / point" -> R$ / point | E144: =E49*E121 -> 241.8269126
C145: Include manufacture warranty | D145: flag | E145: =E62 -> Y | F145: x
C146: Manufacture warranty duration | D146: years | E146: =E63 -> 10 | F146: x
C147: Estimated % failures not covered by warranty while active | D147: % | E147: =E64 -> 0.1 | F147: x
C149: Electricity usage and costs | D149: unit | E149: value
C150: Change in electricity tariff in year 1 - low case | D150: % | E150: ='5.1_DefaultData'!F57 -> removed | F150: x
C151: Change in electricity tariff in year 1 - high case | D151: % | E151: ='5.1_DefaultData'!F58 -> removed | F151: x
C152: Real annual increase on electricity tariff - existing case | D152: % | E152: ='5.1_DefaultData'!F59 -> 0.02
B153: 3 | C153: Change in real annual increase on electricity tariff - low case | D153: % | E153: ='5.1_DefaultData'!F60 -> removed | F153: x
B154: 3 | C154: Change in real annual increase on electricity tariff - high case | D154: % | E154: ='5.1_DefaultData'!F61 -> removed | F154: x
C156: Other luminaire pricing information | D156: unit | E156: value
B157: 1 | C157: Change in LED price in low price scenario | D157: % | E157: ='5.1_DefaultData'!F24 -> removed | F157: x
B158: 1 | C158: Change in LED price in high price scenario | D158: % | E158: ='5.1_DefaultData'!F25 -> removed | F158: x
C159: Year of LED price plateau | D159: n | E159: ='5.1_DefaultData'!F26 -> 10
C160: Annual change in current technology prices | D160: % / year | E160: ='5.1_DefaultData'!F41 -> -0.02
C161: Year of existing technology price plateau | D161: n | E161: ='5.1_DefaultData'!F42 -> 5
C163: Bulb technical specs | D163: unit | E163: value
C164: Averge life existing technology | D164: hours | E164: =E57 -> 28800 | F164: x
C165: Useful life LED | D165: hours | E165: =E58 -> 50000 | F165: x
C166: Useful life LED with dimming | D166: hours | E166: =E59 -> 55000 | F166: x
C167: Dimming hours per day | D167: hours | E167: =E60 -> 5 | F167: x
C168: Change in avg. LED replacement wattage - low savings scenario | D168: watt | E168: ='5.2_UserOverride'!F44 -> Removed | F168: x
C169: Change in avg. LED replacement wattage - high savings scenario | D169: watt | E169: ='5.2_UserOverride'!F45 -> Removed | F169: x
B170: 4 | C170: Change in average life - low savings scenario | D170: % | E170: ='5.2_UserOverride'!F46 -> Removed | F170: x
B171: 4 | C171: Change in average life - high savings scenario | D171: % | E171: ='5.2_UserOverride'!F47 -> Removed | F171: x
C172: Annual failure rate for existing technology (assumed constant) | D172: % | E172: =1/Lifetime!G15 -> 0.1457465278
C173: LED failure rate in year 1 | D173: % | E173: ='5.2_UserOverride'!F48 -> 0.05
C174: LED annual failure rate until useful life reached | D174: % | E174: ='5.2_UserOverride'!F49 -> 0.02
C175: LED annual failure rate after useful life reached | D175: % | E175: ='5.2_UserOverride'!F50 -> 0.2
C176: % decrease in lumen output from smart system when dimming | D176: % | E176: ='5.2_UserOverride'!F51 -> -0.3
C177: % overall change in average replacement wattage from dimming | D177: % | E177: =((1+E176)*(E60/E18)+((E18-E60)/E18))-1 -> -0.1304347826
C178: Average operating hours per day | E178: ='5.2_UserOverride'!F52 -> 11.53
C179: Grid emission factor (tonnes CO2e/MWh) | E179: ='5.2_UserOverride'!F60 -> 0.2997
C181: Financial Data | D181: unit | E181: value
C182: % finance by debt | D182: % | E182: =IF(F32<>"", F32, E33) -> 1 | F182: x
C183: % finance by equity | D183: % | E183: =IF(F33<>"", F33, E34) -> 0 | F183: x
C184: Interest rate on Loan (net of inflation) | D184: % | E184: =IF(F34<>"", F34, E35) -> 0.0325 | F184: x
C185: Equity discount rate (net of inflation) | D185: % | E185: =IF(F35<>"", F35, E36) -> 0 | F185: x
C186: Duration of loan | D186: years | E186: 6 | F186: x
C187: LIBOR | D187: % | E187: 0.03 | F187: x
C188: Grace Period (Principal) | D188: years | E188: =IF(F43<>"", F43, E43) -> 1 | F188: x
C189: Grace Period (Interest) | D189: years | E189: =IF(F44<>"", F44, E44) -> 0 | F189: x
C190: Underwriting fee, Other fees | D190: % | E190: =IF(F46<>"", F46, E46) -> 0 | F190: x
C191: Mortgage style amortization | D191: % Principal | E191: ='5.1_DefaultData'!F67 -> 1
C194: Additional Operating Expenditures | E194: =E65 -> 0 | F194: x
C195: Annual Change in 'Additional Operating Expenditures' | E195: =E66 -> 0 | F195: x
C196: Default Engineering + project design cost calculation
C197: Base Cost | D197: USD | E197: 250000
C198: Unit Cost | D198: USD/ lamp | E198: 2.5
C199: # of Lamps | D199: n | E199: ='3.1_ProjectDesign'!$E$15 -> 42500
C200: Total Cost | D200: USD | E200: =E197+(E198*E199) -> 356250

Sheet new graphs (hidden)
E1: =Investment!D1 -> Period | F1: =Investment!E1 -> 1 | G1: =Investment!F1 -> 2 | H1: =Investment!G1 -> 3 | I1: =Investment!H1 -> 4 | J1: =Investment!I1 -> 5 | K1: =Investment!J1 -> 6 | L1: =Investment!K1 -> 7 | M1: =Investment!L1 -> 8 | N1: =Investment!M1 -> 9 | O1: =Investment!N1 -> 10 | P1: =Investment!O1 -> 11 | Q1: =Investment!P1 -> 12 | R1: =Investment!Q1 -> 13 | S1: =Investment!R1 -> 14 | T1: =Investment!S1 -> 15 | U1: =Investment!T1 -> 16 | V1: =Investment!U1 -> 17 | W1: =Investment!V1 -> 18 | X1: =Investment!W1 -> 19 | Y1: =Investment!X1 -> 20 | WMF1: 00:00:00 | WMG1: 00:00:00 | WMH1: 00:00:00 | WMI1: 00:00:00 | WMJ1: 00:00:00 | WMK1: 00:00:00 | WML1: 00:00:00 | WMM1: 00:00:00 | WMN1: 00:00:00 | WMO1: 00:00:00 | WMP1: 00:00:00 | WMQ1: 00:00:00 | WMR1: 00:00:00 | WMS1: 00:00:00 | WMT1: 00:00:00 | WMU1: 00:00:00 | WMV1: 00:00:00 | WMW1: 00:00:00 | WMX1: 00:00:00 | WMY1: 00:00:00 | WMZ1: 00:00:00 | WNA1: 00:00:00 | WNB1: 00:00:00 | WNC1: 00:00:00 | WND1: 00:00:00 | WNE1: 00:00:00 | WNF1: 00:00:00 | WNG1: 00:00:00 | WNH1: 00:00:00 | WNI1: 00:00:00 | WNJ1: 00:00:00 | WNK1: 00:00:00 | WNL1: 00:00:00 | WNM1: 00:00:00 | WNN1: 00:00:00 | WNO1: 00:00:00 | WNP1: 00:00:00 | WNQ1: 00:00:00 | WNR1: 00:00:00 | WNS1: 00:00:00 | WNT1: 00:00:00 | WNU1: 00:00:00 | WNV1: 00:00:00 | WNW1: 00:00:00 | WNX1: 00:00:00 | WNY1: 00:00:00 | WNZ1: 00:00:00 | WOA1: 00:00:00 | WOB1: 00:00:00 | WOC1: 00:00:00 | WOD1: 00:00:00 | WOE1: 00:00:00 | WOF1: 00:00:00 | WOG1: 00:00:00 | WOH1: 00:00:00 | WOI1: 00:00:00 | WOJ1: 00:00:00 | WOK1: 00:00:00 | WOL1: 00:00:00 | WOM1: 00:00:00 | WON1: 00:00:00 | WOO1: 00:00:00 | WOP1: 00:00:00 | WOQ1: 00:00:00 | WOR1: 00:00:00 | WOS1: 00:00:00 | WOT1: 00:00:00 | WOU1: 00:00:00 | WOV1: 00:00:00 | WOW1: 00:00:00 | WOX1: 00:00:00 | WOY1: 00:00:00 | WOZ1: 00:00:00 | WPA1: 00:00:00 | WPB1: 00:00:00 | WPC1: 00:00:00 | WPD1: 00:00:00 | WPE1: 00:00:00 | WPF1: 00:00:00 | WPG1: 00:00:00 | WPH1: 00:00:00 | WPI1: 00:00:00 | WPJ1: 00:00:00 | WPK1: 00:00:00 | WPL1: 00:00:00 | WPM1: 00:00:00 | WPN1: 00:00:00 | WPO1: 00:00:00 | WPP1: 00:00:00 | WPQ1: 00:00:00 | WPR1: 00:00:00 | WPS1: 00:00:00 | WPT1: 00:00:00 | WPU1: 00:00:00 | WPV1: 00:00:00 | WPW1: 00:00:00 | WPX1: 00:00:00 | WPY1: 00:00:00 | WPZ1: 00:00:00 | WQA1: 00:00:00 | WQB1: 00:00:00 | WQC1: 00:00:00 | WQD1: 00:00:00 | WQE1: 00:00:00 | WQF1: 00:00:00 | WQG1: 00:00:00 | WQH1: 00:00:00 | WQI1: 00:00:00 | WQJ1: 00:00:00 | WQK1: 00:00:00 | WQL1: 00:00:00 | WQM1: 00:00:00 | WQN1: 00:00:00 | WQO1: 00:00:00 | WQP1: 00:00:00 | WQQ1: 00:00:00 | WQR1: 00:00:00 | WQS1: 00:00:00 | WQT1: 00:00:00 | WQU1: 00:00:00 | WQV1: 00:00:00 | WQW1: 00:00:00 | WQX1: 00:00:00 | WQY1: 00:00:00 | WQZ1: 00:00:00 | WRA1: 00:00:00 | WRB1: 00:00:00 | WRC1: 00:00:00 | WRD1: 00:00:00 | WRE1: 00:00:00 | WRF1: 00:00:00 | WRG1: 00:00:00 | WRH1: 00:00:00 | WRI1: 00:00:00 | WRJ1: 00:00:00 | WRK1: 00:00:00 | WRL1: 00:00:00 | WRM1: 00:00:00 | WRN1: 00:00:00 | WRO1: 00:00:00 | WRP1: 00:00:00 | WRQ1: 00:00:00 | WRR1: 00:00:00 | WRS1: 00:00:00 | WRT1: 00:00:00 | WRU1: 00:00:00 | WRV1: 00:00:00 | WRW1: 00:00:00 | WRX1: 00:00:00 | WRY1: 00:00:00 | WRZ1: 00:00:00 | WSA1: 00:00:00 | WSB1: 00:00:00 | WSC1: 00:00:00 | WSD1: 00:00:00 | WSE1: 00:00:00 | WSF1: 00:00:00 | WSG1: 00:00:00 | WSH1: 00:00:00 | WSI1: 00:00:00 | WSJ1: 00:00:00 | WSK1: 00:00:00 | WSL1: 00:00:00 | WSM1: 00:00:00 | WSN1: 00:00:00 | WSO1: 00:00:00 | WSP1: 00:00:00 | WSQ1: 00:00:00 | WSR1: 00:00:00 | WSS1: 00:00:00 | WST1: 00:00:00 | WSU1: 00:00:00 | WSV1: 00:00:00 | WSW1: 00:00:00 | WSX1: 00:00:00
E2: =Investment!D2 -> End Date of Period | F2: =Investment!E2 -> 2019-12-31 | G2: =Investment!F2 -> 2020-12-31 | H2: =Investment!G2 -> 2021-12-31 | I2: =Investment!H2 -> 2022-12-31 | J2: =Investment!I2 -> 2023-12-31 | K2: =Investment!J2 -> 2024-12-31 | L2: =Investment!K2 -> 2025-12-31 | M2: =Investment!L2 -> 2026-12-31 | N2: =Investment!M2 -> 2027-12-31 | O2: =Investment!N2 -> 2028-12-31 | P2: =Investment!O2 -> 2029-12-31 | Q2: =Investment!P2 -> 2030-12-31 | R2: =Investment!Q2 -> 2031-12-31 | S2: =Investment!R2 -> 2032-12-31 | T2: =Investment!S2 -> 2033-12-31 | U2: =Investment!T2 -> 2034-12-31 | V2: =Investment!U2 -> 2035-12-31 | W2: =Investment!V2 -> 2036-12-31 | X2: =Investment!W2 -> 2037-12-31 | Y2: =Investment!X2 -> 2038-12-31 | WMF2: 00:00:00 | WMG2: 00:00:00 | WMH2: 00:00:00 | WMI2: 00:00:00 | WMJ2: 00:00:00 | WMK2: 00:00:00 | WML2: 00:00:00 | WMM2: 00:00:00 | WMN2: 00:00:00 | WMO2: 00:00:00 | WMP2: 00:00:00 | WMQ2: 00:00:00 | WMR2: 00:00:00 | WMS2: 00:00:00 | WMT2: 00:00:00 | WMU2: 00:00:00 | WMV2: 00:00:00 | WMW2: 00:00:00 | WMX2: 00:00:00 | WMY2: 00:00:00 | WMZ2: 00:00:00 | WNA2: 00:00:00 | WNB2: 00:00:00 | WNC2: 00:00:00 | WND2: 00:00:00 | WNE2: 00:00:00 | WNF2: 00:00:00 | WNG2: 00:00:00 | WNH2: 00:00:00 | WNI2: 00:00:00 | WNJ2: 00:00:00 | WNK2: 00:00:00 | WNL2: 00:00:00 | WNM2: 00:00:00 | WNN2: 00:00:00 | WNO2: 00:00:00 | WNP2: 00:00:00 | WNQ2: 00:00:00 | WNR2: 00:00:00 | WNS2: 00:00:00 | WNT2: 00:00:00 | WNU2: 00:00:00 | WNV2: 00:00:00 | WNW2: 00:00:00 | WNX2: 00:00:00 | WNY2: 00:00:00 | WNZ2: 00:00:00 | WOA2: 00:00:00 | WOB2: 00:00:00 | WOC2: 00:00:00 | WOD2: 00:00:00 | WOE2: 00:00:00 | WOF2: 00:00:00 | WOG2: 00:00:00 | WOH2: 00:00:00 | WOI2: 00:00:00 | WOJ2: 00:00:00 | WOK2: 00:00:00 | WOL2: 00:00:00 | WOM2: 00:00:00 | WON2: 00:00:00 | WOO2: 00:00:00 | WOP2: 00:00:00 | WOQ2: 00:00:00 | WOR2: 00:00:00 | WOS2: 00:00:00 | WOT2: 00:00:00 | WOU2: 00:00:00 | WOV2: 00:00:00 | WOW2: 00:00:00 | WOX2: 00:00:00 | WOY2: 00:00:00 | WOZ2: 00:00:00 | WPA2: 00:00:00 | WPB2: 00:00:00 | WPC2: 00:00:00 | WPD2: 00:00:00 | WPE2: 00:00:00 | WPF2: 00:00:00 | WPG2: 00:00:00 | WPH2: 00:00:00 | WPI2: 00:00:00 | WPJ2: 00:00:00 | WPK2: 00:00:00 | WPL2: 00:00:00 | WPM2: 00:00:00 | WPN2: 00:00:00 | WPO2: 00:00:00 | WPP2: 00:00:00 | WPQ2: 00:00:00 | WPR2: 00:00:00 | WPS2: 00:00:00 | WPT2: 00:00:00 | WPU2: 00:00:00 | WPV2: 00:00:00 | WPW2: 00:00:00 | WPX2: 00:00:00 | WPY2: 00:00:00 | WPZ2: 00:00:00 | WQA2: 00:00:00 | WQB2: 00:00:00 | WQC2: 00:00:00 | WQD2: 00:00:00 | WQE2: 00:00:00 | WQF2: 00:00:00 | WQG2: 00:00:00 | WQH2: 00:00:00 | WQI2: 00:00:00 | WQJ2: 00:00:00 | WQK2: 00:00:00 | WQL2: 00:00:00 | WQM2: 00:00:00 | WQN2: 00:00:00 | WQO2: 00:00:00 | WQP2: 00:00:00 | WQQ2: 00:00:00 | WQR2: 00:00:00 | WQS2: 00:00:00 | WQT2: 00:00:00 | WQU2: 00:00:00 | WQV2: 00:00:00 | WQW2: 00:00:00 | WQX2: 00:00:00 | WQY2: 00:00:00 | WQZ2: 00:00:00 | WRA2: 00:00:00 | WRB2: 00:00:00 | WRC2: 00:00:00 | WRD2: 00:00:00 | WRE2: 00:00:00 | WRF2: 00:00:00 | WRG2: 00:00:00 | WRH2: 00:00:00 | WRI2: 00:00:00 | WRJ2: 00:00:00 | WRK2: 00:00:00 | WRL2: 00:00:00 | WRM2: 00:00:00 | WRN2: 00:00:00 | WRO2: 00:00:00 | WRP2: 00:00:00 | WRQ2: 00:00:00 | WRR2: 00:00:00 | WRS2: 00:00:00 | WRT2: 00:00:00 | WRU2: 00:00:00 | WRV2: 00:00:00 | WRW2: 00:00:00 | WRX2: 00:00:00 | WRY2: 00:00:00 | WRZ2: 00:00:00 | WSA2: 00:00:00 | WSB2: 00:00:00 | WSC2: 00:00:00 | WSD2: 00:00:00 | WSE2: 00:00:00 | WSF2: 00:00:00 | WSG2: 00:00:00 | WSH2: 00:00:00 | WSI2: 00:00:00 | WSJ2: 00:00:00 | WSK2: 00:00:00 | WSL2: 00:00:00 | WSM2: 00:00:00 | WSN2: 00:00:00 | WSO2: 00:00:00 | WSP2: 00:00:00 | WSQ2: 00:00:00 | WSR2: 00:00:00 | WSS2: 00:00:00 | WST2: 00:00:00 | WSU2: 00:00:00 | WSV2: 00:00:00 | WSW2: 00:00:00 | WSX2: 00:00:00
B4: ='Electricity savings'!A27 -> Baseline electricity use - total | C4: ='Electricity savings'!B27 -> MWh | F4: ='Electricity savings'!E27 -> 36136.32997 | G4: ='Electricity savings'!F27 -> 36235.33361 | H4: ='Electricity savings'!G27 -> 36136.32997 | I4: ='Electricity savings'!H27 -> 36136.32997 | J4: ='Electricity savings'!I27 -> 36136.32997 | K4: ='Electricity savings'!J27 -> 36235.33361 | L4: ='Electricity savings'!K27 -> 36136.32997 | M4: ='Electricity savings'!L27 -> 36136.32997 | N4: ='Electricity savings'!M27 -> 36136.32997 | O4: ='Electricity savings'!N27 -> 36235.33361 | P4: ='Electricity savings'!O27 -> 36136.32997 | Q4: ='Electricity savings'!P27 -> 36136.32997 | R4: ='Electricity savings'!Q27 -> 36136.32997 | S4: ='Electricity savings'!R27 -> 0 | T4: ='Electricity savings'!S27 -> 0 | U4: ='Electricity savings'!T27 -> 0 | V4: ='Electricity savings'!U27 -> 0 | W4: ='Electricity savings'!V27 -> 0 | X4: ='Electricity savings'!W27 -> 0 | Y4: ='Electricity savings'!X27 -> 0
B5: ='Electricity savings'!A37 -> Total electricity use after replacement | C5: ='Electricity savings'!B37 -> MWh | F5: ='Electricity savings'!E37 -> 26480.90034 | G5: ='Electricity savings'!F37 -> 16871.5679 | H5: ='Electricity savings'!G37 -> 16825.47072 | I5: ='Electricity savings'!H37 -> 16825.47072 | J5: ='Electricity savings'!I37 -> 16825.47072 | K5: ='Electricity savings'!J37 -> 16871.5679 | L5: ='Electricity savings'!K37 -> 16825.47072 | M5: ='Electricity savings'!L37 -> 16825.47072 | N5: ='Electricity savings'!M37 -> 16825.47072 | O5: ='Electricity savings'!N37 -> 16871.5679 | P5: ='Electricity savings'!O37 -> 16825.47072 | Q5: ='Electricity savings'!P37 -> 16825.47072 | R5: ='Electricity savings'!Q37 -> 16825.47072 | S5: ='Electricity savings'!R37 -> 0 | T5: ='Electricity savings'!S37 -> 0 | U5: ='Electricity savings'!T37 -> 0 | V5: ='Electricity savings'!U37 -> 0 | W5: ='Electricity savings'!V37 -> 0 | X5: ='Electricity savings'!W37 -> 0 | Y5: ='Electricity savings'!X37 -> 0
B7: =Operations!A19 -> Electriticy tariff | C7: =Operations!B19 -> R$ / MWh | F7: =Operations!E19 -> 540 | G7: =Operations!F19 -> 550.8 | H7: =Operations!G19 -> 561.816 | I7: =Operations!H19 -> 573.05232 | J7: =Operations!I19 -> 584.5133664 | K7: =Operations!J19 -> 596.2036337 | L7: =Operations!K19 -> 608.1277064 | M7: =Operations!L19 -> 620.2902605 | N7: =Operations!M19 -> 632.6960657 | O7: =Operations!N19 -> 645.3499871 | P7: =Operations!O19 -> 658.2569868 | Q7: =Operations!P19 -> 671.4221265 | R7: =Operations!Q19 -> 684.8505691 | S7: =Operations!R19 -> 698.5475804 | T7: =Operations!S19 -> 712.5185321 | U7: =Operations!T19 -> 726.7689027 | V7: =Operations!U19 -> 741.3042807 | W7: =Operations!V19 -> 756.1303664 | X7: =Operations!W19 -> 771.2529737 | Y7: =Operations!X19 -> 786.6780332
F9: 2016 | G9: =F9+1 -> 2017 | H9: 2018 | I9: 2019 | J9: 2020 | K9: 2021 | L9: 2022 | M9: 2023 | N9: 2024 | O9: 2025 | P9: 2026 | Q9: 2027 | R9: 2028 | S9: 2029 | T9: 2030 | U9: 2031 | V9: 2032 | W9: 2033 | X9: 2034 | Y9: 2035
A10: Current expenditures | B10: Current Electricity expenditures | C10: BRL / year | F10: =F4*F$7 -> 19513618.18 | G10: 19958421.75 | H10: 20301968.36 | I10: 20708007.72 | J10: 21122167.88 | K10: 21603637.57 | L10: 21975503.46 | M10: 22415013.53 | N10: 22863313.8 | O10: 23384472.08 | P10: 23786991.68 | Q10: 24262731.51 | R10: 24747986.14 | S10: 0 | T10: 0 | U10: 0 | V10: 0 | W10: 0 | X10: 0 | Y10: 0
B11: Current Lamp replacement expenditures | C11: BRL / year | F11: ='O&M'!E47+'O&M'!E73 -> 1409913.711 | G11: ='O&M'!F47+'O&M'!F73 -> 1371718.576 | H11: ='O&M'!G47+'O&M'!G73 -> 1334056.174 | I11: ='O&M'!H47+'O&M'!H73 -> 1296912.261 | J11: ='O&M'!I47+'O&M'!I73 -> 1260272.952 | K11: ='O&M'!J47+'O&M'!J73 -> 1224124.709 | L11: ='O&M'!K47+'O&M'!K73 -> 1188454.334 | M11: ='O&M'!L47+'O&M'!L73 -> 1153248.958 | N11: ='O&M'!M47+'O&M'!M73 -> 1118496.04 | O11: ='O&M'!N47+'O&M'!N73 -> 1084183.35 | P11: ='O&M'!O47+'O&M'!O73 -> 1050298.97 | Q11: ='O&M'!P47+'O&M'!P73 -> 1016831.281 | R11: ='O&M'!Q47+'O&M'!Q73 -> 983768.9569 | S11: ='O&M'!R47+'O&M'!R73 -> 0 | T11: ='O&M'!S47+'O&M'!S73 -> 0 | U11: ='O&M'!T47+'O&M'!T73 -> 0 | V11: ='O&M'!U47+'O&M'!U73 -> 0 | W11: ='O&M'!V47+'O&M'!V73 -> 0 | X11: ='O&M'!W47+'O&M'!W73 -> 0 | Y11: ='O&M'!X47+'O&M'!X73 -> 0
A13: Project expenditures | B13: LED project Electricity expenditures | C13: BRL / year | F13: =F5*F$7 -> 14299686.19 | G13: 9292859.597 | H13: 9452818.656 | I13: 9641875.029 | J13: 9834712.53 | K13: 10058890.09 | L13: 10232034.92 | M13: 10436675.61 | N13: 10645409.13 | O13: 10888066.12 | P13: 11075483.66 | Q13: 11296993.33 | R13: 11522933.19 | S13: 0 | T13: 0 | U13: 0 | V13: 0 | W13: 0 | X13: 0 | Y13: 0
B14: LED project Lamp replacement expenditures | C14: BRL / year | F14: ='O&M'!E66+'O&M'!E78 -> 869548.9002 | G14: ='O&M'!F66+'O&M'!F78 -> 631243.3755 | H14: ='O&M'!G66+'O&M'!G78 -> 524194.5515 | I14: ='O&M'!H66+'O&M'!H78 -> 509244.5259 | J14: ='O&M'!I66+'O&M'!I78 -> 494632.6063 | K14: ='O&M'!J66+'O&M'!J78 -> 480361.9043 | L14: ='O&M'!K66+'O&M'!K78 -> 466434.2063 | M14: ='O&M'!L66+'O&M'!L78 -> 452850.1316 | N14: ='O&M'!M66+'O&M'!M78 -> 439609.2745 | O14: ='O&M'!N66+'O&M'!N78 -> 426710.3313 | P14: ='O&M'!O66+'O&M'!O78 -> 341683.0038 | Q14: ='O&M'!P66+'O&M'!P78 -> 328744.2231 | R14: ='O&M'!Q66+'O&M'!Q78 -> 316210.8077 | S14: ='O&M'!R66+'O&M'!R78 -> 0 | T14: ='O&M'!S66+'O&M'!S78 -> 0 | U14: ='O&M'!T66+'O&M'!T78 -> 0 | V14: ='O&M'!U66+'O&M'!U78 -> 0 | W14: ='O&M'!V66+'O&M'!V78 -> 0 | X14: ='O&M'!W66+'O&M'!W78 -> 0 | Y14: ='O&M'!X66+'O&M'!X78 -> 0
B16: COSIP / Municipal Budget | C16: BRL / year | F16: =Operations!E35 -> 18000000 | G16: =Operations!F35 -> 18090000 | H16: =Operations!G35 -> 18180450 | I16: =Operations!H35 -> 18271352.25 | J16: =Operations!I35 -> 18362709.01 | K16: =Operations!J35 -> 18454522.56 | L16: =Operations!K35 -> 18546795.17 | M16: =Operations!L35 -> 18639529.14 | N16: =Operations!M35 -> 18732726.79 | O16: =Operations!N35 -> 18826390.42 | P16: =Operations!O35 -> 18920522.38 | Q16: =Operations!P35 -> 19015124.99 | R16: =Operations!Q35 -> 19110200.61 | S16: =Operations!R35 -> 0 | T16: =Operations!S35 -> 0 | U16: =Operations!T35 -> 0 | V16: =Operations!U35 -> 0 | W16: =Operations!V35 -> 0 | X16: =Operations!W35 -> 0 | Y16: =Operations!X35 -> 0
F31: Current | G31: Project | H31: Current | I31: Project | J31: Current | K31: Project
F32: 2016 | H32: =F32+1 -> 2017 | J32: =H32+1 -> 2018 | L32: =J32+1 -> 2019 | M32: =L32+1 -> 2020 | N32: 2021 | O32: 2022 | P32: 2023 | Q32: 2024 | R32: 2025 | S32: 2026 | T32: 2027 | U32: 2028
B33: Electricity expenditures | C33: BRL / year | F33: =F10 -> 19513618.18 | G33: =F13 -> 14299686.19 | H33: =G10 -> 19958421.75 | I33: =G13 -> 9292859.597 | J33: =H10 -> 20301968.36 | K33: =H13 -> 9452818.656 | L33: =I27*I$7 -> 0 | M33: 0 | N33: 0 | O33: 0 | P33: 0 | Q33: 0 | R33: 0 | S33: 0 | T33: 0 | U33: 0 | V33: 0 | W33: 0 | X33: 0 | Y33: 0 | Z33: 0 | AA33: 0 | AB33: 0
B34: Lamp replacement expenditures | C34: BRL / year | F34: =F11 -> 1409913.711 | G34: =F14 -> 869548.9002 | H34: =G11 -> 1371718.576 | I34: =G14 -> 631243.3755 | J34: =H11 -> 1334056.174 | K34: =H14 -> 524194.5515 | L34: ='O&M'!H92+'O&M'!H106 -> 0 | M34: ='O&M'!I92+'O&M'!I106 -> 0 | N34: ='O&M'!J92+'O&M'!J106 -> 0 | O34: ='O&M'!K92+'O&M'!K106 -> 0 | P34: ='O&M'!L92+'O&M'!L106 -> 0 | Q34: ='O&M'!M92+'O&M'!M106 -> 0 | R34: ='O&M'!N92+'O&M'!N106 -> 0 | S34: ='O&M'!O92+'O&M'!O106 -> 0 | T34: ='O&M'!P92+'O&M'!P106 -> 0 | U34: ='O&M'!Q92+'O&M'!Q106 -> 0 | V34: ='O&M'!R92+'O&M'!R106 -> 0 | W34: ='O&M'!S92+'O&M'!S106 -> 0 | X34: ='O&M'!T92+'O&M'!T106 -> 0 | Y34: ='O&M'!U92+'O&M'!U106 -> 0 | Z34: ='O&M'!V92+'O&M'!V106 -> 0 | AA34: ='O&M'!W92+'O&M'!W106 -> 0 | AB34: ='O&M'!X92+'O&M'!X106 -> 0
B37: Business model | C37: Sem financiamento
B39: City street lighting funds | C39: ='Income Statement'!E9 -> 6151931.061 | D39: ='Income Statement'!F9 -> 12731707.37 | E39: ='Income Statement'!G9 -> 13023923.67 | F39: ='Income Statement'!H9 -> 13233797.22 | G39: ='Income Statement'!I9 -> 13449154.8 | H39: ='Income Statement'!J9 -> 13704626.97 | I39: ='Income Statement'!K9 -> 13896774.39 | J39: ='Income Statement'!L9 -> 14129265.43 | K39: ='Income Statement'!M9 -> 14367698.97 | L39: ='Income Statement'!N9 -> 14649664.05 | M39: ='Income Statement'!O9 -> 14790400.29 | N39: ='Income Statement'!P9 -> 15046661.74 | O39: ='Income Statement'!Q9 -> 15309422.04 | P39: ='Income Statement'!R9 -> 0 | Q39: ='Income Statement'!S9 -> 0 | R39: ='Income Statement'!T9 -> 0 | S39: ='Income Statement'!U9 -> 0 | T39: ='Income Statement'!V9 -> 0 | U39: ='Income Statement'!W9 -> 0 | V39: ='Income Statement'!X9 -> 0 | W39: ='Income Statement'!Y9 -> 0 | X39: ='Income Statement'!Z9 -> 0 | Y39: ='Income Statement'!AA9 -> 0
B40: City's project costs | C40: =IF($C$37="Sem financiamento", -Investment!E37, IF($C$37="Financiamento Municipal", 'Debt Service'!E27+'Debt Service'!E28+Investment!E62, 'Debt Service'!E27+'Debt Service'!E28)) -> 16495035.21 | D40: =IF($C$37="Sem financiamento", -Investment!F37, IF($C$37="Financiamento Municipal", 'Debt Service'!F27+'Debt Service'!F28+Investment!F62, 'Debt Service'!F27+'Debt Service'!F28)) -> 13625109.19 | E40: =IF($C$37="Sem financiamento", -Investment!G37, IF($C$37="Financiamento Municipal", 'Debt Service'!G27+'Debt Service'!G28+Investment!G62, 'Debt Service'!G27+'Debt Service'!G28)) -> 0 | F40: =IF($C$37="Sem financiamento", -Investment!H37, IF($C$37="Financiamento Municipal", 'Debt Service'!H27+'Debt Service'!H28+Investment!H62, 'Debt Service'!H27+'Debt Service'!H28)) -> 0 | G40: =IF($C$37="Sem financiamento", -Investment!I37, IF($C$37="Financiamento Municipal", 'Debt Service'!I27+'Debt Service'!I28+Investment!I62, 'Debt Service'!I27+'Debt Service'!I28)) -> 0 | H40: =IF($C$37="Sem financiamento", -Investment!J37, IF($C$37="Financiamento Municipal", 'Debt Service'!J27+'Debt Service'!J28+Investment!J62, 'Debt Service'!J27+'Debt Service'!J28)) -> 0 | I40: =IF($C$37="Sem financiamento", -Investment!K37, IF($C$37="Financiamento Municipal", 'Debt Service'!K27+'Debt Service'!K28+Investment!K62, 'Debt Service'!K27+'Debt Service'!K28)) -> 0 | J40: =IF($C$37="Sem financiamento", -Investment!L37, IF($C$37="Financiamento Municipal", 'Debt Service'!L27+'Debt Service'!L28+Investment!L62, 'Debt Service'!L27+'Debt Service'!L28)) -> 0 | K40: =IF($C$37="Sem financiamento", -Investment!M37, IF($C$37="Financiamento Municipal", 'Debt Service'!M27+'Debt Service'!M28+Investment!M62, 'Debt Service'!M27+'Debt Service'!M28)) -> 0 | L40: =IF($C$37="Sem financiamento", -Investment!N37, IF($C$37="Financiamento Municipal", 'Debt Service'!N27+'Debt Service'!N28+Investment!N62, 'Debt Service'!N27+'Debt Service'!N28)) -> 0 | M40: =IF($C$37="Sem financiamento", -Investment!O37, IF($C$37="Financiamento Municipal", 'Debt Service'!O27+'Debt Service'!O28+Investment!O62, 'Debt Service'!O27+'Debt Service'!O28)) -> 0 | N40: =IF($C$37="Sem financiamento", -Investment!P37, IF($C$37="Financiamento Municipal", 'Debt Service'!P27+'Debt Service'!P28+Investment!P62, 'Debt Service'!P27+'Debt Service'!P28)) -> 0 | O40: =IF($C$37="Sem financiamento", -Investment!Q37, IF($C$37="Financiamento Municipal", 'Debt Service'!Q27+'Debt Service'!Q28+Investment!Q62, 'Debt Service'!Q27+'Debt Service'!Q28)) -> 0 | P40: =IF($C$37="Sem financiamento", -Investment!R37, IF($C$37="Financiamento Municipal", 'Debt Service'!R27+'Debt Service'!R28+Investment!R62, 'Debt Service'!R27+'Debt Service'!R28)) -> 0 | Q40: =IF($C$37="Sem financiamento", -Investment!S37, IF($C$37="Financiamento Municipal", 'Debt Service'!S27+'Debt Service'!S28+Investment!S62, 'Debt Service'!S27+'Debt Service'!S28)) -> 0 | R40: =IF($C$37="Sem financiamento", -Investment!T37, IF($C$37="Financiamento Municipal", 'Debt Service'!T27+'Debt Service'!T28+Investment!T62, 'Debt Service'!T27+'Debt Service'!T28)) -> 0 | S40: =IF($C$37="Sem financiamento", -Investment!U37, IF($C$37="Financiamento Municipal", 'Debt Service'!U27+'Debt Service'!U28+Investment!U62, 'Debt Service'!U27+'Debt Service'!U28)) -> 0 | T40: =IF($C$37="Sem financiamento", -Investment!V37, IF($C$37="Financiamento Municipal", 'Debt Service'!V27+'Debt Service'!V28+Investment!V62, 'Debt Service'!V27+'Debt Service'!V28)) -> 0 | U40: =IF($C$37="Sem financiamento", -Investment!W37, IF($C$37="Financiamento Municipal", 'Debt Service'!W27+'Debt Service'!W28+Investment!W62, 'Debt Service'!W27+'Debt Service'!W28)) -> 0 | V40: =IF($C$37="Sem financiamento", -Investment!X37, IF($C$37="Financiamento Municipal", 'Debt Service'!X27+'Debt Service'!X28+Investment!X62, 'Debt Service'!X27+'Debt Service'!X28)) -> 0 | W40: =IF($C$37="Sem financiamento", -Investment!Y37, IF($C$37="Financiamento Municipal", 'Debt Service'!Y27+'Debt Service'!Y28+Investment!Y62, 'Debt Service'!Y27+'Debt Service'!Y28)) -> 0 | X40: =IF($C$37="Sem financiamento", -Investment!Z37, IF($C$37="Financiamento Municipal", 'Debt Service'!Z27+'Debt Service'!Z28+Investment!Z62, 'Debt Service'!Z27+'Debt Service'!Z28)) -> 0 | Y40: =IF($C$37="Sem financiamento", -Investment!AA37, IF($C$37="Financiamento Municipal", 'Debt Service'!AA27+'Debt Service'!AA28+Investment!AA62, 'Debt Service'!AA27+'Debt Service'!AA28)) -> 0
B41: Surplus / Deficit | F41: =C39-C40 -> -10343104.15 | G41: -893401.8184 | H41: 13023923.67 | I41: 13233797.22 | J41: 13449154.8 | K41: 13704626.97 | L41: 13896774.39 | M41: 14129265.43 | N41: 14367698.97 | O41: 14649664.05 | P41: =M39-M40 -> 14790400.29 | Q41: 15046661.74 | R41: 15309422.04 | S41: 0 | T41: 0 | U41: 0 | V41: 0 | W41: 0 | X41: 0 | Y41: 0
B43: City street lighting funds | C43: =C39 -> 6151931.061 | D43: =C43+D39 -> 18883638.43 | E43: 31907562.1 | F43: 45141359.32 | G43: 58590514.12 | H43: 72295141.09 | I43: 86191915.48 | J43: 100321180.9 | K43: 114688879.9 | L43: 129338543.9 | M43: 144128944.2 | N43: 159175606 | O43: 174485028 | P43: =O43+P39 -> 174485028 | Q43: 174485028 | R43: 174485028 | S43: 174485028 | T43: 174485028 | U43: 174485028 | V43: 174485028 | W43: 174485028 | X43: 174485028 | Y43: 174485028
B44: City's project costs | C44: =C40 -> 16495035.21 | D44: =C44+D40 -> 30120144.39 | E44: 30120144.39 | F44: 30120144.39 | G44: 30120144.39 | H44: 30120144.39 | I44: 30120144.39 | J44: 30120144.39 | K44: 30120144.39 | L44: 30120144.39 | M44: 30120144.39 | N44: 30120144.39 | O44: 30120144.39 | P44: =O44+P40 -> 30120144.39 | Q44: 30120144.39 | R44: 30120144.39 | S44: 30120144.39 | T44: 30120144.39 | U44: 30120144.39 | V44: 30120144.39 | W44: 30120144.39 | X44: 30120144.39 | Y44: 30120144.39

Sheet new graphs data (hidden)
B2: Annual Electricity Expenditures & Lamp Replacement Cost - Current vs. LED Project Scenarios
E3: 1 | H3: =E3+1 -> 2 | K3: =H3+1 -> 3 | N3: =K3+1 -> 4 | Q3: =N3+1 -> 5 | T3: =Q3+1 -> 6 | W3: =T3+1 -> 7 | Z3: =W3+1 -> 8 | AC3: =Z3+1 -> 9 | AF3: =AC3+1 -> 10 | AI3: =AF3+1 -> 11 | AL3: =AI3+1 -> 12 | AO3: =AL3+1 -> 13 | AR3: =AO3+1 -> 14 | AU3: =AR3+1 -> 15 | AX3: =AU3+1 -> 16 | BA3: =AX3+1 -> 17 | BD3: =BA3+1 -> 18 | BG3: =BD3+1 -> 19 | BJ3: =BG3+1 -> 20
E4: 2016 | H4: =E4+1 -> 2017 | K4: =H4+1 -> 2018 | N4: =K4+1 -> 2019 | Q4: =N4+1 -> 2020 | T4: =Q4+1 -> 2021 | W4: =T4+1 -> 2022 | Z4: =W4+1 -> 2023 | AC4: =Z4+1 -> 2024 | AF4: =AC4+1 -> 2025 | AI4: =AF4+1 -> 2026 | AL4: =AI4+1 -> 2027 | AO4: =AL4+1 -> 2028 | AR4: =AO4+1 -> 2029 | AU4: =AR4+1 -> 2030 | AX4: =AU4+1 -> 2031 | BA4: =AX4+1 -> 2032 | BD4: =BA4+1 -> 2033 | BG4: =BD4+1 -> 2034 | BJ4: =BG4+1 -> 2035
B6: =Language_Refs!D209 -> Current Electricity Expenditures | C6: ='new graphs'!C10 -> BRL / year | E6: =INDEX('new graphs'!$F10:$Y10,1,MATCH(E$4,'new graphs'!$F$9:$Y$9,0)) -> 19513618.18 | F6: =E9 -> 14299686.19 | H6: =INDEX('new graphs'!$F10:$Y10,1,MATCH(H$4,'new graphs'!$F$9:$Y$9,0)) -> 19958421.75 | I6: =H9 -> 9292859.597 | K6: =INDEX('new graphs'!$F10:$Y10,1,MATCH(K$4,'new graphs'!$F$9:$Y$9,0)) -> 20301968.36 | L6: =K9 -> 9452818.656 | N6: =INDEX('new graphs'!$F10:$Y10,1,MATCH(N$4,'new graphs'!$F$9:$Y$9,0)) -> 20708007.72 | O6: =N9 -> 9641875.029 | Q6: =INDEX('new graphs'!$F10:$Y10,1,MATCH(Q$4,'new graphs'!$F$9:$Y$9,0)) -> 21122167.88 | R6: =Q9 -> 9834712.53 | T6: =INDEX('new graphs'!$F10:$Y10,1,MATCH(T$4,'new graphs'!$F$9:$Y$9,0)) -> 21603637.57 | U6: =T9 -> 10058890.09 | W6: =INDEX('new graphs'!$F10:$Y10,1,MATCH(W$4,'new graphs'!$F$9:$Y$9,0)) -> 21975503.46 | X6: =W9 -> 10232034.92 | Z6: =INDEX('new graphs'!$F10:$Y10,1,MATCH(Z$4,'new graphs'!$F$9:$Y$9,0)) -> 22415013.53 | AA6: =Z9 -> 10436675.61 | AC6: =INDEX('new graphs'!$F10:$Y10,1,MATCH(AC$4,'new graphs'!$F$9:$Y$9,0)) -> 22863313.8 | AD6: =AC9 -> 10645409.13 | AF6: =INDEX('new graphs'!$F10:$Y10,1,MATCH(AF$4,'new graphs'!$F$9:$Y$9,0)) -> 23384472.08 | AG6: =AF9 -> 10888066.12 | AI6: =INDEX('new graphs'!$F10:$Y10,1,MATCH(AI$4,'new graphs'!$F$9:$Y$9,0)) -> 23786991.68 | AJ6: =AI9 -> 11075483.66 | AL6: =INDEX('new graphs'!$F10:$Y10,1,MATCH(AL$4,'new graphs'!$F$9:$Y$9,0)) -> 24262731.51 | AM6: =AL9 -> 11296993.33 | AO6: =INDEX('new graphs'!$F10:$Y10,1,MATCH(AO$4,'new graphs'!$F$9:$Y$9,0)) -> 24747986.14 | AP6: =AO9 -> 11522933.19 | AR6: =INDEX('new graphs'!$F10:$Y10,1,MATCH(AR$4,'new graphs'!$F$9:$Y$9,0)) -> 0 | AS6: =AR9 -> 0 | AU6: =INDEX('new graphs'!$F10:$Y10,1,MATCH(AU$4,'new graphs'!$F$9:$Y$9,0)) -> 0 | AV6: =AU9 -> 0 | AX6: =INDEX('new graphs'!$F10:$Y10,1,MATCH(AX$4,'new graphs'!$F$9:$Y$9,0)) -> 0 | AY6: =AX9 -> 0 | BA6: =INDEX('new graphs'!$F10:$Y10,1,MATCH(BA$4,'new graphs'!$F$9:$Y$9,0)) -> 0 | BB6: =BA9 -> 0 | BD6: =INDEX('new graphs'!$F10:$Y10,1,MATCH(BD$4,'new graphs'!$F$9:$Y$9,0)) -> 0 | BE6: =BD9 -> 0 | BG6: =INDEX('new graphs'!$F10:$Y10,1,MATCH(BG$4,'new graphs'!$F$9:$Y$9,0)) -> 0 | BH6: =BG9 -> 0 | BJ6: =INDEX('new graphs'!$F10:$Y10,1,MATCH(BJ$4,'new graphs'!$F$9:$Y$9,0)) -> 0 | BK6: =BJ9 -> 0
B7: =Language_Refs!D210 -> Current Lamp Replacement Expenditures | C7: ='new graphs'!C11 -> BRL / year | E7: =INDEX('new graphs'!$F11:$Y11,1,MATCH(E$4,'new graphs'!$F$9:$Y$9,0)) -> 1409913.711 | F7: =E10 -> 869548.9002 | H7: =INDEX('new graphs'!$F11:$Y11,1,MATCH(H$4,'new graphs'!$F$9:$Y$9,0)) -> 1371718.576 | I7: =H10 -> 631243.3755 | K7: =INDEX('new graphs'!$F11:$Y11,1,MATCH(K$4,'new graphs'!$F$9:$Y$9,0)) -> 1334056.174 | L7: =K10 -> 524194.5515 | N7: =INDEX('new graphs'!$F11:$Y11,1,MATCH(N$4,'new graphs'!$F$9:$Y$9,0)) -> 1296912.261 | O7: =N10 -> 509244.5259 | Q7: =INDEX('new graphs'!$F11:$Y11,1,MATCH(Q$4,'new graphs'!$F$9:$Y$9,0)) -> 1260272.952 | R7: =Q10 -> 494632.6063 | T7: =INDEX('new graphs'!$F11:$Y11,1,MATCH(T$4,'new graphs'!$F$9:$Y$9,0)) -> 1224124.709 | U7: =T10 -> 480361.9043 | W7: =INDEX('new graphs'!$F11:$Y11,1,MATCH(W$4,'new graphs'!$F$9:$Y$9,0)) -> 1188454.334 | X7: =W10 -> 466434.2063 | Z7: =INDEX('new graphs'!$F11:$Y11,1,MATCH(Z$4,'new graphs'!$F$9:$Y$9,0)) -> 1153248.958 | AA7: =Z10 -> 452850.1316 | AC7: =INDEX('new graphs'!$F11:$Y11,1,MATCH(AC$4,'new graphs'!$F$9:$Y$9,0)) -> 1118496.04 | AD7: =AC10 -> 439609.2745 | AF7: =INDEX('new graphs'!$F11:$Y11,1,MATCH(AF$4,'new graphs'!$F$9:$Y$9,0)) -> 1084183.35 | AG7: =AF10 -> 426710.3313 | AI7: =INDEX('new graphs'!$F11:$Y11,1,MATCH(AI$4,'new graphs'!$F$9:$Y$9,0)) -> 1050298.97 | AJ7: =AI10 -> 341683.0038 | AL7: =INDEX('new graphs'!$F11:$Y11,1,MATCH(AL$4,'new graphs'!$F$9:$Y$9,0)) -> 1016831.281 | AM7: =AL10 -> 328744.2231 | AO7: =INDEX('new graphs'!$F11:$Y11,1,MATCH(AO$4,'new graphs'!$F$9:$Y$9,0)) -> 983768.9569 | AP7: =AO10 -> 316210.8077 | AR7: =INDEX('new graphs'!$F11:$Y11,1,MATCH(AR$4,'new graphs'!$F$9:$Y$9,0)) -> 0 | AS7: =AR10 -> 0 | AU7: =INDEX('new graphs'!$F11:$Y11,1,MATCH(AU$4,'new graphs'!$F$9:$Y$9,0)) -> 0 | AV7: =AU10 -> 0 | AX7: =INDEX('new graphs'!$F11:$Y11,1,MATCH(AX$4,'new graphs'!$F$9:$Y$9,0)) -> 0 | AY7: =AX10 -> 0 | BA7: =INDEX('new graphs'!$F11:$Y11,1,MATCH(BA$4,'new graphs'!$F$9:$Y$9,0)) -> 0 | BB7: =BA10 -> 0 | BD7: =INDEX('new graphs'!$F11:$Y11,1,MATCH(BD$4,'new graphs'!$F$9:$Y$9,0)) -> 0 | BE7: =BD10 -> 0 | BG7: =INDEX('new graphs'!$F11:$Y11,1,MATCH(BG$4,'new graphs'!$F$9:$Y$9,0)) -> 0 | BH7: =BG10 -> 0 | BJ7: =INDEX('new graphs'!$F11:$Y11,1,MATCH(BJ$4,'new graphs'!$F$9:$Y$9,0)) -> 0 | BK7: =BJ10 -> 0
B9: =Language_Refs!D211 -> LED project Electricity expenditures | C9: ='new graphs'!C13 -> BRL / year | E9: =INDEX('new graphs'!$F13:$Y13,1,MATCH(E$4,'new graphs'!$F$9:$Y$9,0)) -> 14299686.19 | H9: =INDEX('new graphs'!$F13:$Y13,1,MATCH(H$4,'new graphs'!$F$9:$Y$9,0)) -> 9292859.597 | K9: =INDEX('new graphs'!$F13:$Y13,1,MATCH(K$4,'new graphs'!$F$9:$Y$9,0)) -> 9452818.656 | N9: =INDEX('new graphs'!$F13:$Y13,1,MATCH(N$4,'new graphs'!$F$9:$Y$9,0)) -> 9641875.029 | Q9: =INDEX('new graphs'!$F13:$Y13,1,MATCH(Q$4,'new graphs'!$F$9:$Y$9,0)) -> 9834712.53 | T9: =INDEX('new graphs'!$F13:$Y13,1,MATCH(T$4,'new graphs'!$F$9:$Y$9,0)) -> 10058890.09 | W9: =INDEX('new graphs'!$F13:$Y13,1,MATCH(W$4,'new graphs'!$F$9:$Y$9,0)) -> 10232034.92 | Z9: =INDEX('new graphs'!$F13:$Y13,1,MATCH(Z$4,'new graphs'!$F$9:$Y$9,0)) -> 10436675.61 | AC9: =INDEX('new graphs'!$F13:$Y13,1,MATCH(AC$4,'new graphs'!$F$9:$Y$9,0)) -> 10645409.13 | AF9: =INDEX('new graphs'!$F13:$Y13,1,MATCH(AF$4,'new graphs'!$F$9:$Y$9,0)) -> 10888066.12 | AI9: =INDEX('new graphs'!$F13:$Y13,1,MATCH(AI$4,'new graphs'!$F$9:$Y$9,0)) -> 11075483.66 | AL9: =INDEX('new graphs'!$F13:$Y13,1,MATCH(AL$4,'new graphs'!$F$9:$Y$9,0)) -> 11296993.33 | AO9: =INDEX('new graphs'!$F13:$Y13,1,MATCH(AO$4,'new graphs'!$F$9:$Y$9,0)) -> 11522933.19 | AR9: =INDEX('new graphs'!$F13:$Y13,1,MATCH(AR$4,'new graphs'!$F$9:$Y$9,0)) -> 0 | AU9: =INDEX('new graphs'!$F13:$Y13,1,MATCH(AU$4,'new graphs'!$F$9:$Y$9,0)) -> 0 | AX9: =INDEX('new graphs'!$F13:$Y13,1,MATCH(AX$4,'new graphs'!$F$9:$Y$9,0)) -> 0 | BA9: =INDEX('new graphs'!$F13:$Y13,1,MATCH(BA$4,'new graphs'!$F$9:$Y$9,0)) -> 0 | BD9: =INDEX('new graphs'!$F13:$Y13,1,MATCH(BD$4,'new graphs'!$F$9:$Y$9,0)) -> 0 | BG9: =INDEX('new graphs'!$F13:$Y13,1,MATCH(BG$4,'new graphs'!$F$9:$Y$9,0)) -> 0 | BJ9: =INDEX('new graphs'!$F13:$Y13,1,MATCH(BJ$4,'new graphs'!$F$9:$Y$9,0)) -> 0
B10: =Language_Refs!D212 -> LED project Lamp replacement expenditures | C10: ='new graphs'!C14 -> BRL / year | E10: =INDEX('new graphs'!$F14:$Y14,1,MATCH(E$4,'new graphs'!$F$9:$Y$9,0)) -> 869548.9002 | H10: =INDEX('new graphs'!$F14:$Y14,1,MATCH(H$4,'new graphs'!$F$9:$Y$9,0)) -> 631243.3755 | K10: =INDEX('new graphs'!$F14:$Y14,1,MATCH(K$4,'new graphs'!$F$9:$Y$9,0)) -> 524194.5515 | N10: =INDEX('new graphs'!$F14:$Y14,1,MATCH(N$4,'new graphs'!$F$9:$Y$9,0)) -> 509244.5259 | Q10: =INDEX('new graphs'!$F14:$Y14,1,MATCH(Q$4,'new graphs'!$F$9:$Y$9,0)) -> 494632.6063 | T10: =INDEX('new graphs'!$F14:$Y14,1,MATCH(T$4,'new graphs'!$F$9:$Y$9,0)) -> 480361.9043 | W10: =INDEX('new graphs'!$F14:$Y14,1,MATCH(W$4,'new graphs'!$F$9:$Y$9,0)) -> 466434.2063 | Z10: =INDEX('new graphs'!$F14:$Y14,1,MATCH(Z$4,'new graphs'!$F$9:$Y$9,0)) -> 452850.1316 | AC10: =INDEX('new graphs'!$F14:$Y14,1,MATCH(AC$4,'new graphs'!$F$9:$Y$9,0)) -> 439609.2745 | AF10: =INDEX('new graphs'!$F14:$Y14,1,MATCH(AF$4,'new graphs'!$F$9:$Y$9,0)) -> 426710.3313 | AI10: =INDEX('new graphs'!$F14:$Y14,1,MATCH(AI$4,'new graphs'!$F$9:$Y$9,0)) -> 341683.0038 | AL10: =INDEX('new graphs'!$F14:$Y14,1,MATCH(AL$4,'new graphs'!$F$9:$Y$9,0)) -> 328744.2231 | AO10: =INDEX('new graphs'!$F14:$Y14,1,MATCH(AO$4,'new graphs'!$F$9:$Y$9,0)) -> 316210.8077 | AR10: =INDEX('new graphs'!$F14:$Y14,1,MATCH(AR$4,'new graphs'!$F$9:$Y$9,0)) -> 0 | AU10: =INDEX('new graphs'!$F14:$Y14,1,MATCH(AU$4,'new graphs'!$F$9:$Y$9,0)) -> 0 | AX10: =INDEX('new graphs'!$F14:$Y14,1,MATCH(AX$4,'new graphs'!$F$9:$Y$9,0)) -> 0 | BA10: =INDEX('new graphs'!$F14:$Y14,1,MATCH(BA$4,'new graphs'!$F$9:$Y$9,0)) -> 0 | BD10: =INDEX('new graphs'!$F14:$Y14,1,MATCH(BD$4,'new graphs'!$F$9:$Y$9,0)) -> 0 | BG10: =INDEX('new graphs'!$F14:$Y14,1,MATCH(BG$4,'new graphs'!$F$9:$Y$9,0)) -> 0 | BJ10: =INDEX('new graphs'!$F14:$Y14,1,MATCH(BJ$4,'new graphs'!$F$9:$Y$9,0)) -> 0
B12: =Language_Refs!D213 -> Budget for Public Street Lighting Expenditures | C12: ='new graphs'!C16 -> BRL / year | E12: =INDEX('new graphs'!$F16:$Y16,1,MATCH(E$4,'new graphs'!$F$9:$Y$9,0)) -> 18000000 | F12: =IFERROR(IF(AND(H12=0,K12=0),E12,E12*(1+RATE(3,,E12,-H12))),0) -> 18029950.14 | G12: =IFERROR(IF(AND(H12=0,K12=0),F12,F12*(1+RATE(3,,E12,-H12))),0) -> 18059950.11 | H12: =INDEX('new graphs'!$F16:$Y16,1,MATCH(H$4,'new graphs'!$F$9:$Y$9,0)) -> 18090000 | I12: =IFERROR(IF(AND(K12=0,N12=0),H12,H12*(1+RATE(3,,H12,-K12))),0) -> 18120099.89 | J12: =IFERROR(IF(AND(K12=0,N12=0),I12,I12*(1+RATE(3,,H12,-K12))),0) -> 18150249.86 | K12: =INDEX('new graphs'!$F16:$Y16,1,MATCH(K$4,'new graphs'!$F$9:$Y$9,0)) -> 18180450 | L12: =IFERROR(IF(AND(N12=0,Q12=0),K12,K12*(1+RATE(3,,K12,-N12))),0) -> 18210700.39 | M12: =IFERROR(IF(AND(N12=0,Q12=0),L12,L12*(1+RATE(3,,K12,-N12))),0) -> 18241001.11 | N12: =INDEX('new graphs'!$F16:$Y16,1,MATCH(N$4,'new graphs'!$F$9:$Y$9,0)) -> 18271352.25 | O12: =IFERROR(IF(AND(Q12=0,T12=0),N12,N12*(1+RATE(3,,N12,-Q12))),0) -> 18301753.89 | P12: =IFERROR(IF(AND(Q12=0,T12=0),O12,O12*(1+RATE(3,,N12,-Q12))),0) -> 18332206.12 | Q12: =INDEX('new graphs'!$F16:$Y16,1,MATCH(Q$4,'new graphs'!$F$9:$Y$9,0)) -> 18362709.01 | R12: =IFERROR(IF(AND(T12=0,W12=0),Q12,Q12*(1+RATE(3,,Q12,-T12))),0) -> 18393262.66 | S12: =IFERROR(IF(AND(T12=0,W12=0),R12,R12*(1+RATE(3,,Q12,-T12))),0) -> 18423867.15 | T12: =INDEX('new graphs'!$F16:$Y16,1,MATCH(T$4,'new graphs'!$F$9:$Y$9,0)) -> 18454522.56 | U12: =IFERROR(IF(AND(W12=0,Z12=0),T12,T12*(1+RATE(3,,T12,-W12))),0) -> 18485228.97 | V12: =IFERROR(IF(AND(W12=0,Z12=0),U12,U12*(1+RATE(3,,T12,-W12))),0) -> 18515986.48 | W12: =INDEX('new graphs'!$F16:$Y16,1,MATCH(W$4,'new graphs'!$F$9:$Y$9,0)) -> 18546795.17 | X12: =IFERROR(IF(AND(Z12=0,AC12=0),W12,W12*(1+RATE(3,,W12,-Z12))),0) -> 18577655.12 | Y12: =IFERROR(IF(AND(Z12=0,AC12=0),X12,X12*(1+RATE(3,,W12,-Z12))),0) -> 18608566.41 | Z12: =INDEX('new graphs'!$F16:$Y16,1,MATCH(Z$4,'new graphs'!$F$9:$Y$9,0)) -> 18639529.14 | AA12: =IFERROR(IF(AND(AC12=0,AF12=0),Z12,Z12*(1+RATE(3,,Z12,-AC12))),0) -> 18670543.39 | AB12: =IFERROR(IF(AND(AC12=0,AF12=0),AA12,AA12*(1+RATE(3,,Z12,-AC12))),0) -> 18701609.25 | AC12: =INDEX('new graphs'!$F16:$Y16,1,MATCH(AC$4,'new graphs'!$F$9:$Y$9,0)) -> 18732726.79 | AD12: =IFERROR(IF(AND(AF12=0,AI12=0),AC12,AC12*(1+RATE(3,,AC12,-AF12))),0) -> 18763896.11 | AE12: =IFERROR(IF(AND(AF12=0,AI12=0),AD12,AD12*(1+RATE(3,,AC12,-AF12))),0) -> 18795117.29 | AF12: =INDEX('new graphs'!$F16:$Y16,1,MATCH(AF$4,'new graphs'!$F$9:$Y$9,0)) -> 18826390.42 | AG12: =IFERROR(IF(AND(AI12=0,AL12=0),AF12,AF12*(1+RATE(3,,AF12,-AI12))),0) -> 18857715.59 | AH12: =IFERROR(IF(AND(AI12=0,AL12=0),AG12,AG12*(1+RATE(3,,AF12,-AI12))),0) -> 18889092.88 | AI12: =INDEX('new graphs'!$F16:$Y16,1,MATCH(AI$4,'new graphs'!$F$9:$Y$9,0)) -> 18920522.38 | AJ12: =IFERROR(IF(AND(AL12=0,AO12=0),AI12,AI12*(1+RATE(3,,AI12,-AL12))),0) -> 18952004.17 | AK12: =IFERROR(IF(AND(AL12=0,AO12=0),AJ12,AJ12*(1+RATE(3,,AI12,-AL12))),0) -> 18983538.34 | AL12: =INDEX('new graphs'!$F16:$Y16,1,MATCH(AL$4,'new graphs'!$F$9:$Y$9,0)) -> 19015124.99 | AM12: =IFERROR(IF(AND(AO12=0,AR12=0),AL12,AL12*(1+RATE(3,,AL12,-AO12))),0) -> 19046764.19 | AN12: =IFERROR(IF(AND(AO12=0,AR12=0),AM12,AM12*(1+RATE(3,,AL12,-AO12))),0) -> 19078456.04 | AO12: =INDEX('new graphs'!$F16:$Y16,1,MATCH(AO$4,'new graphs'!$F$9:$Y$9,0)) -> 19110200.61 | AP12: =IFERROR(IF(AND(AR12=0,AU12=0),AO12,AO12*(1+RATE(3,,AO12,-AR12))),0) -> 19110200.61 | AQ12: =IFERROR(IF(AND(AR12=0,AU12=0),AP12,AP12*(1+RATE(3,,AO12,-AR12))),0) -> 19110200.61 | AR12: =INDEX('new graphs'!$F16:$Y16,1,MATCH(AR$4,'new graphs'!$F$9:$Y$9,0)) -> 0 | AS12: =IFERROR(IF(AND(AU12=0,AX12=0),AR12,AR12*(1+RATE(3,,AR12,-AU12))),0) -> 0 | AT12: =IFERROR(IF(AND(AU12=0,AX12=0),AS12,AS12*(1+RATE(3,,AR12,-AU12))),0) -> 0 | AU12: =INDEX('new graphs'!$F16:$Y16,1,MATCH(AU$4,'new graphs'!$F$9:$Y$9,0)) -> 0 | AV12: =IFERROR(IF(AND(AX12=0,BA12=0),AU12,AU12*(1+RATE(3,,AU12,-AX12))),0) -> 0 | AW12: =IFERROR(IF(AND(AX12=0,BA12=0),AV12,AV12*(1+RATE(3,,AU12,-AX12))),0) -> 0 | AX12: =INDEX('new graphs'!$F16:$Y16,1,MATCH(AX$4,'new graphs'!$F$9:$Y$9,0)) -> 0 | AY12: =IFERROR(IF(AND(BA12=0,BD12=0),AX12,AX12*(1+RATE(3,,AX12,-BA12))),0) -> 0 | AZ12: =IFERROR(IF(AND(BA12=0,BD12=0),AY12,AY12*(1+RATE(3,,AX12,-BA12))),0) -> 0 | BA12: =INDEX('new graphs'!$F16:$Y16,1,MATCH(BA$4,'new graphs'!$F$9:$Y$9,0)) -> 0 | BB12: =IFERROR(IF(AND(BD12=0,BG12=0),BA12,BA12*(1+RATE(3,,BA12,-BD12))),0) -> 0 | BC12: =IFERROR(IF(AND(BD12=0,BG12=0),BB12,BB12*(1+RATE(3,,BA12,-BD12))),0) -> 0 | BD12: =INDEX('new graphs'!$F16:$Y16,1,MATCH(BD$4,'new graphs'!$F$9:$Y$9,0)) -> 0 | BE12: =IFERROR(IF(AND(BG12=0,BJ12=0),BD12,BD12*(1+RATE(3,,BD12,-BG12))),0) -> 0 | BF12: =IFERROR(IF(AND(BG12=0,BJ12=0),BE12,BE12*(1+RATE(3,,BD12,-BG12))),0) -> 0 | BG12: =INDEX('new graphs'!$F16:$Y16,1,MATCH(BG$4,'new graphs'!$F$9:$Y$9,0)) -> 0 | BH12: =IFERROR(IF(AND(BJ12=0,BM12=0),BG12,BG12*(1+RATE(3,,BG12,-BJ12))),0) -> 0 | BI12: =IFERROR(IF(AND(BJ12=0,BM12=0),BH12,BH12*(1+RATE(3,,BG12,-BJ12))),0) -> 0 | BJ12: =INDEX('new graphs'!$F16:$Y16,1,MATCH(BJ$4,'new graphs'!$F$9:$Y$9,0)) -> 0 | BK12: =BJ12 -> 0
E32: =E6 -> 19513618.18 | H32: =H6 -> 19958421.75 | K32: =K6 -> 20301968.36 | N32: =N6 -> 20708007.72 | Q32: =Q6 -> 21122167.88 | T32: =T6 -> 21603637.57 | W32: =W6 -> 21975503.46 | Z32: =Z6 -> 22415013.53 | AC32: =AC6 -> 22863313.8 | AF32: =AF6 -> 23384472.08 | AI32: =AI6 -> 23786991.68 | AL32: =AL6 -> 24262731.51 | AO32: =AO6 -> 24747986.14 | AR32: =AR6 -> 0 | AU32: =AU6 -> 0 | AX32: =AX6 -> 0 | BA32: =BA6 -> 0 | BD32: =BD6 -> 0 | BG32: =BG6 -> 0 | BJ32: =BJ6 -> 0
E33: =E7 -> 1409913.711 | H33: =H7 -> 1371718.576 | K33: =K7 -> 1334056.174 | N33: =N7 -> 1296912.261 | Q33: =Q7 -> 1260272.952 | T33: =T7 -> 1224124.709 | W33: =W7 -> 1188454.334 | Z33: =Z7 -> 1153248.958 | AC33: =AC7 -> 1118496.04 | AF33: =AF7 -> 1084183.35 | AI33: =AI7 -> 1050298.97 | AL33: =AL7 -> 1016831.281 | AO33: =AO7 -> 983768.9569 | AR33: =AR7 -> 0 | AU33: =AU7 -> 0 | AX33: =AX7 -> 0 | BA33: =BA7 -> 0 | BD33: =BD7 -> 0 | BG33: =BG7 -> 0 | BJ33: =BJ7 -> 0
F36: =E9 -> 14299686.19 | I36: =H9 -> 9292859.597 | L36: =K9 -> 9452818.656 | O36: =N9 -> 9641875.029 | R36: =Q9 -> 9834712.53 | U36: =T9 -> 10058890.09 | X36: =W9 -> 10232034.92 | AA36: =Z9 -> 10436675.61 | AD36: =AC9 -> 10645409.13 | AG36: =AF9 -> 10888066.12 | AJ36: =AI9 -> 11075483.66 | AM36: =AL9 -> 11296993.33 | AP36: =AO9 -> 11522933.19 | AS36: =AR9 -> 0 | AV36: =AU9 -> 0 | AY36: =AX9 -> 0 | BB36: =BA9 -> 0 | BE36: =BD9 -> 0 | BH36: =BG9 -> 0 | BK36: =BJ9 -> 0
F37: =E10 -> 869548.9002 | I37: =H10 -> 631243.3755 | L37: =K10 -> 524194.5515 | O37: =N10 -> 509244.5259 | R37: =Q10 -> 494632.6063 | U37: =T10 -> 480361.9043 | X37: =W10 -> 466434.2063 | AA37: =Z10 -> 452850.1316 | AD37: =AC10 -> 439609.2745 | AG37: =AF10 -> 426710.3313 | AJ37: =AI10 -> 341683.0038 | AM37: =AL10 -> 328744.2231 | AP37: =AO10 -> 316210.8077 | AS37: =AR10 -> 0 | AV37: =AU10 -> 0 | AY37: =AX10 -> 0 | BB37: =BA10 -> 0 | BE37: =BD10 -> 0 | BH37: =BG10 -> 0 | BK37: =BJ10 -> 0
B54: Current Electricity expenditures | C54: Despesas Corrente Eléctrica
B55: Current Lamp replacement expenditures | C55: Despesas de Substituição de Lâmpada Atuais
B57: LED project Electricity expenditures | C57: Despesas de Eletricidade do Projeto de LED
B58: LED project Lamp replacement expenditures | C58: Despesas de Substituição da Lâmpada do Projeto LED
B60: COSIP / Municipal Budget | C60: COSIP / Orçamento Municipal

Sheet 3.1_ProjectDesignData (hidden)
C2: language | E2: =B37 -> Total investment over 13 years (CAPEX + fees) | F2: =IFERROR(Assumptions!E82,"n/a") -> 30100000 | G2: =Assumptions!$D$42&TEXT(F2,"##0.00,,")&"M" -> R$30.10M | H2: =B41 -> Project NPV over 13 years (R$) | I2: =IFERROR(Assumptions!E88,"n/a") -> 74100000 | J2: =Assumptions!$D$42&TEXT(I2,"##0.00,,")&"M" -> R$74.10M
C3: 1 | E3: =B38 -> Total revenues over 13 years | F3: =IFERROR(Assumptions!E83,"n/a") -> 174500000 | G3: =Assumptions!$D$42&TEXT(F3,"##0.00,,")&"M" -> R$174.50M | H3: Project IRR | I3: =Assumptions!E89 -> 0.4609898717
E4: =B39 -> Total electricity savings over 13 years | F4: =IFERROR(Assumptions!E85,"n/a") -> 241.54446 | G4: GWH | H4: Payback period (non-discounted) | I4: =IFERROR(Assumptions!E86,"n/a") -> 2.242406877 | J4: =B82 -> years
E5: =B40 -> Total GHG reductions over 13 years | F5: =IFERROR(Assumptions!E84,"n/a") -> 106279.5624 | G5: tCO2e | H5: RoI | I5: =IFERROR(Assumptions!E87,"n/a") -> 4.797342193
H6: WACC (real) | I6: =Assumptions!E90 -> 0.0325
H7: Min DSCR | I7: =IFERROR(IF(Assumptions!$E$72="Economic","NA",Assumptions!E91),"n/a") -> NA
H8: Equity IRR | I8: =Assumptions!E99 -> n/a
B9: Type | C9: FCFF | E9: Years | F9: ='3.1_ProjectDesign'!F21 -> 13 | H9: ="Note: Project is assessed with a "&'3.1_ProjectDesignData'!F9&"-year period of analysis. " -> Note: Project is assessed with a 13-year period of analysis.
H10: =Language_Refs!D206 -> Equity NPV (R$) | I10: =IFERROR('Free Cash Flows'!D36,"n/a") -> 6151931.061 | J10: =Assumptions!$D$42&TEXT(I10,"##0.00,,")&"M" -> R$6.15M
C12: 1 | D12: =C12+1 -> 2 | E12: =D12+1 -> 3 | F12: 4 | G12: 5 | H12: 6 | I12: 7 | J12: 8 | K12: 9 | L12: 10 | M12: 11 | N12: 12 | O12: 13 | P12: 14 | Q12: 15 | R12: 16 | S12: 17 | T12: 18 | U12: 19 | V12: 20
B14: Revenue (+) | C14: =IF($C$9="FCFF",C21,C27) -> 6151931.061 | D14: 12731707.37 | E14: 13023923.67 | F14: 13233797.22 | G14: 13449154.8 | H14: 13704626.97 | I14: 13896774.39 | J14: 14129265.43 | K14: 14367698.97 | L14: 14649664.05 | M14: 14790400.29 | N14: 15046661.74 | O14: 15309422.04 | P14: 0 | Q14: 0 | R14: 0 | S14: 0 | T14: 0 | U14: 0 | V14: 0
B15: Investment (-) | C15: =IF($C$9="FCFF",C22,C28) -> -18030802.86 | D15: -16824998.06 | E15: -3287553.768 | F15: -3350515.834 | G15: -3415123.108 | H15: -3491764.76 | I15: -3549408.984 | J15: -3619156.295 | K15: -3690686.358 | L15: -3775275.884 | M15: -3817496.755 | N15: -3894375.19 | O15: -4283014.946 | P15: 0 | Q15: 0 | R15: 0 | S15: 0 | T15: 0 | U15: 0 | V15: 0
B16: Net Cash Flow | C16: =IF($C$9="FCFF",C23,C29) -> -11878871.8 | D16: -4093290.697 | E16: 9736369.899 | F16: 9883281.386 | G16: 10034031.69 | H16: 10212862.21 | I16: 10347365.4 | J16: 10510109.13 | K16: 10677012.61 | L16: 10874388.17 | M16: 10972903.53 | N16: 11152286.55 | O16: 11026407.09 | P16: 0 | Q16: 0 | R16: 0 | S16: 0 | T16: 0 | U16: 0 | V16: 0
B17: ="Cumulative Cash Flow" & " ("&C9&")" -> Cumulative Cash Flow (FCFF) | C17: =IF($C$9="FCFF",C24,C30) -> -11878871.8 | D17: -15972162.5 | E17: -6235792.596 | F17: 3647488.791 | G17: 13681520.48 | H17: 23894382.7 | I17: 34241748.1 | J17: 44751857.23 | K17: 55428869.84 | L17: 66303258.01 | M17: 77276161.54 | N17: 88428448.09 | O17: 99454855.19 | P17: 99454855.19 | Q17: 99454855.19 | R17: 99454855.19 | S17: 99454855.19 | T17: 99454855.19 | U17: 99454855.19 | V17: 99454855.19
B18: 1 | C18: =C15*20% -> -3606160.572 | D18: =D15*20% -> -3364999.613 | E18: -657510.7536 | F18: -670103.1668 | G18: -683024.6217 | H18: -698352.9519 | I18: -709881.7968 | J18: -723831.2591 | K18: -738137.2717 | L18: -755055.1767 | M18: -763499.3509 | N18: -778875.0379 | O18: -856602.9892 | P18: 0 | Q18: 0 | R18: 0 | S18: 0 | T18: 0 | U18: 0 | V18: 0
B19: 2 | C19: =C15*80% -> -14424642.29 | D19: =D15*80% -> -13459998.45 | E19: -2630043.014 | F19: -2680412.667 | G19: -2732098.487 | H19: -2793411.808 | I19: -2839527.187 | J19: -2895325.036 | K19: -2952549.087 | L19: -3020220.707 | M19: -3053997.404 | N19: -3115500.152 | O19: -3426411.957 | P19: 0 | Q19: 0 | R19: 0 | S19: 0 | T19: 0 | U19: 0 | V19: 0
B20: FCFF
B21: Revenue (+) | C21: ='Free Cash Flows'!E15 -> 6151931.061 | D21: ='Free Cash Flows'!F15 -> 12731707.37 | E21: ='Free Cash Flows'!G15 -> 13023923.67 | F21: ='Free Cash Flows'!H15 -> 13233797.22 | G21: ='Free Cash Flows'!I15 -> 13449154.8 | H21: ='Free Cash Flows'!J15 -> 13704626.97 | I21: ='Free Cash Flows'!K15 -> 13896774.39 | J21: ='Free Cash Flows'!L15 -> 14129265.43 | K21: ='Free Cash Flows'!M15 -> 14367698.97 | L21: ='Free Cash Flows'!N15 -> 14649664.05 | M21: ='Free Cash Flows'!O15 -> 14790400.29 | N21: ='Free Cash Flows'!P15 -> 15046661.74 | O21: ='Free Cash Flows'!Q15 -> 15309422.04 | P21: ='Free Cash Flows'!R15 -> 0 | Q21: ='Free Cash Flows'!S15 -> 0 | R21: ='Free Cash Flows'!T15 -> 0 | S21: ='Free Cash Flows'!U15 -> 0 | T21: ='Free Cash Flows'!V15 -> 0 | U21: ='Free Cash Flows'!W15 -> 0 | V21: ='Free Cash Flows'!X15 -> 0
